Workbook

Sheet 1. Information Sheet
V1: Algoma Power Inc.
V2: Atikokan Hydro Inc.
V3: Attawapiskat Power Corp.
V4: Bluewater Power Distribution Corporation
V5: Brant County Power Inc.
V6: Brantford Power Inc.
V7: Burlington Hydro Inc.
V8: Cambridge and North Dumfries Hydro Inc.
V9: Canadian Niagara Power Inc.
V10: Centre Wellington Hydro Ltd.
V11: Chapleau Public Utilities Corporation
M12: Version | N12: 2.2 | V12: Clinton Power Corporation
V13: COLLUS Power Corporation
E14: Utility Name | F14: Festival Hydro Inc. | V14: Cooperative Hydro Embrun Inc.
V15: E.L.K. Energy Inc.
E16: Service Territory | F16: (if applicable) | V16: Enersource Hydro Mississauga Inc.
V17: Entegrus Powerlines Inc.
E18: Assigned EB Number | F18: EB-2014-0073 | V18: ENWIN Utilities Ltd.
V19: Erie Thames Powerlines Corporation
E20: Name of Contact and Title | F20: Debbie Reece | V20: Espanola Regional Hydro Distribution Corporation
V21: Essex Powerlines Corporation
E22: Phone Number | F22: 519-271-4703 .268 | V22: Festival Hydro Inc.
V23: Fort Albany Power Corporation
E24: Email Address | F24: dreece@festivalhydro.com | V24: Fort Frances Power Corporation
V25: Greater Sudbury Hydro Inc.
V26: Grimsby Power Inc.
B27: General Notes 1. Please ensure that your macros have been enabled. (Tools -> Macro -> Security) 2. Due to the time lag of deferral/variance account dispositions, this model assumes that all opening balances include previously disposed of amounts. Accordingly, all "Board Approved Dispositions" are deducted from the opening balance. 3. Please provide information in this model since the last time your balances were disposed. 4. For all Board-Approved dispositions, please ensure that the disposition amount has the same sign (e.g: debit balances are to have a positive figure and credit balance are to have a negative figure) as per the related Board decision. | V27: Guelph Hydro Electric Systems Inc.
V28: Haldimand County Hydro Inc.
B29: Notes | V29: Halton Hills Hydro Inc.
V30: Hearst Power Distribution Company Limited
C31: Pale green cells represent input cells. | V31: Horizon Utilities Corporation
V32: Hydro 2000 Inc.
C33: Pale blue cells represent drop-down lists. The applicant should select the appropriate item from the drop-down list. | V33: Hydro Hawkesbury Inc.
V34: Hydro One Brampton Networks Inc.
C35: White cells contain fixed values, automatically generated values or formulae. | V35: Hydro One Networks Inc.
V36: Hydro Ottawa Limited
V37: Innisfil Hydro Distribution Systems Limited
V38: Kashechewan Power Corporation
V39: Kenora Hydro Electric Corporation Ltd.
V40: Kingston Hydro Corporation
V41: Kitchener-Wilmot Hydro Inc.
V42: Lakefront Utilities Inc.
V43: Lakeland Power Distribution Ltd.
V44: London Hydro Inc.
V45: Midland Power Utility Corporation
V46: Milton Hydro Distribution inc.
V47: Newmarket - Tay Power Distribution Ltd.
V48: Niagara Peninsula Energy Inc.
V49: Niagara-on-the-Lake Hydro Inc.
V50: Norfolk Power Distribution Inc.
V51: North Bay Hydro Distribution Limited
V52: Northern Ontario Wires Inc.
V53: Oakville Hydro Electricity Distribution Inc.
V54: Orangeville Hydro Limited
V55: Orillia Power Distribution Corporation
V56: Oshawa PUC Networks Inc.
V57: Ottawa River Power Corporation
V58: Parry Sound Power Corporation
V59: Peterborough Distribution Incorporated
V60: PowerStream Inc.
V61: PUC Distribution Inc.
V62: Renfrew Hydro Inc.
V63: Rideau St. Lawrence Distribution Inc.
V64: Sioux Lookout Hydro Inc.
V65: St. Thomas Energy Inc.
V66: Thunder Bay Hydro Electricity Distribution Inc.
V67: Tillsonburg Hydro Inc.
V68: Toronto Hydro-Electric System Limited
V69: Veridian Connections Inc.
V70: Wasaga Distribution Inc.
V71: Waterloo North Hydro Inc.
V72: Welland Hydro-Electric System Corp.
V73: Wellington North Power Inc.
V74: West Coast Huron Energy Inc.
V75: West Perth Power Inc.
V76: Westario Power Inc.
V77: Whitby Hydro Electric Corporation
V78: Woodstock Hydro Services Inc.

Sheet 2. 2014 Continuity Schedule
CF14: =+CF29+CF28 -> 16205
BX15: =+BW29+BW28 -> 1115989 | BY15: =+BX15+CE15 -> 1144174 | CE15: =+CE29+CE28 -> 28185
CE16: 16205
CE17: =+CE16+CE15 -> 44390 | CI17: =+CI29+CI28 -> 44390
E19: 2006 | O19: 2007 | Y19: 2008 | AI19: 2009 | AS19: 2010 | BC19: 2011 | BM19: 2012 | BW19: 2013 | CJ19: 2014 | CN19: Projected Interest on Dec-31-13 Balances | CQ19: 2.1.7 RRR
C20: Account Descriptions | D20: Account Number | E20: Opening Principal Amounts as of Jan-1-06 | F20: Transactions Debit / (Credit) during 2006 excluding interest and adjustments 3 | G20: Board-Approved Disposition during 2006 | H20: Adjustments during 2005 - other 2 | I20: Closing Principal Balance as of Dec-31-06 | J20: Opening Interest Amounts as of Jan-1-06 | K20: Interest Jan-1 to Dec-31-06 | L20: Board-Approved Disposition during 2006 | M20: Adjustments during 2006 - other 6 | N20: Closing Interest Amounts as of Dec-31-06 | O20: Opening Principal Amounts as of Jan-1-07 | P20: Transactions Debit / (Credit) during 2007 excluding interest and adjustments 3 | Q20: Board-Approved Disposition during 2007 1, 1A | R20: Adjustments during 2007 - other 2 | S20: Closing Principal Balance as of Dec-31-07 | T20: Opening Interest Amounts as of Jan-1-07 | U20: Interest Jan-1 to Dec-31-07 | V20: Board-Approved Disposition during 2007 1, 1A | W20: Adjustments during 2007 - other 2 | X20: Closing Interest Amounts as of Dec-31-07 | Y20: Opening Principal Amounts as of Jan-1-08 | Z20: Transactions Debit / (Credit) during 2008 excluding interest and adjustments 3 | AA20: Board-Approved Disposition during 2008 | AB20: Closing Dec 31 08 | AC20: Closing Principal Balance as of Dec-31-08 | AD20: Opening Interest Amounts as of Jan-1-08 | AE20: Interest Jan-1 to Dec-31-08 | AF20: Board-Approved Disposition during 2008 | AG20: Closing Interst 2008 | AH20: Closing Interest Amounts as of Dec-31-08 | AI20: Opening Principal Amounts as of Jan-1-09 | AJ20: Transactions Debit / (Credit) during 2009 excluding interest and adjustments 3 | AK20: Board-Approved Disposition during 2009 | AL20: Adjustments during 2009 - other 2 | AM20: Closing Principal Balance as of Dec-31-09 | AN20: Opening Interest Amounts as of Jan-1-09 | AO20: Interest Jan-1 to Dec-31-09 | AP20: Board-Approved Disposition during 2009 | AQ20: Adjustments during 2009 - other 2 | AR20: Closing Interest Amounts as of Dec-31-09 | AS20: Opening Principal Amounts as of Jan-1-10 | AT20: Transactions Debit / (Credit) during 2010 excluding interest and adjustments 3 | AU20: Board-Approved Disposition during 2010 | AV20: Adjustments during 2010 - other 2 | AW20: Closing Principal Balance as of Dec-31-10 | AX20: Opening Interest Amounts as of Jan-1-10 | AY20: Interest Jan-1 to Dec-31-10 | AZ20: Board-Approved Disposition during 2010 | BA20: Adjustments during 2010 - other 2 | BB20: Closing Interest Amounts as of Dec-31-10 | BC20: Opening Principal Amounts as of Jan-1-11 | BD20: Transactions Debit / (Credit) during 2011 excluding interest and adjustments 3 | BE20: Board-Approved Disposition during 2011 | BF20: Adjustments during 2011 - other 2 | BG20: Closing Principal Balance as of Dec-31-11 | BH20: Opening Interest Amounts as of Jan-1-11 | BI20: Interest Jan-1 to Dec-31-11 | BJ20: Board-Approved Disposition during 2011 | BK20: Adjustments during 2011 - other 2 | BL20: Closing Interest Amounts as of Dec-31-11 | BM20: Opening Principal Amounts as of Jan-1-12 | BN20: Transactions Debit / (Credit) during 2012 excluding interest and adjustments 3 | BO20: Board-Approved Disposition during 2012 | BP20: Adjustments during 2012 - other 2 | BQ20: Closing Principal Balance as of Dec-31-12 | BR20: Opening Interest Amounts as of Jan-1-12 | BS20: Interest Jan-1 to Dec-31-12 | BT20: Board-Approved Disposition during 2012 | BU20: Adjustments during 2012 - other 2 | BV20: Closing Interest Amounts as of Dec-31-12 | BW20: Opening Principal Amounts as of Jan-1-13 | BX20: Transactions Debit / (Credit) during 2013 excluding interest and adjustments 3 | BY20: Board-Approved Disposition during 2013 | BZ20: Other 2 Adjustments during Q1 2013 | CA20: Other 2 Adjustments during Q2 2013 | CB20: Other 2 Adjustments during Q3 2013 | CC20: Other 2 Adjustments during Q4 2013 | CD20: Closing Principal Balance as of Dec-31-13 | CE20: Opening Interest Amounts as of Jan-1-13 | CF20: Interest Jan-1 to Dec-31-13 | CG20: Board-Approved Disposition during 2013 | CH20: Adjustments during 2013 - other 2 | CI20: Closing Interest Amounts as of Dec-31-13 | CJ20: Principal Disposition during 2014 - instructed by Board and 2014 required entires | CK20: Interest Disposition during 2014 - instructed by Board | CL20: Closing Principal Balances as of Dec 31-13 Adjusted for Dispositions during 2014 | CM20: Closing Interest Balances as of Dec 31-13 Adjusted for Dispositions during 2014 | CN20: Projected Interest from Jan 1, 2014 to December 34, 2014 on Dec 31 -13 balance adjusted for disposition during 2014 6 | CP20: Total Claim | CQ20: As of Dec 31-13 | CR20: Variance RRR vs. 2012 Balance (Principal + Interest)
CP22: Claim before Forecasted Transactions
C23: Group 1 Accounts
A24: 1 | C24: LV Variance Account | D24: 1550 | I24: =E24+F24-G24+H24 -> 0 | N24: =J24+K24-L24+M24 -> 0 | O24: =I24 -> 0 | S24: =O24+P24-Q24+R24 -> 0 | T24: =N24 -> 0 | X24: =T24+U24-V24+W24 -> 0 | Y24: =S24 -> 0 | AB24: 72949 | AC24: =Y24+Z24-AA24+AB24 -> 72949 | AD24: =X24 -> 0 | AG24: 3652 | AH24: =AD24+AE24-AF24+AG24 -> 3652 | AI24: =AC24 -> 72949 | AJ24: -42809 | AM24: =AI24+AJ24-AK24+AL24 -> 30140 | AN24: =AH24 -> 3652 | AO24: 651 | AR24: =AN24+AO24-AP24+AQ24 -> 4303 | AS24: =AM24 -> 30140 | AT24: =-117310.56+102670.56 -> -14640 | AU24: 72949 | AW24: =AS24+AT24-AU24+AV24 -> -57449 | AX24: =AR24 -> 4303 | AY24: -361 | AZ24: 4624 | BB24: =AX24+AY24-AZ24+BA24 -> -682 | BC24: =AW24 -> -57449 | BD24: 43855 | BG24: =BC24+BD24-BE24+BF24 -> -13594 | BH24: =BB24 -> -682 | BI24: -776 | BL24: =BH24+BI24-BJ24+BK24 -> -1458 | BM24: =BG24 -> -13594 | BN24: 51247 | BQ24: =BM24+BN24-BO24+SUM(BP24:BP24) -> 37653 | BR24: =BL24 -> -1458 | BS24: -36 | BV24: =BR24+BS24-BT24+BU24 -> -1494 | BW24: =BQ24 -> 37653 | BX24: 90572.53 | CD24: =BW24+BX24-BY24+SUM(BZ24:CC24) -> 128225.53 | CE24: =BV24 -> -1494 | CF24: 1155.59 | CI24: =CE24+CF24-CG24+CH24 -> -338.41 | CL24: =CD24-CJ24 -> 128225.53 | CM24: =CI24-CK24 -> -338.41 | CN24: =+CL24*0.0147 -> 1884.915291 | CP24: =SUM(CL24:CO24) -> 129772.0353 | CQ24: 127886.83 | CR24: =CQ24-SUM(CD24,CI24) -> -0.29
A25: 2 | C25: RSVA - Wholesale Market Service Charge | D25: 1580 | I25: =E25+F25-G25+H25 -> 0 | N25: =J25+K25-L25+M25 -> 0 | O25: =I25 -> 0 | S25: =O25+P25-Q25+R25 -> 0 | T25: =N25 -> 0 | X25: =T25+U25-V25+W25 -> 0 | Y25: =S25 -> 0 | AB25: -1385017 | AC25: =Y25+Z25-AA25+AB25 -> -1385017 | AD25: =X25 -> 0 | AG25: -82542 | AH25: =AD25+AE25-AF25+AG25 -> -82542 | AI25: =AC25 -> -1385017 | AJ25: -119725 | AM25: =AI25+AJ25-AK25+AL25 -> -1504742 | AN25: =AH25 -> -82542 | AO25: -10574 | AR25: =AN25+AO25-AP25+AQ25 -> -93116 | AS25: =AM25 -> -1504742 | AT25: -586957 | AU25: -1385017 | AW25: =AS25+AT25-AU25+AV25 -> -706682 | AX25: =AR25 -> -93116 | AY25: -5374 | AZ25: -101009 | BB25: =AX25+AY25-AZ25+BA25 -> 2519 | BC25: =AW25 -> -706682 | BD25: -586771 | BG25: =BC25+BD25-BE25+SUM(BF25:BF25) -> -1293453 | BH25: =BB25 -> 2519 | BI25: -14737 | BL25: =BH25+BI25-BJ25+BK25 -> -12218 | BM25: =BG25 -> -1293453 | BN25: -770181 | BQ25: =BM25+BN25-BO25+SUM(BP25:BP25) -> -2063634 | BR25: =BL25 -> -12218 | BS25: -24629 | BV25: =BR25+BS25-BT25+BU25 -> -36847 | BW25: =BQ25 -> -2063634 | BX25: -226639 | CD25: =BW25+BX25-BY25+SUM(BZ25:CC25) -> -2290273 | CE25: =BV25 -> -36847 | CF25: -33339 | CI25: =CE25+CF25-CG25+CH25 -> -70186 | CL25: =CD25-CJ25 -> -2290273 | CM25: =CI25-CK25 -> -70186 | CN25: =+CL25*0.0147 -> -33667.0131 | CP25: =SUM(CL25:CO25) -> -2394126.013 | CQ25: -2360459 | CR25: =CQ25-SUM(CD25,CI25) -> 0
A26: 3 | C26: RSVA - Retail Transmission Network Charge | D26: 1584 | I26: 0 | N26: 0 | O26: 0 | S26: 0 | T26: 0 | X26: 0 | Y26: 0 | AB26: -908899 | AC26: -908899 | AD26: 0 | AG26: -61078 | AH26: -61078 | AI26: -908899 | AJ26: -324034 | AM26: -1232933 | AN26: -61078 | AO26: -6298 | AR26: -67376 | AS26: -1232933 | AT26: 28679 | AU26: -908899 | AW26: -295355 | AX26: -67376 | AY26: -3991 | AZ26: -73197 | BB26: 1830 | BC26: -295355 | BD26: 235965 | BG26: -59390 | BH26: 1830 | BI26: -3243 | BL26: -1413 | BM26: -59390 | BN26: 215559 | BQ26: 156169 | BR26: -1413 | BS26: 1492 | BV26: 79 | BW26: 156169 | BX26: 124619 | CD26: 280788 | CE26: 79 | CF26: 2624 | CI26: 2703 | CL26: 280788 | CM26: 2703 | CN26: 4127.5836 | CP26: 287618.5836 | CQ26: 283491 | CR26: 0
A27: 4 | C27: RSVA - Retail Transmission Connection Charge | D27: 1586 | I27: 0 | N27: 0 | O27: 0 | S27: 0 | T27: 0 | X27: 0 | Y27: 0 | AB27: -924005 | AC27: -924005 | AD27: 0 | AG27: -90942 | AH27: -90942 | AI27: -924005 | AJ27: 68476 | AM27: -855529 | AN27: -90942 | AO27: -9530 | AR27: -100472 | AS27: -855529 | AT27: 125612 | AU27: -924005 | AW27: 194088 | AX27: -100472 | AY27: 17 | AZ27: -103262 | BB27: 2807 | BC27: 194088 | BD27: 132522 | BG27: 326610 | BH27: 2807 | BI27: 3464 | BL27: 6271 | BM27: 326610 | BN27: 30016 | BQ27: 356626 | BR27: 6271 | BS27: 5222 | BV27: 11493 | BW27: 356626 | BX27: 31388 | CD27: 388014 | CE27: 11493 | CF27: 4822 | CI27: 16315 | CL27: 388014 | CM27: 16315 | CN27: 5703.8058 | CP27: 410032.8058 | CQ27: 404329 | CR27: 0
A28: 5 | C28: RSVA - Power (excluding Global Adjustment) | D28: 1588 | I28: 0 | N28: 0 | O28: 0 | S28: 0 | T28: 0 | X28: 0 | Y28: 0 | AB28: 179553 | AC28: 179553 | AD28: 0 | AG28: 129197 | AH28: 129197 | AI28: 179553 | AJ28: 93856 | AM28: 273409 | AN28: 129197 | AO28: 461 | AR28: 129658 | AS28: 273409 | AT28: 21045 | AU28: 179553 | AW28: 114901 | AX28: 129658 | AY28: -612 | AZ28: 131591 | BB28: -2545 | BC28: 114901 | BD28: -114042 | BG28: 859 | BH28: -2545 | BI28: -2123 | BL28: -4668 | BM28: 859 | BN28: 272683 | BQ28: 273542 | BR28: -4668 | BS28: -6728 | BV28: -11396 | BW28: 273542 | BX28: -52825 | CD28: 220717 | CE28: -11396 | CF28: =16205/1115989*273542 -> 3972.035665 | CI28: -7423.964335 | CL28: 220717 | CM28: -7423.964335 | CN28: 3244.5399 | CP28: 216537.5756 | CQ28: 213293 | CR28: -0.03566522608 | CS28: =+CQ28+CQ29 -> 1269302
A29: 6 | C29: RSVA - Global Adjustment | D29: 1589 | I29: 0 | N29: 0 | O29: 0 | S29: 0 | T29: 0 | X29: 0 | Y29: 0 | AB29: 553697 | AC29: 553697 | AD29: 0 | AG29: 14390 | AH29: 14390 | AI29: 553697 | AJ29: 812186 | AM29: 1365883 | AN29: 14390 | AO29: 8753 | AR29: 23143 | AS29: 1365883 | AT29: -69609 | AU29: 553697 | AW29: 742577 | AX29: 23143 | AY29: 5635 | AZ29: 21773 | BB29: 7005 | BC29: 742577 | BD29: 533931 | BG29: 1276508 | BH29: 7005 | BI29: 13971 | BL29: 20976 | BM29: 1276508 | BN29: -434061 | BQ29: 842447 | BR29: 20976 | BS29: 18605 | BV29: 39581 | BW29: 842447 | BX29: 161748 | CD29: 1004195 | CE29: 39581 | CF29: =16205/1115989*842447 -> 12232.96433 | CI29: 51813.96433 | CL29: 1004195 | CM29: 51813.96433 | CN29: 14761.6665 | CP29: 1070770.631 | CQ29: =1269302-CQ28 -> 1056009 | CR29: 0.03566522617
A30: 7 | C30: Recovery of Regulatory Asset Balances | D30: 1590 | I30: =+H30+G30+F30+E30 -> 0 | N30: =+L30+K30+J30 -> 0 | O30: 0 | S30: 0 | T30: 0 | X30: 0 | Y30: 0 | AB30: 94824 | AC30: 94824 | AD30: 0 | AG30: -52575 | AH30: -52575 | AI30: 94824 | AM30: 94824 | AN30: -52575 | AO30: 1078.63 | AR30: -51496.37 | AS30: 94824 | AW30: 94824 | AX30: -51496.37 | AY30: 756 | BB30: -50740.37 | BC30: 94824 | BG30: 94824 | BH30: -50740.37 | BI30: 1394 | BL30: -49346.37 | BM30: 94824 | BQ30: =BM30+BN30-BO30+SUM(BP30:BP30) -> 94824 | BR30: -49346.37 | BS30: 1394 | BV30: -47952.37 | BW30: 94824 | CD30: 94824 | CE30: -47952.37 | CF30: 1393.92 | CI30: -46558.45 | CL30: 94824 | CM30: -46558.45 | CN30: =+CL30*0.0147 -> 1393.9128 | CP30: 49659.4628 | CQ30: 48265.91 | CR30: 0.36
A31: 8 | C31: Smart Meter Entiity Charge Variance Account | D31: 1551 | I31: 0 | N31: 0 | O31: =I31 -> 0 | S31: 0 | T31: =N31 -> 0 | X31: 0 | Y31: =S31 -> 0 | AC31: 0 | AD31: =X31 -> 0 | AH31: 0 | AI31: =AC31 -> 0 | AM31: 0 | AN31: =AH31 -> 0 | AR31: 0 | AS31: =AM31 -> 0 | AW31: 0 | AX31: =AR31 -> 0 | BB31: 0 | BC31: =AW31 -> 0 | BG31: 0 | BH31: =BB31 -> 0 | BL31: 0 | BM31: =BG31 -> 0 | BQ31: 0 | BR31: 0 | BV31: 0 | BW31: =BQ31 -> 0 | BX31: 15533.35 | CD31: 15533.35 | CE31: =BV31 -> 0 | CF31: 136.5 | CI31: 136.5 | CL31: 15533.35 | CM31: 136.5 | CN31: =+CL31*0.0147 -> 228.340245 | CP31: 15898.19024 | CQ31: 15669.85 | CR31: 0
A32: 9 | C32: RSVA - Wholesale Market Service Charge - One time | D32: 1582 | I32: 0 | N32: 0 | O32: 0 | S32: 0 | T32: 0 | X32: 0 | Y32: 0 | AB32: 36083 | AC32: 36083 | AD32: 0 | AG32: 3628 | AH32: 3628 | AI32: 36083 | AM32: 36083 | AN32: 3628 | AO32: 116 | AR32: 3744 | AS32: 36083 | AU32: 36083 | AW32: 0 | AX32: 3744 | AY32: 365 | AZ32: 4109 | BB32: 0 | BC32: 0 | BG32: 0 | BH32: 0 | BL32: 0 | BM32: =BG32 -> 0 | BQ32: 0 | BR32: 0 | BV32: 0 | BW32: =BQ32 -> 0 | CD32: 0 | CE32: =BV32 -> 0 | CI32: 0 | CL32: 0 | CM32: 0 | CP32: 0 | CR32: 0
A33: 9 | C33: Disposition and Recovery/Refund of Regulatory Balances (2010)7 | D33: 1595 | I33: =E33+F33-G33+H33 -> 0 | N33: =J33+K33-L33+M33 -> 0 | O33: =I33 -> 0 | S33: =O33+P33-Q33+R33 -> 0 | T33: =N33 -> 0 | X33: =T33+U33-V33+W33 -> 0 | Y33: =S33 -> 0 | AC33: =Y33+Z33-AA33+AB33 -> 0 | AD33: =X33 -> 0 | AH33: =AD33+AE33-AF33+AG33 -> 0 | AI33: =AC33 -> 0 | AM33: =AI33+AJ33-AK33+AL33 -> 0 | AN33: =AH33 -> 0 | AR33: =AN33+AO33-AP33+AQ33 -> 0 | AS33: =AM33 -> 0 | AT33: 280248.95 | AU33: -2086274.33 | AW33: =+AT33+AU33 -> -1806025.38 | AX33: =AR33 -> 0 | AY33: -12094.58 | AZ33: -63122.65 | BB33: =+AY33+AZ33 -> -75217.23 | BC33: =AW33 -> -1806025.38 | BD33: 536332.45 | BG33: -1269692.93 | BH33: =BB33 -> -75217.23 | BI33: -22931.94 | BL33: =BH33+BI33-BJ33+BK33 -> -98149.17 | BM33: =BG33 -> -1269692.93 | BN33: 540872.55 | BQ33: -728820.38 | BR33: -98149.17 | BS33: -15022.34 | BV33: =BR33+BS33-BT33+BU33 -> -113171.51 | BW33: =BQ33 -> -728820.38 | BX33: 536936.24 | CD33: =BW33+BX33-BY33+SUM(BZ33:CC33) -> -191884.14 | CE33: =BV33 -> -113171.51 | CF33: -7079.05 | CI33: =CE33+CF33-CG33+CH33 -> -120250.56 | CJ33: 191884.17 | CK33: 62628.02 | CL33: =CD33+CJ33 -> 0.02999999988 | CM33: =+CI33+CK33 -> -57622.54 | CN33: 0 | CP33: -57622.51 | CQ33: -312134.7 | CR33: 0
A34: 10 | C34: Disposition and Recovery/Refund of Regulatory Balances (2012)7 | D34: 1595 | I34: =E34+F34-G34+H34 -> 0 | N34: =J34+K34-L34+M34 -> 0 | O34: =I34 -> 0 | S34: =O34+P34-Q34+R34 -> 0 | T34: =N34 -> 0 | X34: =T34+U34-V34+W34 -> 0 | Y34: =S34 -> 0 | AC34: =Y34+Z34-AA34+AB34 -> 0 | AD34: =X34 -> 0 | AH34: =AD34+AE34-AF34+AG34 -> 0 | AI34: =AC34 -> 0 | AM34: =AI34+AJ34-AK34+AL34 -> 0 | AN34: =AH34 -> 0 | AR34: =AN34+AO34-AP34+AQ34 -> 0 | AS34: =AM34 -> 0 | AW34: =AS34+AT34-AU34+AV34 -> 0 | AX34: =AR34 -> 0 | BB34: =AX34+AY34-AZ34+BA34 -> 0 | BC34: =AW34 -> 0 | BG34: =BC34+BD34-BE34+SUM(BF34:BF34) -> 0 | BH34: =BB34 -> 0 | BL34: =BH34+BI34-BJ34+BK34 -> 0 | BM34: =BG34 -> 0 | BN34: -131718.09 | BO34: 131718.09 | BQ34: =+BO34+BN34 -> 0 | BR34: 0 | BS34: =-20443.08+752.51 -> -19690.57 | BT34: 147489.91 | BV34: =+BS34+BT34 -> 127799.34 | BW34: =BQ34 -> 0 | CD34: =BW34+BX34-BY34+SUM(BZ34:CC34) -> 0 | CE34: =BV34 -> 127799.34 | CF34: -126158.87 | CI34: =CE34+CF34-CG34+CH34 -> 1640.47 | CL34: 0 | CM34: 1640.47 | CN34: 0 | CP34: 1640.47 | CQ34: 1640.47 | CR34: 0
C36: Group 1 Sub-Total (including Account 1589 - Global Adjustment) | E36: =SUM(E24:E34) -> 0 | F36: =SUM(F24:F34) -> 0 | G36: 0 | H36: 0 | I36: 0 | J36: 0 | K36: 0 | L36: 0 | M36: 0 | N36: 0 | O36: 0 | P36: 0 | Q36: 0 | R36: 0 | S36: 0 | T36: 0 | U36: 0 | V36: 0 | W36: 0 | X36: 0 | Y36: 0 | Z36: 0 | AA36: 0 | AB36: -2280815 | AC36: -2280815 | AD36: 0 | AE36: 0 | AF36: 0 | AG36: -136270 | AH36: -136270 | AI36: -2280815 | AJ36: 487950 | AK36: 0 | AL36: 0 | AM36: -1792865 | AN36: -136270 | AO36: -15342.37 | AP36: 0 | AQ36: 0 | AR36: -151612.37 | AS36: -1792865 | AT36: -215621.05 | AU36: -4461913.33 | AV36: 0 | AW36: -1719121.38 | AX36: -151612.37 | AY36: -15659.58 | AZ36: -178493.65 | BA36: 0 | BB36: -115023.6 | BC36: -1719121.38 | BD36: 781792.45 | BE36: 0 | BF36: 0 | BG36: -937328.93 | BH36: -115023.6 | BI36: -24981.94 | BJ36: 0 | BK36: 0 | BL36: -140005.54 | BM36: -937328.93 | BN36: -225582.54 | BO36: 131718.09 | BP36: 0 | BQ36: =SUM(BQ24:BQ34) -> -1031193.38 | BR36: -140005.54 | BS36: -39392.91 | BT36: 147489.91 | BU36: 0 | BV36: -31908.54 | BW36: -1031193.38 | BX36: 681333.12 | BY36: 0 | BZ36: 0 | CA36: 0 | CB36: 0 | CC36: 0 | CD36: -349860.26 | CE36: -31908.54 | CF36: -140239.91 | CG36: 0 | CH36: 0 | CI36: -172148.45 | CJ36: 191884.17 | CK36: 62628.02 | CL36: =SUM(CL24:CL34) -> -157976.09 | CM36: -109520.43 | CN36: -2322.248964 | CO36: 0 | CP36: -269818.769 | CQ36: -522008.64 | CR36: 0.07000000041
C37: Group 1 Sub-Total (excluding Account 1589 - Global Adjustment) | E37: =E36-E38 -> 0 | F37: =F36-F38 -> 0 | G37: =G36-G38 -> 0 | H37: 0 | I37: 0 | J37: 0 | K37: 0 | L37: =L36-L38 -> 0 | M37: =M36-M38 -> 0 | N37: 0 | O37: 0 | P37: 0 | Q37: =Q36-Q38 -> 0 | R37: 0 | S37: 0 | T37: 0 | U37: 0 | V37: =V36-V38 -> 0 | W37: =W36-W38 -> 0 | X37: =X36-X38 -> 0 | Y37: 0 | Z37: 0 | AA37: 0 | AB37: -2834512 | AC37: -2834512 | AD37: 0 | AE37: 0 | AF37: =AF36-AF38 -> 0 | AG37: =AG36-AG38 -> -150660 | AH37: =AH36-AH38 -> -150660 | AI37: -2834512 | AJ37: -324236 | AK37: 0 | AL37: 0 | AM37: -3158748 | AN37: -150660 | AO37: -24095.37 | AP37: =AP36-AP38 -> 0 | AQ37: =AQ36-AQ38 -> 0 | AR37: =AR36-AR38 -> -174755.37 | AS37: -3158748 | AT37: -146012.05 | AU37: -5015610.33 | AV37: 0 | AW37: -2461698.38 | AX37: -174755.37 | AY37: -21294.58 | AZ37: =AZ36-AZ38 -> -200266.65 | BA37: =BA36-BA38 -> 0 | BB37: =BB36-BB38 -> -122028.6 | BC37: -2461698.38 | BD37: 247861.45 | BE37: 0 | BF37: 0 | BG37: -2213836.93 | BH37: -122028.6 | BI37: -38952.94 | BJ37: =BJ36-BJ38 -> 0 | BK37: 0 | BL37: -160981.54 | BM37: -2213836.93 | BN37: 208478.46 | BO37: 131718.09 | BP37: 0 | BQ37: -1873640.38 | BR37: -160981.54 | BS37: -57997.91 | BT37: 147489.91 | BU37: 0 | BV37: -71489.54 | BW37: =BW36-BW38 -> -1873640.38 | BX37: 519585.12 | BY37: 0 | BZ37: 0 | CA37: 0 | CB37: 0 | CC37: 0 | CD37: -1354055.26 | CE37: -71489.54 | CF37: -152472.8743 | CG37: 0 | CH37: 0 | CI37: -223962.4143 | CJ37: 191884.17 | CK37: 62628.02 | CL37: -1162171.09 | CM37: -161334.3943 | CN37: -17083.91546 | CO37: 0 | CP37: -1340589.4 | CQ37: =CQ36-CQ38 -> -1578017.64 | CR37: 0.03433477436
C38: =C29 -> RSVA - Global Adjustment | D38: 1589 | E38: =E29 -> 0 | F38: =F29 -> 0 | G38: =G29 -> 0 | H38: 0 | I38: 0 | J38: 0 | K38: 0 | L38: =L29 -> 0 | M38: =M29 -> 0 | N38: 0 | O38: 0 | P38: 0 | Q38: =Q29 -> 0 | R38: 0 | S38: 0 | T38: 0 | U38: 0 | V38: 0 | W38: 0 | X38: 0 | Y38: 0 | Z38: 0 | AA38: =AA29 -> 0 | AB38: 553697 | AC38: 553697 | AD38: 0 | AE38: 0 | AF38: 0 | AG38: 14390 | AH38: 14390 | AI38: 553697 | AJ38: 812186 | AK38: 0 | AL38: 0 | AM38: 1365883 | AN38: 14390 | AO38: 8753 | AP38: =AP29 -> 0 | AQ38: =AQ29 -> 0 | AR38: =AR29 -> 23143 | AS38: 1365883 | AT38: -69609 | AU38: 553697 | AV38: 0 | AW38: 742577 | AX38: 23143 | AY38: 5635 | AZ38: 21773 | BA38: 0 | BB38: 7005 | BC38: =BC29 -> 742577 | BD38: 533931 | BE38: 0 | BF38: 0 | BG38: 1276508 | BH38: 7005 | BI38: 13971 | BJ38: 0 | BK38: 0 | BL38: 20976 | BM38: =BM29 -> 1276508 | BN38: -434061 | BO38: 0 | BP38: 0 | BQ38: 842447 | BR38: 20976 | BS38: 18605 | BT38: 0 | BU38: 0 | BV38: 39581 | BW38: =BW29 -> 842447 | BX38: 161748 | BY38: 0 | BZ38: 0 | CA38: 0 | CB38: 0 | CC38: 0 | CD38: 1004195 | CE38: 39581 | CF38: 12232.96433 | CG38: 0 | CH38: 0 | CI38: 51813.96433 | CJ38: =CJ29 -> 0 | CK38: 0 | CL38: 1004195 | CM38: 51813.96433 | CN38: 14761.6665 | CO38: 0 | CP38: 1070770.631 | CQ38: =CQ29 -> 1056009 | CR38: 0.03566522617
C40: Group 2 Accounts
A41: 11 | C41: Other Regulatory Assets - Sub-Account - OEB Cost Assessments | D41: 1508 | N41: =J41+K41-L41+M41 -> 0 | O41: =I41 -> 0 | S41: =O41+P41-Q41+R41 -> 0 | T41: =N41 -> 0 | X41: =T41+U41-V41+W41 -> 0 | Y41: =S41 -> 0 | AB41: 82381 | AC41: =Y41+Z41-AA41+AB41 -> 82381 | AD41: =X41 -> 0 | AG41: 13786 | AH41: =AD41+AE41-AF41+AG41 -> 13786 | AI41: =AC41 -> 82381 | AM41: =AI41+AJ41-AK41+AL41 -> 82381 | AN41: =AH41 -> 13786 | AO41: 937 | AR41: =AN41+AO41-AP41+AQ41 -> 14723 | AS41: =AM41 -> 82381 | AU41: -82381.48 | AW41: =+AU41+AS41 -> -0.48 | AX41: =AR41 -> 14723 | AY41: 151.03 | AZ41: -14873.57 | BB41: =+AZ41+AY41+AX41 -> 0.46 | BC41: =AW41 -> -0.48 | BG41: =BC41+BD41-BE41+SUM(BF41:BF41) -> -0.48 | BH41: =BB41 -> 0.46 | BL41: =BH41+BI41-BJ41+BK41 -> 0.46 | BM41: =BG41 -> -0.48 | BQ41: =BM41+BN41-BO41+SUM(BP41:BP41) -> -0.48 | BR41: =BL41 -> 0.46 | BV41: =BR41+BS41-BT41+BU41 -> 0.46 | BW41: =BQ41 -> -0.48 | CD41: =BW41+BX41-BY41+SUM(BZ41:CC41) -> -0.48 | CE41: =BV41 -> 0.46 | CI41: =CE41+CF41-CG41+CH41 -> 0.46 | CL41: =CD41-CJ41 -> -0.48 | CM41: =CI41-CK41 -> 0.46 | CP41: -0.01999999999 | CQ41: 0 | CR41: 0.01999999999
A42: 12 | C42: Other Regulatory Assets - Sub-Account - Pension Contributions | D42: 1508 | N42: 0 | O42: 0 | S42: 0 | T42: 0 | X42: 0 | Y42: 0 | AB42: 240195 | AC42: 240195 | AD42: 0 | AG42: 33693 | AH42: 33693 | AI42: 240195 | AM42: 240195 | AN42: 33693 | AO42: 2732 | AR42: 36425 | AS42: 240195 | AU42: 240195 | AW42: =AS42+AT42-AU42+AV42 -> 0 | AX42: 36425 | AY42: 440.36 | AZ42: -36865.25 | BB42: =+AX42+AY42+AZ42 -> 0.11 | BC42: =AW42 -> 0 | BG42: 0 | BH42: 0.11 | BL42: 0.11 | BM42: 0 | BQ42: 0 | BR42: 0.11 | BV42: 0.11 | BW42: 0 | CD42: 0 | CE42: 0.11 | CI42: 0.11 | CL42: =CD42-CJ42 -> 0 | CM42: =CI42-CK42 -> 0.11 | CP42: 0.11 | CQ42: 0 | CR42: -0.11
A43: 13 | C43: Other Regulatory Assets - Sub-Account - Deferred IFRS Transition Costs | D43: 1508 | I43: =E43+F43-G43+H43 -> 0 | N43: 0 | O43: 0 | S43: 0 | T43: 0 | X43: 0 | Y43: 0 | AC43: 0 | AD43: 0 | AH43: 0 | AI43: 0 | AJ43: 34084 | AM43: 34084 | AN43: 0 | AO43: 25 | AR43: 25 | AS43: 34084 | AT43: 14250 | AW43: 48334 | AX43: 25 | AY43: 359.3 | BB43: =AX43+AY43-AZ43+BA43 -> 384.3 | BC43: 48334 | BD43: 598 | BG43: 48932 | BH43: 384.3 | BI43: 714.9 | BL43: 1099.2 | BM43: 48932 | BN43: 51171.2 | BQ43: 100103.2 | BR43: 1099.2 | BS43: 1080.13 | BV43: 2179.33 | BW43: 100103.2 | BX43: 9525.2 | CD43: 109628.4 | CE43: 2179.33 | CF43: 1590.7 | CI43: =CE43+CF43-CG43+CH43 -> 3770.03 | CJ43: -20000 | CL43: 129628.4 | CM43: =+CK43+CI43 -> 3770.03 | CN43: =135083-133398 -> 1685 | CP43: 135083.43 | CQ43: 113398 | CR43: -0.43
A44: 14 | C44: Other Regulatory Assets - Sub-Account - Incremental Capital Charges | D44: 1508 | AS44: 0 | AT44: 2156.62 | AW44: =AS44+AT44-AU44+AV44 -> 2156.62 | AX44: =AR44 -> 0 | AY44: =1.75+15.94 -> 17.69 | BB44: =AX44+AY44-AZ44+BA44 -> 17.69 | BC44: =AW44 -> 2156.62 | BG44: 2156.62 | BH44: 17.69 | BI44: 31 | BL44: =BH44+BI44-BJ44+BK44 -> 48.69 | BM44: 2156.62 | BQ44: 2156.62 | BR44: 48.69 | BS44: 32 | BV44: 80.69 | BW44: 2156.62 | CD44: 2156.62 | CE44: 80.69 | CF44: 32 | CI44: 112.69 | CL44: 2156.62 | CM44: 112.69 | CN44: =+CL44*0.0147 -> 31.702314 | CP44: 2301.012314 | CQ44: 2269 | CR44: -0.31
A45: 15 | C45: Other Regulatory Assets - Sub-Account - Financial Assistance Payment and Recovery Variance - Ontario Clean Energy Benefit Act8 | D45: 1508 | BM45: 0 | BQ45: 0 | BR45: 0 | BV45: 0 | BW45: 0 | CD45: =BW45+BX45-BY45+SUM(BZ45:CC45) -> 0 | CE45: =BV45 -> 0 | CI45: 0 | CL45: 0 | CM45: 0 | CP45: 0 | CR45: 0
A46: 16 | C46: Other Regulatory Assets - Sub-Account - Financial Assistance Payment and Recovery Carrying Charges | D46: 1508 | BM46: 0 | BQ46: 0 | BR46: 0 | BV46: 0 | BW46: 0 | CD46: =BW46+BX46-BY46+SUM(BZ46:CC46) -> 0 | CE46: =BV46 -> 0 | CI46: 0 | CL46: 0 | CM46: 0 | CP46: 0 | CR46: 0
A47: 17 | C47: Other Regulatory Assets - Sub-Account - Other - ICM Rate Rider | D47: 1508 | I47: 0 | N47: 0 | O47: 0 | S47: 0 | T47: 0 | X47: 0 | Y47: 0 | AC47: 0 | AD47: 0 | AH47: 0 | AI47: 0 | AM47: 0 | AN47: 0 | AR47: 0 | AS47: 0 | AW47: 0 | AX47: 0 | BB47: 0 | BC47: 0 | BG47: 0 | BH47: 0 | BL47: 0 | BM47: =BG47 -> 0 | BQ47: 0 | BR47: 0 | BV47: =BR47+BS47-BT47+BU47 -> 0 | BW47: 0 | BX47: 15036188 | CD47: =BW47+BX47-BY47+SUM(BZ47:CC47) -> 15036188 | CE47: =BV47 -> 0 | CF47: 17623.4 | CI47: 17623.4 | CJ47: 15036188 | CK47: 17623 | CL47: 0 | CM47: 0.4 | CP47: 0.4 | CQ47: 15053811 | CR47: -0.4000000004
A48: 18 | C48: Retail Cost Variance Account - Retail | D48: 1518 | I48: 0 | N48: 0 | O48: 0 | S48: 0 | T48: 0 | X48: 0 | Y48: 0 | AB48: -57020 | AC48: -57020 | AD48: 0 | AG48: -2154 | AH48: -2154 | AI48: -57020 | AJ48: -21095 | AM48: -78115 | AN48: -2154 | AO48: -711 | AR48: -2865 | AS48: -78115 | AT48: -18295 | AU48: -57020 | AW48: -39390 | AX48: -2865 | AY48: -380 | AZ48: -2914 | BB48: -331 | BC48: -39390 | BD48: -3509 | BG48: -42899 | BH48: -331 | BI48: -605 | BL48: -936 | BM48: -42899 | BN48: -5235 | BQ48: -48134 | BR48: -936 | BS48: -693 | BV48: -1629 | BW48: -48134 | BX48: -2932 | CD48: -51066 | CE48: -1629 | CF48: -734 | CI48: -2363 | CL48: -51066 | CM48: -2363 | CN48: =+CL48*0.0147 -> -750.6702 | CP48: -54179.6702 | CQ48: -53429 | CR48: 0
A49: 19 | C49: Misc. Deferred Debits - 2010 Rate Appliciton cost | D49: 1525 | I49: 0 | N49: 0 | O49: 0 | S49: 0 | T49: 0 | X49: 0 | Y49: 0 | AB49: 1145 | AC49: 1145 | AD49: 0 | AH49: 0 | AI49: 1145 | AJ49: 28040 | AM49: 29185 | AN49: 0 | AO49: 49 | AR49: 49 | AS49: 29185 | AT49: 37595 | AW49: 66780 | AX49: 49 | AY49: 423 | BB49: 472 | BC49: 66780 | BD49: -20400 | BG49: 46380 | BH49: 472 | BI49: 844 | BL49: 1316 | BM49: 46380 | BP49: 1620 | BQ49: 48000 | BR49: 1316 | BU49: =3262-1316 -> 1946 | BV49: 3262 | BW49: 48000 | BX49: -36000 | CD49: 12000 | CE49: 3262 | CF49: 463 | CI49: 3725 | CJ49: 12000 | CL49: 0 | CM49: 3725 | CN49: 0 | CP49: 3725 | CQ49: 15725 | CR49: 0
A50: 20 | C50: Renewable Generation Connection Capital Deferral Account | D50: 1531 | AW50: 0 | AX50: 0 | BB50: 0 | BC50: 0 | BG50: 0 | BH50: 0 | BL50: 0 | BM50: 0 | BQ50: 0 | BR50: 0 | BV50: 0 | BW50: 0 | CD50: 0 | CE50: 0 | CI50: 0 | CL50: 0 | CM50: 0 | CP50: 0 | CR50: 0
A51: 21 | C51: Renewable Generation Connection OM&A Deferral Account | D51: 1532 | AW51: 0 | AX51: 0 | BB51: 0 | BC51: 0 | BG51: 0 | BH51: 0 | BL51: 0 | BM51: 0 | BQ51: 0 | BR51: 0 | BV51: 0 | BW51: 0 | CD51: 0 | CE51: 0 | CI51: 0 | CL51: 0 | CM51: 0 | CP51: 0 | CR51: 0
A52: 22 | C52: Renewable Generation Connection Funding Adder Deferral Account | D52: 1533 | AW52: 0 | AX52: 0 | BB52: 0 | BC52: 0 | BG52: 0 | BH52: 0 | BL52: 0 | BM52: 0 | BQ52: 0 | BR52: 0 | BV52: 0 | BW52: 0 | CD52: 0 | CE52: 0 | CI52: 0 | CL52: 0 | CM52: 0 | CP52: 0 | CR52: 0
A53: 23 | C53: Smart Grid Capital Deferral Account | D53: 1534 | AW53: 0 | AX53: 0 | BB53: 0 | BC53: 0 | BG53: 0 | BH53: 0 | BL53: 0 | BM53: 0 | BQ53: 0 | BR53: 0 | BV53: 0 | BW53: 0 | CD53: 0 | CE53: 0 | CI53: 0 | CL53: 0 | CM53: 0 | CP53: 0 | CR53: 0
A54: 24 | C54: Smart Grid OM&A Deferral Account | D54: 1535 | AW54: 0 | AX54: 0 | BB54: 0 | BC54: 0 | BG54: 0 | BH54: 0 | BL54: 0 | BM54: 0 | BQ54: 0 | BR54: 0 | BV54: 0 | BW54: 0 | CD54: 0 | CE54: 0 | CI54: 0 | CL54: 0 | CM54: 0 | CP54: 0 | CR54: 0
A55: 25 | C55: Smart Grid Funding Adder Deferral Account | D55: 1536 | AW55: 0 | AX55: 0 | BB55: 0 | BC55: 0 | BG55: 0 | BH55: 0 | BL55: 0 | BM55: 0 | BQ55: 0 | BR55: 0 | BV55: 0 | BW55: 0 | CD55: 0 | CE55: 0 | CI55: 0 | CL55: 0 | CM55: 0 | CP55: 0 | CR55: 0
A56: 26 | C56: Retail Cost Variance Account - STR | D56: 1548 | I56: 0 | N56: 0 | O56: =I56 -> 0 | S56: 0 | T56: 0 | X56: 0 | Y56: =S56 -> 0 | AB56: 23829 | AC56: 23829 | AD56: =X56 -> 0 | AG56: 3085 | AH56: 3085 | AI56: =AC56 -> 23829 | AJ56: 0 | AM56: 23829 | AN56: =AH56 -> 3085 | AO56: 295 | AR56: 3380 | AS56: =AM56 -> 23829 | AT56: -1548 | AU56: 23808 | AW56: -1527 | AX56: 3380 | AY56: 47 | AZ56: 3423 | BB56: 4 | BC56: -1527 | BD56: 746 | BG56: -781 | BH56: 4 | BI56: -20 | BL56: -16 | BM56: -781 | BN56: -290 | BQ56: -1071 | BR56: -16 | BS56: -13 | BV56: -29 | BW56: -1071 | BX56: -296 | CD56: -1367 | CE56: -29 | CF56: -17 | CI56: -46 | CL56: -1367 | CM56: -46 | CN56: =+CL56*0.0147 -> -20.0949 | CP56: -1433.0949 | CQ56: -1413 | CR56: 0
A57: 27 | C57: Board-Approved CDM Variance Account | D57: 1567 | BB57: 0 | BG57: 0 | BH57: 0 | BL57: =BH57+BI57-BJ57+BK57 -> 0 | BM57: 0 | BQ57: 0 | BR57: 0 | BV57: =BR57+BS57-BT57+BU57 -> 0 | BW57: 0 | CD57: =BW57+BX57-BY57+SUM(BZ57:CC57) -> 0 | CE57: =BV57 -> 0 | CI57: =CE57+CF57-CG57+CH57 -> 0 | CL57: 0 | CM57: 0 | CP57: 0 | CR57: 0
A58: 28 | C58: Extra-Ordinary Event Costs | D58: 1572 | I58: 0 | N58: 0 | O58: 0 | S58: 0 | T58: 0 | X58: 0 | Y58: =S58 -> 0 | AC58: 0 | AD58: =X58 -> 0 | AH58: 0 | AI58: =AC58 -> 0 | AM58: 0 | AN58: =AH58 -> 0 | AR58: 0 | AS58: =AM58 -> 0 | AW58: 0 | AX58: =AR58 -> 0 | BB58: 0 | BC58: =AW58 -> 0 | BG58: 0 | BH58: 0 | BL58: 0 | BM58: =BG58 -> 0 | BQ58: 0 | BR58: 0 | BV58: =BR58+BS58-BT58+BU58 -> 0 | BW58: =BQ58 -> 0 | CD58: =BW58+BX58-BY58+SUM(BZ58:CC58) -> 0 | CE58: =BV58 -> 0 | CI58: =CE58+CF58-CG58+CH58 -> 0 | CL58: 0 | CM58: 0 | CP58: 0 | CR58: 0
A59: 29 | C59: Deferred Rate Impact Amounts | D59: 1574 | I59: 0 | N59: 0 | O59: 0 | S59: 0 | T59: 0 | X59: 0 | Y59: =S59 -> 0 | AC59: 0 | AD59: =X59 -> 0 | AH59: 0 | AI59: =AC59 -> 0 | AM59: 0 | AN59: =AH59 -> 0 | AR59: 0 | AS59: =AM59 -> 0 | AW59: 0 | AX59: =AR59 -> 0 | BB59: 0 | BC59: =AW59 -> 0 | BG59: 0 | BH59: 0 | BL59: 0 | BM59: =BG59 -> 0 | BQ59: 0 | BR59: 0 | BV59: =BR59+BS59-BT59+BU59 -> 0 | BW59: =BQ59 -> 0 | CD59: 0 | CE59: 0 | CI59: =CE59+CF59-CG59+CH59 -> 0 | CJ59: -199965 | CL59: 199965 | CM59: 0 | CP59: 199965 | CQ59: 0 | CR59: 0
A60: 30 | C60: RSVA - One-time | D60: 1582 | I60: 0 | N60: 0 | O60: 0 | S60: 0 | T60: 0 | X60: 0 | Y60: =S60 -> 0 | AC60: 0 | AD60: =X60 -> 0 | AH60: 0 | AI60: =AC60 -> 0 | AM60: 0 | AN60: =AH60 -> 0 | AR60: 0 | AS60: =AM60 -> 0 | AW60: 0 | AX60: =AR60 -> 0 | BB60: 0 | BC60: =AW60 -> 0 | BG60: 0 | BH60: 0 | BL60: 0 | BM60: =BG60 -> 0 | BQ60: 0 | BR60: 0 | BV60: =BR60+BS60-BT60+BU60 -> 0 | BW60: =BQ60 -> 0 | CD60: 0 | CE60: 0 | CI60: =CE60+CF60-CG60+CH60 -> 0 | CL60: 0 | CM60: 0 | CP60: 0 | CR60: 0
A61: 31 | C61: Other Regulatory Liabilites | D61: 2405 | E61: 0 | I61: 0 | N61: 0 | O61: 0 | S61: 0 | T61: 0 | X61: 0 | Y61: =S61 -> 0 | AB61: -18110 | AC61: -18110 | AD61: =X61 -> 0 | AH61: 0 | AI61: =AC61 -> -18110 | AJ61: 51559 | AM61: 33449 | AN61: =AH61 -> 0 | AR61: 0 | AS61: =AM61 -> 33449 | AT61: 11760 | AW61: 45209 | AX61: =AR61 -> 0 | BB61: 0 | BC61: =AW61 -> 45209 | BG61: 45209 | BH61: 0 | BL61: 0 | BM61: =BG61 -> 45209 | BQ61: 45209 | BR61: 0 | BV61: =BR61+BS61-BT61+BU61 -> 0 | BW61: =BQ61 -> 45209 | CD61: 45209 | CE61: 0 | CI61: =CE61+CF61-CG61+CH61 -> 0 | CJ61: 0 | CL61: 45209 | CM61: 0 | CP61: 45209 | CQ61: 45209 | CR61: 0
C63: Group 2 Sub-Total | E63: =SUM(E41:E61) -> 0 | F63: 0 | G63: 0 | H63: 0 | I63: 0 | J63: 0 | K63: 0 | L63: =SUM(L41:L61) -> 0 | M63: =SUM(M41:M61) -> 0 | N63: =SUM(N41:N61) -> 0 | O63: =SUM(O41:O61) -> 0 | P63: 0 | Q63: 0 | R63: 0 | S63: 0 | T63: 0 | U63: 0 | V63: 0 | W63: 0 | X63: 0 | Y63: =SUM(Y41:Y61) -> 0 | Z63: 0 | AA63: 0 | AB63: 272420 | AC63: 272420 | AD63: 0 | AE63: 0 | AF63: 0 | AG63: 48410 | AH63: 48410 | AI63: 272420 | AJ63: 92588 | AK63: 0 | AL63: 0 | AM63: 365008 | AN63: 48410 | AO63: 3327 | AP63: =SUM(AP41:AP61) -> 0 | AQ63: =SUM(AQ41:AQ61) -> 0 | AR63: 51737 | AS63: 365008 | AT63: 45918.62 | AU63: 124601.52 | AV63: 0 | AW63: =SUM(AW41:AW61) -> 121562.14 | AX63: 51737 | AY63: 1058.38 | AZ63: -51229.82 | BA63: 0 | BB63: 547.56 | BC63: =SUM(BC41:BC61) -> 121562.14 | BD63: -22565 | BE63: 0 | BF63: 0 | BG63: 98997.14 | BH63: 547.56 | BI63: 964.9 | BJ63: 0 | BK63: 0 | BL63: 1512.46 | BM63: =SUM(BM41:BM61) -> 98997.14 | BN63: 45646.2 | BO63: 0 | BP63: 1620 | BQ63: 146263.34 | BR63: 1512.46 | BS63: 406.13 | BT63: 0 | BU63: 1946 | BV63: 3864.59 | BW63: =SUM(BW41:BW61) -> 146263.34 | BX63: 15006485.2 | BY63: 0 | BZ63: 0 | CA63: 0 | CB63: 0 | CC63: 0 | CD63: 15152748.54 | CE63: 3864.59 | CF63: 18958.1 | CG63: 0 | CH63: 0 | CI63: 22822.69 | CJ63: =SUM(CJ41:CJ61) -> 14828223 | CK63: 17623 | CL63: 324525.54 | CM63: 5199.69 | CN63: 945.937214 | CO63: 0 | CP63: 330671.1672 | CQ63: 15175570 | CR63: -1.229999999
A65: 32 | C65: Deferred Payments in Lieu of Taxes | D65: 1562 | E65: 126029 | I65: =E65+F65-G65+H65 -> 126029 | J65: 126316 | K65: 3762 | N65: =J65+K65-L65+M65 -> 130078 | O65: =I65 -> 126029 | S65: =O65+P65-Q65+R65 -> 126029 | T65: =N65 -> 130078 | U65: 5959 | X65: =T65+U65-V65+W65 -> 136037 | Y65: =S65 -> 126029 | AC65: =Y65+Z65-AA65+AB65 -> 126029 | AD65: =X65 -> 136037 | AE65: 5017 | AH65: =AD65+AE65-AF65+AG65 -> 141054 | AI65: =AC65 -> 126029 | AM65: =AI65+AJ65-AK65+AL65 -> 126029 | AN65: =AH65 -> 141054 | AO65: 1434 | AR65: =AN65+AO65-AP65+AQ65 -> 142488 | AS65: =AM65 -> 126029 | AW65: =AS65+AT65-AU65+AV65 -> 126029 | AX65: =AR65 -> 142488 | AY65: 1005 | BB65: =AX65+AY65-AZ65+BA65 -> 143493 | BC65: =AW65 -> 126029 | BG65: =BC65+BD65-BE65+SUM(BF65:BF65) -> 126029 | BH65: =BB65 -> 143493 | BI65: 1853 | BL65: =BH65+BI65-BJ65+BK65 -> 145346 | BM65: =BG65 -> 126029 | BO65: -126029 | BQ65: =+BO65+BM65 -> 0 | BR65: =BL65 -> 145346 | BS65: 617 | BT65: -145963 | BV65: =+BT65+BS65+BR65 -> 0 | BW65: =BQ65 -> 0 | CD65: =BW65+BX65-BY65+SUM(BZ65:CC65) -> 0 | CE65: =BV65 -> 0 | CI65: =CE65+CF65-CG65+CH65 -> 0 | CL65: =CD65-CJ65 -> 0 | CM65: =CI65-CK65 -> 0 | CP65: 0 | CQ65: 0 | CR65: 0
A66: 33 | C66: PILs and Tax Variance for 2006 and Subsequent Years (excludes sub-account and contra account below) | D66: 1592 | I66: =E66+F66-G66+H66 -> 0 | N66: =J66+K66-L66+M66 -> 0 | O66: =I66 -> 0 | S66: =O66+P66-Q66+R66 -> 0 | T66: =N66 -> 0 | X66: =T66+U66-V66+W66 -> 0 | Y66: =S66 -> 0 | AC66: =Y66+Z66-AA66+AB66 -> 0 | AD66: =X66 -> 0 | AH66: =AD66+AE66-AF66+AG66 -> 0 | AI66: =AC66 -> 0 | AM66: =AI66+AJ66-AK66+AL66 -> 0 | AN66: =AH66 -> 0 | AR66: =AN66+AO66-AP66+AQ66 -> 0 | AS66: =AM66 -> 0 | AW66: =AS66+AT66-AU66+AV66 -> 0 | AX66: =AR66 -> 0 | BB66: =AX66+AY66-AZ66+BA66 -> 0 | BC66: =AW66 -> 0 | BG66: =BC66+BD66-BE66+SUM(BF66:BF66) -> 0 | BH66: =BB66 -> 0 | BL66: =BH66+BI66-BJ66+BK66 -> 0 | BM66: =BG66 -> 0 | BQ66: =BM66+BN66-BO66+SUM(BP66:BP66) -> 0 | BR66: =BL66 -> 0 | BV66: =BR66+BS66-BT66+BU66 -> 0 | BW66: =BQ66 -> 0 | CD66: =BW66+BX66-BY66+SUM(BZ66:CC66) -> 0 | CE66: =BV66 -> 0 | CI66: =CE66+CF66-CG66+CH66 -> 0 | CL66: =CD66-CJ66 -> 0 | CM66: =CI66-CK66 -> 0 | CP66: 0 | CR66: 0
A67: 34 | C67: PILs and Tax Variance for 2006 and Subsequent Years - Sub-Account HST/OVAT Input Tax Credits (ITCs) | D67: 1592 | I67: =E67+F67-G67+H67 -> 0 | N67: =J67+K67-L67+M67 -> 0 | O67: =I67 -> 0 | S67: =O67+P67-Q67+R67 -> 0 | T67: =N67 -> 0 | X67: =T67+U67-V67+W67 -> 0 | Y67: =S67 -> 0 | AC67: =Y67+Z67-AA67+AB67 -> 0 | AD67: =X67 -> 0 | AH67: =AD67+AE67-AF67+AG67 -> 0 | AI67: =AC67 -> 0 | AM67: =AI67+AJ67-AK67+AL67 -> 0 | AN67: =AH67 -> 0 | AR67: =AN67+AO67-AP67+AQ67 -> 0 | AS67: =AM67 -> 0 | AT67: =-19698-596 -> -20294 | AW67: =AS67+AT67-AU67+AV67 -> -20294 | AX67: =AR67 -> 0 | AY67: -149 | BB67: =AX67+AY67-AZ67+BA67 -> -149 | BC67: =AW67 -> -20294 | BD67: =-36835-2491 -> -39326 | BG67: =BC67+BD67-BE67+SUM(BF67:BF67) -> -59620 | BH67: =BB67 -> -149 | BI67: -587 | BL67: =BH67+BI67-BJ67+BK67 -> -736 | BM67: =BG67 -> -59620 | BN67: =-32627-4520 -> -37147 | BQ67: =BM67+BN67-BO67+SUM(BP67:BP67) -> -96767 | BR67: =BL67 -> -736 | BS67: -1008 | BV67: =BR67+BS67-BT67+BU67 -> -1744 | BW67: =BQ67 -> -96767 | BX67: =-4014-35173 -> -39187 | CD67: =BW67+BX67-BY67+SUM(BZ67:CC67) -> -135954 | CE67: =BV67 -> -1744 | CF67: -1479 | CI67: =CE67+CF67-CG67+CH67 -> -3223 | CJ67: 40859 | CK67: 1995 | CL67: -176813 | CM67: -5218 | CP67: -182031 | CQ67: -127377 | CR67: 11800
C69: Total of Group 1 and Group 2 Accounts (including 1562 and 1592) | E69: =+E63+E36+E65+E66+E67 -> 126029 | F69: =+F63+F36+F65+F66+F67 -> 0 | G69: 0 | H69: 0 | I69: 126029 | J69: 126316 | K69: 3762 | L69: 0 | M69: 0 | N69: 130078 | O69: 126029 | P69: 0 | Q69: 0 | R69: 0 | S69: 126029 | T69: 130078 | U69: 5959 | V69: 0 | W69: 0 | X69: 136037 | Y69: 126029 | Z69: 0 | AA69: 0 | AB69: -2008395 | AC69: -1882366 | AD69: 136037 | AE69: 5017 | AF69: 0 | AG69: -87860 | AH69: 53194 | AI69: -1882366 | AJ69: 580538 | AK69: 0 | AL69: 0 | AM69: -1301828 | AN69: 53194 | AO69: -10581.37 | AP69: 0 | AQ69: 0 | AR69: 42612.63 | AS69: -1301828 | AT69: -189996.43 | AU69: -4337311.81 | AV69: 0 | AW69: -1491824.24 | AX69: 42612.63 | AY69: -13745.2 | AZ69: -229723.47 | BA69: 0 | BB69: 28867.96 | BC69: -1491824.24 | BD69: 719901.45 | BE69: 0 | BF69: 0 | BG69: -771922.79 | BH69: 28867.96 | BI69: -22751.04 | BJ69: 0 | BK69: 0 | BL69: 6116.92 | BM69: -771922.79 | BN69: -217083.34 | BO69: 5689.09 | BP69: 1620 | BQ69: =+BQ63+BQ36+BQ65+BQ66+BQ67 -> -981697.04 | BR69: 6116.92 | BS69: -39377.78 | BT69: 1526.91 | BU69: 1946 | BV69: -29787.95 | BW69: -981697.04 | BX69: 15648631.32 | BY69: 0 | BZ69: 0 | CA69: 0 | CB69: =+CB63+CB36+CB65+CB66+CB67 -> 0 | CC69: 0 | CD69: 14666934.28 | CE69: -29787.95 | CF69: -122760.81 | CG69: 0 | CH69: 0 | CI69: -152548.76 | CJ69: 15060966.17 | CK69: 82246.02 | CL69: -10263.55 | CM69: -109538.74 | CN69: -1376.31175 | CO69: 0 | CP69: =+CP67+CP63 -> 148640.1672 | CQ69: 14526184.36 | CR69: 11798.84
A72: 35 | C72: LRAM Variance Account | D72: 1568 | BD72: 44197.86 | BG72: =BC72+BD72-BE72+SUM(BF72:BF72) -> 44197.86 | BI72: 0 | BL72: =BH72+BI72-BJ72+BK72 -> 0 | BM72: =BG72 -> 44197.86 | BN72: 74956 | BQ72: =BM72+BN72-BO72+SUM(BP72:BP72) -> 119153.86 | BR72: =BL72 -> 0 | BS72: 650 | BV72: =BR72+BS72-BT72+BU72 -> 650 | BW72: =BQ72 -> 119153.86 | BX72: 0 | CD72: =BW72+BX72-BY72+SUM(BZ72:CC72) -> 119153.86 | CE72: =BV72 -> 650 | CF72: 1751 | CI72: =CE72+CF72-CG72+CH72 -> 2401 | CJ72: -50955 | CL72: =CD72-CJ72 -> 170108.86 | CM72: =CI72-CK72 -> 2401 | CN72: 2484 | CP72: =SUM(CL72:CO72) -> 174993.86 | CQ72: 121555 | CR72: 0.14
C75: Total including Account 1568 | E75: =E69+E72 -> 126029 | F75: =F69+F72 -> 0 | G75: 0 | H75: 0 | I75: 126029 | J75: 126316 | K75: 3762 | L75: 0 | M75: 0 | N75: 130078 | O75: 126029 | P75: 0 | Q75: 0 | R75: 0 | S75: 126029 | T75: 130078 | U75: 5959 | V75: 0 | W75: 0 | X75: 136037 | Y75: 126029 | Z75: 0 | AA75: 0 | AB75: -2008395 | AC75: -1882366 | AD75: 136037 | AE75: 5017 | AF75: 0 | AG75: -87860 | AH75: 53194 | AI75: -1882366 | AJ75: 580538 | AK75: 0 | AL75: 0 | AM75: -1301828 | AN75: 53194 | AO75: -10581.37 | AP75: 0 | AQ75: 0 | AR75: 42612.63 | AS75: -1301828 | AT75: -189996.43 | AU75: -4337311.81 | AV75: 0 | AW75: -1491824.24 | AX75: 42612.63 | AY75: -13745.2 | AZ75: -229723.47 | BA75: 0 | BB75: 28867.96 | BC75: -1491824.24 | BD75: 764099.31 | BE75: 0 | BF75: 0 | BG75: -727724.93 | BH75: 28867.96 | BI75: -22751.04 | BJ75: 0 | BK75: 0 | BL75: 6116.92 | BM75: -727724.93 | BN75: -142127.34 | BO75: 5689.09 | BP75: 1620 | BQ75: =BQ69+BQ72 -> -862543.18 | BR75: 6116.92 | BS75: -38727.78 | BT75: 1526.91 | BU75: 1946 | BV75: -29137.95 | BW75: -862543.18 | BX75: 15648631.32 | BY75: 0 | BZ75: 0 | CA75: 0 | CB75: 0 | CC75: 0 | CD75: 14786088.14 | CE75: -29137.95 | CF75: -121009.81 | CG75: 0 | CH75: 0 | CI75: -150147.76 | CJ75: 15010011.17 | CK75: 82246.02 | CL75: 159845.31 | CM75: -107137.74 | CN75: 1107.68825 | CO75: 0 | CP75: =CP69+CP72 -> 323634.0272 | CQ75: 14647739.36 | CR75: 11798.98
A77: 36 | C77: Smart Meter Capital and Recovery Offset Variance - Sub-Account - Capital10 | D77: 1555 | I77: =E77+F77-G77+H77 -> 0 | N77: =J77+K77-L77+M77 -> 0 | O77: =I77 -> 0 | S77: =O77+P77-Q77+R77 -> 0 | T77: =N77 -> 0 | X77: =T77+U77-V77+W77 -> 0 | Y77: =S77 -> 0 | AC77: =Y77+Z77-AA77+AB77 -> 0 | AD77: =X77 -> 0 | AH77: =AD77+AE77-AF77+AG77 -> 0 | AI77: =AC77 -> 0 | AM77: =AI77+AJ77-AK77+AL77 -> 0 | AN77: =AH77 -> 0 | AR77: =AN77+AO77-AP77+AQ77 -> 0 | AS77: =AM77 -> 0 | AW77: =AS77+AT77-AU77+AV77 -> 0 | AX77: =AR77 -> 0 | BB77: =AX77+AY77-AZ77+BA77 -> 0 | BC77: =AW77 -> 0 | BG77: =BC77+BD77-BE77+SUM(BF77:BF77) -> 0 | BH77: =BB77 -> 0 | BL77: =BH77+BI77-BJ77+BK77 -> 0 | BM77: =BG77 -> 0 | BQ77: =BM77+BN77-BO77+SUM(BP77:BP77) -> 0 | BR77: =BL77 -> 0 | BV77: =BR77+BS77-BT77+BU77 -> 0 | BW77: =BQ77 -> 0 | CD77: =BW77+BX77-BY77+SUM(BZ77:CC77) -> 0 | CE77: =BV77 -> 0 | CI77: =CE77+CF77-CG77+CH77 -> 0 | CL77: =CD77-CJ77 -> 0 | CM77: =CI77-CK77 -> 0 | CP77: 0 | CR77: 0
A78: 37 | C78: Smart Meter Capital and Recovery Offset Variance - Sub-Account - Recoveries10 | D78: 1555 | I78: =E78+F78-G78+H78 -> 0 | N78: =J78+K78-L78+M78 -> 0 | O78: =I78 -> 0 | S78: =O78+P78-Q78+R78 -> 0 | T78: =N78 -> 0 | X78: =T78+U78-V78+W78 -> 0 | Y78: =S78 -> 0 | AC78: =Y78+Z78-AA78+AB78 -> 0 | AD78: =X78 -> 0 | AH78: =AD78+AE78-AF78+AG78 -> 0 | AI78: =AC78 -> 0 | AM78: =AI78+AJ78-AK78+AL78 -> 0 | AN78: =AH78 -> 0 | AR78: =AN78+AO78-AP78+AQ78 -> 0 | AS78: =AM78 -> 0 | AW78: =AS78+AT78-AU78+AV78 -> 0 | AX78: =AR78 -> 0 | BB78: =AX78+AY78-AZ78+BA78 -> 0 | BC78: =AW78 -> 0 | BG78: =BC78+BD78-BE78+SUM(BF78:BF78) -> 0 | BH78: =BB78 -> 0 | BL78: =BH78+BI78-BJ78+BK78 -> 0 | BM78: =BG78 -> 0 | BQ78: =BM78+BN78-BO78+SUM(BP78:BP78) -> 0 | BR78: =BL78 -> 0 | BV78: =BR78+BS78-BT78+BU78 -> 0 | BW78: =BQ78 -> 0 | CD78: =BW78+BX78-BY78+SUM(BZ78:CC78) -> 0 | CE78: =BV78 -> 0 | CI78: =CE78+CF78-CG78+CH78 -> 0 | CL78: =CD78-CJ78 -> 0 | CM78: =CI78-CK78 -> 0 | CP78: 0 | CR78: 0
A79: 38 | C79: Smart Meter Capital and Recovery Offset Variance - Sub-Account - Stranded Meter Costs10 | D79: 1555 | I79: =E79+F79-G79+H79 -> 0 | N79: =J79+K79-L79+M79 -> 0 | O79: =I79 -> 0 | S79: =O79+P79-Q79+R79 -> 0 | T79: =N79 -> 0 | X79: =T79+U79-V79+W79 -> 0 | Y79: =S79 -> 0 | AC79: =Y79+Z79-AA79+AB79 -> 0 | AD79: =X79 -> 0 | AH79: =AD79+AE79-AF79+AG79 -> 0 | AI79: =AC79 -> 0 | AM79: =AI79+AJ79-AK79+AL79 -> 0 | AN79: =AH79 -> 0 | AR79: =AN79+AO79-AP79+AQ79 -> 0 | AS79: =AM79 -> 0 | AW79: =AS79+AT79-AU79+AV79 -> 0 | AX79: =AR79 -> 0 | BB79: =AX79+AY79-AZ79+BA79 -> 0 | BC79: =AW79 -> 0 | BG79: =BC79+BD79-BE79+SUM(BF79:BF79) -> 0 | BH79: =BB79 -> 0 | BL79: =BH79+BI79-BJ79+BK79 -> 0 | BM79: =BG79 -> 0 | BQ79: =BM79+BN79-BO79+SUM(BP79:BP79) -> 0 | BR79: =BL79 -> 0 | BV79: =BR79+BS79-BT79+BU79 -> 0 | BW79: =BQ79 -> 0 | CD79: =BW79+BX79-BY79+SUM(BZ79:CC79) -> 0 | CE79: =BV79 -> 0 | CI79: =CE79+CF79-CG79+CH79 -> 0 | CJ79: -234537 | CK79: 0 | CL79: 234537 | CM79: 0 | CP79: 234537 | CQ79: 0 | CR79: 0
A80: 39 | C80: Smart Meter OM&A Variance10 | D80: 1556 | I80: =E80+F80-G80+H80 -> 0 | N80: =J80+K80-L80+M80 -> 0 | O80: =I80 -> 0 | S80: =O80+P80-Q80+R80 -> 0 | T80: =N80 -> 0 | X80: =T80+U80-V80+W80 -> 0 | Y80: =S80 -> 0 | AC80: =Y80+Z80-AA80+AB80 -> 0 | AD80: =X80 -> 0 | AH80: =AD80+AE80-AF80+AG80 -> 0 | AI80: =AC80 -> 0 | AM80: =AI80+AJ80-AK80+AL80 -> 0 | AN80: =AH80 -> 0 | AR80: =AN80+AO80-AP80+AQ80 -> 0 | AS80: =AM80 -> 0 | AW80: =AS80+AT80-AU80+AV80 -> 0 | AX80: =AR80 -> 0 | BB80: =AX80+AY80-AZ80+BA80 -> 0 | BC80: =AW80 -> 0 | BG80: =BC80+BD80-BE80+SUM(BF80:BF80) -> 0 | BH80: =BB80 -> 0 | BL80: =BH80+BI80-BJ80+BK80 -> 0 | BM80: =BG80 -> 0 | BQ80: =BM80+BN80-BO80+SUM(BP80:BP80) -> 0 | BR80: =BL80 -> 0 | BV80: =BR80+BS80-BT80+BU80 -> 0 | BW80: =BQ80 -> 0 | CD80: =BW80+BX80-BY80+SUM(BZ80:CC80) -> 0 | CE80: =BV80 -> 0 | CI80: =CE80+CF80-CG80+CH80 -> 0 | CL80: 0 | CM80: 0 | CP80: 0 | CR80: 0
A82: 40 | C82: IFRS-CGAAP Transition PP&E Amounts Balance + Return Component9 | D82: 1575 | CC82: -737033 | CD82: =BW82+BX82-BY82+SUM(BZ82:CC82) -> -737033 | CE82: =BV82 -> 0 | CI82: =CE82+CF82-CG82+CH82 -> 0 | CL82: 632749 | CM82: =CI82-CK82 -> 0 | CN82: 158187 | CO82: 0 | CP82: 577861 | CQ82: -696846 | CR82: =CQ82-SUM(CD82,CI82) -> 40187
A83: 41 | C83: Accounting Changes Under CGAAP Balance + Return Component9 | D83: 1576 | CD83: =BW83+BX83-BY83+SUM(BZ83:CC83) -> 0 | CE83: =BV83 -> 0 | CI83: =CE83+CF83-CG83+CH83 -> 0 | CL83: -1843567 | CM83: =CI83-CK83 -> 0 | CN83: -460892 | CP83: -2388135 | CR83: =CQ83-SUM(CD83,CI83) -> 0
C85: The following is not included in the total claim but are included on a memo basis:
A86: 42 | C86: Deferred PILs Contra Account 5 | D86: 1563 | E86: =-E65 -> -126029 | I86: =E86+F86-G86+H86 -> -126029 | N86: =J86+K86-L86+M86 -> 0 | O86: =I86 -> -126029 | S86: =O86+P86-Q86+R86 -> -126029 | T86: =N86 -> 0 | X86: =T86+U86-V86+W86 -> 0 | Y86: =S86 -> -126029 | AC86: =Y86+Z86-AA86+AB86 -> -126029 | AD86: =X86 -> 0 | AH86: =AD86+AE86-AF86+AG86 -> 0 | AI86: =AC86 -> -126029 | AM86: =AI86+AJ86-AK86+AL86 -> -126029 | AN86: =AH86 -> 0 | AR86: =AN86+AO86-AP86+AQ86 -> 0 | AS86: =AM86 -> -126029 | AW86: =AS86+AT86-AU86+AV86 -> -126029 | AX86: =AR86 -> 0 | BB86: =AX86+AY86-AZ86+BA86 -> 0 | BC86: =AW86 -> -126029 | BG86: =BC86+BD86-BE86+SUM(BF86:BF86) -> -126029 | BH86: =BB86 -> 0 | BL86: =BH86+BI86-BJ86+BK86 -> 0 | BM86: =BG86 -> -126029 | BO86: -126029 | BQ86: =BM86+BN86-BO86+SUM(BP86:BP86) -> 0 | BR86: =BL86 -> 0 | BV86: =BR86+BS86-BT86+BU86 -> 0 | BW86: =BQ86 -> 0 | CD86: =BW86+BX86-BY86+SUM(BZ86:CC86) -> 0 | CE86: =BV86 -> 0 | CI86: =CE86+CF86-CG86+CH86 -> 0 | CL86: =CD86-CJ86 -> 0 | CM86: =CI86-CK86 -> 0 | CP86: 0 | CR86: 0
A87: 43 | C87: PILs and Tax Variance for 2006 and Subsequent Years - Sub-Account HST/OVAT Contra Account | D87: 1592 | I87: =E87+F87-G87+H87 -> 0 | N87: =J87+K87-L87+M87 -> 0 | O87: =I87 -> 0 | S87: =O87+P87-Q87+R87 -> 0 | T87: =N87 -> 0 | X87: =T87+U87-V87+W87 -> 0 | Y87: =S87 -> 0 | AC87: =Y87+Z87-AA87+AB87 -> 0 | AD87: =X87 -> 0 | AH87: =AD87+AE87-AF87+AG87 -> 0 | AI87: =AC87 -> 0 | AM87: =AI87+AJ87-AK87+AL87 -> 0 | AN87: =AH87 -> 0 | AR87: =AN87+AO87-AP87+AQ87 -> 0 | AS87: =AM87 -> 0 | AT87: =+AT67 -> -20294 | AW87: =AS87+AT87-AU87+AV87 -> -20294 | AX87: =AR87 -> 0 | AY87: =+AY67 -> -149 | BB87: =AX87+AY87-AZ87+BA87 -> -149 | BC87: =AW87 -> -20294 | BD87: =+BD67 -> -39326 | BG87: =BC87+BD87-BE87+SUM(BF87:BF87) -> -59620 | BH87: =BB87 -> -149 | BI87: =+BI67 -> -587 | BL87: =BH87+BI87-BJ87+BK87 -> -736 | BM87: =BG87 -> -59620 | BN87: =+BN67 -> -37147 | BQ87: =BM87+BN87-BO87+SUM(BP87:BP87) -> -96767 | BR87: =BL87 -> -736 | BS87: =+BS67 -> -1008 | BV87: =BR87+BS87-BT87+BU87 -> -1744 | BW87: =BQ87 -> -96767 | BX87: =+BX67 -> -39187 | CD87: =BW87+BX87-BY87+SUM(BZ87:CC87) -> -135954 | CE87: =BV87 -> -1744 | CF87: =+CF67 -> -1479 | CI87: =CE87+CF87-CG87+CH87 -> -3223 | CJ87: =+CJ67 -> 40859 | CK87: =+CK67 -> 1995 | CL87: =CD87-CJ87 -> -176813 | CM87: =CI87-CK87 -> -5218 | CP87: -182031 | CQ87: -127377 | CR87: 11800
A88: 44 | C88: Disposition and Recovery of Regulatory Balances7 | D88: 1595 | I88: =E88+F88-G88+H88 -> 0 | N88: =J88+K88-L88+M88 -> 0 | O88: =I88 -> 0 | S88: =O88+P88-Q88+R88 -> 0 | T88: =N88 -> 0 | X88: =T88+U88-V88+W88 -> 0 | Y88: =S88 -> 0 | AC88: =Y88+Z88-AA88+AB88 -> 0 | AD88: =X88 -> 0 | AH88: =AD88+AE88-AF88+AG88 -> 0 | AI88: =AC88 -> 0 | AM88: =AI88+AJ88-AK88+AL88 -> 0 | AN88: =AH88 -> 0 | AR88: =AN88+AO88-AP88+AQ88 -> 0 | AS88: =AM88 -> 0 | AT88: =+AT34+AT33 -> 280248.95 | AU88: =+AU34+AU33 -> -2086274.33 | AV88: 0 | AW88: -1806025.38 | AX88: 0 | AY88: -12094.58 | AZ88: -63122.65 | BA88: 0 | BB88: -75217.23 | BC88: -1806025.38 | BD88: 536332.45 | BE88: 0 | BF88: 0 | BG88: -1269692.93 | BH88: -75217.23 | BI88: -22931.94 | BJ88: 0 | BK88: 0 | BL88: -98149.17 | BM88: -1269692.93 | BN88: 409154.46 | BO88: 131718.09 | BP88: 0 | BQ88: -728820.38 | BR88: -98149.17 | BS88: -34712.91 | BT88: 147489.91 | BU88: 0 | BV88: 14627.83 | BW88: -728820.38 | BX88: 536936.24 | BY88: 0 | BZ88: 0 | CA88: 0 | CB88: 0 | CC88: 0 | CD88: -191884.14 | CE88: 14627.83 | CF88: -133237.92 | CG88: 0 | CH88: 0 | CI88: -118610.09 | CJ88: 191884.17 | CK88: 62628.02 | CL88: 0.02999999988 | CM88: -55982.07 | CN88: 0 | CO88: 0 | CP88: -55982.04 | CQ88: -310494.23 | CR88: 0
C91: For all Board-Approved dispositions, please ensure that the disposition amount has the same sign (e.g: debit balances are to have a positive figure and credit balance are to have a negative figure) as per the related Board decision. | CO91: Total before ICM claim | CP91: =+CP36+CP69+CP72+CP79+CP82 -> 866213.2582
B92: 1 | C92: Provide supporting statement indicating whether due to denial of costs in 2006 EDR by the Board, 10% transition costs write-off, etc. | CO92: LRAM | CP92: 326336
B93: 1A | C93: Adjustments Instructed by the Board include deferral/variance account balances moved to Account 1590 as a result of the 2006 EDR and account 1595 during the 2008 EDR and subsequent years as ordered by the Board. | CO93: Total claim | CP93: =+CP92+CP91 -> 1192549.258
B94: 2 | C94: Please provide explanations for the nature of the adjustments. If the adjustment relates to previously Board Approved disposed balances, please provide amounts for adjustments and include supporting documentations.
B95: 3 | C95: For RSVA accounts only, report the net variance to the account during the year. For all other accounts, record the transactions during the year.
B96: 4 | C96: Please describe "other" components of 1508 and add more component lines if necessary.
B97: 5 | C97: 1563 is a contra-account and is not included in the total but is shown on a memo basis. Account 1562 establishes the obligation to the ratepayer.
B98: 6 | C98: If the LDC’s 2013 rate year begins January 1, 2013, the projected interest is recorded from January 1, 2012 to December 31, 2012 on the December 31, 2011 balance adjusted for the disposed balances approved by the Board in the 2012 rate decision. If the LDC’s 2013 rate year begins May 1, 2013 the projected interest is recorded from January 1, 2012 to April 30, 2013 on the December 31, 2011 balance adjusted for the disposed balances approved by the Board in the 2012 rate decision.
B101: 7 | C101: Include Account 1595 as part of Group 1 accounts (lines 31, 32, 33 and 34) for review and disposition if the recovery (or refund) period has been completed. If the recovery (or refund) period has not been completed, include the
C102: balances in Account 1595 on a memo basis only (line 85).
B103: 8 | C103: As per the January 6, 2011 Letter from the Board, regarding the implementation of the Ontario Clean Energy Benefit:
C104: "By way of exception... The Board does acticipate that licensed distributors that cannot adapt their invoices as of January 1, 2011 will require a variance account for OCEB purposes... The Board expects that any principal
C105: balances in "Sub account Financial Assistance Payment and Recovery Variance - Ontario Clean Energy Benefit Act" will be addressed through the monthly settlement process with the IESO or the host distributor, as applicable.
B106: 9 | C106: The Board requires that disposition of Account 1575 and Account 1576 shall require the use of separate rate riders. In the "Other Adjustments during Q4 2012" column of the continuity schedule, please enter the amounts to be included in the Account 1575 and 1576 rate rider calculation from the applicable Chapter 2 appendices. For Account 1575, please provide the value in cell F39 from the relevant Chapter 2 Appendix (i.e. 2-EA, 2-EB or 2-EC). For Account 1576, please provide the value in cell F39 from the relevant Chapter 2 Appendix (i.e. 2-ED or 2-EE).
B107: 10 | C107: Deferral accounts related to Smart Meter deployment are not to be recovered/refunded through the Deferral and Variance Account rate rider. For details on how to dispose of balances in Smart Meter accounts see the Board's
C108: Guideline: Smart Meter Disposition and Cost Recovery (G-2011-0001)

Sheet 3. Appendix A
B16: Accounts that produced a variance on the 2014 continuity schedule are listed below. Please provide a detailed explanation for each variance below.
C20: Account Descriptions | D20: Account Number | E20: Variance RRR vs. 2012 Balance (Principal + Interest) | F20: Explanation
C23: Group 1 Accounts
A24: 1 | C24: LV Variance Account | D24: 1550 | E24: =IF(ISERROR(VLOOKUP($A24, '2. 2014 Continuity Schedule'!$A$20:$CR$90, MATCH('3. Appendix A'!$E$20, '2. 2014 Continuity Schedule'!$A$20:$CR$20,0),FALSE)), 0, VLOOKUP($A24, '2. 2014 Continuity Schedule'!$A$20:$CR$90, MATCH('3. Appendix A'!$E$20, '2. 2014 Continuity Schedule'!$A$20:$CR$20,0),FALSE)) -> -0.29
A25: 2 | C25: RSVA - Wholesale Market Service Charge | D25: 1580 | E25: =IF(ISERROR(VLOOKUP($A25, '2. 2014 Continuity Schedule'!$A$20:$CR$90, MATCH('3. Appendix A'!$E$20, '2. 2014 Continuity Schedule'!$A$20:$CR$20,0),FALSE)), 0, VLOOKUP($A25, '2. 2014 Continuity Schedule'!$A$20:$CR$90, MATCH('3. Appendix A'!$E$20, '2. 2014 Continuity Schedule'!$A$20:$CR$20,0),FALSE)) -> 0
A26: 3 | C26: RSVA - Retail Transmission Network Charge | D26: 1584 | E26: =IF(ISERROR(VLOOKUP($A26, '2. 2014 Continuity Schedule'!$A$20:$CR$90, MATCH('3. Appendix A'!$E$20, '2. 2014 Continuity Schedule'!$A$20:$CR$20,0),FALSE)), 0, VLOOKUP($A26, '2. 2014 Continuity Schedule'!$A$20:$CR$90, MATCH('3. Appendix A'!$E$20, '2. 2014 Continuity Schedule'!$A$20:$CR$20,0),FALSE)) -> 0
A27: 4 | C27: RSVA - Retail Transmission Connection Charge | D27: 1586 | E27: =IF(ISERROR(VLOOKUP($A27, '2. 2014 Continuity Schedule'!$A$20:$CR$90, MATCH('3. Appendix A'!$E$20, '2. 2014 Continuity Schedule'!$A$20:$CR$20,0),FALSE)), 0, VLOOKUP($A27, '2. 2014 Continuity Schedule'!$A$20:$CR$90, MATCH('3. Appendix A'!$E$20, '2. 2014 Continuity Schedule'!$A$20:$CR$20,0),FALSE)) -> 0
A28: 5 | C28: RSVA - Power (excluding Global Adjustment) | D28: 1588 | E28: =IF(ISERROR(VLOOKUP($A28, '2. 2014 Continuity Schedule'!$A$20:$CR$90, MATCH('3. Appendix A'!$E$20, '2. 2014 Continuity Schedule'!$A$20:$CR$20,0),FALSE)), 0, VLOOKUP($A28, '2. 2014 Continuity Schedule'!$A$20:$CR$90, MATCH('3. Appendix A'!$E$20, '2. 2014 Continuity Schedule'!$A$20:$CR$20,0),FALSE)) -> -0.03566522608
A29: 6 | C29: RSVA - Global Adjustment | D29: 1589 | E29: =IF(ISERROR(VLOOKUP($A29, '2. 2014 Continuity Schedule'!$A$20:$CR$90, MATCH('3. Appendix A'!$E$20, '2. 2014 Continuity Schedule'!$A$20:$CR$20,0),FALSE)), 0, VLOOKUP($A29, '2. 2014 Continuity Schedule'!$A$20:$CR$90, MATCH('3. Appendix A'!$E$20, '2. 2014 Continuity Schedule'!$A$20:$CR$20,0),FALSE)) -> 0.03566522617
A30: 7 | C30: Recovery of Regulatory Asset Balances | D30: 1590 | E30: =IF(ISERROR(VLOOKUP($A30, '2. 2014 Continuity Schedule'!$A$20:$CR$90, MATCH('3. Appendix A'!$E$20, '2. 2014 Continuity Schedule'!$A$20:$CR$20,0),FALSE)), 0, VLOOKUP($A30, '2. 2014 Continuity Schedule'!$A$20:$CR$90, MATCH('3. Appendix A'!$E$20, '2. 2014 Continuity Schedule'!$A$20:$CR$20,0),FALSE)) -> 0.36
A31: 8 | C31: Disposition and Recovery/Refund of Regulatory Balances (2008)7 | D31: 1595 | E31: =IF(ISERROR(VLOOKUP($A31, '2. 2014 Continuity Schedule'!$A$20:$CR$90, MATCH('3. Appendix A'!$E$20, '2. 2014 Continuity Schedule'!$A$20:$CR$20,0),FALSE)), 0, VLOOKUP($A31, '2. 2014 Continuity Schedule'!$A$20:$CR$90, MATCH('3. Appendix A'!$E$20, '2. 2014 Continuity Schedule'!$A$20:$CR$20,0),FALSE)) -> 0
A32: 9 | C32: Disposition and Recovery/Refund of Regulatory Balances (2009)7 | D32: 1595 | E32: =IF(ISERROR(VLOOKUP($A32, '2. 2014 Continuity Schedule'!$A$20:$CR$90, MATCH('3. Appendix A'!$E$20, '2. 2014 Continuity Schedule'!$A$20:$CR$20,0),FALSE)), 0, VLOOKUP($A32, '2. 2014 Continuity Schedule'!$A$20:$CR$90, MATCH('3. Appendix A'!$E$20, '2. 2014 Continuity Schedule'!$A$20:$CR$20,0),FALSE)) -> 0
A33: 9 | C33: Disposition and Recovery/Refund of Regulatory Balances (2010)7 | D33: 1595 | E33: =IF(ISERROR(VLOOKUP($A33, '2. 2014 Continuity Schedule'!$A$20:$CR$90, MATCH('3. Appendix A'!$E$20, '2. 2014 Continuity Schedule'!$A$20:$CR$20,0),FALSE)), 0, VLOOKUP($A33, '2. 2014 Continuity Schedule'!$A$20:$CR$90, MATCH('3. Appendix A'!$E$20, '2. 2014 Continuity Schedule'!$A$20:$CR$20,0),FALSE)) -> 0
A34: 10 | C34: Disposition and Recovery/Refund of Regulatory Balances (2011)7 | D34: 1595 | E34: =IF(ISERROR(VLOOKUP($A34, '2. 2014 Continuity Schedule'!$A$20:$CR$90, MATCH('3. Appendix A'!$E$20, '2. 2014 Continuity Schedule'!$A$20:$CR$20,0),FALSE)), 0, VLOOKUP($A34, '2. 2014 Continuity Schedule'!$A$20:$CR$90, MATCH('3. Appendix A'!$E$20, '2. 2014 Continuity Schedule'!$A$20:$CR$20,0),FALSE)) -> 0
C35: Group 2 Accounts
A36: 11 | C36: Other Regulatory Assets - Sub-Account - OEB Cost Assessments | D36: 1508 | E36: =IF(ISERROR(VLOOKUP($A36, '2. 2014 Continuity Schedule'!$A$20:$CR$90, MATCH('3. Appendix A'!$E$20, '2. 2014 Continuity Schedule'!$A$20:$CR$20,0),FALSE)), 0, VLOOKUP($A36, '2. 2014 Continuity Schedule'!$A$20:$CR$90, MATCH('3. Appendix A'!$E$20, '2. 2014 Continuity Schedule'!$A$20:$CR$20,0),FALSE)) -> 0.01999999999
A37: 12 | C37: Other Regulatory Assets - Sub-Account - Pension Contributions | D37: 1508 | E37: =IF(ISERROR(VLOOKUP($A37, '2. 2014 Continuity Schedule'!$A$20:$CR$90, MATCH('3. Appendix A'!$E$20, '2. 2014 Continuity Schedule'!$A$20:$CR$20,0),FALSE)), 0, VLOOKUP($A37, '2. 2014 Continuity Schedule'!$A$20:$CR$90, MATCH('3. Appendix A'!$E$20, '2. 2014 Continuity Schedule'!$A$20:$CR$20,0),FALSE)) -> -0.11
A38: 13 | C38: Other Regulatory Assets - Sub-Account - Deferred IFRS Transition Costs | D38: 1508 | E38: =IF(ISERROR(VLOOKUP($A38, '2. 2014 Continuity Schedule'!$A$20:$CR$90, MATCH('3. Appendix A'!$E$20, '2. 2014 Continuity Schedule'!$A$20:$CR$20,0),FALSE)), 0, VLOOKUP($A38, '2. 2014 Continuity Schedule'!$A$20:$CR$90, MATCH('3. Appendix A'!$E$20, '2. 2014 Continuity Schedule'!$A$20:$CR$20,0),FALSE)) -> -0.43
A39: 14 | C39: Other Regulatory Assets - Sub-Account - Incremental Capital Charges | D39: 1508 | E39: =IF(ISERROR(VLOOKUP($A39, '2. 2014 Continuity Schedule'!$A$20:$CR$90, MATCH('3. Appendix A'!$E$20, '2. 2014 Continuity Schedule'!$A$20:$CR$20,0),FALSE)), 0, VLOOKUP($A39, '2. 2014 Continuity Schedule'!$A$20:$CR$90, MATCH('3. Appendix A'!$E$20, '2. 2014 Continuity Schedule'!$A$20:$CR$20,0),FALSE)) -> -0.31
A40: 15 | C40: Other Regulatory Assets - Sub-Account - Financial Assistance Payment and Recovery Variance - Ontario Clean Energy Benefit Act8 | D40: 1508 | E40: =IF(ISERROR(VLOOKUP($A40, '2. 2014 Continuity Schedule'!$A$20:$CR$90, MATCH('3. Appendix A'!$E$20, '2. 2014 Continuity Schedule'!$A$20:$CR$20,0),FALSE)), 0, VLOOKUP($A40, '2. 2014 Continuity Schedule'!$A$20:$CR$90, MATCH('3. Appendix A'!$E$20, '2. 2014 Continuity Schedule'!$A$20:$CR$20,0),FALSE)) -> 0
A41: 16 | C41: Other Regulatory Assets - Sub-Account - Financial Assistance Payment and Recovery Carrying Charges | D41: 1508 | E41: =IF(ISERROR(VLOOKUP($A41, '2. 2014 Continuity Schedule'!$A$20:$CR$90, MATCH('3. Appendix A'!$E$20, '2. 2014 Continuity Schedule'!$A$20:$CR$20,0),FALSE)), 0, VLOOKUP($A41, '2. 2014 Continuity Schedule'!$A$20:$CR$90, MATCH('3. Appendix A'!$E$20, '2. 2014 Continuity Schedule'!$A$20:$CR$20,0),FALSE)) -> 0
A42: 17 | C42: Other Regulatory Assets - Sub-Account - Other 4 | D42: 1508 | E42: =IF(ISERROR(VLOOKUP($A42, '2. 2014 Continuity Schedule'!$A$20:$CR$90, MATCH('3. Appendix A'!$E$20, '2. 2014 Continuity Schedule'!$A$20:$CR$20,0),FALSE)), 0, VLOOKUP($A42, '2. 2014 Continuity Schedule'!$A$20:$CR$90, MATCH('3. Appendix A'!$E$20, '2. 2014 Continuity Schedule'!$A$20:$CR$20,0),FALSE)) -> -0.4000000004
A43: 18 | C43: Retail Cost Variance Account - Retail | D43: 1518 | E43: =IF(ISERROR(VLOOKUP($A43, '2. 2014 Continuity Schedule'!$A$20:$CR$90, MATCH('3. Appendix A'!$E$20, '2. 2014 Continuity Schedule'!$A$20:$CR$20,0),FALSE)), 0, VLOOKUP($A43, '2. 2014 Continuity Schedule'!$A$20:$CR$90, MATCH('3. Appendix A'!$E$20, '2. 2014 Continuity Schedule'!$A$20:$CR$20,0),FALSE)) -> 0
A44: 19 | C44: Misc. Deferred Debits | D44: 1525 | E44: =IF(ISERROR(VLOOKUP($A44, '2. 2014 Continuity Schedule'!$A$20:$CR$90, MATCH('3. Appendix A'!$E$20, '2. 2014 Continuity Schedule'!$A$20:$CR$20,0),FALSE)), 0, VLOOKUP($A44, '2. 2014 Continuity Schedule'!$A$20:$CR$90, MATCH('3. Appendix A'!$E$20, '2. 2014 Continuity Schedule'!$A$20:$CR$20,0),FALSE)) -> 0
A45: 20 | C45: Renewable Generation Connection Capital Deferral Account | D45: 1531 | E45: =IF(ISERROR(VLOOKUP($A45, '2. 2014 Continuity Schedule'!$A$20:$CR$90, MATCH('3. Appendix A'!$E$20, '2. 2014 Continuity Schedule'!$A$20:$CR$20,0),FALSE)), 0, VLOOKUP($A45, '2. 2014 Continuity Schedule'!$A$20:$CR$90, MATCH('3. Appendix A'!$E$20, '2. 2014 Continuity Schedule'!$A$20:$CR$20,0),FALSE)) -> 0
A46: 21 | C46: Renewable Generation Connection OM&A Deferral Account | D46: 1532 | E46: =IF(ISERROR(VLOOKUP($A46, '2. 2014 Continuity Schedule'!$A$20:$CR$90, MATCH('3. Appendix A'!$E$20, '2. 2014 Continuity Schedule'!$A$20:$CR$20,0),FALSE)), 0, VLOOKUP($A46, '2. 2014 Continuity Schedule'!$A$20:$CR$90, MATCH('3. Appendix A'!$E$20, '2. 2014 Continuity Schedule'!$A$20:$CR$20,0),FALSE)) -> 0
A47: 22 | C47: Renewable Generation Connection Funding Adder Deferral Account | D47: 1533 | E47: =IF(ISERROR(VLOOKUP($A47, '2. 2014 Continuity Schedule'!$A$20:$CR$90, MATCH('3. Appendix A'!$E$20, '2. 2014 Continuity Schedule'!$A$20:$CR$20,0),FALSE)), 0, VLOOKUP($A47, '2. 2014 Continuity Schedule'!$A$20:$CR$90, MATCH('3. Appendix A'!$E$20, '2. 2014 Continuity Schedule'!$A$20:$CR$20,0),FALSE)) -> 0
A48: 23 | C48: Smart Grid Capital Deferral Account | D48: 1534 | E48: =IF(ISERROR(VLOOKUP($A48, '2. 2014 Continuity Schedule'!$A$20:$CR$90, MATCH('3. Appendix A'!$E$20, '2. 2014 Continuity Schedule'!$A$20:$CR$20,0),FALSE)), 0, VLOOKUP($A48, '2. 2014 Continuity Schedule'!$A$20:$CR$90, MATCH('3. Appendix A'!$E$20, '2. 2014 Continuity Schedule'!$A$20:$CR$20,0),FALSE)) -> 0
A49: 24 | C49: Smart Grid OM&A Deferral Account | D49: 1535 | E49: =IF(ISERROR(VLOOKUP($A49, '2. 2014 Continuity Schedule'!$A$20:$CR$90, MATCH('3. Appendix A'!$E$20, '2. 2014 Continuity Schedule'!$A$20:$CR$20,0),FALSE)), 0, VLOOKUP($A49, '2. 2014 Continuity Schedule'!$A$20:$CR$90, MATCH('3. Appendix A'!$E$20, '2. 2014 Continuity Schedule'!$A$20:$CR$20,0),FALSE)) -> 0
A50: 25 | C50: Smart Grid Funding Adder Deferral Account | D50: 1536 | E50: =IF(ISERROR(VLOOKUP($A50, '2. 2014 Continuity Schedule'!$A$20:$CR$90, MATCH('3. Appendix A'!$E$20, '2. 2014 Continuity Schedule'!$A$20:$CR$20,0),FALSE)), 0, VLOOKUP($A50, '2. 2014 Continuity Schedule'!$A$20:$CR$90, MATCH('3. Appendix A'!$E$20, '2. 2014 Continuity Schedule'!$A$20:$CR$20,0),FALSE)) -> 0
A51: 26 | C51: Retail Cost Variance Account - STR | D51: 1548 | E51: =IF(ISERROR(VLOOKUP($A51, '2. 2014 Continuity Schedule'!$A$20:$CR$90, MATCH('3. Appendix A'!$E$20, '2. 2014 Continuity Schedule'!$A$20:$CR$20,0),FALSE)), 0, VLOOKUP($A51, '2. 2014 Continuity Schedule'!$A$20:$CR$90, MATCH('3. Appendix A'!$E$20, '2. 2014 Continuity Schedule'!$A$20:$CR$20,0),FALSE)) -> 0
A52: 27 | C52: Board-Approved CDM Variance Account | D52: 1567 | E52: =IF(ISERROR(VLOOKUP($A52, '2. 2014 Continuity Schedule'!$A$20:$CR$90, MATCH('3. Appendix A'!$E$20, '2. 2014 Continuity Schedule'!$A$20:$CR$20,0),FALSE)), 0, VLOOKUP($A52, '2. 2014 Continuity Schedule'!$A$20:$CR$90, MATCH('3. Appendix A'!$E$20, '2. 2014 Continuity Schedule'!$A$20:$CR$20,0),FALSE)) -> 0
A53: 28 | C53: Extra-Ordinary Event Costs | D53: 1572 | E53: =IF(ISERROR(VLOOKUP($A53, '2. 2014 Continuity Schedule'!$A$20:$CR$90, MATCH('3. Appendix A'!$E$20, '2. 2014 Continuity Schedule'!$A$20:$CR$20,0),FALSE)), 0, VLOOKUP($A53, '2. 2014 Continuity Schedule'!$A$20:$CR$90, MATCH('3. Appendix A'!$E$20, '2. 2014 Continuity Schedule'!$A$20:$CR$20,0),FALSE)) -> 0
A54: 29 | C54: Deferred Rate Impact Amounts | D54: 1574 | E54: =IF(ISERROR(VLOOKUP($A54, '2. 2014 Continuity Schedule'!$A$20:$CR$90, MATCH('3. Appendix A'!$E$20, '2. 2014 Continuity Schedule'!$A$20:$CR$20,0),FALSE)), 0, VLOOKUP($A54, '2. 2014 Continuity Schedule'!$A$20:$CR$90, MATCH('3. Appendix A'!$E$20, '2. 2014 Continuity Schedule'!$A$20:$CR$20,0),FALSE)) -> 0
A55: 30 | C55: RSVA - One-time | D55: 1582 | E55: =IF(ISERROR(VLOOKUP($A55, '2. 2014 Continuity Schedule'!$A$20:$CR$90, MATCH('3. Appendix A'!$E$20, '2. 2014 Continuity Schedule'!$A$20:$CR$20,0),FALSE)), 0, VLOOKUP($A55, '2. 2014 Continuity Schedule'!$A$20:$CR$90, MATCH('3. Appendix A'!$E$20, '2. 2014 Continuity Schedule'!$A$20:$CR$20,0),FALSE)) -> 0
A56: 31 | C56: Other Deferred Credits | D56: 2425 | E56: =IF(ISERROR(VLOOKUP($A56, '2. 2014 Continuity Schedule'!$A$20:$CR$90, MATCH('3. Appendix A'!$E$20, '2. 2014 Continuity Schedule'!$A$20:$CR$20,0),FALSE)), 0, VLOOKUP($A56, '2. 2014 Continuity Schedule'!$A$20:$CR$90, MATCH('3. Appendix A'!$E$20, '2. 2014 Continuity Schedule'!$A$20:$CR$20,0),FALSE)) -> 0
A57: 32 | C57: Deferred Payments in Lieu of Taxes | D57: 1562 | E57: =IF(ISERROR(VLOOKUP($A57, '2. 2014 Continuity Schedule'!$A$20:$CR$90, MATCH('3. Appendix A'!$E$20, '2. 2014 Continuity Schedule'!$A$20:$CR$20,0),FALSE)), 0, VLOOKUP($A57, '2. 2014 Continuity Schedule'!$A$20:$CR$90, MATCH('3. Appendix A'!$E$20, '2. 2014 Continuity Schedule'!$A$20:$CR$20,0),FALSE)) -> 0
A58: 33 | C58: PILs and Tax Variance for 2006 and Subsequent Years (excludes sub-account and contra account below) | D58: 1592 | E58: =IF(ISERROR(VLOOKUP($A58, '2. 2014 Continuity Schedule'!$A$20:$CR$90, MATCH('3. Appendix A'!$E$20, '2. 2014 Continuity Schedule'!$A$20:$CR$20,0),FALSE)), 0, VLOOKUP($A58, '2. 2014 Continuity Schedule'!$A$20:$CR$90, MATCH('3. Appendix A'!$E$20, '2. 2014 Continuity Schedule'!$A$20:$CR$20,0),FALSE)) -> 0
A59: 34 | C59: PILs and Tax Variance for 2006 and Subsequent Years - Sub-Account HST/OVAT Input Tax Credits (ITCs) | D59: 1592 | E59: =IF(ISERROR(VLOOKUP($A59, '2. 2014 Continuity Schedule'!$A$20:$CR$90, MATCH('3. Appendix A'!$E$20, '2. 2014 Continuity Schedule'!$A$20:$CR$20,0),FALSE)), 0, VLOOKUP($A59, '2. 2014 Continuity Schedule'!$A$20:$CR$90, MATCH('3. Appendix A'!$E$20, '2. 2014 Continuity Schedule'!$A$20:$CR$20,0),FALSE)) -> 11800
A60: 35 | C60: LRAM Variance Account | D60: 1568 | E60: =IF(ISERROR(VLOOKUP($A60, '2. 2014 Continuity Schedule'!$A$20:$CR$90, MATCH('3. Appendix A'!$E$20, '2. 2014 Continuity Schedule'!$A$20:$CR$20,0),FALSE)), 0, VLOOKUP($A60, '2. 2014 Continuity Schedule'!$A$20:$CR$90, MATCH('3. Appendix A'!$E$20, '2. 2014 Continuity Schedule'!$A$20:$CR$20,0),FALSE)) -> 0.14
A61: 36 | C61: Smart Meter Capital and Recovery Offset Variance - Sub-Account - Capital10 | D61: 1555 | E61: =IF(ISERROR(VLOOKUP($A61, '2. 2014 Continuity Schedule'!$A$20:$CR$90, MATCH('3. Appendix A'!$E$20, '2. 2014 Continuity Schedule'!$A$20:$CR$20,0),FALSE)), 0, VLOOKUP($A61, '2. 2014 Continuity Schedule'!$A$20:$CR$90, MATCH('3. Appendix A'!$E$20, '2. 2014 Continuity Schedule'!$A$20:$CR$20,0),FALSE)) -> 0
A62: 37 | C62: Smart Meter Capital and Recovery Offset Variance - Sub-Account - Recoveries10 | D62: 1555 | E62: =IF(ISERROR(VLOOKUP($A62, '2. 2014 Continuity Schedule'!$A$20:$CR$90, MATCH('3. Appendix A'!$E$20, '2. 2014 Continuity Schedule'!$A$20:$CR$20,0),FALSE)), 0, VLOOKUP($A62, '2. 2014 Continuity Schedule'!$A$20:$CR$90, MATCH('3. Appendix A'!$E$20, '2. 2014 Continuity Schedule'!$A$20:$CR$20,0),FALSE)) -> 0
A63: 38 | C63: Smart Meter Capital and Recovery Offset Variance - Sub-Account - Stranded Meter Costs10 | D63: 1555 | E63: =IF(ISERROR(VLOOKUP($A63, '2. 2014 Continuity Schedule'!$A$20:$CR$90, MATCH('3. Appendix A'!$E$20, '2. 2014 Continuity Schedule'!$A$20:$CR$20,0),FALSE)), 0, VLOOKUP($A63, '2. 2014 Continuity Schedule'!$A$20:$CR$90, MATCH('3. Appendix A'!$E$20, '2. 2014 Continuity Schedule'!$A$20:$CR$20,0),FALSE)) -> 0
A64: 39 | C64: Smart Meter OM&A Variance10 | D64: 1556 | E64: =IF(ISERROR(VLOOKUP($A64, '2. 2014 Continuity Schedule'!$A$20:$CR$90, MATCH('3. Appendix A'!$E$20, '2. 2014 Continuity Schedule'!$A$20:$CR$20,0),FALSE)), 0, VLOOKUP($A64, '2. 2014 Continuity Schedule'!$A$20:$CR$90, MATCH('3. Appendix A'!$E$20, '2. 2014 Continuity Schedule'!$A$20:$CR$20,0),FALSE)) -> 0
A65: 40 | C65: IFRS-CGAAP Transition PP&E Amounts Balance + Return Component9 | D65: 1575 | E65: =IF(ISERROR(VLOOKUP($A65, '2. 2014 Continuity Schedule'!$A$20:$CR$90, MATCH('3. Appendix A'!$E$20, '2. 2014 Continuity Schedule'!$A$20:$CR$20,0),FALSE)), 0, VLOOKUP($A65, '2. 2014 Continuity Schedule'!$A$20:$CR$90, MATCH('3. Appendix A'!$E$20, '2. 2014 Continuity Schedule'!$A$20:$CR$20,0),FALSE)) -> 40187
A66: 41 | C66: Accounting Changes Under CGAAP Balance + Return Component9 | D66: 1576 | E66: =IF(ISERROR(VLOOKUP($A66, '2. 2014 Continuity Schedule'!$A$20:$CR$90, MATCH('3. Appendix A'!$E$20, '2. 2014 Continuity Schedule'!$A$20:$CR$20,0),FALSE)), 0, VLOOKUP($A66, '2. 2014 Continuity Schedule'!$A$20:$CR$90, MATCH('3. Appendix A'!$E$20, '2. 2014 Continuity Schedule'!$A$20:$CR$20,0),FALSE)) -> 0
A67: 42 | C67: Deferred PILs Contra Account 5 | D67: 1563 | E67: =IF(ISERROR(VLOOKUP($A67, '2. 2014 Continuity Schedule'!$A$20:$CR$90, MATCH('3. Appendix A'!$E$20, '2. 2014 Continuity Schedule'!$A$20:$CR$20,0),FALSE)), 0, VLOOKUP($A67, '2. 2014 Continuity Schedule'!$A$20:$CR$90, MATCH('3. Appendix A'!$E$20, '2. 2014 Continuity Schedule'!$A$20:$CR$20,0),FALSE)) -> 0
A68: 43 | C68: PILs and Tax Variance for 2006 and Subsequent Years - Sub-Account HST/OVAT Contra Account | D68: 1592 | E68: =IF(ISERROR(VLOOKUP($A68, '2. 2014 Continuity Schedule'!$A$20:$CR$90, MATCH('3. Appendix A'!$E$20, '2. 2014 Continuity Schedule'!$A$20:$CR$20,0),FALSE)), 0, VLOOKUP($A68, '2. 2014 Continuity Schedule'!$A$20:$CR$90, MATCH('3. Appendix A'!$E$20, '2. 2014 Continuity Schedule'!$A$20:$CR$20,0),FALSE)) -> 11800
A69: 44 | C69: Disposition and Recovery of Regulatory Balances7 | D69: 1595 | E69: =IF(ISERROR(VLOOKUP($A69, '2. 2014 Continuity Schedule'!$A$20:$CR$90, MATCH('3. Appendix A'!$E$20, '2. 2014 Continuity Schedule'!$A$20:$CR$20,0),FALSE)), 0, VLOOKUP($A69, '2. 2014 Continuity Schedule'!$A$20:$CR$90, MATCH('3. Appendix A'!$E$20, '2. 2014 Continuity Schedule'!$A$20:$CR$20,0),FALSE)) -> 0

Sheet 4. Billing Determinants
B16: In the green shaded cells, enter the most recent Board Approved volumetric forecast. If there is a material difference between the latest Board-approved volumetric forecast and the most recent 12-month actual volumetric data, use the most recent 12-month actual data. Do not enter data for the MicroFit class.
B19: Rate Class (Enter Rate Classes in cells below) | C19: Units | D19: # of Customers | E19: Metered kWh | F19: Metered kW | G19: Billed kWh for Non-RPP Customers | H19: Estimated kW for Non-RPP Customers | I19: Distribution Revenue 1 | J19: 1590 Recovery Share Proportion | K19: 1595 Recovery Share Proportion (2008) 2 | L19: 1595 Recovery Share Proportion (2009) 2 | M19: 1595 Recovery Share Proportion (2010) 2 | N19: 1595 Recovery Share Proportion (2012) 2 | O19: 1568 LRAM Variance Account Class Allocation ($ amounts)
B21: Residential | C21: kWh | D21: =17815+409 -> 18224 | E21: =136213677+3729332 -> 139943009 | F21: 0 | G21: =14074617+558714 -> 14633331 | H21: =IF(ISERROR(F21/E21*G21), 0, F21/E21*G21) -> 0 | I21: =5812082+143723 -> 5955805 | M21: =(5744835+114553)/10288194 -> 0.5695254191 | N21: =+M21 -> 0.5695254191 | O21: 47499.05
B22: General Service < 50 kW | C22: kWh | D22: 2029 | E22: 63743351 | F22: 0 | G22: 14307441 | H22: =IF(ISERROR(F22/#REF!*#REF!), 0, F22/#REF!*#REF!) -> 0 | I22: 1746019 | M22: =1761684/10288194 -> 0.1712335518 | N22: =+M22 -> 0.1712335518 | O22: 33788.85
B23: General Service > 50 to 4999 kW | C23: kW | D23: 227 | E23: 358576050 | F23: 935971 | G23: 357737164 | H23: =IF(ISERROR(F23/E23*G23), 0, F23/E23*G23) -> 933781.3028 | I23: 2591590 | M23: =2208513/10288194 -> 0.2146647896 | N23: 0.2146647896 | O23: 74097.57
B24: Large Use | C24: kW | D24: 1 | E24: 21991607 | F24: 34052 | G24: 21975629 | H24: 34052 | I24: 151231 | M24: =316965/10288194 -> 0.03080861422 | N24: 0.03080861422 | O24: 19608.11
B25: Unmetered Scattered Load (per connection) | C25: kWh | D25: 24 | E25: 656947 | F25: 0 | G25: 382030 | H25: =IF(ISERROR(F25/E25*G25), 0, F25/E25*G25) -> 0 | I25: 27549 | M25: =33764/10288194 -> 0.003281819919 | N25: 0.003281819919 | O25: 0
B26: Sentinel Lighting (per connection) | C26: kW | D26: 41 | E26: 146243 | F26: 354 | G26: 0 | H26: =IF(ISERROR(F26/E26*G26), 0, F26/E26*G26) -> 0 | I26: 5075 | M26: =6904/10288194 -> 0.0006710604407 | N26: 0.0006710604407 | O26: 0
B27: Street Lighting (per light) | C27: kW | D27: 16 | E27: 4531614 | F27: 11923 | G27: 4217011 | H27: 11923 | I27: 127907 | M27: =100974/10288194 -> 0.009814550542 | N27: 0.009814550542 | O27: 0
H29: =IF(ISERROR(F29/E29*G29), 0, F29/E29*G29) -> 0
H30: 0
H31: 0
H32: 0
H33: 0
H34: 0
H35: 0
H36: 0
H37: 0
H38: 0
H39: 0
H40: 0
B41: Total | D41: =SUM(D21:D40) -> 20562 | E41: =SUM(E21:E40) -> 589588821 | F41: =SUM(F21:F40) -> 982300 | G41: 413252606 | H41: 979756.3028 | I41: 10605176 | J41: 0 | K41: 0 | L41: 0 | M41: 0.9999998056 | N41: 0.9999998056 | O41: 174993.58
N42: Balance as per Sheet 2 | O42: ='2. 2014 Continuity Schedule'!CP72 -> 174993.86
N43: Variance | O43: =O41-O42 -> -0.28
A45: 1 For Account 1562, the allocation to customer classes should be performed on the basis of the test year distribution revenue allocation to customer classes found in the Applicant’s Cost of Service application that was most recently approved at the time of disposition of the 1562 account balances
A47: 2 Residual Account balance to be allocated to rate classes in proportion to the recovery share as established when rate riders were implemented.

Sheet 5. Allocation of Balances
D4: Amounts from Sheet 2 | E4: Allocator | F4: =IF(LEN(TRIM('4. Billing Determinants'!$B21))=0, "", '4. Billing Determinants'!$B21) -> Residential | G4: =IF(LEN(TRIM('4. Billing Determinants'!#REF!))=0, "", '4. Billing Determinants'!#REF!) ->  | H4: =IF(LEN(TRIM('4. Billing Determinants'!$B22))=0, "", '4. Billing Determinants'!$B22) -> General Service < 50 kW | I4: =IF(LEN(TRIM('4. Billing Determinants'!$B23))=0, "", '4. Billing Determinants'!$B23) -> General Service > 50 to 4999 kW | J4: =IF(LEN(TRIM('4. Billing Determinants'!$B24))=0, "", '4. Billing Determinants'!$B24) -> Large Use | K4: =IF(LEN(TRIM('4. Billing Determinants'!$B25))=0, "", '4. Billing Determinants'!$B25) -> Unmetered Scattered Load (per connection) | L4: =IF(LEN(TRIM('4. Billing Determinants'!$B26))=0, "", '4. Billing Determinants'!$B26) -> Sentinel Lighting (per connection) | M4: =IF(LEN(TRIM('4. Billing Determinants'!$B27))=0, "", '4. Billing Determinants'!$B27) -> Street Lighting (per light) | N4: =IF(LEN(TRIM('4. Billing Determinants'!$B29))=0, "", '4. Billing Determinants'!$B29) ->  | O4: =IF(LEN(TRIM('4. Billing Determinants'!$B30))=0, "", '4. Billing Determinants'!$B30) ->  | P4: =IF(LEN(TRIM('4. Billing Determinants'!$B31))=0, "", '4. Billing Determinants'!$B31) ->  | Q4: =IF(LEN(TRIM('4. Billing Determinants'!$B32))=0, "", '4. Billing Determinants'!$B32) ->  | R4: =IF(LEN(TRIM('4. Billing Determinants'!$B33))=0, "", '4. Billing Determinants'!$B33) ->  | S4: =IF(LEN(TRIM('4. Billing Determinants'!$B34))=0, "", '4. Billing Determinants'!$B34) ->  | T4: =IF(LEN(TRIM('4. Billing Determinants'!$B35))=0, "", '4. Billing Determinants'!$B35) ->  | U4: =IF(LEN(TRIM('4. Billing Determinants'!$B36))=0, "", '4. Billing Determinants'!$B36) ->  | V4: =IF(LEN(TRIM('4. Billing Determinants'!$B37))=0, "", '4. Billing Determinants'!$B37) ->  | W4: =IF(LEN(TRIM('4. Billing Determinants'!$B38))=0, "", '4. Billing Determinants'!$B38) ->  | X4: =IF(LEN(TRIM('4. Billing Determinants'!$B39))=0, "", '4. Billing Determinants'!$B39) ->  | Y4: =IF(LEN(TRIM('4. Billing Determinants'!$B40))=0, "", '4. Billing Determinants'!$B40) -> 
B5: LV Variance Account | C5: 1550 | D5: ='2. 2014 Continuity Schedule'!CP24 -> 129772.0353 | E5: kWh | F5: =IFERROR(IF(F$4="",0,IF($E5="kWh",VLOOKUP(F$4,'4. Billing Determinants'!$B$19:$O$41,4,0)/'4. Billing Determinants'!$E$41*$D5,IF($E5="kW",VLOOKUP(F$4,'4. Billing Determinants'!$B$19:$O$41,5,0)/'4. Billing Determinants'!$F$41*$D5,IF($E5="Non-RPP kWh",VLOOKUP(F$4,'4. Billing Determinants'!$B$19:$O$41,6,0)/'4. Billing Determinants'!$G$41*$D5,IF($E5="Distribution Rev.",VLOOKUP(F$4,'4. Billing Determinants'!$B$19:$O$41,8,0)/'4. Billing Determinants'!$I$41*$D5, VLOOKUP(F$4,'4. Billing Determinants'!$B$19:$O$41,3,0)/'4. Billing Determinants'!$D$41*$D5))))),0) -> 30802.29552 | G5: =IFERROR(IF(G$4="",0,IF($E5="kWh",VLOOKUP(G$4,'4. Billing Determinants'!$B$19:$O$41,4,0)/'4. Billing Determinants'!$E$41*$D5,IF($E5="kW",VLOOKUP(G$4,'4. Billing Determinants'!$B$19:$O$41,5,0)/'4. Billing Determinants'!$F$41*$D5,IF($E5="Non-RPP kWh",VLOOKUP(G$4,'4. Billing Determinants'!$B$19:$O$41,6,0)/'4. Billing Determinants'!$G$41*$D5,IF($E5="Distribution Rev.",VLOOKUP(G$4,'4. Billing Determinants'!$B$19:$O$41,8,0)/'4. Billing Determinants'!$I$41*$D5, VLOOKUP(G$4,'4. Billing Determinants'!$B$19:$O$41,3,0)/'4. Billing Determinants'!$D$41*$D5))))),0) -> 0 | H5: =IFERROR(IF(H$4="",0,IF($E5="kWh",VLOOKUP(H$4,'4. Billing Determinants'!$B$19:$O$41,4,0)/'4. Billing Determinants'!$E$41*$D5,IF($E5="kW",VLOOKUP(H$4,'4. Billing Determinants'!$B$19:$O$41,5,0)/'4. Billing Determinants'!$F$41*$D5,IF($E5="Non-RPP kWh",VLOOKUP(H$4,'4. Billing Determinants'!$B$19:$O$41,6,0)/'4. Billing Determinants'!$G$41*$D5,IF($E5="Distribution Rev.",VLOOKUP(H$4,'4. Billing Determinants'!$B$19:$O$41,8,0)/'4. Billing Determinants'!$I$41*$D5, VLOOKUP(H$4,'4. Billing Determinants'!$B$19:$O$41,3,0)/'4. Billing Determinants'!$D$41*$D5))))),0) -> 14030.29383 | I5: =IFERROR(IF(I$4="",0,IF($E5="kWh",VLOOKUP(I$4,'4. Billing Determinants'!$B$19:$O$41,4,0)/'4. Billing Determinants'!$E$41*$D5,IF($E5="kW",VLOOKUP(I$4,'4. Billing Determinants'!$B$19:$O$41,5,0)/'4. Billing Determinants'!$F$41*$D5,IF($E5="Non-RPP kWh",VLOOKUP(I$4,'4. Billing Determinants'!$B$19:$O$41,6,0)/'4. Billing Determinants'!$G$41*$D5,IF($E5="Distribution Rev.",VLOOKUP(I$4,'4. Billing Determinants'!$B$19:$O$41,8,0)/'4. Billing Determinants'!$I$41*$D5, VLOOKUP(I$4,'4. Billing Determinants'!$B$19:$O$41,3,0)/'4. Billing Determinants'!$D$41*$D5))))),0) -> 78924.739 | J5: =IFERROR(IF(J$4="",0,IF($E5="kWh",VLOOKUP(J$4,'4. Billing Determinants'!$B$19:$O$41,4,0)/'4. Billing Determinants'!$E$41*$D5,IF($E5="kW",VLOOKUP(J$4,'4. Billing Determinants'!$B$19:$O$41,5,0)/'4. Billing Determinants'!$F$41*$D5,IF($E5="Non-RPP kWh",VLOOKUP(J$4,'4. Billing Determinants'!$B$19:$O$41,6,0)/'4. Billing Determinants'!$G$41*$D5,IF($E5="Distribution Rev.",VLOOKUP(J$4,'4. Billing Determinants'!$B$19:$O$41,8,0)/'4. Billing Determinants'!$I$41*$D5, VLOOKUP(J$4,'4. Billing Determinants'!$B$19:$O$41,3,0)/'4. Billing Determinants'!$D$41*$D5))))),0) -> 4840.484585 | K5: =IFERROR(IF(K$4="",0,IF($E5="kWh",VLOOKUP(K$4,'4. Billing Determinants'!$B$19:$O$41,4,0)/'4. Billing Determinants'!$E$41*$D5,IF($E5="kW",VLOOKUP(K$4,'4. Billing Determinants'!$B$19:$O$41,5,0)/'4. Billing Determinants'!$F$41*$D5,IF($E5="Non-RPP kWh",VLOOKUP(K$4,'4. Billing Determinants'!$B$19:$O$41,6,0)/'4. Billing Determinants'!$G$41*$D5,IF($E5="Distribution Rev.",VLOOKUP(K$4,'4. Billing Determinants'!$B$19:$O$41,8,0)/'4. Billing Determinants'!$I$41*$D5, VLOOKUP(K$4,'4. Billing Determinants'!$B$19:$O$41,3,0)/'4. Billing Determinants'!$D$41*$D5))))),0) -> 144.5979744 | L5: =IFERROR(IF(L$4="",0,IF($E5="kWh",VLOOKUP(L$4,'4. Billing Determinants'!$B$19:$O$41,4,0)/'4. Billing Determinants'!$E$41*$D5,IF($E5="kW",VLOOKUP(L$4,'4. Billing Determinants'!$B$19:$O$41,5,0)/'4. Billing Determinants'!$F$41*$D5,IF($E5="Non-RPP kWh",VLOOKUP(L$4,'4. Billing Determinants'!$B$19:$O$41,6,0)/'4. Billing Determinants'!$G$41*$D5,IF($E5="Distribution Rev.",VLOOKUP(L$4,'4. Billing Determinants'!$B$19:$O$41,8,0)/'4. Billing Determinants'!$I$41*$D5, VLOOKUP(L$4,'4. Billing Determinants'!$B$19:$O$41,3,0)/'4. Billing Determinants'!$D$41*$D5))))),0) -> 32.18896133 | M5: =IFERROR(IF(M$4="",0,IF($E5="kWh",VLOOKUP(M$4,'4. Billing Determinants'!$B$19:$O$41,4,0)/'4. Billing Determinants'!$E$41*$D5,IF($E5="kW",VLOOKUP(M$4,'4. Billing Determinants'!$B$19:$O$41,5,0)/'4. Billing Determinants'!$F$41*$D5,IF($E5="Non-RPP kWh",VLOOKUP(M$4,'4. Billing Determinants'!$B$19:$O$41,6,0)/'4. Billing Determinants'!$G$41*$D5,IF($E5="Distribution Rev.",VLOOKUP(M$4,'4. Billing Determinants'!$B$19:$O$41,8,0)/'4. Billing Determinants'!$I$41*$D5, VLOOKUP(M$4,'4. Billing Determinants'!$B$19:$O$41,3,0)/'4. Billing Determinants'!$D$41*$D5))))),0) -> 997.4354177 | N5: =IFERROR(IF(N$4="",0,IF($E5="kWh",VLOOKUP(N$4,'4. Billing Determinants'!$B$19:$O$41,4,0)/'4. Billing Determinants'!$E$41*$D5,IF($E5="kW",VLOOKUP(N$4,'4. Billing Determinants'!$B$19:$O$41,5,0)/'4. Billing Determinants'!$F$41*$D5,IF($E5="Non-RPP kWh",VLOOKUP(N$4,'4. Billing Determinants'!$B$19:$O$41,6,0)/'4. Billing Determinants'!$G$41*$D5,IF($E5="Distribution Rev.",VLOOKUP(N$4,'4. Billing Determinants'!$B$19:$O$41,8,0)/'4. Billing Determinants'!$I$41*$D5, VLOOKUP(N$4,'4. Billing Determinants'!$B$19:$O$41,3,0)/'4. Billing Determinants'!$D$41*$D5))))),0) -> 0 | O5: =IFERROR(IF(O$4="",0,IF($E5="kWh",VLOOKUP(O$4,'4. Billing Determinants'!$B$19:$O$41,4,0)/'4. Billing Determinants'!$E$41*$D5,IF($E5="kW",VLOOKUP(O$4,'4. Billing Determinants'!$B$19:$O$41,5,0)/'4. Billing Determinants'!$F$41*$D5,IF($E5="Non-RPP kWh",VLOOKUP(O$4,'4. Billing Determinants'!$B$19:$O$41,6,0)/'4. Billing Determinants'!$G$41*$D5,IF($E5="Distribution Rev.",VLOOKUP(O$4,'4. Billing Determinants'!$B$19:$O$41,8,0)/'4. Billing Determinants'!$I$41*$D5, VLOOKUP(O$4,'4. Billing Determinants'!$B$19:$O$41,3,0)/'4. Billing Determinants'!$D$41*$D5))))),0) -> 0 | P5: =IFERROR(IF(P$4="",0,IF($E5="kWh",VLOOKUP(P$4,'4. Billing Determinants'!$B$19:$O$41,4,0)/'4. Billing Determinants'!$E$41*$D5,IF($E5="kW",VLOOKUP(P$4,'4. Billing Determinants'!$B$19:$O$41,5,0)/'4. Billing Determinants'!$F$41*$D5,IF($E5="Non-RPP kWh",VLOOKUP(P$4,'4. Billing Determinants'!$B$19:$O$41,6,0)/'4. Billing Determinants'!$G$41*$D5,IF($E5="Distribution Rev.",VLOOKUP(P$4,'4. Billing Determinants'!$B$19:$O$41,8,0)/'4. Billing Determinants'!$I$41*$D5, VLOOKUP(P$4,'4. Billing Determinants'!$B$19:$O$41,3,0)/'4. Billing Determinants'!$D$41*$D5))))),0) -> 0 | Q5: =IFERROR(IF(Q$4="",0,IF($E5="kWh",VLOOKUP(Q$4,'4. Billing Determinants'!$B$19:$O$41,4,0)/'4. Billing Determinants'!$E$41*$D5,IF($E5="kW",VLOOKUP(Q$4,'4. Billing Determinants'!$B$19:$O$41,5,0)/'4. Billing Determinants'!$F$41*$D5,IF($E5="Non-RPP kWh",VLOOKUP(Q$4,'4. Billing Determinants'!$B$19:$O$41,6,0)/'4. Billing Determinants'!$G$41*$D5,IF($E5="Distribution Rev.",VLOOKUP(Q$4,'4. Billing Determinants'!$B$19:$O$41,8,0)/'4. Billing Determinants'!$I$41*$D5, VLOOKUP(Q$4,'4. Billing Determinants'!$B$19:$O$41,3,0)/'4. Billing Determinants'!$D$41*$D5))))),0) -> 0 | R5: =IFERROR(IF(R$4="",0,IF($E5="kWh",VLOOKUP(R$4,'4. Billing Determinants'!$B$19:$O$41,4,0)/'4. Billing Determinants'!$E$41*$D5,IF($E5="kW",VLOOKUP(R$4,'4. Billing Determinants'!$B$19:$O$41,5,0)/'4. Billing Determinants'!$F$41*$D5,IF($E5="Non-RPP kWh",VLOOKUP(R$4,'4. Billing Determinants'!$B$19:$O$41,6,0)/'4. Billing Determinants'!$G$41*$D5,IF($E5="Distribution Rev.",VLOOKUP(R$4,'4. Billing Determinants'!$B$19:$O$41,8,0)/'4. Billing Determinants'!$I$41*$D5, VLOOKUP(R$4,'4. Billing Determinants'!$B$19:$O$41,3,0)/'4. Billing Determinants'!$D$41*$D5))))),0) -> 0 | S5: =IFERROR(IF(S$4="",0,IF($E5="kWh",VLOOKUP(S$4,'4. Billing Determinants'!$B$19:$O$41,4,0)/'4. Billing Determinants'!$E$41*$D5,IF($E5="kW",VLOOKUP(S$4,'4. Billing Determinants'!$B$19:$O$41,5,0)/'4. Billing Determinants'!$F$41*$D5,IF($E5="Non-RPP kWh",VLOOKUP(S$4,'4. Billing Determinants'!$B$19:$O$41,6,0)/'4. Billing Determinants'!$G$41*$D5,IF($E5="Distribution Rev.",VLOOKUP(S$4,'4. Billing Determinants'!$B$19:$O$41,8,0)/'4. Billing Determinants'!$I$41*$D5, VLOOKUP(S$4,'4. Billing Determinants'!$B$19:$O$41,3,0)/'4. Billing Determinants'!$D$41*$D5))))),0) -> 0 | T5: =IFERROR(IF(T$4="",0,IF($E5="kWh",VLOOKUP(T$4,'4. Billing Determinants'!$B$19:$O$41,4,0)/'4. Billing Determinants'!$E$41*$D5,IF($E5="kW",VLOOKUP(T$4,'4. Billing Determinants'!$B$19:$O$41,5,0)/'4. Billing Determinants'!$F$41*$D5,IF($E5="Non-RPP kWh",VLOOKUP(T$4,'4. Billing Determinants'!$B$19:$O$41,6,0)/'4. Billing Determinants'!$G$41*$D5,IF($E5="Distribution Rev.",VLOOKUP(T$4,'4. Billing Determinants'!$B$19:$O$41,8,0)/'4. Billing Determinants'!$I$41*$D5, VLOOKUP(T$4,'4. Billing Determinants'!$B$19:$O$41,3,0)/'4. Billing Determinants'!$D$41*$D5))))),0) -> 0 | U5: =IFERROR(IF(U$4="",0,IF($E5="kWh",VLOOKUP(U$4,'4. Billing Determinants'!$B$19:$O$41,4,0)/'4. Billing Determinants'!$E$41*$D5,IF($E5="kW",VLOOKUP(U$4,'4. Billing Determinants'!$B$19:$O$41,5,0)/'4. Billing Determinants'!$F$41*$D5,IF($E5="Non-RPP kWh",VLOOKUP(U$4,'4. Billing Determinants'!$B$19:$O$41,6,0)/'4. Billing Determinants'!$G$41*$D5,IF($E5="Distribution Rev.",VLOOKUP(U$4,'4. Billing Determinants'!$B$19:$O$41,8,0)/'4. Billing Determinants'!$I$41*$D5, VLOOKUP(U$4,'4. Billing Determinants'!$B$19:$O$41,3,0)/'4. Billing Determinants'!$D$41*$D5))))),0) -> 0 | V5: =IFERROR(IF(V$4="",0,IF($E5="kWh",VLOOKUP(V$4,'4. Billing Determinants'!$B$19:$O$41,4,0)/'4. Billing Determinants'!$E$41*$D5,IF($E5="kW",VLOOKUP(V$4,'4. Billing Determinants'!$B$19:$O$41,5,0)/'4. Billing Determinants'!$F$41*$D5,IF($E5="Non-RPP kWh",VLOOKUP(V$4,'4. Billing Determinants'!$B$19:$O$41,6,0)/'4. Billing Determinants'!$G$41*$D5,IF($E5="Distribution Rev.",VLOOKUP(V$4,'4. Billing Determinants'!$B$19:$O$41,8,0)/'4. Billing Determinants'!$I$41*$D5, VLOOKUP(V$4,'4. Billing Determinants'!$B$19:$O$41,3,0)/'4. Billing Determinants'!$D$41*$D5))))),0) -> 0 | W5: =IFERROR(IF(W$4="",0,IF($E5="kWh",VLOOKUP(W$4,'4. Billing Determinants'!$B$19:$O$41,4,0)/'4. Billing Determinants'!$E$41*$D5,IF($E5="kW",VLOOKUP(W$4,'4. Billing Determinants'!$B$19:$O$41,5,0)/'4. Billing Determinants'!$F$41*$D5,IF($E5="Non-RPP kWh",VLOOKUP(W$4,'4. Billing Determinants'!$B$19:$O$41,6,0)/'4. Billing Determinants'!$G$41*$D5,IF($E5="Distribution Rev.",VLOOKUP(W$4,'4. Billing Determinants'!$B$19:$O$41,8,0)/'4. Billing Determinants'!$I$41*$D5, VLOOKUP(W$4,'4. Billing Determinants'!$B$19:$O$41,3,0)/'4. Billing Determinants'!$D$41*$D5))))),0) -> 0 | X5: =IFERROR(IF(X$4="",0,IF($E5="kWh",VLOOKUP(X$4,'4. Billing Determinants'!$B$19:$O$41,4,0)/'4. Billing Determinants'!$E$41*$D5,IF($E5="kW",VLOOKUP(X$4,'4. Billing Determinants'!$B$19:$O$41,5,0)/'4. Billing Determinants'!$F$41*$D5,IF($E5="Non-RPP kWh",VLOOKUP(X$4,'4. Billing Determinants'!$B$19:$O$41,6,0)/'4. Billing Determinants'!$G$41*$D5,IF($E5="Distribution Rev.",VLOOKUP(X$4,'4. Billing Determinants'!$B$19:$O$41,8,0)/'4. Billing Determinants'!$I$41*$D5, VLOOKUP(X$4,'4. Billing Determinants'!$B$19:$O$41,3,0)/'4. Billing Determinants'!$D$41*$D5))))),0) -> 0 | Y5: =IFERROR(IF(Y$4="",0,IF($E5="kWh",VLOOKUP(Y$4,'4. Billing Determinants'!$B$19:$O$41,4,0)/'4. Billing Determinants'!$E$41*$D5,IF($E5="kW",VLOOKUP(Y$4,'4. Billing Determinants'!$B$19:$O$41,5,0)/'4. Billing Determinants'!$F$41*$D5,IF($E5="Non-RPP kWh",VLOOKUP(Y$4,'4. Billing Determinants'!$B$19:$O$41,6,0)/'4. Billing Determinants'!$G$41*$D5,IF($E5="Distribution Rev.",VLOOKUP(Y$4,'4. Billing Determinants'!$B$19:$O$41,8,0)/'4. Billing Determinants'!$I$41*$D5, VLOOKUP(Y$4,'4. Billing Determinants'!$B$19:$O$41,3,0)/'4. Billing Determinants'!$D$41*$D5))))),0) -> 0
B6: RSVA - Wholesale Market Service Charge | C6: 1580 | D6: ='2. 2014 Continuity Schedule'!CP25 -> -2394126.013 | E6: kWh | F6: =IFERROR(IF(F$4="",0,IF($E6="kWh",VLOOKUP(F$4,'4. Billing Determinants'!$B$19:$O$41,4,0)/'4. Billing Determinants'!$E$41*$D6,IF($E6="kW",VLOOKUP(F$4,'4. Billing Determinants'!$B$19:$O$41,5,0)/'4. Billing Determinants'!$F$41*$D6,IF($E6="Non-RPP kWh",VLOOKUP(F$4,'4. Billing Determinants'!$B$19:$O$41,6,0)/'4. Billing Determinants'!$G$41*$D6,IF($E6="Distribution Rev.",VLOOKUP(F$4,'4. Billing Determinants'!$B$19:$O$41,8,0)/'4. Billing Determinants'!$I$41*$D6, VLOOKUP(F$4,'4. Billing Determinants'!$B$19:$O$41,3,0)/'4. Billing Determinants'!$D$41*$D6))))),0) -> -568262.4674 | G6: =IFERROR(IF(G$4="",0,IF($E6="kWh",VLOOKUP(G$4,'4. Billing Determinants'!$B$19:$O$41,4,0)/'4. Billing Determinants'!$E$41*$D6,IF($E6="kW",VLOOKUP(G$4,'4. Billing Determinants'!$B$19:$O$41,5,0)/'4. Billing Determinants'!$F$41*$D6,IF($E6="Non-RPP kWh",VLOOKUP(G$4,'4. Billing Determinants'!$B$19:$O$41,6,0)/'4. Billing Determinants'!$G$41*$D6,IF($E6="Distribution Rev.",VLOOKUP(G$4,'4. Billing Determinants'!$B$19:$O$41,8,0)/'4. Billing Determinants'!$I$41*$D6, VLOOKUP(G$4,'4. Billing Determinants'!$B$19:$O$41,3,0)/'4. Billing Determinants'!$D$41*$D6))))),0) -> 0 | H6: =IFERROR(IF(H$4="",0,IF($E6="kWh",VLOOKUP(H$4,'4. Billing Determinants'!$B$19:$O$41,4,0)/'4. Billing Determinants'!$E$41*$D6,IF($E6="kW",VLOOKUP(H$4,'4. Billing Determinants'!$B$19:$O$41,5,0)/'4. Billing Determinants'!$F$41*$D6,IF($E6="Non-RPP kWh",VLOOKUP(H$4,'4. Billing Determinants'!$B$19:$O$41,6,0)/'4. Billing Determinants'!$G$41*$D6,IF($E6="Distribution Rev.",VLOOKUP(H$4,'4. Billing Determinants'!$B$19:$O$41,8,0)/'4. Billing Determinants'!$I$41*$D6, VLOOKUP(H$4,'4. Billing Determinants'!$B$19:$O$41,3,0)/'4. Billing Determinants'!$D$41*$D6))))),0) -> -258840.7537 | I6: =IFERROR(IF(I$4="",0,IF($E6="kWh",VLOOKUP(I$4,'4. Billing Determinants'!$B$19:$O$41,4,0)/'4. Billing Determinants'!$E$41*$D6,IF($E6="kW",VLOOKUP(I$4,'4. Billing Determinants'!$B$19:$O$41,5,0)/'4. Billing Determinants'!$F$41*$D6,IF($E6="Non-RPP kWh",VLOOKUP(I$4,'4. Billing Determinants'!$B$19:$O$41,6,0)/'4. Billing Determinants'!$G$41*$D6,IF($E6="Distribution Rev.",VLOOKUP(I$4,'4. Billing Determinants'!$B$19:$O$41,8,0)/'4. Billing Determinants'!$I$41*$D6, VLOOKUP(I$4,'4. Billing Determinants'!$B$19:$O$41,3,0)/'4. Billing Determinants'!$D$41*$D6))))),0) -> -1456059.237 | J6: =IFERROR(IF(J$4="",0,IF($E6="kWh",VLOOKUP(J$4,'4. Billing Determinants'!$B$19:$O$41,4,0)/'4. Billing Determinants'!$E$41*$D6,IF($E6="kW",VLOOKUP(J$4,'4. Billing Determinants'!$B$19:$O$41,5,0)/'4. Billing Determinants'!$F$41*$D6,IF($E6="Non-RPP kWh",VLOOKUP(J$4,'4. Billing Determinants'!$B$19:$O$41,6,0)/'4. Billing Determinants'!$G$41*$D6,IF($E6="Distribution Rev.",VLOOKUP(J$4,'4. Billing Determinants'!$B$19:$O$41,8,0)/'4. Billing Determinants'!$I$41*$D6, VLOOKUP(J$4,'4. Billing Determinants'!$B$19:$O$41,3,0)/'4. Billing Determinants'!$D$41*$D6))))),0) -> -89300.6728 | K6: =IFERROR(IF(K$4="",0,IF($E6="kWh",VLOOKUP(K$4,'4. Billing Determinants'!$B$19:$O$41,4,0)/'4. Billing Determinants'!$E$41*$D6,IF($E6="kW",VLOOKUP(K$4,'4. Billing Determinants'!$B$19:$O$41,5,0)/'4. Billing Determinants'!$F$41*$D6,IF($E6="Non-RPP kWh",VLOOKUP(K$4,'4. Billing Determinants'!$B$19:$O$41,6,0)/'4. Billing Determinants'!$G$41*$D6,IF($E6="Distribution Rev.",VLOOKUP(K$4,'4. Billing Determinants'!$B$19:$O$41,8,0)/'4. Billing Determinants'!$I$41*$D6, VLOOKUP(K$4,'4. Billing Determinants'!$B$19:$O$41,3,0)/'4. Billing Determinants'!$D$41*$D6))))),0) -> -2667.645393 | L6: =IFERROR(IF(L$4="",0,IF($E6="kWh",VLOOKUP(L$4,'4. Billing Determinants'!$B$19:$O$41,4,0)/'4. Billing Determinants'!$E$41*$D6,IF($E6="kW",VLOOKUP(L$4,'4. Billing Determinants'!$B$19:$O$41,5,0)/'4. Billing Determinants'!$F$41*$D6,IF($E6="Non-RPP kWh",VLOOKUP(L$4,'4. Billing Determinants'!$B$19:$O$41,6,0)/'4. Billing Determinants'!$G$41*$D6,IF($E6="Distribution Rev.",VLOOKUP(L$4,'4. Billing Determinants'!$B$19:$O$41,8,0)/'4. Billing Determinants'!$I$41*$D6, VLOOKUP(L$4,'4. Billing Determinants'!$B$19:$O$41,3,0)/'4. Billing Determinants'!$D$41*$D6))))),0) -> -593.8446559 | M6: =IFERROR(IF(M$4="",0,IF($E6="kWh",VLOOKUP(M$4,'4. Billing Determinants'!$B$19:$O$41,4,0)/'4. Billing Determinants'!$E$41*$D6,IF($E6="kW",VLOOKUP(M$4,'4. Billing Determinants'!$B$19:$O$41,5,0)/'4. Billing Determinants'!$F$41*$D6,IF($E6="Non-RPP kWh",VLOOKUP(M$4,'4. Billing Determinants'!$B$19:$O$41,6,0)/'4. Billing Determinants'!$G$41*$D6,IF($E6="Distribution Rev.",VLOOKUP(M$4,'4. Billing Determinants'!$B$19:$O$41,8,0)/'4. Billing Determinants'!$I$41*$D6, VLOOKUP(M$4,'4. Billing Determinants'!$B$19:$O$41,3,0)/'4. Billing Determinants'!$D$41*$D6))))),0) -> -18401.39191 | N6: =IFERROR(IF(N$4="",0,IF($E6="kWh",VLOOKUP(N$4,'4. Billing Determinants'!$B$19:$O$41,4,0)/'4. Billing Determinants'!$E$41*$D6,IF($E6="kW",VLOOKUP(N$4,'4. Billing Determinants'!$B$19:$O$41,5,0)/'4. Billing Determinants'!$F$41*$D6,IF($E6="Non-RPP kWh",VLOOKUP(N$4,'4. Billing Determinants'!$B$19:$O$41,6,0)/'4. Billing Determinants'!$G$41*$D6,IF($E6="Distribution Rev.",VLOOKUP(N$4,'4. Billing Determinants'!$B$19:$O$41,8,0)/'4. Billing Determinants'!$I$41*$D6, VLOOKUP(N$4,'4. Billing Determinants'!$B$19:$O$41,3,0)/'4. Billing Determinants'!$D$41*$D6))))),0) -> 0 | O6: =IFERROR(IF(O$4="",0,IF($E6="kWh",VLOOKUP(O$4,'4. Billing Determinants'!$B$19:$O$41,4,0)/'4. Billing Determinants'!$E$41*$D6,IF($E6="kW",VLOOKUP(O$4,'4. Billing Determinants'!$B$19:$O$41,5,0)/'4. Billing Determinants'!$F$41*$D6,IF($E6="Non-RPP kWh",VLOOKUP(O$4,'4. Billing Determinants'!$B$19:$O$41,6,0)/'4. Billing Determinants'!$G$41*$D6,IF($E6="Distribution Rev.",VLOOKUP(O$4,'4. Billing Determinants'!$B$19:$O$41,8,0)/'4. Billing Determinants'!$I$41*$D6, VLOOKUP(O$4,'4. Billing Determinants'!$B$19:$O$41,3,0)/'4. Billing Determinants'!$D$41*$D6))))),0) -> 0 | P6: =IFERROR(IF(P$4="",0,IF($E6="kWh",VLOOKUP(P$4,'4. Billing Determinants'!$B$19:$O$41,4,0)/'4. Billing Determinants'!$E$41*$D6,IF($E6="kW",VLOOKUP(P$4,'4. Billing Determinants'!$B$19:$O$41,5,0)/'4. Billing Determinants'!$F$41*$D6,IF($E6="Non-RPP kWh",VLOOKUP(P$4,'4. Billing Determinants'!$B$19:$O$41,6,0)/'4. Billing Determinants'!$G$41*$D6,IF($E6="Distribution Rev.",VLOOKUP(P$4,'4. Billing Determinants'!$B$19:$O$41,8,0)/'4. Billing Determinants'!$I$41*$D6, VLOOKUP(P$4,'4. Billing Determinants'!$B$19:$O$41,3,0)/'4. Billing Determinants'!$D$41*$D6))))),0) -> 0 | Q6: =IFERROR(IF(Q$4="",0,IF($E6="kWh",VLOOKUP(Q$4,'4. Billing Determinants'!$B$19:$O$41,4,0)/'4. Billing Determinants'!$E$41*$D6,IF($E6="kW",VLOOKUP(Q$4,'4. Billing Determinants'!$B$19:$O$41,5,0)/'4. Billing Determinants'!$F$41*$D6,IF($E6="Non-RPP kWh",VLOOKUP(Q$4,'4. Billing Determinants'!$B$19:$O$41,6,0)/'4. Billing Determinants'!$G$41*$D6,IF($E6="Distribution Rev.",VLOOKUP(Q$4,'4. Billing Determinants'!$B$19:$O$41,8,0)/'4. Billing Determinants'!$I$41*$D6, VLOOKUP(Q$4,'4. Billing Determinants'!$B$19:$O$41,3,0)/'4. Billing Determinants'!$D$41*$D6))))),0) -> 0 | R6: =IFERROR(IF(R$4="",0,IF($E6="kWh",VLOOKUP(R$4,'4. Billing Determinants'!$B$19:$O$41,4,0)/'4. Billing Determinants'!$E$41*$D6,IF($E6="kW",VLOOKUP(R$4,'4. Billing Determinants'!$B$19:$O$41,5,0)/'4. Billing Determinants'!$F$41*$D6,IF($E6="Non-RPP kWh",VLOOKUP(R$4,'4. Billing Determinants'!$B$19:$O$41,6,0)/'4. Billing Determinants'!$G$41*$D6,IF($E6="Distribution Rev.",VLOOKUP(R$4,'4. Billing Determinants'!$B$19:$O$41,8,0)/'4. Billing Determinants'!$I$41*$D6, VLOOKUP(R$4,'4. Billing Determinants'!$B$19:$O$41,3,0)/'4. Billing Determinants'!$D$41*$D6))))),0) -> 0 | S6: =IFERROR(IF(S$4="",0,IF($E6="kWh",VLOOKUP(S$4,'4. Billing Determinants'!$B$19:$O$41,4,0)/'4. Billing Determinants'!$E$41*$D6,IF($E6="kW",VLOOKUP(S$4,'4. Billing Determinants'!$B$19:$O$41,5,0)/'4. Billing Determinants'!$F$41*$D6,IF($E6="Non-RPP kWh",VLOOKUP(S$4,'4. Billing Determinants'!$B$19:$O$41,6,0)/'4. Billing Determinants'!$G$41*$D6,IF($E6="Distribution Rev.",VLOOKUP(S$4,'4. Billing Determinants'!$B$19:$O$41,8,0)/'4. Billing Determinants'!$I$41*$D6, VLOOKUP(S$4,'4. Billing Determinants'!$B$19:$O$41,3,0)/'4. Billing Determinants'!$D$41*$D6))))),0) -> 0 | T6: =IFERROR(IF(T$4="",0,IF($E6="kWh",VLOOKUP(T$4,'4. Billing Determinants'!$B$19:$O$41,4,0)/'4. Billing Determinants'!$E$41*$D6,IF($E6="kW",VLOOKUP(T$4,'4. Billing Determinants'!$B$19:$O$41,5,0)/'4. Billing Determinants'!$F$41*$D6,IF($E6="Non-RPP kWh",VLOOKUP(T$4,'4. Billing Determinants'!$B$19:$O$41,6,0)/'4. Billing Determinants'!$G$41*$D6,IF($E6="Distribution Rev.",VLOOKUP(T$4,'4. Billing Determinants'!$B$19:$O$41,8,0)/'4. Billing Determinants'!$I$41*$D6, VLOOKUP(T$4,'4. Billing Determinants'!$B$19:$O$41,3,0)/'4. Billing Determinants'!$D$41*$D6))))),0) -> 0 | U6: =IFERROR(IF(U$4="",0,IF($E6="kWh",VLOOKUP(U$4,'4. Billing Determinants'!$B$19:$O$41,4,0)/'4. Billing Determinants'!$E$41*$D6,IF($E6="kW",VLOOKUP(U$4,'4. Billing Determinants'!$B$19:$O$41,5,0)/'4. Billing Determinants'!$F$41*$D6,IF($E6="Non-RPP kWh",VLOOKUP(U$4,'4. Billing Determinants'!$B$19:$O$41,6,0)/'4. Billing Determinants'!$G$41*$D6,IF($E6="Distribution Rev.",VLOOKUP(U$4,'4. Billing Determinants'!$B$19:$O$41,8,0)/'4. Billing Determinants'!$I$41*$D6, VLOOKUP(U$4,'4. Billing Determinants'!$B$19:$O$41,3,0)/'4. Billing Determinants'!$D$41*$D6))))),0) -> 0 | V6: =IFERROR(IF(V$4="",0,IF($E6="kWh",VLOOKUP(V$4,'4. Billing Determinants'!$B$19:$O$41,4,0)/'4. Billing Determinants'!$E$41*$D6,IF($E6="kW",VLOOKUP(V$4,'4. Billing Determinants'!$B$19:$O$41,5,0)/'4. Billing Determinants'!$F$41*$D6,IF($E6="Non-RPP kWh",VLOOKUP(V$4,'4. Billing Determinants'!$B$19:$O$41,6,0)/'4. Billing Determinants'!$G$41*$D6,IF($E6="Distribution Rev.",VLOOKUP(V$4,'4. Billing Determinants'!$B$19:$O$41,8,0)/'4. Billing Determinants'!$I$41*$D6, VLOOKUP(V$4,'4. Billing Determinants'!$B$19:$O$41,3,0)/'4. Billing Determinants'!$D$41*$D6))))),0) -> 0 | W6: =IFERROR(IF(W$4="",0,IF($E6="kWh",VLOOKUP(W$4,'4. Billing Determinants'!$B$19:$O$41,4,0)/'4. Billing Determinants'!$E$41*$D6,IF($E6="kW",VLOOKUP(W$4,'4. Billing Determinants'!$B$19:$O$41,5,0)/'4. Billing Determinants'!$F$41*$D6,IF($E6="Non-RPP kWh",VLOOKUP(W$4,'4. Billing Determinants'!$B$19:$O$41,6,0)/'4. Billing Determinants'!$G$41*$D6,IF($E6="Distribution Rev.",VLOOKUP(W$4,'4. Billing Determinants'!$B$19:$O$41,8,0)/'4. Billing Determinants'!$I$41*$D6, VLOOKUP(W$4,'4. Billing Determinants'!$B$19:$O$41,3,0)/'4. Billing Determinants'!$D$41*$D6))))),0) -> 0 | X6: =IFERROR(IF(X$4="",0,IF($E6="kWh",VLOOKUP(X$4,'4. Billing Determinants'!$B$19:$O$41,4,0)/'4. Billing Determinants'!$E$41*$D6,IF($E6="kW",VLOOKUP(X$4,'4. Billing Determinants'!$B$19:$O$41,5,0)/'4. Billing Determinants'!$F$41*$D6,IF($E6="Non-RPP kWh",VLOOKUP(X$4,'4. Billing Determinants'!$B$19:$O$41,6,0)/'4. Billing Determinants'!$G$41*$D6,IF($E6="Distribution Rev.",VLOOKUP(X$4,'4. Billing Determinants'!$B$19:$O$41,8,0)/'4. Billing Determinants'!$I$41*$D6, VLOOKUP(X$4,'4. Billing Determinants'!$B$19:$O$41,3,0)/'4. Billing Determinants'!$D$41*$D6))))),0) -> 0 | Y6: =IFERROR(IF(Y$4="",0,IF($E6="kWh",VLOOKUP(Y$4,'4. Billing Determinants'!$B$19:$O$41,4,0)/'4. Billing Determinants'!$E$41*$D6,IF($E6="kW",VLOOKUP(Y$4,'4. Billing Determinants'!$B$19:$O$41,5,0)/'4. Billing Determinants'!$F$41*$D6,IF($E6="Non-RPP kWh",VLOOKUP(Y$4,'4. Billing Determinants'!$B$19:$O$41,6,0)/'4. Billing Determinants'!$G$41*$D6,IF($E6="Distribution Rev.",VLOOKUP(Y$4,'4. Billing Determinants'!$B$19:$O$41,8,0)/'4. Billing Determinants'!$I$41*$D6, VLOOKUP(Y$4,'4. Billing Determinants'!$B$19:$O$41,3,0)/'4. Billing Determinants'!$D$41*$D6))))),0) -> 0
B7: RSVA - Retail Transmission Network Charge | C7: 1584 | D7: ='2. 2014 Continuity Schedule'!CP26 -> 287618.5836 | E7: kWh | F7: =IFERROR(IF(F$4="",0,IF($E7="kWh",VLOOKUP(F$4,'4. Billing Determinants'!$B$19:$O$41,4,0)/'4. Billing Determinants'!$E$41*$D7,IF($E7="kW",VLOOKUP(F$4,'4. Billing Determinants'!$B$19:$O$41,5,0)/'4. Billing Determinants'!$F$41*$D7,IF($E7="Non-RPP kWh",VLOOKUP(F$4,'4. Billing Determinants'!$B$19:$O$41,6,0)/'4. Billing Determinants'!$G$41*$D7,IF($E7="Distribution Rev.",VLOOKUP(F$4,'4. Billing Determinants'!$B$19:$O$41,8,0)/'4. Billing Determinants'!$I$41*$D7, VLOOKUP(F$4,'4. Billing Determinants'!$B$19:$O$41,3,0)/'4. Billing Determinants'!$D$41*$D7))))),0) -> 68268.27206 | G7: =IFERROR(IF(G$4="",0,IF($E7="kWh",VLOOKUP(G$4,'4. Billing Determinants'!$B$19:$O$41,4,0)/'4. Billing Determinants'!$E$41*$D7,IF($E7="kW",VLOOKUP(G$4,'4. Billing Determinants'!$B$19:$O$41,5,0)/'4. Billing Determinants'!$F$41*$D7,IF($E7="Non-RPP kWh",VLOOKUP(G$4,'4. Billing Determinants'!$B$19:$O$41,6,0)/'4. Billing Determinants'!$G$41*$D7,IF($E7="Distribution Rev.",VLOOKUP(G$4,'4. Billing Determinants'!$B$19:$O$41,8,0)/'4. Billing Determinants'!$I$41*$D7, VLOOKUP(G$4,'4. Billing Determinants'!$B$19:$O$41,3,0)/'4. Billing Determinants'!$D$41*$D7))))),0) -> 0 | H7: =IFERROR(IF(H$4="",0,IF($E7="kWh",VLOOKUP(H$4,'4. Billing Determinants'!$B$19:$O$41,4,0)/'4. Billing Determinants'!$E$41*$D7,IF($E7="kW",VLOOKUP(H$4,'4. Billing Determinants'!$B$19:$O$41,5,0)/'4. Billing Determinants'!$F$41*$D7,IF($E7="Non-RPP kWh",VLOOKUP(H$4,'4. Billing Determinants'!$B$19:$O$41,6,0)/'4. Billing Determinants'!$G$41*$D7,IF($E7="Distribution Rev.",VLOOKUP(H$4,'4. Billing Determinants'!$B$19:$O$41,8,0)/'4. Billing Determinants'!$I$41*$D7, VLOOKUP(H$4,'4. Billing Determinants'!$B$19:$O$41,3,0)/'4. Billing Determinants'!$D$41*$D7))))),0) -> 31095.86151 | I7: =IFERROR(IF(I$4="",0,IF($E7="kWh",VLOOKUP(I$4,'4. Billing Determinants'!$B$19:$O$41,4,0)/'4. Billing Determinants'!$E$41*$D7,IF($E7="kW",VLOOKUP(I$4,'4. Billing Determinants'!$B$19:$O$41,5,0)/'4. Billing Determinants'!$F$41*$D7,IF($E7="Non-RPP kWh",VLOOKUP(I$4,'4. Billing Determinants'!$B$19:$O$41,6,0)/'4. Billing Determinants'!$G$41*$D7,IF($E7="Distribution Rev.",VLOOKUP(I$4,'4. Billing Determinants'!$B$19:$O$41,8,0)/'4. Billing Determinants'!$I$41*$D7, VLOOKUP(I$4,'4. Billing Determinants'!$B$19:$O$41,3,0)/'4. Billing Determinants'!$D$41*$D7))))),0) -> 174923.8316 | J7: =IFERROR(IF(J$4="",0,IF($E7="kWh",VLOOKUP(J$4,'4. Billing Determinants'!$B$19:$O$41,4,0)/'4. Billing Determinants'!$E$41*$D7,IF($E7="kW",VLOOKUP(J$4,'4. Billing Determinants'!$B$19:$O$41,5,0)/'4. Billing Determinants'!$F$41*$D7,IF($E7="Non-RPP kWh",VLOOKUP(J$4,'4. Billing Determinants'!$B$19:$O$41,6,0)/'4. Billing Determinants'!$G$41*$D7,IF($E7="Distribution Rev.",VLOOKUP(J$4,'4. Billing Determinants'!$B$19:$O$41,8,0)/'4. Billing Determinants'!$I$41*$D7, VLOOKUP(J$4,'4. Billing Determinants'!$B$19:$O$41,3,0)/'4. Billing Determinants'!$D$41*$D7))))),0) -> 10728.14584 | K7: =IFERROR(IF(K$4="",0,IF($E7="kWh",VLOOKUP(K$4,'4. Billing Determinants'!$B$19:$O$41,4,0)/'4. Billing Determinants'!$E$41*$D7,IF($E7="kW",VLOOKUP(K$4,'4. Billing Determinants'!$B$19:$O$41,5,0)/'4. Billing Determinants'!$F$41*$D7,IF($E7="Non-RPP kWh",VLOOKUP(K$4,'4. Billing Determinants'!$B$19:$O$41,6,0)/'4. Billing Determinants'!$G$41*$D7,IF($E7="Distribution Rev.",VLOOKUP(K$4,'4. Billing Determinants'!$B$19:$O$41,8,0)/'4. Billing Determinants'!$I$41*$D7, VLOOKUP(K$4,'4. Billing Determinants'!$B$19:$O$41,3,0)/'4. Billing Determinants'!$D$41*$D7))))),0) -> 320.4778634 | L7: =IFERROR(IF(L$4="",0,IF($E7="kWh",VLOOKUP(L$4,'4. Billing Determinants'!$B$19:$O$41,4,0)/'4. Billing Determinants'!$E$41*$D7,IF($E7="kW",VLOOKUP(L$4,'4. Billing Determinants'!$B$19:$O$41,5,0)/'4. Billing Determinants'!$F$41*$D7,IF($E7="Non-RPP kWh",VLOOKUP(L$4,'4. Billing Determinants'!$B$19:$O$41,6,0)/'4. Billing Determinants'!$G$41*$D7,IF($E7="Distribution Rev.",VLOOKUP(L$4,'4. Billing Determinants'!$B$19:$O$41,8,0)/'4. Billing Determinants'!$I$41*$D7, VLOOKUP(L$4,'4. Billing Determinants'!$B$19:$O$41,3,0)/'4. Billing Determinants'!$D$41*$D7))))),0) -> 71.34159099 | M7: =IFERROR(IF(M$4="",0,IF($E7="kWh",VLOOKUP(M$4,'4. Billing Determinants'!$B$19:$O$41,4,0)/'4. Billing Determinants'!$E$41*$D7,IF($E7="kW",VLOOKUP(M$4,'4. Billing Determinants'!$B$19:$O$41,5,0)/'4. Billing Determinants'!$F$41*$D7,IF($E7="Non-RPP kWh",VLOOKUP(M$4,'4. Billing Determinants'!$B$19:$O$41,6,0)/'4. Billing Determinants'!$G$41*$D7,IF($E7="Distribution Rev.",VLOOKUP(M$4,'4. Billing Determinants'!$B$19:$O$41,8,0)/'4. Billing Determinants'!$I$41*$D7, VLOOKUP(M$4,'4. Billing Determinants'!$B$19:$O$41,3,0)/'4. Billing Determinants'!$D$41*$D7))))),0) -> 2210.653177 | N7: =IFERROR(IF(N$4="",0,IF($E7="kWh",VLOOKUP(N$4,'4. Billing Determinants'!$B$19:$O$41,4,0)/'4. Billing Determinants'!$E$41*$D7,IF($E7="kW",VLOOKUP(N$4,'4. Billing Determinants'!$B$19:$O$41,5,0)/'4. Billing Determinants'!$F$41*$D7,IF($E7="Non-RPP kWh",VLOOKUP(N$4,'4. Billing Determinants'!$B$19:$O$41,6,0)/'4. Billing Determinants'!$G$41*$D7,IF($E7="Distribution Rev.",VLOOKUP(N$4,'4. Billing Determinants'!$B$19:$O$41,8,0)/'4. Billing Determinants'!$I$41*$D7, VLOOKUP(N$4,'4. Billing Determinants'!$B$19:$O$41,3,0)/'4. Billing Determinants'!$D$41*$D7))))),0) -> 0 | O7: =IFERROR(IF(O$4="",0,IF($E7="kWh",VLOOKUP(O$4,'4. Billing Determinants'!$B$19:$O$41,4,0)/'4. Billing Determinants'!$E$41*$D7,IF($E7="kW",VLOOKUP(O$4,'4. Billing Determinants'!$B$19:$O$41,5,0)/'4. Billing Determinants'!$F$41*$D7,IF($E7="Non-RPP kWh",VLOOKUP(O$4,'4. Billing Determinants'!$B$19:$O$41,6,0)/'4. Billing Determinants'!$G$41*$D7,IF($E7="Distribution Rev.",VLOOKUP(O$4,'4. Billing Determinants'!$B$19:$O$41,8,0)/'4. Billing Determinants'!$I$41*$D7, VLOOKUP(O$4,'4. Billing Determinants'!$B$19:$O$41,3,0)/'4. Billing Determinants'!$D$41*$D7))))),0) -> 0 | P7: =IFERROR(IF(P$4="",0,IF($E7="kWh",VLOOKUP(P$4,'4. Billing Determinants'!$B$19:$O$41,4,0)/'4. Billing Determinants'!$E$41*$D7,IF($E7="kW",VLOOKUP(P$4,'4. Billing Determinants'!$B$19:$O$41,5,0)/'4. Billing Determinants'!$F$41*$D7,IF($E7="Non-RPP kWh",VLOOKUP(P$4,'4. Billing Determinants'!$B$19:$O$41,6,0)/'4. Billing Determinants'!$G$41*$D7,IF($E7="Distribution Rev.",VLOOKUP(P$4,'4. Billing Determinants'!$B$19:$O$41,8,0)/'4. Billing Determinants'!$I$41*$D7, VLOOKUP(P$4,'4. Billing Determinants'!$B$19:$O$41,3,0)/'4. Billing Determinants'!$D$41*$D7))))),0) -> 0 | Q7: =IFERROR(IF(Q$4="",0,IF($E7="kWh",VLOOKUP(Q$4,'4. Billing Determinants'!$B$19:$O$41,4,0)/'4. Billing Determinants'!$E$41*$D7,IF($E7="kW",VLOOKUP(Q$4,'4. Billing Determinants'!$B$19:$O$41,5,0)/'4. Billing Determinants'!$F$41*$D7,IF($E7="Non-RPP kWh",VLOOKUP(Q$4,'4. Billing Determinants'!$B$19:$O$41,6,0)/'4. Billing Determinants'!$G$41*$D7,IF($E7="Distribution Rev.",VLOOKUP(Q$4,'4. Billing Determinants'!$B$19:$O$41,8,0)/'4. Billing Determinants'!$I$41*$D7, VLOOKUP(Q$4,'4. Billing Determinants'!$B$19:$O$41,3,0)/'4. Billing Determinants'!$D$41*$D7))))),0) -> 0 | R7: =IFERROR(IF(R$4="",0,IF($E7="kWh",VLOOKUP(R$4,'4. Billing Determinants'!$B$19:$O$41,4,0)/'4. Billing Determinants'!$E$41*$D7,IF($E7="kW",VLOOKUP(R$4,'4. Billing Determinants'!$B$19:$O$41,5,0)/'4. Billing Determinants'!$F$41*$D7,IF($E7="Non-RPP kWh",VLOOKUP(R$4,'4. Billing Determinants'!$B$19:$O$41,6,0)/'4. Billing Determinants'!$G$41*$D7,IF($E7="Distribution Rev.",VLOOKUP(R$4,'4. Billing Determinants'!$B$19:$O$41,8,0)/'4. Billing Determinants'!$I$41*$D7, VLOOKUP(R$4,'4. Billing Determinants'!$B$19:$O$41,3,0)/'4. Billing Determinants'!$D$41*$D7))))),0) -> 0 | S7: =IFERROR(IF(S$4="",0,IF($E7="kWh",VLOOKUP(S$4,'4. Billing Determinants'!$B$19:$O$41,4,0)/'4. Billing Determinants'!$E$41*$D7,IF($E7="kW",VLOOKUP(S$4,'4. Billing Determinants'!$B$19:$O$41,5,0)/'4. Billing Determinants'!$F$41*$D7,IF($E7="Non-RPP kWh",VLOOKUP(S$4,'4. Billing Determinants'!$B$19:$O$41,6,0)/'4. Billing Determinants'!$G$41*$D7,IF($E7="Distribution Rev.",VLOOKUP(S$4,'4. Billing Determinants'!$B$19:$O$41,8,0)/'4. Billing Determinants'!$I$41*$D7, VLOOKUP(S$4,'4. Billing Determinants'!$B$19:$O$41,3,0)/'4. Billing Determinants'!$D$41*$D7))))),0) -> 0 | T7: =IFERROR(IF(T$4="",0,IF($E7="kWh",VLOOKUP(T$4,'4. Billing Determinants'!$B$19:$O$41,4,0)/'4. Billing Determinants'!$E$41*$D7,IF($E7="kW",VLOOKUP(T$4,'4. Billing Determinants'!$B$19:$O$41,5,0)/'4. Billing Determinants'!$F$41*$D7,IF($E7="Non-RPP kWh",VLOOKUP(T$4,'4. Billing Determinants'!$B$19:$O$41,6,0)/'4. Billing Determinants'!$G$41*$D7,IF($E7="Distribution Rev.",VLOOKUP(T$4,'4. Billing Determinants'!$B$19:$O$41,8,0)/'4. Billing Determinants'!$I$41*$D7, VLOOKUP(T$4,'4. Billing Determinants'!$B$19:$O$41,3,0)/'4. Billing Determinants'!$D$41*$D7))))),0) -> 0 | U7: =IFERROR(IF(U$4="",0,IF($E7="kWh",VLOOKUP(U$4,'4. Billing Determinants'!$B$19:$O$41,4,0)/'4. Billing Determinants'!$E$41*$D7,IF($E7="kW",VLOOKUP(U$4,'4. Billing Determinants'!$B$19:$O$41,5,0)/'4. Billing Determinants'!$F$41*$D7,IF($E7="Non-RPP kWh",VLOOKUP(U$4,'4. Billing Determinants'!$B$19:$O$41,6,0)/'4. Billing Determinants'!$G$41*$D7,IF($E7="Distribution Rev.",VLOOKUP(U$4,'4. Billing Determinants'!$B$19:$O$41,8,0)/'4. Billing Determinants'!$I$41*$D7, VLOOKUP(U$4,'4. Billing Determinants'!$B$19:$O$41,3,0)/'4. Billing Determinants'!$D$41*$D7))))),0) -> 0 | V7: =IFERROR(IF(V$4="",0,IF($E7="kWh",VLOOKUP(V$4,'4. Billing Determinants'!$B$19:$O$41,4,0)/'4. Billing Determinants'!$E$41*$D7,IF($E7="kW",VLOOKUP(V$4,'4. Billing Determinants'!$B$19:$O$41,5,0)/'4. Billing Determinants'!$F$41*$D7,IF($E7="Non-RPP kWh",VLOOKUP(V$4,'4. Billing Determinants'!$B$19:$O$41,6,0)/'4. Billing Determinants'!$G$41*$D7,IF($E7="Distribution Rev.",VLOOKUP(V$4,'4. Billing Determinants'!$B$19:$O$41,8,0)/'4. Billing Determinants'!$I$41*$D7, VLOOKUP(V$4,'4. Billing Determinants'!$B$19:$O$41,3,0)/'4. Billing Determinants'!$D$41*$D7))))),0) -> 0 | W7: =IFERROR(IF(W$4="",0,IF($E7="kWh",VLOOKUP(W$4,'4. Billing Determinants'!$B$19:$O$41,4,0)/'4. Billing Determinants'!$E$41*$D7,IF($E7="kW",VLOOKUP(W$4,'4. Billing Determinants'!$B$19:$O$41,5,0)/'4. Billing Determinants'!$F$41*$D7,IF($E7="Non-RPP kWh",VLOOKUP(W$4,'4. Billing Determinants'!$B$19:$O$41,6,0)/'4. Billing Determinants'!$G$41*$D7,IF($E7="Distribution Rev.",VLOOKUP(W$4,'4. Billing Determinants'!$B$19:$O$41,8,0)/'4. Billing Determinants'!$I$41*$D7, VLOOKUP(W$4,'4. Billing Determinants'!$B$19:$O$41,3,0)/'4. Billing Determinants'!$D$41*$D7))))),0) -> 0 | X7: =IFERROR(IF(X$4="",0,IF($E7="kWh",VLOOKUP(X$4,'4. Billing Determinants'!$B$19:$O$41,4,0)/'4. Billing Determinants'!$E$41*$D7,IF($E7="kW",VLOOKUP(X$4,'4. Billing Determinants'!$B$19:$O$41,5,0)/'4. Billing Determinants'!$F$41*$D7,IF($E7="Non-RPP kWh",VLOOKUP(X$4,'4. Billing Determinants'!$B$19:$O$41,6,0)/'4. Billing Determinants'!$G$41*$D7,IF($E7="Distribution Rev.",VLOOKUP(X$4,'4. Billing Determinants'!$B$19:$O$41,8,0)/'4. Billing Determinants'!$I$41*$D7, VLOOKUP(X$4,'4. Billing Determinants'!$B$19:$O$41,3,0)/'4. Billing Determinants'!$D$41*$D7))))),0) -> 0 | Y7: =IFERROR(IF(Y$4="",0,IF($E7="kWh",VLOOKUP(Y$4,'4. Billing Determinants'!$B$19:$O$41,4,0)/'4. Billing Determinants'!$E$41*$D7,IF($E7="kW",VLOOKUP(Y$4,'4. Billing Determinants'!$B$19:$O$41,5,0)/'4. Billing Determinants'!$F$41*$D7,IF($E7="Non-RPP kWh",VLOOKUP(Y$4,'4. Billing Determinants'!$B$19:$O$41,6,0)/'4. Billing Determinants'!$G$41*$D7,IF($E7="Distribution Rev.",VLOOKUP(Y$4,'4. Billing Determinants'!$B$19:$O$41,8,0)/'4. Billing Determinants'!$I$41*$D7, VLOOKUP(Y$4,'4. Billing Determinants'!$B$19:$O$41,3,0)/'4. Billing Determinants'!$D$41*$D7))))),0) -> 0
B8: RSVA - Retail Transmission Connection Charge | C8: 1586 | D8: ='2. 2014 Continuity Schedule'!CP27 -> 410032.8058 | E8: kWh | F8: =IFERROR(IF(F$4="",0,IF($E8="kWh",VLOOKUP(F$4,'4. Billing Determinants'!$B$19:$O$41,4,0)/'4. Billing Determinants'!$E$41*$D8,IF($E8="kW",VLOOKUP(F$4,'4. Billing Determinants'!$B$19:$O$41,5,0)/'4. Billing Determinants'!$F$41*$D8,IF($E8="Non-RPP kWh",VLOOKUP(F$4,'4. Billing Determinants'!$B$19:$O$41,6,0)/'4. Billing Determinants'!$G$41*$D8,IF($E8="Distribution Rev.",VLOOKUP(F$4,'4. Billing Determinants'!$B$19:$O$41,8,0)/'4. Billing Determinants'!$I$41*$D8, VLOOKUP(F$4,'4. Billing Determinants'!$B$19:$O$41,3,0)/'4. Billing Determinants'!$D$41*$D8))))),0) -> 97324.13945 | G8: =IFERROR(IF(G$4="",0,IF($E8="kWh",VLOOKUP(G$4,'4. Billing Determinants'!$B$19:$O$41,4,0)/'4. Billing Determinants'!$E$41*$D8,IF($E8="kW",VLOOKUP(G$4,'4. Billing Determinants'!$B$19:$O$41,5,0)/'4. Billing Determinants'!$F$41*$D8,IF($E8="Non-RPP kWh",VLOOKUP(G$4,'4. Billing Determinants'!$B$19:$O$41,6,0)/'4. Billing Determinants'!$G$41*$D8,IF($E8="Distribution Rev.",VLOOKUP(G$4,'4. Billing Determinants'!$B$19:$O$41,8,0)/'4. Billing Determinants'!$I$41*$D8, VLOOKUP(G$4,'4. Billing Determinants'!$B$19:$O$41,3,0)/'4. Billing Determinants'!$D$41*$D8))))),0) -> 0 | H8: =IFERROR(IF(H$4="",0,IF($E8="kWh",VLOOKUP(H$4,'4. Billing Determinants'!$B$19:$O$41,4,0)/'4. Billing Determinants'!$E$41*$D8,IF($E8="kW",VLOOKUP(H$4,'4. Billing Determinants'!$B$19:$O$41,5,0)/'4. Billing Determinants'!$F$41*$D8,IF($E8="Non-RPP kWh",VLOOKUP(H$4,'4. Billing Determinants'!$B$19:$O$41,6,0)/'4. Billing Determinants'!$G$41*$D8,IF($E8="Distribution Rev.",VLOOKUP(H$4,'4. Billing Determinants'!$B$19:$O$41,8,0)/'4. Billing Determinants'!$I$41*$D8, VLOOKUP(H$4,'4. Billing Determinants'!$B$19:$O$41,3,0)/'4. Billing Determinants'!$D$41*$D8))))),0) -> 44330.66593 | I8: =IFERROR(IF(I$4="",0,IF($E8="kWh",VLOOKUP(I$4,'4. Billing Determinants'!$B$19:$O$41,4,0)/'4. Billing Determinants'!$E$41*$D8,IF($E8="kW",VLOOKUP(I$4,'4. Billing Determinants'!$B$19:$O$41,5,0)/'4. Billing Determinants'!$F$41*$D8,IF($E8="Non-RPP kWh",VLOOKUP(I$4,'4. Billing Determinants'!$B$19:$O$41,6,0)/'4. Billing Determinants'!$G$41*$D8,IF($E8="Distribution Rev.",VLOOKUP(I$4,'4. Billing Determinants'!$B$19:$O$41,8,0)/'4. Billing Determinants'!$I$41*$D8, VLOOKUP(I$4,'4. Billing Determinants'!$B$19:$O$41,3,0)/'4. Billing Determinants'!$D$41*$D8))))),0) -> 249373.6968 | J8: =IFERROR(IF(J$4="",0,IF($E8="kWh",VLOOKUP(J$4,'4. Billing Determinants'!$B$19:$O$41,4,0)/'4. Billing Determinants'!$E$41*$D8,IF($E8="kW",VLOOKUP(J$4,'4. Billing Determinants'!$B$19:$O$41,5,0)/'4. Billing Determinants'!$F$41*$D8,IF($E8="Non-RPP kWh",VLOOKUP(J$4,'4. Billing Determinants'!$B$19:$O$41,6,0)/'4. Billing Determinants'!$G$41*$D8,IF($E8="Distribution Rev.",VLOOKUP(J$4,'4. Billing Determinants'!$B$19:$O$41,8,0)/'4. Billing Determinants'!$I$41*$D8, VLOOKUP(J$4,'4. Billing Determinants'!$B$19:$O$41,3,0)/'4. Billing Determinants'!$D$41*$D8))))),0) -> 15294.18469 | K8: =IFERROR(IF(K$4="",0,IF($E8="kWh",VLOOKUP(K$4,'4. Billing Determinants'!$B$19:$O$41,4,0)/'4. Billing Determinants'!$E$41*$D8,IF($E8="kW",VLOOKUP(K$4,'4. Billing Determinants'!$B$19:$O$41,5,0)/'4. Billing Determinants'!$F$41*$D8,IF($E8="Non-RPP kWh",VLOOKUP(K$4,'4. Billing Determinants'!$B$19:$O$41,6,0)/'4. Billing Determinants'!$G$41*$D8,IF($E8="Distribution Rev.",VLOOKUP(K$4,'4. Billing Determinants'!$B$19:$O$41,8,0)/'4. Billing Determinants'!$I$41*$D8, VLOOKUP(K$4,'4. Billing Determinants'!$B$19:$O$41,3,0)/'4. Billing Determinants'!$D$41*$D8))))),0) -> 456.8774239 | L8: =IFERROR(IF(L$4="",0,IF($E8="kWh",VLOOKUP(L$4,'4. Billing Determinants'!$B$19:$O$41,4,0)/'4. Billing Determinants'!$E$41*$D8,IF($E8="kW",VLOOKUP(L$4,'4. Billing Determinants'!$B$19:$O$41,5,0)/'4. Billing Determinants'!$F$41*$D8,IF($E8="Non-RPP kWh",VLOOKUP(L$4,'4. Billing Determinants'!$B$19:$O$41,6,0)/'4. Billing Determinants'!$G$41*$D8,IF($E8="Distribution Rev.",VLOOKUP(L$4,'4. Billing Determinants'!$B$19:$O$41,8,0)/'4. Billing Determinants'!$I$41*$D8, VLOOKUP(L$4,'4. Billing Determinants'!$B$19:$O$41,3,0)/'4. Billing Determinants'!$D$41*$D8))))),0) -> 101.705503 | M8: =IFERROR(IF(M$4="",0,IF($E8="kWh",VLOOKUP(M$4,'4. Billing Determinants'!$B$19:$O$41,4,0)/'4. Billing Determinants'!$E$41*$D8,IF($E8="kW",VLOOKUP(M$4,'4. Billing Determinants'!$B$19:$O$41,5,0)/'4. Billing Determinants'!$F$41*$D8,IF($E8="Non-RPP kWh",VLOOKUP(M$4,'4. Billing Determinants'!$B$19:$O$41,6,0)/'4. Billing Determinants'!$G$41*$D8,IF($E8="Distribution Rev.",VLOOKUP(M$4,'4. Billing Determinants'!$B$19:$O$41,8,0)/'4. Billing Determinants'!$I$41*$D8, VLOOKUP(M$4,'4. Billing Determinants'!$B$19:$O$41,3,0)/'4. Billing Determinants'!$D$41*$D8))))),0) -> 3151.536015 | N8: =IFERROR(IF(N$4="",0,IF($E8="kWh",VLOOKUP(N$4,'4. Billing Determinants'!$B$19:$O$41,4,0)/'4. Billing Determinants'!$E$41*$D8,IF($E8="kW",VLOOKUP(N$4,'4. Billing Determinants'!$B$19:$O$41,5,0)/'4. Billing Determinants'!$F$41*$D8,IF($E8="Non-RPP kWh",VLOOKUP(N$4,'4. Billing Determinants'!$B$19:$O$41,6,0)/'4. Billing Determinants'!$G$41*$D8,IF($E8="Distribution Rev.",VLOOKUP(N$4,'4. Billing Determinants'!$B$19:$O$41,8,0)/'4. Billing Determinants'!$I$41*$D8, VLOOKUP(N$4,'4. Billing Determinants'!$B$19:$O$41,3,0)/'4. Billing Determinants'!$D$41*$D8))))),0) -> 0 | O8: =IFERROR(IF(O$4="",0,IF($E8="kWh",VLOOKUP(O$4,'4. Billing Determinants'!$B$19:$O$41,4,0)/'4. Billing Determinants'!$E$41*$D8,IF($E8="kW",VLOOKUP(O$4,'4. Billing Determinants'!$B$19:$O$41,5,0)/'4. Billing Determinants'!$F$41*$D8,IF($E8="Non-RPP kWh",VLOOKUP(O$4,'4. Billing Determinants'!$B$19:$O$41,6,0)/'4. Billing Determinants'!$G$41*$D8,IF($E8="Distribution Rev.",VLOOKUP(O$4,'4. Billing Determinants'!$B$19:$O$41,8,0)/'4. Billing Determinants'!$I$41*$D8, VLOOKUP(O$4,'4. Billing Determinants'!$B$19:$O$41,3,0)/'4. Billing Determinants'!$D$41*$D8))))),0) -> 0 | P8: =IFERROR(IF(P$4="",0,IF($E8="kWh",VLOOKUP(P$4,'4. Billing Determinants'!$B$19:$O$41,4,0)/'4. Billing Determinants'!$E$41*$D8,IF($E8="kW",VLOOKUP(P$4,'4. Billing Determinants'!$B$19:$O$41,5,0)/'4. Billing Determinants'!$F$41*$D8,IF($E8="Non-RPP kWh",VLOOKUP(P$4,'4. Billing Determinants'!$B$19:$O$41,6,0)/'4. Billing Determinants'!$G$41*$D8,IF($E8="Distribution Rev.",VLOOKUP(P$4,'4. Billing Determinants'!$B$19:$O$41,8,0)/'4. Billing Determinants'!$I$41*$D8, VLOOKUP(P$4,'4. Billing Determinants'!$B$19:$O$41,3,0)/'4. Billing Determinants'!$D$41*$D8))))),0) -> 0 | Q8: =IFERROR(IF(Q$4="",0,IF($E8="kWh",VLOOKUP(Q$4,'4. Billing Determinants'!$B$19:$O$41,4,0)/'4. Billing Determinants'!$E$41*$D8,IF($E8="kW",VLOOKUP(Q$4,'4. Billing Determinants'!$B$19:$O$41,5,0)/'4. Billing Determinants'!$F$41*$D8,IF($E8="Non-RPP kWh",VLOOKUP(Q$4,'4. Billing Determinants'!$B$19:$O$41,6,0)/'4. Billing Determinants'!$G$41*$D8,IF($E8="Distribution Rev.",VLOOKUP(Q$4,'4. Billing Determinants'!$B$19:$O$41,8,0)/'4. Billing Determinants'!$I$41*$D8, VLOOKUP(Q$4,'4. Billing Determinants'!$B$19:$O$41,3,0)/'4. Billing Determinants'!$D$41*$D8))))),0) -> 0 | R8: =IFERROR(IF(R$4="",0,IF($E8="kWh",VLOOKUP(R$4,'4. Billing Determinants'!$B$19:$O$41,4,0)/'4. Billing Determinants'!$E$41*$D8,IF($E8="kW",VLOOKUP(R$4,'4. Billing Determinants'!$B$19:$O$41,5,0)/'4. Billing Determinants'!$F$41*$D8,IF($E8="Non-RPP kWh",VLOOKUP(R$4,'4. Billing Determinants'!$B$19:$O$41,6,0)/'4. Billing Determinants'!$G$41*$D8,IF($E8="Distribution Rev.",VLOOKUP(R$4,'4. Billing Determinants'!$B$19:$O$41,8,0)/'4. Billing Determinants'!$I$41*$D8, VLOOKUP(R$4,'4. Billing Determinants'!$B$19:$O$41,3,0)/'4. Billing Determinants'!$D$41*$D8))))),0) -> 0 | S8: =IFERROR(IF(S$4="",0,IF($E8="kWh",VLOOKUP(S$4,'4. Billing Determinants'!$B$19:$O$41,4,0)/'4. Billing Determinants'!$E$41*$D8,IF($E8="kW",VLOOKUP(S$4,'4. Billing Determinants'!$B$19:$O$41,5,0)/'4. Billing Determinants'!$F$41*$D8,IF($E8="Non-RPP kWh",VLOOKUP(S$4,'4. Billing Determinants'!$B$19:$O$41,6,0)/'4. Billing Determinants'!$G$41*$D8,IF($E8="Distribution Rev.",VLOOKUP(S$4,'4. Billing Determinants'!$B$19:$O$41,8,0)/'4. Billing Determinants'!$I$41*$D8, VLOOKUP(S$4,'4. Billing Determinants'!$B$19:$O$41,3,0)/'4. Billing Determinants'!$D$41*$D8))))),0) -> 0 | T8: =IFERROR(IF(T$4="",0,IF($E8="kWh",VLOOKUP(T$4,'4. Billing Determinants'!$B$19:$O$41,4,0)/'4. Billing Determinants'!$E$41*$D8,IF($E8="kW",VLOOKUP(T$4,'4. Billing Determinants'!$B$19:$O$41,5,0)/'4. Billing Determinants'!$F$41*$D8,IF($E8="Non-RPP kWh",VLOOKUP(T$4,'4. Billing Determinants'!$B$19:$O$41,6,0)/'4. Billing Determinants'!$G$41*$D8,IF($E8="Distribution Rev.",VLOOKUP(T$4,'4. Billing Determinants'!$B$19:$O$41,8,0)/'4. Billing Determinants'!$I$41*$D8, VLOOKUP(T$4,'4. Billing Determinants'!$B$19:$O$41,3,0)/'4. Billing Determinants'!$D$41*$D8))))),0) -> 0 | U8: =IFERROR(IF(U$4="",0,IF($E8="kWh",VLOOKUP(U$4,'4. Billing Determinants'!$B$19:$O$41,4,0)/'4. Billing Determinants'!$E$41*$D8,IF($E8="kW",VLOOKUP(U$4,'4. Billing Determinants'!$B$19:$O$41,5,0)/'4. Billing Determinants'!$F$41*$D8,IF($E8="Non-RPP kWh",VLOOKUP(U$4,'4. Billing Determinants'!$B$19:$O$41,6,0)/'4. Billing Determinants'!$G$41*$D8,IF($E8="Distribution Rev.",VLOOKUP(U$4,'4. Billing Determinants'!$B$19:$O$41,8,0)/'4. Billing Determinants'!$I$41*$D8, VLOOKUP(U$4,'4. Billing Determinants'!$B$19:$O$41,3,0)/'4. Billing Determinants'!$D$41*$D8))))),0) -> 0 | V8: =IFERROR(IF(V$4="",0,IF($E8="kWh",VLOOKUP(V$4,'4. Billing Determinants'!$B$19:$O$41,4,0)/'4. Billing Determinants'!$E$41*$D8,IF($E8="kW",VLOOKUP(V$4,'4. Billing Determinants'!$B$19:$O$41,5,0)/'4. Billing Determinants'!$F$41*$D8,IF($E8="Non-RPP kWh",VLOOKUP(V$4,'4. Billing Determinants'!$B$19:$O$41,6,0)/'4. Billing Determinants'!$G$41*$D8,IF($E8="Distribution Rev.",VLOOKUP(V$4,'4. Billing Determinants'!$B$19:$O$41,8,0)/'4. Billing Determinants'!$I$41*$D8, VLOOKUP(V$4,'4. Billing Determinants'!$B$19:$O$41,3,0)/'4. Billing Determinants'!$D$41*$D8))))),0) -> 0 | W8: =IFERROR(IF(W$4="",0,IF($E8="kWh",VLOOKUP(W$4,'4. Billing Determinants'!$B$19:$O$41,4,0)/'4. Billing Determinants'!$E$41*$D8,IF($E8="kW",VLOOKUP(W$4,'4. Billing Determinants'!$B$19:$O$41,5,0)/'4. Billing Determinants'!$F$41*$D8,IF($E8="Non-RPP kWh",VLOOKUP(W$4,'4. Billing Determinants'!$B$19:$O$41,6,0)/'4. Billing Determinants'!$G$41*$D8,IF($E8="Distribution Rev.",VLOOKUP(W$4,'4. Billing Determinants'!$B$19:$O$41,8,0)/'4. Billing Determinants'!$I$41*$D8, VLOOKUP(W$4,'4. Billing Determinants'!$B$19:$O$41,3,0)/'4. Billing Determinants'!$D$41*$D8))))),0) -> 0 | X8: =IFERROR(IF(X$4="",0,IF($E8="kWh",VLOOKUP(X$4,'4. Billing Determinants'!$B$19:$O$41,4,0)/'4. Billing Determinants'!$E$41*$D8,IF($E8="kW",VLOOKUP(X$4,'4. Billing Determinants'!$B$19:$O$41,5,0)/'4. Billing Determinants'!$F$41*$D8,IF($E8="Non-RPP kWh",VLOOKUP(X$4,'4. Billing Determinants'!$B$19:$O$41,6,0)/'4. Billing Determinants'!$G$41*$D8,IF($E8="Distribution Rev.",VLOOKUP(X$4,'4. Billing Determinants'!$B$19:$O$41,8,0)/'4. Billing Determinants'!$I$41*$D8, VLOOKUP(X$4,'4. Billing Determinants'!$B$19:$O$41,3,0)/'4. Billing Determinants'!$D$41*$D8))))),0) -> 0 | Y8: =IFERROR(IF(Y$4="",0,IF($E8="kWh",VLOOKUP(Y$4,'4. Billing Determinants'!$B$19:$O$41,4,0)/'4. Billing Determinants'!$E$41*$D8,IF($E8="kW",VLOOKUP(Y$4,'4. Billing Determinants'!$B$19:$O$41,5,0)/'4. Billing Determinants'!$F$41*$D8,IF($E8="Non-RPP kWh",VLOOKUP(Y$4,'4. Billing Determinants'!$B$19:$O$41,6,0)/'4. Billing Determinants'!$G$41*$D8,IF($E8="Distribution Rev.",VLOOKUP(Y$4,'4. Billing Determinants'!$B$19:$O$41,8,0)/'4. Billing Determinants'!$I$41*$D8, VLOOKUP(Y$4,'4. Billing Determinants'!$B$19:$O$41,3,0)/'4. Billing Determinants'!$D$41*$D8))))),0) -> 0
B9: RSVA - Power (excluding Global Adjustment) | C9: 1588 | D9: ='2. 2014 Continuity Schedule'!CP28 -> 216537.5756 | E9: kWh | F9: =IFERROR(IF(F$4="",0,IF($E9="kWh",VLOOKUP(F$4,'4. Billing Determinants'!$B$19:$O$41,4,0)/'4. Billing Determinants'!$E$41*$D9,IF($E9="kW",VLOOKUP(F$4,'4. Billing Determinants'!$B$19:$O$41,5,0)/'4. Billing Determinants'!$F$41*$D9,IF($E9="Non-RPP kWh",VLOOKUP(F$4,'4. Billing Determinants'!$B$19:$O$41,6,0)/'4. Billing Determinants'!$G$41*$D9,IF($E9="Distribution Rev.",VLOOKUP(F$4,'4. Billing Determinants'!$B$19:$O$41,8,0)/'4. Billing Determinants'!$I$41*$D9, VLOOKUP(F$4,'4. Billing Determinants'!$B$19:$O$41,3,0)/'4. Billing Determinants'!$D$41*$D9))))),0) -> 51396.70022 | G9: =IFERROR(IF(G$4="",0,IF($E9="kWh",VLOOKUP(G$4,'4. Billing Determinants'!$B$19:$O$41,4,0)/'4. Billing Determinants'!$E$41*$D9,IF($E9="kW",VLOOKUP(G$4,'4. Billing Determinants'!$B$19:$O$41,5,0)/'4. Billing Determinants'!$F$41*$D9,IF($E9="Non-RPP kWh",VLOOKUP(G$4,'4. Billing Determinants'!$B$19:$O$41,6,0)/'4. Billing Determinants'!$G$41*$D9,IF($E9="Distribution Rev.",VLOOKUP(G$4,'4. Billing Determinants'!$B$19:$O$41,8,0)/'4. Billing Determinants'!$I$41*$D9, VLOOKUP(G$4,'4. Billing Determinants'!$B$19:$O$41,3,0)/'4. Billing Determinants'!$D$41*$D9))))),0) -> 0 | H9: =IFERROR(IF(H$4="",0,IF($E9="kWh",VLOOKUP(H$4,'4. Billing Determinants'!$B$19:$O$41,4,0)/'4. Billing Determinants'!$E$41*$D9,IF($E9="kW",VLOOKUP(H$4,'4. Billing Determinants'!$B$19:$O$41,5,0)/'4. Billing Determinants'!$F$41*$D9,IF($E9="Non-RPP kWh",VLOOKUP(H$4,'4. Billing Determinants'!$B$19:$O$41,6,0)/'4. Billing Determinants'!$G$41*$D9,IF($E9="Distribution Rev.",VLOOKUP(H$4,'4. Billing Determinants'!$B$19:$O$41,8,0)/'4. Billing Determinants'!$I$41*$D9, VLOOKUP(H$4,'4. Billing Determinants'!$B$19:$O$41,3,0)/'4. Billing Determinants'!$D$41*$D9))))),0) -> 23410.94368 | I9: =IFERROR(IF(I$4="",0,IF($E9="kWh",VLOOKUP(I$4,'4. Billing Determinants'!$B$19:$O$41,4,0)/'4. Billing Determinants'!$E$41*$D9,IF($E9="kW",VLOOKUP(I$4,'4. Billing Determinants'!$B$19:$O$41,5,0)/'4. Billing Determinants'!$F$41*$D9,IF($E9="Non-RPP kWh",VLOOKUP(I$4,'4. Billing Determinants'!$B$19:$O$41,6,0)/'4. Billing Determinants'!$G$41*$D9,IF($E9="Distribution Rev.",VLOOKUP(I$4,'4. Billing Determinants'!$B$19:$O$41,8,0)/'4. Billing Determinants'!$I$41*$D9, VLOOKUP(I$4,'4. Billing Determinants'!$B$19:$O$41,3,0)/'4. Billing Determinants'!$D$41*$D9))))),0) -> 131693.7936 | J9: =IFERROR(IF(J$4="",0,IF($E9="kWh",VLOOKUP(J$4,'4. Billing Determinants'!$B$19:$O$41,4,0)/'4. Billing Determinants'!$E$41*$D9,IF($E9="kW",VLOOKUP(J$4,'4. Billing Determinants'!$B$19:$O$41,5,0)/'4. Billing Determinants'!$F$41*$D9,IF($E9="Non-RPP kWh",VLOOKUP(J$4,'4. Billing Determinants'!$B$19:$O$41,6,0)/'4. Billing Determinants'!$G$41*$D9,IF($E9="Distribution Rev.",VLOOKUP(J$4,'4. Billing Determinants'!$B$19:$O$41,8,0)/'4. Billing Determinants'!$I$41*$D9, VLOOKUP(J$4,'4. Billing Determinants'!$B$19:$O$41,3,0)/'4. Billing Determinants'!$D$41*$D9))))),0) -> 8076.830993 | K9: =IFERROR(IF(K$4="",0,IF($E9="kWh",VLOOKUP(K$4,'4. Billing Determinants'!$B$19:$O$41,4,0)/'4. Billing Determinants'!$E$41*$D9,IF($E9="kW",VLOOKUP(K$4,'4. Billing Determinants'!$B$19:$O$41,5,0)/'4. Billing Determinants'!$F$41*$D9,IF($E9="Non-RPP kWh",VLOOKUP(K$4,'4. Billing Determinants'!$B$19:$O$41,6,0)/'4. Billing Determinants'!$G$41*$D9,IF($E9="Distribution Rev.",VLOOKUP(K$4,'4. Billing Determinants'!$B$19:$O$41,8,0)/'4. Billing Determinants'!$I$41*$D9, VLOOKUP(K$4,'4. Billing Determinants'!$B$19:$O$41,3,0)/'4. Billing Determinants'!$D$41*$D9))))),0) -> 241.2761328 | L9: =IFERROR(IF(L$4="",0,IF($E9="kWh",VLOOKUP(L$4,'4. Billing Determinants'!$B$19:$O$41,4,0)/'4. Billing Determinants'!$E$41*$D9,IF($E9="kW",VLOOKUP(L$4,'4. Billing Determinants'!$B$19:$O$41,5,0)/'4. Billing Determinants'!$F$41*$D9,IF($E9="Non-RPP kWh",VLOOKUP(L$4,'4. Billing Determinants'!$B$19:$O$41,6,0)/'4. Billing Determinants'!$G$41*$D9,IF($E9="Distribution Rev.",VLOOKUP(L$4,'4. Billing Determinants'!$B$19:$O$41,8,0)/'4. Billing Determinants'!$I$41*$D9, VLOOKUP(L$4,'4. Billing Determinants'!$B$19:$O$41,3,0)/'4. Billing Determinants'!$D$41*$D9))))),0) -> 53.71049032 | M9: =IFERROR(IF(M$4="",0,IF($E9="kWh",VLOOKUP(M$4,'4. Billing Determinants'!$B$19:$O$41,4,0)/'4. Billing Determinants'!$E$41*$D9,IF($E9="kW",VLOOKUP(M$4,'4. Billing Determinants'!$B$19:$O$41,5,0)/'4. Billing Determinants'!$F$41*$D9,IF($E9="Non-RPP kWh",VLOOKUP(M$4,'4. Billing Determinants'!$B$19:$O$41,6,0)/'4. Billing Determinants'!$G$41*$D9,IF($E9="Distribution Rev.",VLOOKUP(M$4,'4. Billing Determinants'!$B$19:$O$41,8,0)/'4. Billing Determinants'!$I$41*$D9, VLOOKUP(M$4,'4. Billing Determinants'!$B$19:$O$41,3,0)/'4. Billing Determinants'!$D$41*$D9))))),0) -> 1664.320411 | N9: =IFERROR(IF(N$4="",0,IF($E9="kWh",VLOOKUP(N$4,'4. Billing Determinants'!$B$19:$O$41,4,0)/'4. Billing Determinants'!$E$41*$D9,IF($E9="kW",VLOOKUP(N$4,'4. Billing Determinants'!$B$19:$O$41,5,0)/'4. Billing Determinants'!$F$41*$D9,IF($E9="Non-RPP kWh",VLOOKUP(N$4,'4. Billing Determinants'!$B$19:$O$41,6,0)/'4. Billing Determinants'!$G$41*$D9,IF($E9="Distribution Rev.",VLOOKUP(N$4,'4. Billing Determinants'!$B$19:$O$41,8,0)/'4. Billing Determinants'!$I$41*$D9, VLOOKUP(N$4,'4. Billing Determinants'!$B$19:$O$41,3,0)/'4. Billing Determinants'!$D$41*$D9))))),0) -> 0 | O9: =IFERROR(IF(O$4="",0,IF($E9="kWh",VLOOKUP(O$4,'4. Billing Determinants'!$B$19:$O$41,4,0)/'4. Billing Determinants'!$E$41*$D9,IF($E9="kW",VLOOKUP(O$4,'4. Billing Determinants'!$B$19:$O$41,5,0)/'4. Billing Determinants'!$F$41*$D9,IF($E9="Non-RPP kWh",VLOOKUP(O$4,'4. Billing Determinants'!$B$19:$O$41,6,0)/'4. Billing Determinants'!$G$41*$D9,IF($E9="Distribution Rev.",VLOOKUP(O$4,'4. Billing Determinants'!$B$19:$O$41,8,0)/'4. Billing Determinants'!$I$41*$D9, VLOOKUP(O$4,'4. Billing Determinants'!$B$19:$O$41,3,0)/'4. Billing Determinants'!$D$41*$D9))))),0) -> 0 | P9: =IFERROR(IF(P$4="",0,IF($E9="kWh",VLOOKUP(P$4,'4. Billing Determinants'!$B$19:$O$41,4,0)/'4. Billing Determinants'!$E$41*$D9,IF($E9="kW",VLOOKUP(P$4,'4. Billing Determinants'!$B$19:$O$41,5,0)/'4. Billing Determinants'!$F$41*$D9,IF($E9="Non-RPP kWh",VLOOKUP(P$4,'4. Billing Determinants'!$B$19:$O$41,6,0)/'4. Billing Determinants'!$G$41*$D9,IF($E9="Distribution Rev.",VLOOKUP(P$4,'4. Billing Determinants'!$B$19:$O$41,8,0)/'4. Billing Determinants'!$I$41*$D9, VLOOKUP(P$4,'4. Billing Determinants'!$B$19:$O$41,3,0)/'4. Billing Determinants'!$D$41*$D9))))),0) -> 0 | Q9: =IFERROR(IF(Q$4="",0,IF($E9="kWh",VLOOKUP(Q$4,'4. Billing Determinants'!$B$19:$O$41,4,0)/'4. Billing Determinants'!$E$41*$D9,IF($E9="kW",VLOOKUP(Q$4,'4. Billing Determinants'!$B$19:$O$41,5,0)/'4. Billing Determinants'!$F$41*$D9,IF($E9="Non-RPP kWh",VLOOKUP(Q$4,'4. Billing Determinants'!$B$19:$O$41,6,0)/'4. Billing Determinants'!$G$41*$D9,IF($E9="Distribution Rev.",VLOOKUP(Q$4,'4. Billing Determinants'!$B$19:$O$41,8,0)/'4. Billing Determinants'!$I$41*$D9, VLOOKUP(Q$4,'4. Billing Determinants'!$B$19:$O$41,3,0)/'4. Billing Determinants'!$D$41*$D9))))),0) -> 0 | R9: =IFERROR(IF(R$4="",0,IF($E9="kWh",VLOOKUP(R$4,'4. Billing Determinants'!$B$19:$O$41,4,0)/'4. Billing Determinants'!$E$41*$D9,IF($E9="kW",VLOOKUP(R$4,'4. Billing Determinants'!$B$19:$O$41,5,0)/'4. Billing Determinants'!$F$41*$D9,IF($E9="Non-RPP kWh",VLOOKUP(R$4,'4. Billing Determinants'!$B$19:$O$41,6,0)/'4. Billing Determinants'!$G$41*$D9,IF($E9="Distribution Rev.",VLOOKUP(R$4,'4. Billing Determinants'!$B$19:$O$41,8,0)/'4. Billing Determinants'!$I$41*$D9, VLOOKUP(R$4,'4. Billing Determinants'!$B$19:$O$41,3,0)/'4. Billing Determinants'!$D$41*$D9))))),0) -> 0 | S9: =IFERROR(IF(S$4="",0,IF($E9="kWh",VLOOKUP(S$4,'4. Billing Determinants'!$B$19:$O$41,4,0)/'4. Billing Determinants'!$E$41*$D9,IF($E9="kW",VLOOKUP(S$4,'4. Billing Determinants'!$B$19:$O$41,5,0)/'4. Billing Determinants'!$F$41*$D9,IF($E9="Non-RPP kWh",VLOOKUP(S$4,'4. Billing Determinants'!$B$19:$O$41,6,0)/'4. Billing Determinants'!$G$41*$D9,IF($E9="Distribution Rev.",VLOOKUP(S$4,'4. Billing Determinants'!$B$19:$O$41,8,0)/'4. Billing Determinants'!$I$41*$D9, VLOOKUP(S$4,'4. Billing Determinants'!$B$19:$O$41,3,0)/'4. Billing Determinants'!$D$41*$D9))))),0) -> 0 | T9: =IFERROR(IF(T$4="",0,IF($E9="kWh",VLOOKUP(T$4,'4. Billing Determinants'!$B$19:$O$41,4,0)/'4. Billing Determinants'!$E$41*$D9,IF($E9="kW",VLOOKUP(T$4,'4. Billing Determinants'!$B$19:$O$41,5,0)/'4. Billing Determinants'!$F$41*$D9,IF($E9="Non-RPP kWh",VLOOKUP(T$4,'4. Billing Determinants'!$B$19:$O$41,6,0)/'4. Billing Determinants'!$G$41*$D9,IF($E9="Distribution Rev.",VLOOKUP(T$4,'4. Billing Determinants'!$B$19:$O$41,8,0)/'4. Billing Determinants'!$I$41*$D9, VLOOKUP(T$4,'4. Billing Determinants'!$B$19:$O$41,3,0)/'4. Billing Determinants'!$D$41*$D9))))),0) -> 0 | U9: =IFERROR(IF(U$4="",0,IF($E9="kWh",VLOOKUP(U$4,'4. Billing Determinants'!$B$19:$O$41,4,0)/'4. Billing Determinants'!$E$41*$D9,IF($E9="kW",VLOOKUP(U$4,'4. Billing Determinants'!$B$19:$O$41,5,0)/'4. Billing Determinants'!$F$41*$D9,IF($E9="Non-RPP kWh",VLOOKUP(U$4,'4. Billing Determinants'!$B$19:$O$41,6,0)/'4. Billing Determinants'!$G$41*$D9,IF($E9="Distribution Rev.",VLOOKUP(U$4,'4. Billing Determinants'!$B$19:$O$41,8,0)/'4. Billing Determinants'!$I$41*$D9, VLOOKUP(U$4,'4. Billing Determinants'!$B$19:$O$41,3,0)/'4. Billing Determinants'!$D$41*$D9))))),0) -> 0 | V9: =IFERROR(IF(V$4="",0,IF($E9="kWh",VLOOKUP(V$4,'4. Billing Determinants'!$B$19:$O$41,4,0)/'4. Billing Determinants'!$E$41*$D9,IF($E9="kW",VLOOKUP(V$4,'4. Billing Determinants'!$B$19:$O$41,5,0)/'4. Billing Determinants'!$F$41*$D9,IF($E9="Non-RPP kWh",VLOOKUP(V$4,'4. Billing Determinants'!$B$19:$O$41,6,0)/'4. Billing Determinants'!$G$41*$D9,IF($E9="Distribution Rev.",VLOOKUP(V$4,'4. Billing Determinants'!$B$19:$O$41,8,0)/'4. Billing Determinants'!$I$41*$D9, VLOOKUP(V$4,'4. Billing Determinants'!$B$19:$O$41,3,0)/'4. Billing Determinants'!$D$41*$D9))))),0) -> 0 | W9: =IFERROR(IF(W$4="",0,IF($E9="kWh",VLOOKUP(W$4,'4. Billing Determinants'!$B$19:$O$41,4,0)/'4. Billing Determinants'!$E$41*$D9,IF($E9="kW",VLOOKUP(W$4,'4. Billing Determinants'!$B$19:$O$41,5,0)/'4. Billing Determinants'!$F$41*$D9,IF($E9="Non-RPP kWh",VLOOKUP(W$4,'4. Billing Determinants'!$B$19:$O$41,6,0)/'4. Billing Determinants'!$G$41*$D9,IF($E9="Distribution Rev.",VLOOKUP(W$4,'4. Billing Determinants'!$B$19:$O$41,8,0)/'4. Billing Determinants'!$I$41*$D9, VLOOKUP(W$4,'4. Billing Determinants'!$B$19:$O$41,3,0)/'4. Billing Determinants'!$D$41*$D9))))),0) -> 0 | X9: =IFERROR(IF(X$4="",0,IF($E9="kWh",VLOOKUP(X$4,'4. Billing Determinants'!$B$19:$O$41,4,0)/'4. Billing Determinants'!$E$41*$D9,IF($E9="kW",VLOOKUP(X$4,'4. Billing Determinants'!$B$19:$O$41,5,0)/'4. Billing Determinants'!$F$41*$D9,IF($E9="Non-RPP kWh",VLOOKUP(X$4,'4. Billing Determinants'!$B$19:$O$41,6,0)/'4. Billing Determinants'!$G$41*$D9,IF($E9="Distribution Rev.",VLOOKUP(X$4,'4. Billing Determinants'!$B$19:$O$41,8,0)/'4. Billing Determinants'!$I$41*$D9, VLOOKUP(X$4,'4. Billing Determinants'!$B$19:$O$41,3,0)/'4. Billing Determinants'!$D$41*$D9))))),0) -> 0 | Y9: =IFERROR(IF(Y$4="",0,IF($E9="kWh",VLOOKUP(Y$4,'4. Billing Determinants'!$B$19:$O$41,4,0)/'4. Billing Determinants'!$E$41*$D9,IF($E9="kW",VLOOKUP(Y$4,'4. Billing Determinants'!$B$19:$O$41,5,0)/'4. Billing Determinants'!$F$41*$D9,IF($E9="Non-RPP kWh",VLOOKUP(Y$4,'4. Billing Determinants'!$B$19:$O$41,6,0)/'4. Billing Determinants'!$G$41*$D9,IF($E9="Distribution Rev.",VLOOKUP(Y$4,'4. Billing Determinants'!$B$19:$O$41,8,0)/'4. Billing Determinants'!$I$41*$D9, VLOOKUP(Y$4,'4. Billing Determinants'!$B$19:$O$41,3,0)/'4. Billing Determinants'!$D$41*$D9))))),0) -> 0
B10: RSVA - Global Adjustment | C10: 1589 | D10: ='2. 2014 Continuity Schedule'!CP29 -> 1070770.631 | E10: Non-RPP kWh | F10: =IFERROR(IF(F$4="",0,IF($E10="kWh",VLOOKUP(F$4,'4. Billing Determinants'!$B$19:$O$41,4,0)/'4. Billing Determinants'!$E$41*$D10,IF($E10="kW",VLOOKUP(F$4,'4. Billing Determinants'!$B$19:$O$41,5,0)/'4. Billing Determinants'!$F$41*$D10,IF($E10="Non-RPP kWh",VLOOKUP(F$4,'4. Billing Determinants'!$B$19:$O$41,6,0)/'4. Billing Determinants'!$G$41*$D10,IF($E10="Distribution Rev.",VLOOKUP(F$4,'4. Billing Determinants'!$B$19:$O$41,8,0)/'4. Billing Determinants'!$I$41*$D10, VLOOKUP(F$4,'4. Billing Determinants'!$B$19:$O$41,3,0)/'4. Billing Determinants'!$D$41*$D10))))),0) -> 37916.13371 | G10: =IFERROR(IF(G$4="",0,IF($E10="kWh",VLOOKUP(G$4,'4. Billing Determinants'!$B$19:$O$41,4,0)/'4. Billing Determinants'!$E$41*$D10,IF($E10="kW",VLOOKUP(G$4,'4. Billing Determinants'!$B$19:$O$41,5,0)/'4. Billing Determinants'!$F$41*$D10,IF($E10="Non-RPP kWh",VLOOKUP(G$4,'4. Billing Determinants'!$B$19:$O$41,6,0)/'4. Billing Determinants'!$G$41*$D10,IF($E10="Distribution Rev.",VLOOKUP(G$4,'4. Billing Determinants'!$B$19:$O$41,8,0)/'4. Billing Determinants'!$I$41*$D10, VLOOKUP(G$4,'4. Billing Determinants'!$B$19:$O$41,3,0)/'4. Billing Determinants'!$D$41*$D10))))),0) -> 0 | H10: =IFERROR(IF(H$4="",0,IF($E10="kWh",VLOOKUP(H$4,'4. Billing Determinants'!$B$19:$O$41,4,0)/'4. Billing Determinants'!$E$41*$D10,IF($E10="kW",VLOOKUP(H$4,'4. Billing Determinants'!$B$19:$O$41,5,0)/'4. Billing Determinants'!$F$41*$D10,IF($E10="Non-RPP kWh",VLOOKUP(H$4,'4. Billing Determinants'!$B$19:$O$41,6,0)/'4. Billing Determinants'!$G$41*$D10,IF($E10="Distribution Rev.",VLOOKUP(H$4,'4. Billing Determinants'!$B$19:$O$41,8,0)/'4. Billing Determinants'!$I$41*$D10, VLOOKUP(H$4,'4. Billing Determinants'!$B$19:$O$41,3,0)/'4. Billing Determinants'!$D$41*$D10))))),0) -> 37071.7266 | I10: =IFERROR(IF(I$4="",0,IF($E10="kWh",VLOOKUP(I$4,'4. Billing Determinants'!$B$19:$O$41,4,0)/'4. Billing Determinants'!$E$41*$D10,IF($E10="kW",VLOOKUP(I$4,'4. Billing Determinants'!$B$19:$O$41,5,0)/'4. Billing Determinants'!$F$41*$D10,IF($E10="Non-RPP kWh",VLOOKUP(I$4,'4. Billing Determinants'!$B$19:$O$41,6,0)/'4. Billing Determinants'!$G$41*$D10,IF($E10="Distribution Rev.",VLOOKUP(I$4,'4. Billing Determinants'!$B$19:$O$41,8,0)/'4. Billing Determinants'!$I$41*$D10, VLOOKUP(I$4,'4. Billing Determinants'!$B$19:$O$41,3,0)/'4. Billing Determinants'!$D$41*$D10))))),0) -> 926925.6702 | J10: =IFERROR(IF(J$4="",0,IF($E10="kWh",VLOOKUP(J$4,'4. Billing Determinants'!$B$19:$O$41,4,0)/'4. Billing Determinants'!$E$41*$D10,IF($E10="kW",VLOOKUP(J$4,'4. Billing Determinants'!$B$19:$O$41,5,0)/'4. Billing Determinants'!$F$41*$D10,IF($E10="Non-RPP kWh",VLOOKUP(J$4,'4. Billing Determinants'!$B$19:$O$41,6,0)/'4. Billing Determinants'!$G$41*$D10,IF($E10="Distribution Rev.",VLOOKUP(J$4,'4. Billing Determinants'!$B$19:$O$41,8,0)/'4. Billing Determinants'!$I$41*$D10, VLOOKUP(J$4,'4. Billing Determinants'!$B$19:$O$41,3,0)/'4. Billing Determinants'!$D$41*$D10))))),0) -> 56940.61643 | K10: =IFERROR(IF(K$4="",0,IF($E10="kWh",VLOOKUP(K$4,'4. Billing Determinants'!$B$19:$O$41,4,0)/'4. Billing Determinants'!$E$41*$D10,IF($E10="kW",VLOOKUP(K$4,'4. Billing Determinants'!$B$19:$O$41,5,0)/'4. Billing Determinants'!$F$41*$D10,IF($E10="Non-RPP kWh",VLOOKUP(K$4,'4. Billing Determinants'!$B$19:$O$41,6,0)/'4. Billing Determinants'!$G$41*$D10,IF($E10="Distribution Rev.",VLOOKUP(K$4,'4. Billing Determinants'!$B$19:$O$41,8,0)/'4. Billing Determinants'!$I$41*$D10, VLOOKUP(K$4,'4. Billing Determinants'!$B$19:$O$41,3,0)/'4. Billing Determinants'!$D$41*$D10))))),0) -> 989.8703557 | L10: =IFERROR(IF(L$4="",0,IF($E10="kWh",VLOOKUP(L$4,'4. Billing Determinants'!$B$19:$O$41,4,0)/'4. Billing Determinants'!$E$41*$D10,IF($E10="kW",VLOOKUP(L$4,'4. Billing Determinants'!$B$19:$O$41,5,0)/'4. Billing Determinants'!$F$41*$D10,IF($E10="Non-RPP kWh",VLOOKUP(L$4,'4. Billing Determinants'!$B$19:$O$41,6,0)/'4. Billing Determinants'!$G$41*$D10,IF($E10="Distribution Rev.",VLOOKUP(L$4,'4. Billing Determinants'!$B$19:$O$41,8,0)/'4. Billing Determinants'!$I$41*$D10, VLOOKUP(L$4,'4. Billing Determinants'!$B$19:$O$41,3,0)/'4. Billing Determinants'!$D$41*$D10))))),0) -> 0 | M10: =IFERROR(IF(M$4="",0,IF($E10="kWh",VLOOKUP(M$4,'4. Billing Determinants'!$B$19:$O$41,4,0)/'4. Billing Determinants'!$E$41*$D10,IF($E10="kW",VLOOKUP(M$4,'4. Billing Determinants'!$B$19:$O$41,5,0)/'4. Billing Determinants'!$F$41*$D10,IF($E10="Non-RPP kWh",VLOOKUP(M$4,'4. Billing Determinants'!$B$19:$O$41,6,0)/'4. Billing Determinants'!$G$41*$D10,IF($E10="Distribution Rev.",VLOOKUP(M$4,'4. Billing Determinants'!$B$19:$O$41,8,0)/'4. Billing Determinants'!$I$41*$D10, VLOOKUP(M$4,'4. Billing Determinants'!$B$19:$O$41,3,0)/'4. Billing Determinants'!$D$41*$D10))))),0) -> 10926.61356 | N10: =IFERROR(IF(N$4="",0,IF($E10="kWh",VLOOKUP(N$4,'4. Billing Determinants'!$B$19:$O$41,4,0)/'4. Billing Determinants'!$E$41*$D10,IF($E10="kW",VLOOKUP(N$4,'4. Billing Determinants'!$B$19:$O$41,5,0)/'4. Billing Determinants'!$F$41*$D10,IF($E10="Non-RPP kWh",VLOOKUP(N$4,'4. Billing Determinants'!$B$19:$O$41,6,0)/'4. Billing Determinants'!$G$41*$D10,IF($E10="Distribution Rev.",VLOOKUP(N$4,'4. Billing Determinants'!$B$19:$O$41,8,0)/'4. Billing Determinants'!$I$41*$D10, VLOOKUP(N$4,'4. Billing Determinants'!$B$19:$O$41,3,0)/'4. Billing Determinants'!$D$41*$D10))))),0) -> 0 | O10: =IFERROR(IF(O$4="",0,IF($E10="kWh",VLOOKUP(O$4,'4. Billing Determinants'!$B$19:$O$41,4,0)/'4. Billing Determinants'!$E$41*$D10,IF($E10="kW",VLOOKUP(O$4,'4. Billing Determinants'!$B$19:$O$41,5,0)/'4. Billing Determinants'!$F$41*$D10,IF($E10="Non-RPP kWh",VLOOKUP(O$4,'4. Billing Determinants'!$B$19:$O$41,6,0)/'4. Billing Determinants'!$G$41*$D10,IF($E10="Distribution Rev.",VLOOKUP(O$4,'4. Billing Determinants'!$B$19:$O$41,8,0)/'4. Billing Determinants'!$I$41*$D10, VLOOKUP(O$4,'4. Billing Determinants'!$B$19:$O$41,3,0)/'4. Billing Determinants'!$D$41*$D10))))),0) -> 0 | P10: =IFERROR(IF(P$4="",0,IF($E10="kWh",VLOOKUP(P$4,'4. Billing Determinants'!$B$19:$O$41,4,0)/'4. Billing Determinants'!$E$41*$D10,IF($E10="kW",VLOOKUP(P$4,'4. Billing Determinants'!$B$19:$O$41,5,0)/'4. Billing Determinants'!$F$41*$D10,IF($E10="Non-RPP kWh",VLOOKUP(P$4,'4. Billing Determinants'!$B$19:$O$41,6,0)/'4. Billing Determinants'!$G$41*$D10,IF($E10="Distribution Rev.",VLOOKUP(P$4,'4. Billing Determinants'!$B$19:$O$41,8,0)/'4. Billing Determinants'!$I$41*$D10, VLOOKUP(P$4,'4. Billing Determinants'!$B$19:$O$41,3,0)/'4. Billing Determinants'!$D$41*$D10))))),0) -> 0 | Q10: =IFERROR(IF(Q$4="",0,IF($E10="kWh",VLOOKUP(Q$4,'4. Billing Determinants'!$B$19:$O$41,4,0)/'4. Billing Determinants'!$E$41*$D10,IF($E10="kW",VLOOKUP(Q$4,'4. Billing Determinants'!$B$19:$O$41,5,0)/'4. Billing Determinants'!$F$41*$D10,IF($E10="Non-RPP kWh",VLOOKUP(Q$4,'4. Billing Determinants'!$B$19:$O$41,6,0)/'4. Billing Determinants'!$G$41*$D10,IF($E10="Distribution Rev.",VLOOKUP(Q$4,'4. Billing Determinants'!$B$19:$O$41,8,0)/'4. Billing Determinants'!$I$41*$D10, VLOOKUP(Q$4,'4. Billing Determinants'!$B$19:$O$41,3,0)/'4. Billing Determinants'!$D$41*$D10))))),0) -> 0 | R10: =IFERROR(IF(R$4="",0,IF($E10="kWh",VLOOKUP(R$4,'4. Billing Determinants'!$B$19:$O$41,4,0)/'4. Billing Determinants'!$E$41*$D10,IF($E10="kW",VLOOKUP(R$4,'4. Billing Determinants'!$B$19:$O$41,5,0)/'4. Billing Determinants'!$F$41*$D10,IF($E10="Non-RPP kWh",VLOOKUP(R$4,'4. Billing Determinants'!$B$19:$O$41,6,0)/'4. Billing Determinants'!$G$41*$D10,IF($E10="Distribution Rev.",VLOOKUP(R$4,'4. Billing Determinants'!$B$19:$O$41,8,0)/'4. Billing Determinants'!$I$41*$D10, VLOOKUP(R$4,'4. Billing Determinants'!$B$19:$O$41,3,0)/'4. Billing Determinants'!$D$41*$D10))))),0) -> 0 | S10: =IFERROR(IF(S$4="",0,IF($E10="kWh",VLOOKUP(S$4,'4. Billing Determinants'!$B$19:$O$41,4,0)/'4. Billing Determinants'!$E$41*$D10,IF($E10="kW",VLOOKUP(S$4,'4. Billing Determinants'!$B$19:$O$41,5,0)/'4. Billing Determinants'!$F$41*$D10,IF($E10="Non-RPP kWh",VLOOKUP(S$4,'4. Billing Determinants'!$B$19:$O$41,6,0)/'4. Billing Determinants'!$G$41*$D10,IF($E10="Distribution Rev.",VLOOKUP(S$4,'4. Billing Determinants'!$B$19:$O$41,8,0)/'4. Billing Determinants'!$I$41*$D10, VLOOKUP(S$4,'4. Billing Determinants'!$B$19:$O$41,3,0)/'4. Billing Determinants'!$D$41*$D10))))),0) -> 0 | T10: =IFERROR(IF(T$4="",0,IF($E10="kWh",VLOOKUP(T$4,'4. Billing Determinants'!$B$19:$O$41,4,0)/'4. Billing Determinants'!$E$41*$D10,IF($E10="kW",VLOOKUP(T$4,'4. Billing Determinants'!$B$19:$O$41,5,0)/'4. Billing Determinants'!$F$41*$D10,IF($E10="Non-RPP kWh",VLOOKUP(T$4,'4. Billing Determinants'!$B$19:$O$41,6,0)/'4. Billing Determinants'!$G$41*$D10,IF($E10="Distribution Rev.",VLOOKUP(T$4,'4. Billing Determinants'!$B$19:$O$41,8,0)/'4. Billing Determinants'!$I$41*$D10, VLOOKUP(T$4,'4. Billing Determinants'!$B$19:$O$41,3,0)/'4. Billing Determinants'!$D$41*$D10))))),0) -> 0 | U10: =IFERROR(IF(U$4="",0,IF($E10="kWh",VLOOKUP(U$4,'4. Billing Determinants'!$B$19:$O$41,4,0)/'4. Billing Determinants'!$E$41*$D10,IF($E10="kW",VLOOKUP(U$4,'4. Billing Determinants'!$B$19:$O$41,5,0)/'4. Billing Determinants'!$F$41*$D10,IF($E10="Non-RPP kWh",VLOOKUP(U$4,'4. Billing Determinants'!$B$19:$O$41,6,0)/'4. Billing Determinants'!$G$41*$D10,IF($E10="Distribution Rev.",VLOOKUP(U$4,'4. Billing Determinants'!$B$19:$O$41,8,0)/'4. Billing Determinants'!$I$41*$D10, VLOOKUP(U$4,'4. Billing Determinants'!$B$19:$O$41,3,0)/'4. Billing Determinants'!$D$41*$D10))))),0) -> 0 | V10: =IFERROR(IF(V$4="",0,IF($E10="kWh",VLOOKUP(V$4,'4. Billing Determinants'!$B$19:$O$41,4,0)/'4. Billing Determinants'!$E$41*$D10,IF($E10="kW",VLOOKUP(V$4,'4. Billing Determinants'!$B$19:$O$41,5,0)/'4. Billing Determinants'!$F$41*$D10,IF($E10="Non-RPP kWh",VLOOKUP(V$4,'4. Billing Determinants'!$B$19:$O$41,6,0)/'4. Billing Determinants'!$G$41*$D10,IF($E10="Distribution Rev.",VLOOKUP(V$4,'4. Billing Determinants'!$B$19:$O$41,8,0)/'4. Billing Determinants'!$I$41*$D10, VLOOKUP(V$4,'4. Billing Determinants'!$B$19:$O$41,3,0)/'4. Billing Determinants'!$D$41*$D10))))),0) -> 0 | W10: =IFERROR(IF(W$4="",0,IF($E10="kWh",VLOOKUP(W$4,'4. Billing Determinants'!$B$19:$O$41,4,0)/'4. Billing Determinants'!$E$41*$D10,IF($E10="kW",VLOOKUP(W$4,'4. Billing Determinants'!$B$19:$O$41,5,0)/'4. Billing Determinants'!$F$41*$D10,IF($E10="Non-RPP kWh",VLOOKUP(W$4,'4. Billing Determinants'!$B$19:$O$41,6,0)/'4. Billing Determinants'!$G$41*$D10,IF($E10="Distribution Rev.",VLOOKUP(W$4,'4. Billing Determinants'!$B$19:$O$41,8,0)/'4. Billing Determinants'!$I$41*$D10, VLOOKUP(W$4,'4. Billing Determinants'!$B$19:$O$41,3,0)/'4. Billing Determinants'!$D$41*$D10))))),0) -> 0 | X10: =IFERROR(IF(X$4="",0,IF($E10="kWh",VLOOKUP(X$4,'4. Billing Determinants'!$B$19:$O$41,4,0)/'4. Billing Determinants'!$E$41*$D10,IF($E10="kW",VLOOKUP(X$4,'4. Billing Determinants'!$B$19:$O$41,5,0)/'4. Billing Determinants'!$F$41*$D10,IF($E10="Non-RPP kWh",VLOOKUP(X$4,'4. Billing Determinants'!$B$19:$O$41,6,0)/'4. Billing Determinants'!$G$41*$D10,IF($E10="Distribution Rev.",VLOOKUP(X$4,'4. Billing Determinants'!$B$19:$O$41,8,0)/'4. Billing Determinants'!$I$41*$D10, VLOOKUP(X$4,'4. Billing Determinants'!$B$19:$O$41,3,0)/'4. Billing Determinants'!$D$41*$D10))))),0) -> 0 | Y10: =IFERROR(IF(Y$4="",0,IF($E10="kWh",VLOOKUP(Y$4,'4. Billing Determinants'!$B$19:$O$41,4,0)/'4. Billing Determinants'!$E$41*$D10,IF($E10="kW",VLOOKUP(Y$4,'4. Billing Determinants'!$B$19:$O$41,5,0)/'4. Billing Determinants'!$F$41*$D10,IF($E10="Non-RPP kWh",VLOOKUP(Y$4,'4. Billing Determinants'!$B$19:$O$41,6,0)/'4. Billing Determinants'!$G$41*$D10,IF($E10="Distribution Rev.",VLOOKUP(Y$4,'4. Billing Determinants'!$B$19:$O$41,8,0)/'4. Billing Determinants'!$I$41*$D10, VLOOKUP(Y$4,'4. Billing Determinants'!$B$19:$O$41,3,0)/'4. Billing Determinants'!$D$41*$D10))))),0) -> 0
B11: Recovery of Regulatory Asset Balances | C11: 1590 | D11: ='2. 2014 Continuity Schedule'!CP30 -> 49659.4628 | E11: kWh | F11: =IFERROR(IF(F$4="",0,IF($E11="kWh",VLOOKUP(F$4,'4. Billing Determinants'!$B$19:$O$41,4,0)/'4. Billing Determinants'!$E$41*$D11,IF($E11="kW",VLOOKUP(F$4,'4. Billing Determinants'!$B$19:$O$41,5,0)/'4. Billing Determinants'!$F$41*$D11,IF($E11="Non-RPP kWh",VLOOKUP(F$4,'4. Billing Determinants'!$B$19:$O$41,6,0)/'4. Billing Determinants'!$G$41*$D11,IF($E11="Distribution Rev.",VLOOKUP(F$4,'4. Billing Determinants'!$B$19:$O$41,8,0)/'4. Billing Determinants'!$I$41*$D11, VLOOKUP(F$4,'4. Billing Determinants'!$B$19:$O$41,3,0)/'4. Billing Determinants'!$D$41*$D11))))),0) -> 11787.01902 | G11: =IFERROR(IF(G$4="",0,IF($E11="kWh",VLOOKUP(G$4,'4. Billing Determinants'!$B$19:$O$41,4,0)/'4. Billing Determinants'!$E$41*$D11,IF($E11="kW",VLOOKUP(G$4,'4. Billing Determinants'!$B$19:$O$41,5,0)/'4. Billing Determinants'!$F$41*$D11,IF($E11="Non-RPP kWh",VLOOKUP(G$4,'4. Billing Determinants'!$B$19:$O$41,6,0)/'4. Billing Determinants'!$G$41*$D11,IF($E11="Distribution Rev.",VLOOKUP(G$4,'4. Billing Determinants'!$B$19:$O$41,8,0)/'4. Billing Determinants'!$I$41*$D11, VLOOKUP(G$4,'4. Billing Determinants'!$B$19:$O$41,3,0)/'4. Billing Determinants'!$D$41*$D11))))),0) -> 0 | H11: =IFERROR(IF(H$4="",0,IF($E11="kWh",VLOOKUP(H$4,'4. Billing Determinants'!$B$19:$O$41,4,0)/'4. Billing Determinants'!$E$41*$D11,IF($E11="kW",VLOOKUP(H$4,'4. Billing Determinants'!$B$19:$O$41,5,0)/'4. Billing Determinants'!$F$41*$D11,IF($E11="Non-RPP kWh",VLOOKUP(H$4,'4. Billing Determinants'!$B$19:$O$41,6,0)/'4. Billing Determinants'!$G$41*$D11,IF($E11="Distribution Rev.",VLOOKUP(H$4,'4. Billing Determinants'!$B$19:$O$41,8,0)/'4. Billing Determinants'!$I$41*$D11, VLOOKUP(H$4,'4. Billing Determinants'!$B$19:$O$41,3,0)/'4. Billing Determinants'!$D$41*$D11))))),0) -> 5368.929082 | I11: =IFERROR(IF(I$4="",0,IF($E11="kWh",VLOOKUP(I$4,'4. Billing Determinants'!$B$19:$O$41,4,0)/'4. Billing Determinants'!$E$41*$D11,IF($E11="kW",VLOOKUP(I$4,'4. Billing Determinants'!$B$19:$O$41,5,0)/'4. Billing Determinants'!$F$41*$D11,IF($E11="Non-RPP kWh",VLOOKUP(I$4,'4. Billing Determinants'!$B$19:$O$41,6,0)/'4. Billing Determinants'!$G$41*$D11,IF($E11="Distribution Rev.",VLOOKUP(I$4,'4. Billing Determinants'!$B$19:$O$41,8,0)/'4. Billing Determinants'!$I$41*$D11, VLOOKUP(I$4,'4. Billing Determinants'!$B$19:$O$41,3,0)/'4. Billing Determinants'!$D$41*$D11))))),0) -> 30201.88542 | J11: =IFERROR(IF(J$4="",0,IF($E11="kWh",VLOOKUP(J$4,'4. Billing Determinants'!$B$19:$O$41,4,0)/'4. Billing Determinants'!$E$41*$D11,IF($E11="kW",VLOOKUP(J$4,'4. Billing Determinants'!$B$19:$O$41,5,0)/'4. Billing Determinants'!$F$41*$D11,IF($E11="Non-RPP kWh",VLOOKUP(J$4,'4. Billing Determinants'!$B$19:$O$41,6,0)/'4. Billing Determinants'!$G$41*$D11,IF($E11="Distribution Rev.",VLOOKUP(J$4,'4. Billing Determinants'!$B$19:$O$41,8,0)/'4. Billing Determinants'!$I$41*$D11, VLOOKUP(J$4,'4. Billing Determinants'!$B$19:$O$41,3,0)/'4. Billing Determinants'!$D$41*$D11))))),0) -> 1852.293244 | K11: =IFERROR(IF(K$4="",0,IF($E11="kWh",VLOOKUP(K$4,'4. Billing Determinants'!$B$19:$O$41,4,0)/'4. Billing Determinants'!$E$41*$D11,IF($E11="kW",VLOOKUP(K$4,'4. Billing Determinants'!$B$19:$O$41,5,0)/'4. Billing Determinants'!$F$41*$D11,IF($E11="Non-RPP kWh",VLOOKUP(K$4,'4. Billing Determinants'!$B$19:$O$41,6,0)/'4. Billing Determinants'!$G$41*$D11,IF($E11="Distribution Rev.",VLOOKUP(K$4,'4. Billing Determinants'!$B$19:$O$41,8,0)/'4. Billing Determinants'!$I$41*$D11, VLOOKUP(K$4,'4. Billing Determinants'!$B$19:$O$41,3,0)/'4. Billing Determinants'!$D$41*$D11))))),0) -> 55.33285901 | L11: =IFERROR(IF(L$4="",0,IF($E11="kWh",VLOOKUP(L$4,'4. Billing Determinants'!$B$19:$O$41,4,0)/'4. Billing Determinants'!$E$41*$D11,IF($E11="kW",VLOOKUP(L$4,'4. Billing Determinants'!$B$19:$O$41,5,0)/'4. Billing Determinants'!$F$41*$D11,IF($E11="Non-RPP kWh",VLOOKUP(L$4,'4. Billing Determinants'!$B$19:$O$41,6,0)/'4. Billing Determinants'!$G$41*$D11,IF($E11="Distribution Rev.",VLOOKUP(L$4,'4. Billing Determinants'!$B$19:$O$41,8,0)/'4. Billing Determinants'!$I$41*$D11, VLOOKUP(L$4,'4. Billing Determinants'!$B$19:$O$41,3,0)/'4. Billing Determinants'!$D$41*$D11))))),0) -> 12.31765013 | M11: =IFERROR(IF(M$4="",0,IF($E11="kWh",VLOOKUP(M$4,'4. Billing Determinants'!$B$19:$O$41,4,0)/'4. Billing Determinants'!$E$41*$D11,IF($E11="kW",VLOOKUP(M$4,'4. Billing Determinants'!$B$19:$O$41,5,0)/'4. Billing Determinants'!$F$41*$D11,IF($E11="Non-RPP kWh",VLOOKUP(M$4,'4. Billing Determinants'!$B$19:$O$41,6,0)/'4. Billing Determinants'!$G$41*$D11,IF($E11="Distribution Rev.",VLOOKUP(M$4,'4. Billing Determinants'!$B$19:$O$41,8,0)/'4. Billing Determinants'!$I$41*$D11, VLOOKUP(M$4,'4. Billing Determinants'!$B$19:$O$41,3,0)/'4. Billing Determinants'!$D$41*$D11))))),0) -> 381.6855219 | N11: =IFERROR(IF(N$4="",0,IF($E11="kWh",VLOOKUP(N$4,'4. Billing Determinants'!$B$19:$O$41,4,0)/'4. Billing Determinants'!$E$41*$D11,IF($E11="kW",VLOOKUP(N$4,'4. Billing Determinants'!$B$19:$O$41,5,0)/'4. Billing Determinants'!$F$41*$D11,IF($E11="Non-RPP kWh",VLOOKUP(N$4,'4. Billing Determinants'!$B$19:$O$41,6,0)/'4. Billing Determinants'!$G$41*$D11,IF($E11="Distribution Rev.",VLOOKUP(N$4,'4. Billing Determinants'!$B$19:$O$41,8,0)/'4. Billing Determinants'!$I$41*$D11, VLOOKUP(N$4,'4. Billing Determinants'!$B$19:$O$41,3,0)/'4. Billing Determinants'!$D$41*$D11))))),0) -> 0 | O11: =IFERROR(IF(O$4="",0,IF($E11="kWh",VLOOKUP(O$4,'4. Billing Determinants'!$B$19:$O$41,4,0)/'4. Billing Determinants'!$E$41*$D11,IF($E11="kW",VLOOKUP(O$4,'4. Billing Determinants'!$B$19:$O$41,5,0)/'4. Billing Determinants'!$F$41*$D11,IF($E11="Non-RPP kWh",VLOOKUP(O$4,'4. Billing Determinants'!$B$19:$O$41,6,0)/'4. Billing Determinants'!$G$41*$D11,IF($E11="Distribution Rev.",VLOOKUP(O$4,'4. Billing Determinants'!$B$19:$O$41,8,0)/'4. Billing Determinants'!$I$41*$D11, VLOOKUP(O$4,'4. Billing Determinants'!$B$19:$O$41,3,0)/'4. Billing Determinants'!$D$41*$D11))))),0) -> 0 | P11: =IFERROR(IF(P$4="",0,IF($E11="kWh",VLOOKUP(P$4,'4. Billing Determinants'!$B$19:$O$41,4,0)/'4. Billing Determinants'!$E$41*$D11,IF($E11="kW",VLOOKUP(P$4,'4. Billing Determinants'!$B$19:$O$41,5,0)/'4. Billing Determinants'!$F$41*$D11,IF($E11="Non-RPP kWh",VLOOKUP(P$4,'4. Billing Determinants'!$B$19:$O$41,6,0)/'4. Billing Determinants'!$G$41*$D11,IF($E11="Distribution Rev.",VLOOKUP(P$4,'4. Billing Determinants'!$B$19:$O$41,8,0)/'4. Billing Determinants'!$I$41*$D11, VLOOKUP(P$4,'4. Billing Determinants'!$B$19:$O$41,3,0)/'4. Billing Determinants'!$D$41*$D11))))),0) -> 0 | Q11: =IFERROR(IF(Q$4="",0,IF($E11="kWh",VLOOKUP(Q$4,'4. Billing Determinants'!$B$19:$O$41,4,0)/'4. Billing Determinants'!$E$41*$D11,IF($E11="kW",VLOOKUP(Q$4,'4. Billing Determinants'!$B$19:$O$41,5,0)/'4. Billing Determinants'!$F$41*$D11,IF($E11="Non-RPP kWh",VLOOKUP(Q$4,'4. Billing Determinants'!$B$19:$O$41,6,0)/'4. Billing Determinants'!$G$41*$D11,IF($E11="Distribution Rev.",VLOOKUP(Q$4,'4. Billing Determinants'!$B$19:$O$41,8,0)/'4. Billing Determinants'!$I$41*$D11, VLOOKUP(Q$4,'4. Billing Determinants'!$B$19:$O$41,3,0)/'4. Billing Determinants'!$D$41*$D11))))),0) -> 0 | R11: =IFERROR(IF(R$4="",0,IF($E11="kWh",VLOOKUP(R$4,'4. Billing Determinants'!$B$19:$O$41,4,0)/'4. Billing Determinants'!$E$41*$D11,IF($E11="kW",VLOOKUP(R$4,'4. Billing Determinants'!$B$19:$O$41,5,0)/'4. Billing Determinants'!$F$41*$D11,IF($E11="Non-RPP kWh",VLOOKUP(R$4,'4. Billing Determinants'!$B$19:$O$41,6,0)/'4. Billing Determinants'!$G$41*$D11,IF($E11="Distribution Rev.",VLOOKUP(R$4,'4. Billing Determinants'!$B$19:$O$41,8,0)/'4. Billing Determinants'!$I$41*$D11, VLOOKUP(R$4,'4. Billing Determinants'!$B$19:$O$41,3,0)/'4. Billing Determinants'!$D$41*$D11))))),0) -> 0 | S11: =IFERROR(IF(S$4="",0,IF($E11="kWh",VLOOKUP(S$4,'4. Billing Determinants'!$B$19:$O$41,4,0)/'4. Billing Determinants'!$E$41*$D11,IF($E11="kW",VLOOKUP(S$4,'4. Billing Determinants'!$B$19:$O$41,5,0)/'4. Billing Determinants'!$F$41*$D11,IF($E11="Non-RPP kWh",VLOOKUP(S$4,'4. Billing Determinants'!$B$19:$O$41,6,0)/'4. Billing Determinants'!$G$41*$D11,IF($E11="Distribution Rev.",VLOOKUP(S$4,'4. Billing Determinants'!$B$19:$O$41,8,0)/'4. Billing Determinants'!$I$41*$D11, VLOOKUP(S$4,'4. Billing Determinants'!$B$19:$O$41,3,0)/'4. Billing Determinants'!$D$41*$D11))))),0) -> 0 | T11: =IFERROR(IF(T$4="",0,IF($E11="kWh",VLOOKUP(T$4,'4. Billing Determinants'!$B$19:$O$41,4,0)/'4. Billing Determinants'!$E$41*$D11,IF($E11="kW",VLOOKUP(T$4,'4. Billing Determinants'!$B$19:$O$41,5,0)/'4. Billing Determinants'!$F$41*$D11,IF($E11="Non-RPP kWh",VLOOKUP(T$4,'4. Billing Determinants'!$B$19:$O$41,6,0)/'4. Billing Determinants'!$G$41*$D11,IF($E11="Distribution Rev.",VLOOKUP(T$4,'4. Billing Determinants'!$B$19:$O$41,8,0)/'4. Billing Determinants'!$I$41*$D11, VLOOKUP(T$4,'4. Billing Determinants'!$B$19:$O$41,3,0)/'4. Billing Determinants'!$D$41*$D11))))),0) -> 0 | U11: =IFERROR(IF(U$4="",0,IF($E11="kWh",VLOOKUP(U$4,'4. Billing Determinants'!$B$19:$O$41,4,0)/'4. Billing Determinants'!$E$41*$D11,IF($E11="kW",VLOOKUP(U$4,'4. Billing Determinants'!$B$19:$O$41,5,0)/'4. Billing Determinants'!$F$41*$D11,IF($E11="Non-RPP kWh",VLOOKUP(U$4,'4. Billing Determinants'!$B$19:$O$41,6,0)/'4. Billing Determinants'!$G$41*$D11,IF($E11="Distribution Rev.",VLOOKUP(U$4,'4. Billing Determinants'!$B$19:$O$41,8,0)/'4. Billing Determinants'!$I$41*$D11, VLOOKUP(U$4,'4. Billing Determinants'!$B$19:$O$41,3,0)/'4. Billing Determinants'!$D$41*$D11))))),0) -> 0 | V11: =IFERROR(IF(V$4="",0,IF($E11="kWh",VLOOKUP(V$4,'4. Billing Determinants'!$B$19:$O$41,4,0)/'4. Billing Determinants'!$E$41*$D11,IF($E11="kW",VLOOKUP(V$4,'4. Billing Determinants'!$B$19:$O$41,5,0)/'4. Billing Determinants'!$F$41*$D11,IF($E11="Non-RPP kWh",VLOOKUP(V$4,'4. Billing Determinants'!$B$19:$O$41,6,0)/'4. Billing Determinants'!$G$41*$D11,IF($E11="Distribution Rev.",VLOOKUP(V$4,'4. Billing Determinants'!$B$19:$O$41,8,0)/'4. Billing Determinants'!$I$41*$D11, VLOOKUP(V$4,'4. Billing Determinants'!$B$19:$O$41,3,0)/'4. Billing Determinants'!$D$41*$D11))))),0) -> 0 | W11: =IFERROR(IF(W$4="",0,IF($E11="kWh",VLOOKUP(W$4,'4. Billing Determinants'!$B$19:$O$41,4,0)/'4. Billing Determinants'!$E$41*$D11,IF($E11="kW",VLOOKUP(W$4,'4. Billing Determinants'!$B$19:$O$41,5,0)/'4. Billing Determinants'!$F$41*$D11,IF($E11="Non-RPP kWh",VLOOKUP(W$4,'4. Billing Determinants'!$B$19:$O$41,6,0)/'4. Billing Determinants'!$G$41*$D11,IF($E11="Distribution Rev.",VLOOKUP(W$4,'4. Billing Determinants'!$B$19:$O$41,8,0)/'4. Billing Determinants'!$I$41*$D11, VLOOKUP(W$4,'4. Billing Determinants'!$B$19:$O$41,3,0)/'4. Billing Determinants'!$D$41*$D11))))),0) -> 0 | X11: =IFERROR(IF(X$4="",0,IF($E11="kWh",VLOOKUP(X$4,'4. Billing Determinants'!$B$19:$O$41,4,0)/'4. Billing Determinants'!$E$41*$D11,IF($E11="kW",VLOOKUP(X$4,'4. Billing Determinants'!$B$19:$O$41,5,0)/'4. Billing Determinants'!$F$41*$D11,IF($E11="Non-RPP kWh",VLOOKUP(X$4,'4. Billing Determinants'!$B$19:$O$41,6,0)/'4. Billing Determinants'!$G$41*$D11,IF($E11="Distribution Rev.",VLOOKUP(X$4,'4. Billing Determinants'!$B$19:$O$41,8,0)/'4. Billing Determinants'!$I$41*$D11, VLOOKUP(X$4,'4. Billing Determinants'!$B$19:$O$41,3,0)/'4. Billing Determinants'!$D$41*$D11))))),0) -> 0 | Y11: =IFERROR(IF(Y$4="",0,IF($E11="kWh",VLOOKUP(Y$4,'4. Billing Determinants'!$B$19:$O$41,4,0)/'4. Billing Determinants'!$E$41*$D11,IF($E11="kW",VLOOKUP(Y$4,'4. Billing Determinants'!$B$19:$O$41,5,0)/'4. Billing Determinants'!$F$41*$D11,IF($E11="Non-RPP kWh",VLOOKUP(Y$4,'4. Billing Determinants'!$B$19:$O$41,6,0)/'4. Billing Determinants'!$G$41*$D11,IF($E11="Distribution Rev.",VLOOKUP(Y$4,'4. Billing Determinants'!$B$19:$O$41,8,0)/'4. Billing Determinants'!$I$41*$D11, VLOOKUP(Y$4,'4. Billing Determinants'!$B$19:$O$41,3,0)/'4. Billing Determinants'!$D$41*$D11))))),0) -> 0
B12: Smart Meter Entiity Charge Variance Account | C12: 1551 | D12: ='2. 2014 Continuity Schedule'!CP31 -> 15898.19024 | E12: kWh | F12: =IFERROR(IF(F$4="",0,IF($E12="kWh",VLOOKUP(F$4,'4. Billing Determinants'!$B$19:$O$41,4,0)/'4. Billing Determinants'!$E$41*$D12,IF($E12="kW",VLOOKUP(F$4,'4. Billing Determinants'!$B$19:$O$41,5,0)/'4. Billing Determinants'!$F$41*$D12,IF($E12="Non-RPP kWh",VLOOKUP(F$4,'4. Billing Determinants'!$B$19:$O$41,6,0)/'4. Billing Determinants'!$G$41*$D12,IF($E12="Distribution Rev.",VLOOKUP(F$4,'4. Billing Determinants'!$B$19:$O$41,8,0)/'4. Billing Determinants'!$I$41*$D12, VLOOKUP(F$4,'4. Billing Determinants'!$B$19:$O$41,3,0)/'4. Billing Determinants'!$D$41*$D12))))),0) -> 3773.546074 | G12: =IF(ISERROR(VLOOKUP(G$4, '4. Billing Determinants'!$B$19:$O$41, 10, FALSE)*'2. 2014 Continuity Schedule'!$CP$31), 0, VLOOKUP(G$4, '4. Billing Determinants'!$B$19:$O$41, 10, FALSE)*'2. 2014 Continuity Schedule'!$CP$31) -> 0 | H12: =IFERROR(IF(H$4="",0,IF($E12="kWh",VLOOKUP(H$4,'4. Billing Determinants'!$B$19:$O$41,4,0)/'4. Billing Determinants'!$E$41*$D12,IF($E12="kW",VLOOKUP(H$4,'4. Billing Determinants'!$B$19:$O$41,5,0)/'4. Billing Determinants'!$F$41*$D12,IF($E12="Non-RPP kWh",VLOOKUP(H$4,'4. Billing Determinants'!$B$19:$O$41,6,0)/'4. Billing Determinants'!$G$41*$D12,IF($E12="Distribution Rev.",VLOOKUP(H$4,'4. Billing Determinants'!$B$19:$O$41,8,0)/'4. Billing Determinants'!$I$41*$D12, VLOOKUP(H$4,'4. Billing Determinants'!$B$19:$O$41,3,0)/'4. Billing Determinants'!$D$41*$D12))))),0) -> 1718.831642 | I12: =IFERROR(IF(I$4="",0,IF($E12="kWh",VLOOKUP(I$4,'4. Billing Determinants'!$B$19:$O$41,4,0)/'4. Billing Determinants'!$E$41*$D12,IF($E12="kW",VLOOKUP(I$4,'4. Billing Determinants'!$B$19:$O$41,5,0)/'4. Billing Determinants'!$F$41*$D12,IF($E12="Non-RPP kWh",VLOOKUP(I$4,'4. Billing Determinants'!$B$19:$O$41,6,0)/'4. Billing Determinants'!$G$41*$D12,IF($E12="Distribution Rev.",VLOOKUP(I$4,'4. Billing Determinants'!$B$19:$O$41,8,0)/'4. Billing Determinants'!$I$41*$D12, VLOOKUP(I$4,'4. Billing Determinants'!$B$19:$O$41,3,0)/'4. Billing Determinants'!$D$41*$D12))))),0) -> 9668.959209 | J12: =IFERROR(IF(J$4="",0,IF($E12="kWh",VLOOKUP(J$4,'4. Billing Determinants'!$B$19:$O$41,4,0)/'4. Billing Determinants'!$E$41*$D12,IF($E12="kW",VLOOKUP(J$4,'4. Billing Determinants'!$B$19:$O$41,5,0)/'4. Billing Determinants'!$F$41*$D12,IF($E12="Non-RPP kWh",VLOOKUP(J$4,'4. Billing Determinants'!$B$19:$O$41,6,0)/'4. Billing Determinants'!$G$41*$D12,IF($E12="Distribution Rev.",VLOOKUP(J$4,'4. Billing Determinants'!$B$19:$O$41,8,0)/'4. Billing Determinants'!$I$41*$D12, VLOOKUP(J$4,'4. Billing Determinants'!$B$19:$O$41,3,0)/'4. Billing Determinants'!$D$41*$D12))))),0) -> 593.0009855 | K12: =IFERROR(IF(K$4="",0,IF($E12="kWh",VLOOKUP(K$4,'4. Billing Determinants'!$B$19:$O$41,4,0)/'4. Billing Determinants'!$E$41*$D12,IF($E12="kW",VLOOKUP(K$4,'4. Billing Determinants'!$B$19:$O$41,5,0)/'4. Billing Determinants'!$F$41*$D12,IF($E12="Non-RPP kWh",VLOOKUP(K$4,'4. Billing Determinants'!$B$19:$O$41,6,0)/'4. Billing Determinants'!$G$41*$D12,IF($E12="Distribution Rev.",VLOOKUP(K$4,'4. Billing Determinants'!$B$19:$O$41,8,0)/'4. Billing Determinants'!$I$41*$D12, VLOOKUP(K$4,'4. Billing Determinants'!$B$19:$O$41,3,0)/'4. Billing Determinants'!$D$41*$D12))))),0) -> 17.71449528 | L12: =IFERROR(IF(L$4="",0,IF($E12="kWh",VLOOKUP(L$4,'4. Billing Determinants'!$B$19:$O$41,4,0)/'4. Billing Determinants'!$E$41*$D12,IF($E12="kW",VLOOKUP(L$4,'4. Billing Determinants'!$B$19:$O$41,5,0)/'4. Billing Determinants'!$F$41*$D12,IF($E12="Non-RPP kWh",VLOOKUP(L$4,'4. Billing Determinants'!$B$19:$O$41,6,0)/'4. Billing Determinants'!$G$41*$D12,IF($E12="Distribution Rev.",VLOOKUP(L$4,'4. Billing Determinants'!$B$19:$O$41,8,0)/'4. Billing Determinants'!$I$41*$D12, VLOOKUP(L$4,'4. Billing Determinants'!$B$19:$O$41,3,0)/'4. Billing Determinants'!$D$41*$D12))))),0) -> 3.943424558 | M12: =IFERROR(IF(M$4="",0,IF($E12="kWh",VLOOKUP(M$4,'4. Billing Determinants'!$B$19:$O$41,4,0)/'4. Billing Determinants'!$E$41*$D12,IF($E12="kW",VLOOKUP(M$4,'4. Billing Determinants'!$B$19:$O$41,5,0)/'4. Billing Determinants'!$F$41*$D12,IF($E12="Non-RPP kWh",VLOOKUP(M$4,'4. Billing Determinants'!$B$19:$O$41,6,0)/'4. Billing Determinants'!$G$41*$D12,IF($E12="Distribution Rev.",VLOOKUP(M$4,'4. Billing Determinants'!$B$19:$O$41,8,0)/'4. Billing Determinants'!$I$41*$D12, VLOOKUP(M$4,'4. Billing Determinants'!$B$19:$O$41,3,0)/'4. Billing Determinants'!$D$41*$D12))))),0) -> 122.1944157 | N12: =IF(ISERROR(VLOOKUP(N$4, '4. Billing Determinants'!$B$19:$O$41, 10, FALSE)*'2. 2014 Continuity Schedule'!$CP$31), 0, VLOOKUP(N$4, '4. Billing Determinants'!$B$19:$O$41, 10, FALSE)*'2. 2014 Continuity Schedule'!$CP$31) -> 0 | O12: =IF(ISERROR(VLOOKUP(O$4, '4. Billing Determinants'!$B$19:$O$41, 10, FALSE)*'2. 2014 Continuity Schedule'!$CP$31), 0, VLOOKUP(O$4, '4. Billing Determinants'!$B$19:$O$41, 10, FALSE)*'2. 2014 Continuity Schedule'!$CP$31) -> 0 | P12: =IF(ISERROR(VLOOKUP(P$4, '4. Billing Determinants'!$B$19:$O$41, 10, FALSE)*'2. 2014 Continuity Schedule'!$CP$31), 0, VLOOKUP(P$4, '4. Billing Determinants'!$B$19:$O$41, 10, FALSE)*'2. 2014 Continuity Schedule'!$CP$31) -> 0 | Q12: =IF(ISERROR(VLOOKUP(Q$4, '4. Billing Determinants'!$B$19:$O$41, 10, FALSE)*'2. 2014 Continuity Schedule'!$CP$31), 0, VLOOKUP(Q$4, '4. Billing Determinants'!$B$19:$O$41, 10, FALSE)*'2. 2014 Continuity Schedule'!$CP$31) -> 0 | R12: =IF(ISERROR(VLOOKUP(R$4, '4. Billing Determinants'!$B$19:$O$41, 10, FALSE)*'2. 2014 Continuity Schedule'!$CP$31), 0, VLOOKUP(R$4, '4. Billing Determinants'!$B$19:$O$41, 10, FALSE)*'2. 2014 Continuity Schedule'!$CP$31) -> 0 | S12: =IF(ISERROR(VLOOKUP(S$4, '4. Billing Determinants'!$B$19:$O$41, 10, FALSE)*'2. 2014 Continuity Schedule'!$CP$31), 0, VLOOKUP(S$4, '4. Billing Determinants'!$B$19:$O$41, 10, FALSE)*'2. 2014 Continuity Schedule'!$CP$31) -> 0 | T12: =IF(ISERROR(VLOOKUP(T$4, '4. Billing Determinants'!$B$19:$O$41, 10, FALSE)*'2. 2014 Continuity Schedule'!$CP$31), 0, VLOOKUP(T$4, '4. Billing Determinants'!$B$19:$O$41, 10, FALSE)*'2. 2014 Continuity Schedule'!$CP$31) -> 0 | U12: =IF(ISERROR(VLOOKUP(U$4, '4. Billing Determinants'!$B$19:$O$41, 10, FALSE)*'2. 2014 Continuity Schedule'!$CP$31), 0, VLOOKUP(U$4, '4. Billing Determinants'!$B$19:$O$41, 10, FALSE)*'2. 2014 Continuity Schedule'!$CP$31) -> 0 | V12: =IF(ISERROR(VLOOKUP(V$4, '4. Billing Determinants'!$B$19:$O$41, 10, FALSE)*'2. 2014 Continuity Schedule'!$CP$31), 0, VLOOKUP(V$4, '4. Billing Determinants'!$B$19:$O$41, 10, FALSE)*'2. 2014 Continuity Schedule'!$CP$31) -> 0 | W12: =IF(ISERROR(VLOOKUP(W$4, '4. Billing Determinants'!$B$19:$O$41, 10, FALSE)*'2. 2014 Continuity Schedule'!$CP$31), 0, VLOOKUP(W$4, '4. Billing Determinants'!$B$19:$O$41, 10, FALSE)*'2. 2014 Continuity Schedule'!$CP$31) -> 0 | X12: =IF(ISERROR(VLOOKUP(X$4, '4. Billing Determinants'!$B$19:$O$41, 10, FALSE)*'2. 2014 Continuity Schedule'!$CP$31), 0, VLOOKUP(X$4, '4. Billing Determinants'!$B$19:$O$41, 10, FALSE)*'2. 2014 Continuity Schedule'!$CP$31) -> 0 | Y12: =IF(ISERROR(VLOOKUP(Y$4, '4. Billing Determinants'!$B$19:$O$41, 10, FALSE)*'2. 2014 Continuity Schedule'!$CP$31), 0, VLOOKUP(Y$4, '4. Billing Determinants'!$B$19:$O$41, 10, FALSE)*'2. 2014 Continuity Schedule'!$CP$31) -> 0
B13: Disposition and Recovery/Refund of Regulatory Balances (2009) | C13: 1595 | D13: ='2. 2014 Continuity Schedule'!CP32 -> 0 | E13: kWh | F13: =IF(ISERROR(VLOOKUP(F$4, '4. Billing Determinants'!$B$19:$O$41, 11, FALSE)*'2. 2014 Continuity Schedule'!$CP$32), 0, VLOOKUP(F$4, '4. Billing Determinants'!$B$19:$O$41, 11, FALSE)*'2. 2014 Continuity Schedule'!$CP$32) -> 0 | G13: =IF(ISERROR(VLOOKUP(G$4, '4. Billing Determinants'!$B$19:$O$41, 11, FALSE)*'2. 2014 Continuity Schedule'!$CP$32), 0, VLOOKUP(G$4, '4. Billing Determinants'!$B$19:$O$41, 11, FALSE)*'2. 2014 Continuity Schedule'!$CP$32) -> 0 | H13: =IF(ISERROR(VLOOKUP(H$4, '4. Billing Determinants'!$B$19:$O$41, 11, FALSE)*'2. 2014 Continuity Schedule'!$CP$32), 0, VLOOKUP(H$4, '4. Billing Determinants'!$B$19:$O$41, 11, FALSE)*'2. 2014 Continuity Schedule'!$CP$32) -> 0 | I13: =IF(ISERROR(VLOOKUP(I$4, '4. Billing Determinants'!$B$19:$O$41, 11, FALSE)*'2. 2014 Continuity Schedule'!$CP$32), 0, VLOOKUP(I$4, '4. Billing Determinants'!$B$19:$O$41, 11, FALSE)*'2. 2014 Continuity Schedule'!$CP$32) -> 0 | J13: =IF(ISERROR(VLOOKUP(J$4, '4. Billing Determinants'!$B$19:$O$41, 11, FALSE)*'2. 2014 Continuity Schedule'!$CP$32), 0, VLOOKUP(J$4, '4. Billing Determinants'!$B$19:$O$41, 11, FALSE)*'2. 2014 Continuity Schedule'!$CP$32) -> 0 | K13: =IF(ISERROR(VLOOKUP(K$4, '4. Billing Determinants'!$B$19:$O$41, 11, FALSE)*'2. 2014 Continuity Schedule'!$CP$32), 0, VLOOKUP(K$4, '4. Billing Determinants'!$B$19:$O$41, 11, FALSE)*'2. 2014 Continuity Schedule'!$CP$32) -> 0 | L13: =IF(ISERROR(VLOOKUP(L$4, '4. Billing Determinants'!$B$19:$O$41, 11, FALSE)*'2. 2014 Continuity Schedule'!$CP$32), 0, VLOOKUP(L$4, '4. Billing Determinants'!$B$19:$O$41, 11, FALSE)*'2. 2014 Continuity Schedule'!$CP$32) -> 0 | M13: =IF(ISERROR(VLOOKUP(M$4, '4. Billing Determinants'!$B$19:$O$41, 11, FALSE)*'2. 2014 Continuity Schedule'!$CP$32), 0, VLOOKUP(M$4, '4. Billing Determinants'!$B$19:$O$41, 11, FALSE)*'2. 2014 Continuity Schedule'!$CP$32) -> 0 | N13: =IF(ISERROR(VLOOKUP(N$4, '4. Billing Determinants'!$B$19:$O$41, 11, FALSE)*'2. 2014 Continuity Schedule'!$CP$32), 0, VLOOKUP(N$4, '4. Billing Determinants'!$B$19:$O$41, 11, FALSE)*'2. 2014 Continuity Schedule'!$CP$32) -> 0 | O13: =IF(ISERROR(VLOOKUP(O$4, '4. Billing Determinants'!$B$19:$O$41, 11, FALSE)*'2. 2014 Continuity Schedule'!$CP$32), 0, VLOOKUP(O$4, '4. Billing Determinants'!$B$19:$O$41, 11, FALSE)*'2. 2014 Continuity Schedule'!$CP$32) -> 0 | P13: =IF(ISERROR(VLOOKUP(P$4, '4. Billing Determinants'!$B$19:$O$41, 11, FALSE)*'2. 2014 Continuity Schedule'!$CP$32), 0, VLOOKUP(P$4, '4. Billing Determinants'!$B$19:$O$41, 11, FALSE)*'2. 2014 Continuity Schedule'!$CP$32) -> 0 | Q13: =IF(ISERROR(VLOOKUP(Q$4, '4. Billing Determinants'!$B$19:$O$41, 11, FALSE)*'2. 2014 Continuity Schedule'!$CP$32), 0, VLOOKUP(Q$4, '4. Billing Determinants'!$B$19:$O$41, 11, FALSE)*'2. 2014 Continuity Schedule'!$CP$32) -> 0 | R13: =IF(ISERROR(VLOOKUP(R$4, '4. Billing Determinants'!$B$19:$O$41, 11, FALSE)*'2. 2014 Continuity Schedule'!$CP$32), 0, VLOOKUP(R$4, '4. Billing Determinants'!$B$19:$O$41, 11, FALSE)*'2. 2014 Continuity Schedule'!$CP$32) -> 0 | S13: =IF(ISERROR(VLOOKUP(S$4, '4. Billing Determinants'!$B$19:$O$41, 11, FALSE)*'2. 2014 Continuity Schedule'!$CP$32), 0, VLOOKUP(S$4, '4. Billing Determinants'!$B$19:$O$41, 11, FALSE)*'2. 2014 Continuity Schedule'!$CP$32) -> 0 | T13: =IF(ISERROR(VLOOKUP(T$4, '4. Billing Determinants'!$B$19:$O$41, 11, FALSE)*'2. 2014 Continuity Schedule'!$CP$32), 0, VLOOKUP(T$4, '4. Billing Determinants'!$B$19:$O$41, 11, FALSE)*'2. 2014 Continuity Schedule'!$CP$32) -> 0 | U13: =IF(ISERROR(VLOOKUP(U$4, '4. Billing Determinants'!$B$19:$O$41, 11, FALSE)*'2. 2014 Continuity Schedule'!$CP$32), 0, VLOOKUP(U$4, '4. Billing Determinants'!$B$19:$O$41, 11, FALSE)*'2. 2014 Continuity Schedule'!$CP$32) -> 0 | V13: =IF(ISERROR(VLOOKUP(V$4, '4. Billing Determinants'!$B$19:$O$41, 11, FALSE)*'2. 2014 Continuity Schedule'!$CP$32), 0, VLOOKUP(V$4, '4. Billing Determinants'!$B$19:$O$41, 11, FALSE)*'2. 2014 Continuity Schedule'!$CP$32) -> 0 | W13: =IF(ISERROR(VLOOKUP(W$4, '4. Billing Determinants'!$B$19:$O$41, 11, FALSE)*'2. 2014 Continuity Schedule'!$CP$32), 0, VLOOKUP(W$4, '4. Billing Determinants'!$B$19:$O$41, 11, FALSE)*'2. 2014 Continuity Schedule'!$CP$32) -> 0 | X13: =IF(ISERROR(VLOOKUP(X$4, '4. Billing Determinants'!$B$19:$O$41, 11, FALSE)*'2. 2014 Continuity Schedule'!$CP$32), 0, VLOOKUP(X$4, '4. Billing Determinants'!$B$19:$O$41, 11, FALSE)*'2. 2014 Continuity Schedule'!$CP$32) -> 0 | Y13: =IF(ISERROR(VLOOKUP(Y$4, '4. Billing Determinants'!$B$19:$O$41, 11, FALSE)*'2. 2014 Continuity Schedule'!$CP$32), 0, VLOOKUP(Y$4, '4. Billing Determinants'!$B$19:$O$41, 11, FALSE)*'2. 2014 Continuity Schedule'!$CP$32) -> 0
B14: Disposition and Recovery/Refund of Regulatory Balances (2010) | C14: 1595 | D14: ='2. 2014 Continuity Schedule'!CP33 -> -57622.51 | E14: kWh | F14: =IF(ISERROR(VLOOKUP(F$4, '4. Billing Determinants'!$B$19:$O$41, 12, FALSE)*'2. 2014 Continuity Schedule'!$CP$33), 0, VLOOKUP(F$4, '4. Billing Determinants'!$B$19:$O$41, 12, FALSE)*'2. 2014 Continuity Schedule'!$CP$33) -> -32817.48416 | G14: =IF(ISERROR(VLOOKUP(G$4, '4. Billing Determinants'!$B$19:$O$41, 12, FALSE)*'2. 2014 Continuity Schedule'!$CP$33), 0, VLOOKUP(G$4, '4. Billing Determinants'!$B$19:$O$41, 12, FALSE)*'2. 2014 Continuity Schedule'!$CP$33) -> 0 | H14: =IF(ISERROR(VLOOKUP(H$4, '4. Billing Determinants'!$B$19:$O$41, 12, FALSE)*'2. 2014 Continuity Schedule'!$CP$33), 0, VLOOKUP(H$4, '4. Billing Determinants'!$B$19:$O$41, 12, FALSE)*'2. 2014 Continuity Schedule'!$CP$33) -> -9866.90705 | I14: =IF(ISERROR(VLOOKUP(I$4, '4. Billing Determinants'!$B$19:$O$41, 12, FALSE)*'2. 2014 Continuity Schedule'!$CP$33), 0, VLOOKUP(I$4, '4. Billing Determinants'!$B$19:$O$41, 12, FALSE)*'2. 2014 Continuity Schedule'!$CP$33) -> -12369.52398 | J14: =IF(ISERROR(VLOOKUP(J$4, '4. Billing Determinants'!$B$19:$O$41, 12, FALSE)*'2. 2014 Continuity Schedule'!$CP$33), 0, VLOOKUP(J$4, '4. Billing Determinants'!$B$19:$O$41, 12, FALSE)*'2. 2014 Continuity Schedule'!$CP$33) -> -1775.269681 | K14: =IF(ISERROR(VLOOKUP(K$4, '4. Billing Determinants'!$B$19:$O$41, 12, FALSE)*'2. 2014 Continuity Schedule'!$CP$33), 0, VLOOKUP(K$4, '4. Billing Determinants'!$B$19:$O$41, 12, FALSE)*'2. 2014 Continuity Schedule'!$CP$33) -> -189.1067011 | L14: =IF(ISERROR(VLOOKUP(L$4, '4. Billing Determinants'!$B$19:$O$41, 12, FALSE)*'2. 2014 Continuity Schedule'!$CP$33), 0, VLOOKUP(L$4, '4. Billing Determinants'!$B$19:$O$41, 12, FALSE)*'2. 2014 Continuity Schedule'!$CP$33) -> -38.66818696 | M14: =IF(ISERROR(VLOOKUP(M$4, '4. Billing Determinants'!$B$19:$O$41, 12, FALSE)*'2. 2014 Continuity Schedule'!$CP$33), 0, VLOOKUP(M$4, '4. Billing Determinants'!$B$19:$O$41, 12, FALSE)*'2. 2014 Continuity Schedule'!$CP$33) -> -565.5390368 | N14: =IF(ISERROR(VLOOKUP(N$4, '4. Billing Determinants'!$B$19:$O$41, 12, FALSE)*'2. 2014 Continuity Schedule'!$CP$33), 0, VLOOKUP(N$4, '4. Billing Determinants'!$B$19:$O$41, 12, FALSE)*'2. 2014 Continuity Schedule'!$CP$33) -> 0 | O14: =IF(ISERROR(VLOOKUP(O$4, '4. Billing Determinants'!$B$19:$O$41, 12, FALSE)*'2. 2014 Continuity Schedule'!$CP$33), 0, VLOOKUP(O$4, '4. Billing Determinants'!$B$19:$O$41, 12, FALSE)*'2. 2014 Continuity Schedule'!$CP$33) -> 0 | P14: =IF(ISERROR(VLOOKUP(P$4, '4. Billing Determinants'!$B$19:$O$41, 12, FALSE)*'2. 2014 Continuity Schedule'!$CP$33), 0, VLOOKUP(P$4, '4. Billing Determinants'!$B$19:$O$41, 12, FALSE)*'2. 2014 Continuity Schedule'!$CP$33) -> 0 | Q14: =IF(ISERROR(VLOOKUP(Q$4, '4. Billing Determinants'!$B$19:$O$41, 12, FALSE)*'2. 2014 Continuity Schedule'!$CP$33), 0, VLOOKUP(Q$4, '4. Billing Determinants'!$B$19:$O$41, 12, FALSE)*'2. 2014 Continuity Schedule'!$CP$33) -> 0 | R14: =IF(ISERROR(VLOOKUP(R$4, '4. Billing Determinants'!$B$19:$O$41, 12, FALSE)*'2. 2014 Continuity Schedule'!$CP$33), 0, VLOOKUP(R$4, '4. Billing Determinants'!$B$19:$O$41, 12, FALSE)*'2. 2014 Continuity Schedule'!$CP$33) -> 0 | S14: =IF(ISERROR(VLOOKUP(S$4, '4. Billing Determinants'!$B$19:$O$41, 12, FALSE)*'2. 2014 Continuity Schedule'!$CP$33), 0, VLOOKUP(S$4, '4. Billing Determinants'!$B$19:$O$41, 12, FALSE)*'2. 2014 Continuity Schedule'!$CP$33) -> 0 | T14: =IF(ISERROR(VLOOKUP(T$4, '4. Billing Determinants'!$B$19:$O$41, 12, FALSE)*'2. 2014 Continuity Schedule'!$CP$33), 0, VLOOKUP(T$4, '4. Billing Determinants'!$B$19:$O$41, 12, FALSE)*'2. 2014 Continuity Schedule'!$CP$33) -> 0 | U14: =IF(ISERROR(VLOOKUP(U$4, '4. Billing Determinants'!$B$19:$O$41, 12, FALSE)*'2. 2014 Continuity Schedule'!$CP$33), 0, VLOOKUP(U$4, '4. Billing Determinants'!$B$19:$O$41, 12, FALSE)*'2. 2014 Continuity Schedule'!$CP$33) -> 0 | V14: =IF(ISERROR(VLOOKUP(V$4, '4. Billing Determinants'!$B$19:$O$41, 12, FALSE)*'2. 2014 Continuity Schedule'!$CP$33), 0, VLOOKUP(V$4, '4. Billing Determinants'!$B$19:$O$41, 12, FALSE)*'2. 2014 Continuity Schedule'!$CP$33) -> 0 | W14: =IF(ISERROR(VLOOKUP(W$4, '4. Billing Determinants'!$B$19:$O$41, 12, FALSE)*'2. 2014 Continuity Schedule'!$CP$33), 0, VLOOKUP(W$4, '4. Billing Determinants'!$B$19:$O$41, 12, FALSE)*'2. 2014 Continuity Schedule'!$CP$33) -> 0 | X14: =IF(ISERROR(VLOOKUP(X$4, '4. Billing Determinants'!$B$19:$O$41, 12, FALSE)*'2. 2014 Continuity Schedule'!$CP$33), 0, VLOOKUP(X$4, '4. Billing Determinants'!$B$19:$O$41, 12, FALSE)*'2. 2014 Continuity Schedule'!$CP$33) -> 0 | Y14: =IF(ISERROR(VLOOKUP(Y$4, '4. Billing Determinants'!$B$19:$O$41, 12, FALSE)*'2. 2014 Continuity Schedule'!$CP$33), 0, VLOOKUP(Y$4, '4. Billing Determinants'!$B$19:$O$41, 12, FALSE)*'2. 2014 Continuity Schedule'!$CP$33) -> 0
B15: Disposition and Recovery/Refund of Regulatory Balances (2011) | C15: 1595 | D15: ='2. 2014 Continuity Schedule'!CP34 -> 1640.47 | E15: kWh | F15: =IF(ISERROR(VLOOKUP(F$4, '4. Billing Determinants'!$B$19:$O$41, 13, FALSE)*'2. 2014 Continuity Schedule'!$CP$34), 0, VLOOKUP(F$4, '4. Billing Determinants'!$B$19:$O$41, 13, FALSE)*'2. 2014 Continuity Schedule'!$CP$34) -> 934.2893643 | G15: =IF(ISERROR(VLOOKUP(G$4, '4. Billing Determinants'!$B$19:$O$41, 13, FALSE)*'2. 2014 Continuity Schedule'!$CP$34), 0, VLOOKUP(G$4, '4. Billing Determinants'!$B$19:$O$41, 13, FALSE)*'2. 2014 Continuity Schedule'!$CP$34) -> 0 | H15: =IF(ISERROR(VLOOKUP(H$4, '4. Billing Determinants'!$B$19:$O$41, 13, FALSE)*'2. 2014 Continuity Schedule'!$CP$34), 0, VLOOKUP(H$4, '4. Billing Determinants'!$B$19:$O$41, 13, FALSE)*'2. 2014 Continuity Schedule'!$CP$34) -> 280.9035047 | I15: =IF(ISERROR(VLOOKUP(I$4, '4. Billing Determinants'!$B$19:$O$41, 13, FALSE)*'2. 2014 Continuity Schedule'!$CP$34), 0, VLOOKUP(I$4, '4. Billing Determinants'!$B$19:$O$41, 13, FALSE)*'2. 2014 Continuity Schedule'!$CP$34) -> 352.1511473 | J15: =IF(ISERROR(VLOOKUP(J$4, '4. Billing Determinants'!$B$19:$O$41, 13, FALSE)*'2. 2014 Continuity Schedule'!$CP$34), 0, VLOOKUP(J$4, '4. Billing Determinants'!$B$19:$O$41, 13, FALSE)*'2. 2014 Continuity Schedule'!$CP$34) -> 50.54060737 | K15: =IF(ISERROR(VLOOKUP(K$4, '4. Billing Determinants'!$B$19:$O$41, 13, FALSE)*'2. 2014 Continuity Schedule'!$CP$34), 0, VLOOKUP(K$4, '4. Billing Determinants'!$B$19:$O$41, 13, FALSE)*'2. 2014 Continuity Schedule'!$CP$34) -> 5.383727123 | L15: =IF(ISERROR(VLOOKUP(L$4, '4. Billing Determinants'!$B$19:$O$41, 13, FALSE)*'2. 2014 Continuity Schedule'!$CP$34), 0, VLOOKUP(L$4, '4. Billing Determinants'!$B$19:$O$41, 13, FALSE)*'2. 2014 Continuity Schedule'!$CP$34) -> 1.100854521 | M15: =IF(ISERROR(VLOOKUP(M$4, '4. Billing Determinants'!$B$19:$O$41, 13, FALSE)*'2. 2014 Continuity Schedule'!$CP$34), 0, VLOOKUP(M$4, '4. Billing Determinants'!$B$19:$O$41, 13, FALSE)*'2. 2014 Continuity Schedule'!$CP$34) -> 16.10047573 | N15: =IF(ISERROR(VLOOKUP(N$4, '4. Billing Determinants'!$B$19:$O$41, 13, FALSE)*'2. 2014 Continuity Schedule'!$CP$34), 0, VLOOKUP(N$4, '4. Billing Determinants'!$B$19:$O$41, 13, FALSE)*'2. 2014 Continuity Schedule'!$CP$34) -> 0 | O15: =IF(ISERROR(VLOOKUP(O$4, '4. Billing Determinants'!$B$19:$O$41, 13, FALSE)*'2. 2014 Continuity Schedule'!$CP$34), 0, VLOOKUP(O$4, '4. Billing Determinants'!$B$19:$O$41, 13, FALSE)*'2. 2014 Continuity Schedule'!$CP$34) -> 0 | P15: =IF(ISERROR(VLOOKUP(P$4, '4. Billing Determinants'!$B$19:$O$41, 13, FALSE)*'2. 2014 Continuity Schedule'!$CP$34), 0, VLOOKUP(P$4, '4. Billing Determinants'!$B$19:$O$41, 13, FALSE)*'2. 2014 Continuity Schedule'!$CP$34) -> 0 | Q15: =IF(ISERROR(VLOOKUP(Q$4, '4. Billing Determinants'!$B$19:$O$41, 13, FALSE)*'2. 2014 Continuity Schedule'!$CP$34), 0, VLOOKUP(Q$4, '4. Billing Determinants'!$B$19:$O$41, 13, FALSE)*'2. 2014 Continuity Schedule'!$CP$34) -> 0 | R15: =IF(ISERROR(VLOOKUP(R$4, '4. Billing Determinants'!$B$19:$O$41, 13, FALSE)*'2. 2014 Continuity Schedule'!$CP$34), 0, VLOOKUP(R$4, '4. Billing Determinants'!$B$19:$O$41, 13, FALSE)*'2. 2014 Continuity Schedule'!$CP$34) -> 0 | S15: =IF(ISERROR(VLOOKUP(S$4, '4. Billing Determinants'!$B$19:$O$41, 13, FALSE)*'2. 2014 Continuity Schedule'!$CP$34), 0, VLOOKUP(S$4, '4. Billing Determinants'!$B$19:$O$41, 13, FALSE)*'2. 2014 Continuity Schedule'!$CP$34) -> 0 | T15: =IF(ISERROR(VLOOKUP(T$4, '4. Billing Determinants'!$B$19:$O$41, 13, FALSE)*'2. 2014 Continuity Schedule'!$CP$34), 0, VLOOKUP(T$4, '4. Billing Determinants'!$B$19:$O$41, 13, FALSE)*'2. 2014 Continuity Schedule'!$CP$34) -> 0 | U15: =IF(ISERROR(VLOOKUP(U$4, '4. Billing Determinants'!$B$19:$O$41, 13, FALSE)*'2. 2014 Continuity Schedule'!$CP$34), 0, VLOOKUP(U$4, '4. Billing Determinants'!$B$19:$O$41, 13, FALSE)*'2. 2014 Continuity Schedule'!$CP$34) -> 0 | V15: =IF(ISERROR(VLOOKUP(V$4, '4. Billing Determinants'!$B$19:$O$41, 13, FALSE)*'2. 2014 Continuity Schedule'!$CP$34), 0, VLOOKUP(V$4, '4. Billing Determinants'!$B$19:$O$41, 13, FALSE)*'2. 2014 Continuity Schedule'!$CP$34) -> 0 | W15: =IF(ISERROR(VLOOKUP(W$4, '4. Billing Determinants'!$B$19:$O$41, 13, FALSE)*'2. 2014 Continuity Schedule'!$CP$34), 0, VLOOKUP(W$4, '4. Billing Determinants'!$B$19:$O$41, 13, FALSE)*'2. 2014 Continuity Schedule'!$CP$34) -> 0 | X15: =IF(ISERROR(VLOOKUP(X$4, '4. Billing Determinants'!$B$19:$O$41, 13, FALSE)*'2. 2014 Continuity Schedule'!$CP$34), 0, VLOOKUP(X$4, '4. Billing Determinants'!$B$19:$O$41, 13, FALSE)*'2. 2014 Continuity Schedule'!$CP$34) -> 0 | Y15: =IF(ISERROR(VLOOKUP(Y$4, '4. Billing Determinants'!$B$19:$O$41, 13, FALSE)*'2. 2014 Continuity Schedule'!$CP$34), 0, VLOOKUP(Y$4, '4. Billing Determinants'!$B$19:$O$41, 13, FALSE)*'2. 2014 Continuity Schedule'!$CP$34) -> 0
B16: Total of Group 1 Accounts (excluding 1589) | D16: =SUM(D5:D15)-D10 -> -1340589.4 | F16: =SUM(F5:F15)-F10 -> -336793.6899 | G16: =SUM(G5:G15)-G10 -> 0 | H16: -148471.2315 | I16: -793289.7045 | J16: -49640.46153 | K16: -1615.091618 | L16: -356.204368 | M16: -10423.00551 | N16: 0 | O16: 0 | P16: 0 | Q16: 0 | R16: 0 | S16: 0 | T16: 0 | U16: 0 | V16: 0 | W16: 0 | X16: 0 | Y16: 0
B18: Other Regulatory Assets - Sub-Account - OEB Cost Assessments | C18: 1508 | D18: ='2. 2014 Continuity Schedule'!CP41 -> -0.01999999999 | F18: =IFERROR(IF(F$4="",0,IF($E18="kWh",VLOOKUP(F$4,'4. Billing Determinants'!$B$19:$O$41,4,0)/'4. Billing Determinants'!$E$41*$D18,IF($E18="kW",VLOOKUP(F$4,'4. Billing Determinants'!$B$19:$O$41,5,0)/'4. Billing Determinants'!$F$41*$D18,IF($E18="Non-RPP kWh",VLOOKUP(F$4,'4. Billing Determinants'!$B$19:$O$41,6,0)/'4. Billing Determinants'!$G$41*$D18,IF($E18="Distribution Rev.",VLOOKUP(F$4,'4. Billing Determinants'!$B$19:$O$41,8,0)/'4. Billing Determinants'!$I$41*$D18, VLOOKUP(F$4,'4. Billing Determinants'!$B$19:$O$41,3,0)/'4. Billing Determinants'!$D$41*$D18))))),0) -> -0.01772590215 | G18: =IFERROR(IF(G$4="",0,IF($E18="kWh",VLOOKUP(G$4,'4. Billing Determinants'!$B$19:$O$41,4,0)/'4. Billing Determinants'!$E$41*$D18,IF($E18="kW",VLOOKUP(G$4,'4. Billing Determinants'!$B$19:$O$41,5,0)/'4. Billing Determinants'!$F$41*$D18,IF($E18="Non-RPP kWh",VLOOKUP(G$4,'4. Billing Determinants'!$B$19:$O$41,6,0)/'4. Billing Determinants'!$G$41*$D18,IF($E18="Distribution Rev.",VLOOKUP(G$4,'4. Billing Determinants'!$B$19:$O$41,8,0)/'4. Billing Determinants'!$I$41*$D18, VLOOKUP(G$4,'4. Billing Determinants'!$B$19:$O$41,3,0)/'4. Billing Determinants'!$D$41*$D18))))),0) -> 0 | H18: =IFERROR(IF(H$4="",0,IF($E18="kWh",VLOOKUP(H$4,'4. Billing Determinants'!$B$19:$O$41,4,0)/'4. Billing Determinants'!$E$41*$D18,IF($E18="kW",VLOOKUP(H$4,'4. Billing Determinants'!$B$19:$O$41,5,0)/'4. Billing Determinants'!$F$41*$D18,IF($E18="Non-RPP kWh",VLOOKUP(H$4,'4. Billing Determinants'!$B$19:$O$41,6,0)/'4. Billing Determinants'!$G$41*$D18,IF($E18="Distribution Rev.",VLOOKUP(H$4,'4. Billing Determinants'!$B$19:$O$41,8,0)/'4. Billing Determinants'!$I$41*$D18, VLOOKUP(H$4,'4. Billing Determinants'!$B$19:$O$41,3,0)/'4. Billing Determinants'!$D$41*$D18))))),0) -> -0.001973543429 | I18: =IFERROR(IF(I$4="",0,IF($E18="kWh",VLOOKUP(I$4,'4. Billing Determinants'!$B$19:$O$41,4,0)/'4. Billing Determinants'!$E$41*$D18,IF($E18="kW",VLOOKUP(I$4,'4. Billing Determinants'!$B$19:$O$41,5,0)/'4. Billing Determinants'!$F$41*$D18,IF($E18="Non-RPP kWh",VLOOKUP(I$4,'4. Billing Determinants'!$B$19:$O$41,6,0)/'4. Billing Determinants'!$G$41*$D18,IF($E18="Distribution Rev.",VLOOKUP(I$4,'4. Billing Determinants'!$B$19:$O$41,8,0)/'4. Billing Determinants'!$I$41*$D18, VLOOKUP(I$4,'4. Billing Determinants'!$B$19:$O$41,3,0)/'4. Billing Determinants'!$D$41*$D18))))),0) -> -0.0002207956424 | J18: =IFERROR(IF(J$4="",0,IF($E18="kWh",VLOOKUP(J$4,'4. Billing Determinants'!$B$19:$O$41,4,0)/'4. Billing Determinants'!$E$41*$D18,IF($E18="kW",VLOOKUP(J$4,'4. Billing Determinants'!$B$19:$O$41,5,0)/'4. Billing Determinants'!$F$41*$D18,IF($E18="Non-RPP kWh",VLOOKUP(J$4,'4. Billing Determinants'!$B$19:$O$41,6,0)/'4. Billing Determinants'!$G$41*$D18,IF($E18="Distribution Rev.",VLOOKUP(J$4,'4. Billing Determinants'!$B$19:$O$41,8,0)/'4. Billing Determinants'!$I$41*$D18, VLOOKUP(J$4,'4. Billing Determinants'!$B$19:$O$41,3,0)/'4. Billing Determinants'!$D$41*$D18))))),0) -> -9.726680282e-07 | K18: =IFERROR(IF(K$4="",0,IF($E18="kWh",VLOOKUP(K$4,'4. Billing Determinants'!$B$19:$O$41,4,0)/'4. Billing Determinants'!$E$41*$D18,IF($E18="kW",VLOOKUP(K$4,'4. Billing Determinants'!$B$19:$O$41,5,0)/'4. Billing Determinants'!$F$41*$D18,IF($E18="Non-RPP kWh",VLOOKUP(K$4,'4. Billing Determinants'!$B$19:$O$41,6,0)/'4. Billing Determinants'!$G$41*$D18,IF($E18="Distribution Rev.",VLOOKUP(K$4,'4. Billing Determinants'!$B$19:$O$41,8,0)/'4. Billing Determinants'!$I$41*$D18, VLOOKUP(K$4,'4. Billing Determinants'!$B$19:$O$41,3,0)/'4. Billing Determinants'!$D$41*$D18))))),0) -> -2.334403268e-05 | L18: =IFERROR(IF(L$4="",0,IF($E18="kWh",VLOOKUP(L$4,'4. Billing Determinants'!$B$19:$O$41,4,0)/'4. Billing Determinants'!$E$41*$D18,IF($E18="kW",VLOOKUP(L$4,'4. Billing Determinants'!$B$19:$O$41,5,0)/'4. Billing Determinants'!$F$41*$D18,IF($E18="Non-RPP kWh",VLOOKUP(L$4,'4. Billing Determinants'!$B$19:$O$41,6,0)/'4. Billing Determinants'!$G$41*$D18,IF($E18="Distribution Rev.",VLOOKUP(L$4,'4. Billing Determinants'!$B$19:$O$41,8,0)/'4. Billing Determinants'!$I$41*$D18, VLOOKUP(L$4,'4. Billing Determinants'!$B$19:$O$41,3,0)/'4. Billing Determinants'!$D$41*$D18))))),0) -> -3.987938915e-05 | M18: =IFERROR(IF(M$4="",0,IF($E18="kWh",VLOOKUP(M$4,'4. Billing Determinants'!$B$19:$O$41,4,0)/'4. Billing Determinants'!$E$41*$D18,IF($E18="kW",VLOOKUP(M$4,'4. Billing Determinants'!$B$19:$O$41,5,0)/'4. Billing Determinants'!$F$41*$D18,IF($E18="Non-RPP kWh",VLOOKUP(M$4,'4. Billing Determinants'!$B$19:$O$41,6,0)/'4. Billing Determinants'!$G$41*$D18,IF($E18="Distribution Rev.",VLOOKUP(M$4,'4. Billing Determinants'!$B$19:$O$41,8,0)/'4. Billing Determinants'!$I$41*$D18, VLOOKUP(M$4,'4. Billing Determinants'!$B$19:$O$41,3,0)/'4. Billing Determinants'!$D$41*$D18))))),0) -> -1.556268845e-05 | N18: =IFERROR(IF(N$4="",0,IF($E18="kWh",VLOOKUP(N$4,'4. Billing Determinants'!$B$19:$O$41,4,0)/'4. Billing Determinants'!$E$41*$D18,IF($E18="kW",VLOOKUP(N$4,'4. Billing Determinants'!$B$19:$O$41,5,0)/'4. Billing Determinants'!$F$41*$D18,IF($E18="Non-RPP kWh",VLOOKUP(N$4,'4. Billing Determinants'!$B$19:$O$41,6,0)/'4. Billing Determinants'!$G$41*$D18,IF($E18="Distribution Rev.",VLOOKUP(N$4,'4. Billing Determinants'!$B$19:$O$41,8,0)/'4. Billing Determinants'!$I$41*$D18, VLOOKUP(N$4,'4. Billing Determinants'!$B$19:$O$41,3,0)/'4. Billing Determinants'!$D$41*$D18))))),0) -> 0 | O18: =IFERROR(IF(O$4="",0,IF($E18="kWh",VLOOKUP(O$4,'4. Billing Determinants'!$B$19:$O$41,4,0)/'4. Billing Determinants'!$E$41*$D18,IF($E18="kW",VLOOKUP(O$4,'4. Billing Determinants'!$B$19:$O$41,5,0)/'4. Billing Determinants'!$F$41*$D18,IF($E18="Non-RPP kWh",VLOOKUP(O$4,'4. Billing Determinants'!$B$19:$O$41,6,0)/'4. Billing Determinants'!$G$41*$D18,IF($E18="Distribution Rev.",VLOOKUP(O$4,'4. Billing Determinants'!$B$19:$O$41,8,0)/'4. Billing Determinants'!$I$41*$D18, VLOOKUP(O$4,'4. Billing Determinants'!$B$19:$O$41,3,0)/'4. Billing Determinants'!$D$41*$D18))))),0) -> 0 | P18: =IFERROR(IF(P$4="",0,IF($E18="kWh",VLOOKUP(P$4,'4. Billing Determinants'!$B$19:$O$41,4,0)/'4. Billing Determinants'!$E$41*$D18,IF($E18="kW",VLOOKUP(P$4,'4. Billing Determinants'!$B$19:$O$41,5,0)/'4. Billing Determinants'!$F$41*$D18,IF($E18="Non-RPP kWh",VLOOKUP(P$4,'4. Billing Determinants'!$B$19:$O$41,6,0)/'4. Billing Determinants'!$G$41*$D18,IF($E18="Distribution Rev.",VLOOKUP(P$4,'4. Billing Determinants'!$B$19:$O$41,8,0)/'4. Billing Determinants'!$I$41*$D18, VLOOKUP(P$4,'4. Billing Determinants'!$B$19:$O$41,3,0)/'4. Billing Determinants'!$D$41*$D18))))),0) -> 0 | Q18: =IFERROR(IF(Q$4="",0,IF($E18="kWh",VLOOKUP(Q$4,'4. Billing Determinants'!$B$19:$O$41,4,0)/'4. Billing Determinants'!$E$41*$D18,IF($E18="kW",VLOOKUP(Q$4,'4. Billing Determinants'!$B$19:$O$41,5,0)/'4. Billing Determinants'!$F$41*$D18,IF($E18="Non-RPP kWh",VLOOKUP(Q$4,'4. Billing Determinants'!$B$19:$O$41,6,0)/'4. Billing Determinants'!$G$41*$D18,IF($E18="Distribution Rev.",VLOOKUP(Q$4,'4. Billing Determinants'!$B$19:$O$41,8,0)/'4. Billing Determinants'!$I$41*$D18, VLOOKUP(Q$4,'4. Billing Determinants'!$B$19:$O$41,3,0)/'4. Billing Determinants'!$D$41*$D18))))),0) -> 0 | R18: =IFERROR(IF(R$4="",0,IF($E18="kWh",VLOOKUP(R$4,'4. Billing Determinants'!$B$19:$O$41,4,0)/'4. Billing Determinants'!$E$41*$D18,IF($E18="kW",VLOOKUP(R$4,'4. Billing Determinants'!$B$19:$O$41,5,0)/'4. Billing Determinants'!$F$41*$D18,IF($E18="Non-RPP kWh",VLOOKUP(R$4,'4. Billing Determinants'!$B$19:$O$41,6,0)/'4. Billing Determinants'!$G$41*$D18,IF($E18="Distribution Rev.",VLOOKUP(R$4,'4. Billing Determinants'!$B$19:$O$41,8,0)/'4. Billing Determinants'!$I$41*$D18, VLOOKUP(R$4,'4. Billing Determinants'!$B$19:$O$41,3,0)/'4. Billing Determinants'!$D$41*$D18))))),0) -> 0 | S18: =IFERROR(IF(S$4="",0,IF($E18="kWh",VLOOKUP(S$4,'4. Billing Determinants'!$B$19:$O$41,4,0)/'4. Billing Determinants'!$E$41*$D18,IF($E18="kW",VLOOKUP(S$4,'4. Billing Determinants'!$B$19:$O$41,5,0)/'4. Billing Determinants'!$F$41*$D18,IF($E18="Non-RPP kWh",VLOOKUP(S$4,'4. Billing Determinants'!$B$19:$O$41,6,0)/'4. Billing Determinants'!$G$41*$D18,IF($E18="Distribution Rev.",VLOOKUP(S$4,'4. Billing Determinants'!$B$19:$O$41,8,0)/'4. Billing Determinants'!$I$41*$D18, VLOOKUP(S$4,'4. Billing Determinants'!$B$19:$O$41,3,0)/'4. Billing Determinants'!$D$41*$D18))))),0) -> 0 | T18: =IFERROR(IF(T$4="",0,IF($E18="kWh",VLOOKUP(T$4,'4. Billing Determinants'!$B$19:$O$41,4,0)/'4. Billing Determinants'!$E$41*$D18,IF($E18="kW",VLOOKUP(T$4,'4. Billing Determinants'!$B$19:$O$41,5,0)/'4. Billing Determinants'!$F$41*$D18,IF($E18="Non-RPP kWh",VLOOKUP(T$4,'4. Billing Determinants'!$B$19:$O$41,6,0)/'4. Billing Determinants'!$G$41*$D18,IF($E18="Distribution Rev.",VLOOKUP(T$4,'4. Billing Determinants'!$B$19:$O$41,8,0)/'4. Billing Determinants'!$I$41*$D18, VLOOKUP(T$4,'4. Billing Determinants'!$B$19:$O$41,3,0)/'4. Billing Determinants'!$D$41*$D18))))),0) -> 0 | U18: =IFERROR(IF(U$4="",0,IF($E18="kWh",VLOOKUP(U$4,'4. Billing Determinants'!$B$19:$O$41,4,0)/'4. Billing Determinants'!$E$41*$D18,IF($E18="kW",VLOOKUP(U$4,'4. Billing Determinants'!$B$19:$O$41,5,0)/'4. Billing Determinants'!$F$41*$D18,IF($E18="Non-RPP kWh",VLOOKUP(U$4,'4. Billing Determinants'!$B$19:$O$41,6,0)/'4. Billing Determinants'!$G$41*$D18,IF($E18="Distribution Rev.",VLOOKUP(U$4,'4. Billing Determinants'!$B$19:$O$41,8,0)/'4. Billing Determinants'!$I$41*$D18, VLOOKUP(U$4,'4. Billing Determinants'!$B$19:$O$41,3,0)/'4. Billing Determinants'!$D$41*$D18))))),0) -> 0 | V18: =IFERROR(IF(V$4="",0,IF($E18="kWh",VLOOKUP(V$4,'4. Billing Determinants'!$B$19:$O$41,4,0)/'4. Billing Determinants'!$E$41*$D18,IF($E18="kW",VLOOKUP(V$4,'4. Billing Determinants'!$B$19:$O$41,5,0)/'4. Billing Determinants'!$F$41*$D18,IF($E18="Non-RPP kWh",VLOOKUP(V$4,'4. Billing Determinants'!$B$19:$O$41,6,0)/'4. Billing Determinants'!$G$41*$D18,IF($E18="Distribution Rev.",VLOOKUP(V$4,'4. Billing Determinants'!$B$19:$O$41,8,0)/'4. Billing Determinants'!$I$41*$D18, VLOOKUP(V$4,'4. Billing Determinants'!$B$19:$O$41,3,0)/'4. Billing Determinants'!$D$41*$D18))))),0) -> 0 | W18: =IFERROR(IF(W$4="",0,IF($E18="kWh",VLOOKUP(W$4,'4. Billing Determinants'!$B$19:$O$41,4,0)/'4. Billing Determinants'!$E$41*$D18,IF($E18="kW",VLOOKUP(W$4,'4. Billing Determinants'!$B$19:$O$41,5,0)/'4. Billing Determinants'!$F$41*$D18,IF($E18="Non-RPP kWh",VLOOKUP(W$4,'4. Billing Determinants'!$B$19:$O$41,6,0)/'4. Billing Determinants'!$G$41*$D18,IF($E18="Distribution Rev.",VLOOKUP(W$4,'4. Billing Determinants'!$B$19:$O$41,8,0)/'4. Billing Determinants'!$I$41*$D18, VLOOKUP(W$4,'4. Billing Determinants'!$B$19:$O$41,3,0)/'4. Billing Determinants'!$D$41*$D18))))),0) -> 0 | X18: =IFERROR(IF(X$4="",0,IF($E18="kWh",VLOOKUP(X$4,'4. Billing Determinants'!$B$19:$O$41,4,0)/'4. Billing Determinants'!$E$41*$D18,IF($E18="kW",VLOOKUP(X$4,'4. Billing Determinants'!$B$19:$O$41,5,0)/'4. Billing Determinants'!$F$41*$D18,IF($E18="Non-RPP kWh",VLOOKUP(X$4,'4. Billing Determinants'!$B$19:$O$41,6,0)/'4. Billing Determinants'!$G$41*$D18,IF($E18="Distribution Rev.",VLOOKUP(X$4,'4. Billing Determinants'!$B$19:$O$41,8,0)/'4. Billing Determinants'!$I$41*$D18, VLOOKUP(X$4,'4. Billing Determinants'!$B$19:$O$41,3,0)/'4. Billing Determinants'!$D$41*$D18))))),0) -> 0 | Y18: =IFERROR(IF(Y$4="",0,IF($E18="kWh",VLOOKUP(Y$4,'4. Billing Determinants'!$B$19:$O$41,4,0)/'4. Billing Determinants'!$E$41*$D18,IF($E18="kW",VLOOKUP(Y$4,'4. Billing Determinants'!$B$19:$O$41,5,0)/'4. Billing Determinants'!$F$41*$D18,IF($E18="Non-RPP kWh",VLOOKUP(Y$4,'4. Billing Determinants'!$B$19:$O$41,6,0)/'4. Billing Determinants'!$G$41*$D18,IF($E18="Distribution Rev.",VLOOKUP(Y$4,'4. Billing Determinants'!$B$19:$O$41,8,0)/'4. Billing Determinants'!$I$41*$D18, VLOOKUP(Y$4,'4. Billing Determinants'!$B$19:$O$41,3,0)/'4. Billing Determinants'!$D$41*$D18))))),0) -> 0
B19: Other Regulatory Assets - Sub-Account - Pension Contributions | C19: 1508 | D19: ='2. 2014 Continuity Schedule'!CP42 -> 0.11 | F19: =IFERROR(IF(F$4="",0,IF($E19="kWh",VLOOKUP(F$4,'4. Billing Determinants'!$B$19:$O$41,4,0)/'4. Billing Determinants'!$E$41*$D19,IF($E19="kW",VLOOKUP(F$4,'4. Billing Determinants'!$B$19:$O$41,5,0)/'4. Billing Determinants'!$F$41*$D19,IF($E19="Non-RPP kWh",VLOOKUP(F$4,'4. Billing Determinants'!$B$19:$O$41,6,0)/'4. Billing Determinants'!$G$41*$D19,IF($E19="Distribution Rev.",VLOOKUP(F$4,'4. Billing Determinants'!$B$19:$O$41,8,0)/'4. Billing Determinants'!$I$41*$D19, VLOOKUP(F$4,'4. Billing Determinants'!$B$19:$O$41,3,0)/'4. Billing Determinants'!$D$41*$D19))))),0) -> 0.09749246182 | G19: =IFERROR(IF(G$4="",0,IF($E19="kWh",VLOOKUP(G$4,'4. Billing Determinants'!$B$19:$O$41,4,0)/'4. Billing Determinants'!$E$41*$D19,IF($E19="kW",VLOOKUP(G$4,'4. Billing Determinants'!$B$19:$O$41,5,0)/'4. Billing Determinants'!$F$41*$D19,IF($E19="Non-RPP kWh",VLOOKUP(G$4,'4. Billing Determinants'!$B$19:$O$41,6,0)/'4. Billing Determinants'!$G$41*$D19,IF($E19="Distribution Rev.",VLOOKUP(G$4,'4. Billing Determinants'!$B$19:$O$41,8,0)/'4. Billing Determinants'!$I$41*$D19, VLOOKUP(G$4,'4. Billing Determinants'!$B$19:$O$41,3,0)/'4. Billing Determinants'!$D$41*$D19))))),0) -> 0 | H19: =IFERROR(IF(H$4="",0,IF($E19="kWh",VLOOKUP(H$4,'4. Billing Determinants'!$B$19:$O$41,4,0)/'4. Billing Determinants'!$E$41*$D19,IF($E19="kW",VLOOKUP(H$4,'4. Billing Determinants'!$B$19:$O$41,5,0)/'4. Billing Determinants'!$F$41*$D19,IF($E19="Non-RPP kWh",VLOOKUP(H$4,'4. Billing Determinants'!$B$19:$O$41,6,0)/'4. Billing Determinants'!$G$41*$D19,IF($E19="Distribution Rev.",VLOOKUP(H$4,'4. Billing Determinants'!$B$19:$O$41,8,0)/'4. Billing Determinants'!$I$41*$D19, VLOOKUP(H$4,'4. Billing Determinants'!$B$19:$O$41,3,0)/'4. Billing Determinants'!$D$41*$D19))))),0) -> 0.01085448886 | I19: =IFERROR(IF(I$4="",0,IF($E19="kWh",VLOOKUP(I$4,'4. Billing Determinants'!$B$19:$O$41,4,0)/'4. Billing Determinants'!$E$41*$D19,IF($E19="kW",VLOOKUP(I$4,'4. Billing Determinants'!$B$19:$O$41,5,0)/'4. Billing Determinants'!$F$41*$D19,IF($E19="Non-RPP kWh",VLOOKUP(I$4,'4. Billing Determinants'!$B$19:$O$41,6,0)/'4. Billing Determinants'!$G$41*$D19,IF($E19="Distribution Rev.",VLOOKUP(I$4,'4. Billing Determinants'!$B$19:$O$41,8,0)/'4. Billing Determinants'!$I$41*$D19, VLOOKUP(I$4,'4. Billing Determinants'!$B$19:$O$41,3,0)/'4. Billing Determinants'!$D$41*$D19))))),0) -> 0.001214376033 | J19: =IFERROR(IF(J$4="",0,IF($E19="kWh",VLOOKUP(J$4,'4. Billing Determinants'!$B$19:$O$41,4,0)/'4. Billing Determinants'!$E$41*$D19,IF($E19="kW",VLOOKUP(J$4,'4. Billing Determinants'!$B$19:$O$41,5,0)/'4. Billing Determinants'!$F$41*$D19,IF($E19="Non-RPP kWh",VLOOKUP(J$4,'4. Billing Determinants'!$B$19:$O$41,6,0)/'4. Billing Determinants'!$G$41*$D19,IF($E19="Distribution Rev.",VLOOKUP(J$4,'4. Billing Determinants'!$B$19:$O$41,8,0)/'4. Billing Determinants'!$I$41*$D19, VLOOKUP(J$4,'4. Billing Determinants'!$B$19:$O$41,3,0)/'4. Billing Determinants'!$D$41*$D19))))),0) -> 5.349674156e-06 | K19: =IFERROR(IF(K$4="",0,IF($E19="kWh",VLOOKUP(K$4,'4. Billing Determinants'!$B$19:$O$41,4,0)/'4. Billing Determinants'!$E$41*$D19,IF($E19="kW",VLOOKUP(K$4,'4. Billing Determinants'!$B$19:$O$41,5,0)/'4. Billing Determinants'!$F$41*$D19,IF($E19="Non-RPP kWh",VLOOKUP(K$4,'4. Billing Determinants'!$B$19:$O$41,6,0)/'4. Billing Determinants'!$G$41*$D19,IF($E19="Distribution Rev.",VLOOKUP(K$4,'4. Billing Determinants'!$B$19:$O$41,8,0)/'4. Billing Determinants'!$I$41*$D19, VLOOKUP(K$4,'4. Billing Determinants'!$B$19:$O$41,3,0)/'4. Billing Determinants'!$D$41*$D19))))),0) -> 0.0001283921797 | L19: =IFERROR(IF(L$4="",0,IF($E19="kWh",VLOOKUP(L$4,'4. Billing Determinants'!$B$19:$O$41,4,0)/'4. Billing Determinants'!$E$41*$D19,IF($E19="kW",VLOOKUP(L$4,'4. Billing Determinants'!$B$19:$O$41,5,0)/'4. Billing Determinants'!$F$41*$D19,IF($E19="Non-RPP kWh",VLOOKUP(L$4,'4. Billing Determinants'!$B$19:$O$41,6,0)/'4. Billing Determinants'!$G$41*$D19,IF($E19="Distribution Rev.",VLOOKUP(L$4,'4. Billing Determinants'!$B$19:$O$41,8,0)/'4. Billing Determinants'!$I$41*$D19, VLOOKUP(L$4,'4. Billing Determinants'!$B$19:$O$41,3,0)/'4. Billing Determinants'!$D$41*$D19))))),0) -> 0.0002193366404 | M19: =IFERROR(IF(M$4="",0,IF($E19="kWh",VLOOKUP(M$4,'4. Billing Determinants'!$B$19:$O$41,4,0)/'4. Billing Determinants'!$E$41*$D19,IF($E19="kW",VLOOKUP(M$4,'4. Billing Determinants'!$B$19:$O$41,5,0)/'4. Billing Determinants'!$F$41*$D19,IF($E19="Non-RPP kWh",VLOOKUP(M$4,'4. Billing Determinants'!$B$19:$O$41,6,0)/'4. Billing Determinants'!$G$41*$D19,IF($E19="Distribution Rev.",VLOOKUP(M$4,'4. Billing Determinants'!$B$19:$O$41,8,0)/'4. Billing Determinants'!$I$41*$D19, VLOOKUP(M$4,'4. Billing Determinants'!$B$19:$O$41,3,0)/'4. Billing Determinants'!$D$41*$D19))))),0) -> 8.55947865e-05 | N19: =IFERROR(IF(N$4="",0,IF($E19="kWh",VLOOKUP(N$4,'4. Billing Determinants'!$B$19:$O$41,4,0)/'4. Billing Determinants'!$E$41*$D19,IF($E19="kW",VLOOKUP(N$4,'4. Billing Determinants'!$B$19:$O$41,5,0)/'4. Billing Determinants'!$F$41*$D19,IF($E19="Non-RPP kWh",VLOOKUP(N$4,'4. Billing Determinants'!$B$19:$O$41,6,0)/'4. Billing Determinants'!$G$41*$D19,IF($E19="Distribution Rev.",VLOOKUP(N$4,'4. Billing Determinants'!$B$19:$O$41,8,0)/'4. Billing Determinants'!$I$41*$D19, VLOOKUP(N$4,'4. Billing Determinants'!$B$19:$O$41,3,0)/'4. Billing Determinants'!$D$41*$D19))))),0) -> 0 | O19: =IFERROR(IF(O$4="",0,IF($E19="kWh",VLOOKUP(O$4,'4. Billing Determinants'!$B$19:$O$41,4,0)/'4. Billing Determinants'!$E$41*$D19,IF($E19="kW",VLOOKUP(O$4,'4. Billing Determinants'!$B$19:$O$41,5,0)/'4. Billing Determinants'!$F$41*$D19,IF($E19="Non-RPP kWh",VLOOKUP(O$4,'4. Billing Determinants'!$B$19:$O$41,6,0)/'4. Billing Determinants'!$G$41*$D19,IF($E19="Distribution Rev.",VLOOKUP(O$4,'4. Billing Determinants'!$B$19:$O$41,8,0)/'4. Billing Determinants'!$I$41*$D19, VLOOKUP(O$4,'4. Billing Determinants'!$B$19:$O$41,3,0)/'4. Billing Determinants'!$D$41*$D19))))),0) -> 0 | P19: =IFERROR(IF(P$4="",0,IF($E19="kWh",VLOOKUP(P$4,'4. Billing Determinants'!$B$19:$O$41,4,0)/'4. Billing Determinants'!$E$41*$D19,IF($E19="kW",VLOOKUP(P$4,'4. Billing Determinants'!$B$19:$O$41,5,0)/'4. Billing Determinants'!$F$41*$D19,IF($E19="Non-RPP kWh",VLOOKUP(P$4,'4. Billing Determinants'!$B$19:$O$41,6,0)/'4. Billing Determinants'!$G$41*$D19,IF($E19="Distribution Rev.",VLOOKUP(P$4,'4. Billing Determinants'!$B$19:$O$41,8,0)/'4. Billing Determinants'!$I$41*$D19, VLOOKUP(P$4,'4. Billing Determinants'!$B$19:$O$41,3,0)/'4. Billing Determinants'!$D$41*$D19))))),0) -> 0 | Q19: =IFERROR(IF(Q$4="",0,IF($E19="kWh",VLOOKUP(Q$4,'4. Billing Determinants'!$B$19:$O$41,4,0)/'4. Billing Determinants'!$E$41*$D19,IF($E19="kW",VLOOKUP(Q$4,'4. Billing Determinants'!$B$19:$O$41,5,0)/'4. Billing Determinants'!$F$41*$D19,IF($E19="Non-RPP kWh",VLOOKUP(Q$4,'4. Billing Determinants'!$B$19:$O$41,6,0)/'4. Billing Determinants'!$G$41*$D19,IF($E19="Distribution Rev.",VLOOKUP(Q$4,'4. Billing Determinants'!$B$19:$O$41,8,0)/'4. Billing Determinants'!$I$41*$D19, VLOOKUP(Q$4,'4. Billing Determinants'!$B$19:$O$41,3,0)/'4. Billing Determinants'!$D$41*$D19))))),0) -> 0 | R19: =IFERROR(IF(R$4="",0,IF($E19="kWh",VLOOKUP(R$4,'4. Billing Determinants'!$B$19:$O$41,4,0)/'4. Billing Determinants'!$E$41*$D19,IF($E19="kW",VLOOKUP(R$4,'4. Billing Determinants'!$B$19:$O$41,5,0)/'4. Billing Determinants'!$F$41*$D19,IF($E19="Non-RPP kWh",VLOOKUP(R$4,'4. Billing Determinants'!$B$19:$O$41,6,0)/'4. Billing Determinants'!$G$41*$D19,IF($E19="Distribution Rev.",VLOOKUP(R$4,'4. Billing Determinants'!$B$19:$O$41,8,0)/'4. Billing Determinants'!$I$41*$D19, VLOOKUP(R$4,'4. Billing Determinants'!$B$19:$O$41,3,0)/'4. Billing Determinants'!$D$41*$D19))))),0) -> 0 | S19: =IFERROR(IF(S$4="",0,IF($E19="kWh",VLOOKUP(S$4,'4. Billing Determinants'!$B$19:$O$41,4,0)/'4. Billing Determinants'!$E$41*$D19,IF($E19="kW",VLOOKUP(S$4,'4. Billing Determinants'!$B$19:$O$41,5,0)/'4. Billing Determinants'!$F$41*$D19,IF($E19="Non-RPP kWh",VLOOKUP(S$4,'4. Billing Determinants'!$B$19:$O$41,6,0)/'4. Billing Determinants'!$G$41*$D19,IF($E19="Distribution Rev.",VLOOKUP(S$4,'4. Billing Determinants'!$B$19:$O$41,8,0)/'4. Billing Determinants'!$I$41*$D19, VLOOKUP(S$4,'4. Billing Determinants'!$B$19:$O$41,3,0)/'4. Billing Determinants'!$D$41*$D19))))),0) -> 0 | T19: =IFERROR(IF(T$4="",0,IF($E19="kWh",VLOOKUP(T$4,'4. Billing Determinants'!$B$19:$O$41,4,0)/'4. Billing Determinants'!$E$41*$D19,IF($E19="kW",VLOOKUP(T$4,'4. Billing Determinants'!$B$19:$O$41,5,0)/'4. Billing Determinants'!$F$41*$D19,IF($E19="Non-RPP kWh",VLOOKUP(T$4,'4. Billing Determinants'!$B$19:$O$41,6,0)/'4. Billing Determinants'!$G$41*$D19,IF($E19="Distribution Rev.",VLOOKUP(T$4,'4. Billing Determinants'!$B$19:$O$41,8,0)/'4. Billing Determinants'!$I$41*$D19, VLOOKUP(T$4,'4. Billing Determinants'!$B$19:$O$41,3,0)/'4. Billing Determinants'!$D$41*$D19))))),0) -> 0 | U19: =IFERROR(IF(U$4="",0,IF($E19="kWh",VLOOKUP(U$4,'4. Billing Determinants'!$B$19:$O$41,4,0)/'4. Billing Determinants'!$E$41*$D19,IF($E19="kW",VLOOKUP(U$4,'4. Billing Determinants'!$B$19:$O$41,5,0)/'4. Billing Determinants'!$F$41*$D19,IF($E19="Non-RPP kWh",VLOOKUP(U$4,'4. Billing Determinants'!$B$19:$O$41,6,0)/'4. Billing Determinants'!$G$41*$D19,IF($E19="Distribution Rev.",VLOOKUP(U$4,'4. Billing Determinants'!$B$19:$O$41,8,0)/'4. Billing Determinants'!$I$41*$D19, VLOOKUP(U$4,'4. Billing Determinants'!$B$19:$O$41,3,0)/'4. Billing Determinants'!$D$41*$D19))))),0) -> 0 | V19: =IFERROR(IF(V$4="",0,IF($E19="kWh",VLOOKUP(V$4,'4. Billing Determinants'!$B$19:$O$41,4,0)/'4. Billing Determinants'!$E$41*$D19,IF($E19="kW",VLOOKUP(V$4,'4. Billing Determinants'!$B$19:$O$41,5,0)/'4. Billing Determinants'!$F$41*$D19,IF($E19="Non-RPP kWh",VLOOKUP(V$4,'4. Billing Determinants'!$B$19:$O$41,6,0)/'4. Billing Determinants'!$G$41*$D19,IF($E19="Distribution Rev.",VLOOKUP(V$4,'4. Billing Determinants'!$B$19:$O$41,8,0)/'4. Billing Determinants'!$I$41*$D19, VLOOKUP(V$4,'4. Billing Determinants'!$B$19:$O$41,3,0)/'4. Billing Determinants'!$D$41*$D19))))),0) -> 0 | W19: =IFERROR(IF(W$4="",0,IF($E19="kWh",VLOOKUP(W$4,'4. Billing Determinants'!$B$19:$O$41,4,0)/'4. Billing Determinants'!$E$41*$D19,IF($E19="kW",VLOOKUP(W$4,'4. Billing Determinants'!$B$19:$O$41,5,0)/'4. Billing Determinants'!$F$41*$D19,IF($E19="Non-RPP kWh",VLOOKUP(W$4,'4. Billing Determinants'!$B$19:$O$41,6,0)/'4. Billing Determinants'!$G$41*$D19,IF($E19="Distribution Rev.",VLOOKUP(W$4,'4. Billing Determinants'!$B$19:$O$41,8,0)/'4. Billing Determinants'!$I$41*$D19, VLOOKUP(W$4,'4. Billing Determinants'!$B$19:$O$41,3,0)/'4. Billing Determinants'!$D$41*$D19))))),0) -> 0 | X19: =IFERROR(IF(X$4="",0,IF($E19="kWh",VLOOKUP(X$4,'4. Billing Determinants'!$B$19:$O$41,4,0)/'4. Billing Determinants'!$E$41*$D19,IF($E19="kW",VLOOKUP(X$4,'4. Billing Determinants'!$B$19:$O$41,5,0)/'4. Billing Determinants'!$F$41*$D19,IF($E19="Non-RPP kWh",VLOOKUP(X$4,'4. Billing Determinants'!$B$19:$O$41,6,0)/'4. Billing Determinants'!$G$41*$D19,IF($E19="Distribution Rev.",VLOOKUP(X$4,'4. Billing Determinants'!$B$19:$O$41,8,0)/'4. Billing Determinants'!$I$41*$D19, VLOOKUP(X$4,'4. Billing Determinants'!$B$19:$O$41,3,0)/'4. Billing Determinants'!$D$41*$D19))))),0) -> 0 | Y19: =IFERROR(IF(Y$4="",0,IF($E19="kWh",VLOOKUP(Y$4,'4. Billing Determinants'!$B$19:$O$41,4,0)/'4. Billing Determinants'!$E$41*$D19,IF($E19="kW",VLOOKUP(Y$4,'4. Billing Determinants'!$B$19:$O$41,5,0)/'4. Billing Determinants'!$F$41*$D19,IF($E19="Non-RPP kWh",VLOOKUP(Y$4,'4. Billing Determinants'!$B$19:$O$41,6,0)/'4. Billing Determinants'!$G$41*$D19,IF($E19="Distribution Rev.",VLOOKUP(Y$4,'4. Billing Determinants'!$B$19:$O$41,8,0)/'4. Billing Determinants'!$I$41*$D19, VLOOKUP(Y$4,'4. Billing Determinants'!$B$19:$O$41,3,0)/'4. Billing Determinants'!$D$41*$D19))))),0) -> 0
B20: Other Regulatory Assets - Sub-Account - Deferred IFRS Transition Costs | C20: 1508 | D20: ='2. 2014 Continuity Schedule'!CP43 -> 135083.43 | E20: Distribution Rev. | F20: =IFERROR(IF(F$4="",0,IF($E20="kWh",VLOOKUP(F$4,'4. Billing Determinants'!$B$19:$O$41,4,0)/'4. Billing Determinants'!$E$41*$D20,IF($E20="kW",VLOOKUP(F$4,'4. Billing Determinants'!$B$19:$O$41,5,0)/'4. Billing Determinants'!$F$41*$D20,IF($E20="Non-RPP kWh",VLOOKUP(F$4,'4. Billing Determinants'!$B$19:$O$41,6,0)/'4. Billing Determinants'!$G$41*$D20,IF($E20="Distribution Rev.",VLOOKUP(F$4,'4. Billing Determinants'!$B$19:$O$41,8,0)/'4. Billing Determinants'!$I$41*$D20, VLOOKUP(F$4,'4. Billing Determinants'!$B$19:$O$41,3,0)/'4. Billing Determinants'!$D$41*$D20))))),0) -> 75862.06658 | G20: =IFERROR(IF(G$4="",0,IF($E20="kWh",VLOOKUP(G$4,'4. Billing Determinants'!$B$19:$O$41,4,0)/'4. Billing Determinants'!$E$41*$D20,IF($E20="kW",VLOOKUP(G$4,'4. Billing Determinants'!$B$19:$O$41,5,0)/'4. Billing Determinants'!$F$41*$D20,IF($E20="Non-RPP kWh",VLOOKUP(G$4,'4. Billing Determinants'!$B$19:$O$41,6,0)/'4. Billing Determinants'!$G$41*$D20,IF($E20="Distribution Rev.",VLOOKUP(G$4,'4. Billing Determinants'!$B$19:$O$41,8,0)/'4. Billing Determinants'!$I$41*$D20, VLOOKUP(G$4,'4. Billing Determinants'!$B$19:$O$41,3,0)/'4. Billing Determinants'!$D$41*$D20))))),0) -> 0 | H20: =IFERROR(IF(H$4="",0,IF($E20="kWh",VLOOKUP(H$4,'4. Billing Determinants'!$B$19:$O$41,4,0)/'4. Billing Determinants'!$E$41*$D20,IF($E20="kW",VLOOKUP(H$4,'4. Billing Determinants'!$B$19:$O$41,5,0)/'4. Billing Determinants'!$F$41*$D20,IF($E20="Non-RPP kWh",VLOOKUP(H$4,'4. Billing Determinants'!$B$19:$O$41,6,0)/'4. Billing Determinants'!$G$41*$D20,IF($E20="Distribution Rev.",VLOOKUP(H$4,'4. Billing Determinants'!$B$19:$O$41,8,0)/'4. Billing Determinants'!$I$41*$D20, VLOOKUP(H$4,'4. Billing Determinants'!$B$19:$O$41,3,0)/'4. Billing Determinants'!$D$41*$D20))))),0) -> 22239.91713 | I20: =IFERROR(IF(I$4="",0,IF($E20="kWh",VLOOKUP(I$4,'4. Billing Determinants'!$B$19:$O$41,4,0)/'4. Billing Determinants'!$E$41*$D20,IF($E20="kW",VLOOKUP(I$4,'4. Billing Determinants'!$B$19:$O$41,5,0)/'4. Billing Determinants'!$F$41*$D20,IF($E20="Non-RPP kWh",VLOOKUP(I$4,'4. Billing Determinants'!$B$19:$O$41,6,0)/'4. Billing Determinants'!$G$41*$D20,IF($E20="Distribution Rev.",VLOOKUP(I$4,'4. Billing Determinants'!$B$19:$O$41,8,0)/'4. Billing Determinants'!$I$41*$D20, VLOOKUP(I$4,'4. Billing Determinants'!$B$19:$O$41,3,0)/'4. Billing Determinants'!$D$41*$D20))))),0) -> 33010.3778 | J20: =IFERROR(IF(J$4="",0,IF($E20="kWh",VLOOKUP(J$4,'4. Billing Determinants'!$B$19:$O$41,4,0)/'4. Billing Determinants'!$E$41*$D20,IF($E20="kW",VLOOKUP(J$4,'4. Billing Determinants'!$B$19:$O$41,5,0)/'4. Billing Determinants'!$F$41*$D20,IF($E20="Non-RPP kWh",VLOOKUP(J$4,'4. Billing Determinants'!$B$19:$O$41,6,0)/'4. Billing Determinants'!$G$41*$D20,IF($E20="Distribution Rev.",VLOOKUP(J$4,'4. Billing Determinants'!$B$19:$O$41,8,0)/'4. Billing Determinants'!$I$41*$D20, VLOOKUP(J$4,'4. Billing Determinants'!$B$19:$O$41,3,0)/'4. Billing Determinants'!$D$41*$D20))))),0) -> 1926.304872 | K20: =IFERROR(IF(K$4="",0,IF($E20="kWh",VLOOKUP(K$4,'4. Billing Determinants'!$B$19:$O$41,4,0)/'4. Billing Determinants'!$E$41*$D20,IF($E20="kW",VLOOKUP(K$4,'4. Billing Determinants'!$B$19:$O$41,5,0)/'4. Billing Determinants'!$F$41*$D20,IF($E20="Non-RPP kWh",VLOOKUP(K$4,'4. Billing Determinants'!$B$19:$O$41,6,0)/'4. Billing Determinants'!$G$41*$D20,IF($E20="Distribution Rev.",VLOOKUP(K$4,'4. Billing Determinants'!$B$19:$O$41,8,0)/'4. Billing Determinants'!$I$41*$D20, VLOOKUP(K$4,'4. Billing Determinants'!$B$19:$O$41,3,0)/'4. Billing Determinants'!$D$41*$D20))))),0) -> 350.9053893 | L20: =IFERROR(IF(L$4="",0,IF($E20="kWh",VLOOKUP(L$4,'4. Billing Determinants'!$B$19:$O$41,4,0)/'4. Billing Determinants'!$E$41*$D20,IF($E20="kW",VLOOKUP(L$4,'4. Billing Determinants'!$B$19:$O$41,5,0)/'4. Billing Determinants'!$F$41*$D20,IF($E20="Non-RPP kWh",VLOOKUP(L$4,'4. Billing Determinants'!$B$19:$O$41,6,0)/'4. Billing Determinants'!$G$41*$D20,IF($E20="Distribution Rev.",VLOOKUP(L$4,'4. Billing Determinants'!$B$19:$O$41,8,0)/'4. Billing Determinants'!$I$41*$D20, VLOOKUP(L$4,'4. Billing Determinants'!$B$19:$O$41,3,0)/'4. Billing Determinants'!$D$41*$D20))))),0) -> 64.64281283 | M20: =IFERROR(IF(M$4="",0,IF($E20="kWh",VLOOKUP(M$4,'4. Billing Determinants'!$B$19:$O$41,4,0)/'4. Billing Determinants'!$E$41*$D20,IF($E20="kW",VLOOKUP(M$4,'4. Billing Determinants'!$B$19:$O$41,5,0)/'4. Billing Determinants'!$F$41*$D20,IF($E20="Non-RPP kWh",VLOOKUP(M$4,'4. Billing Determinants'!$B$19:$O$41,6,0)/'4. Billing Determinants'!$G$41*$D20,IF($E20="Distribution Rev.",VLOOKUP(M$4,'4. Billing Determinants'!$B$19:$O$41,8,0)/'4. Billing Determinants'!$I$41*$D20, VLOOKUP(M$4,'4. Billing Determinants'!$B$19:$O$41,3,0)/'4. Billing Determinants'!$D$41*$D20))))),0) -> 1629.215421 | N20: =IFERROR(IF(N$4="",0,IF($E20="kWh",VLOOKUP(N$4,'4. Billing Determinants'!$B$19:$O$41,4,0)/'4. Billing Determinants'!$E$41*$D20,IF($E20="kW",VLOOKUP(N$4,'4. Billing Determinants'!$B$19:$O$41,5,0)/'4. Billing Determinants'!$F$41*$D20,IF($E20="Non-RPP kWh",VLOOKUP(N$4,'4. Billing Determinants'!$B$19:$O$41,6,0)/'4. Billing Determinants'!$G$41*$D20,IF($E20="Distribution Rev.",VLOOKUP(N$4,'4. Billing Determinants'!$B$19:$O$41,8,0)/'4. Billing Determinants'!$I$41*$D20, VLOOKUP(N$4,'4. Billing Determinants'!$B$19:$O$41,3,0)/'4. Billing Determinants'!$D$41*$D20))))),0) -> 0 | O20: =IFERROR(IF(O$4="",0,IF($E20="kWh",VLOOKUP(O$4,'4. Billing Determinants'!$B$19:$O$41,4,0)/'4. Billing Determinants'!$E$41*$D20,IF($E20="kW",VLOOKUP(O$4,'4. Billing Determinants'!$B$19:$O$41,5,0)/'4. Billing Determinants'!$F$41*$D20,IF($E20="Non-RPP kWh",VLOOKUP(O$4,'4. Billing Determinants'!$B$19:$O$41,6,0)/'4. Billing Determinants'!$G$41*$D20,IF($E20="Distribution Rev.",VLOOKUP(O$4,'4. Billing Determinants'!$B$19:$O$41,8,0)/'4. Billing Determinants'!$I$41*$D20, VLOOKUP(O$4,'4. Billing Determinants'!$B$19:$O$41,3,0)/'4. Billing Determinants'!$D$41*$D20))))),0) -> 0 | P20: =IFERROR(IF(P$4="",0,IF($E20="kWh",VLOOKUP(P$4,'4. Billing Determinants'!$B$19:$O$41,4,0)/'4. Billing Determinants'!$E$41*$D20,IF($E20="kW",VLOOKUP(P$4,'4. Billing Determinants'!$B$19:$O$41,5,0)/'4. Billing Determinants'!$F$41*$D20,IF($E20="Non-RPP kWh",VLOOKUP(P$4,'4. Billing Determinants'!$B$19:$O$41,6,0)/'4. Billing Determinants'!$G$41*$D20,IF($E20="Distribution Rev.",VLOOKUP(P$4,'4. Billing Determinants'!$B$19:$O$41,8,0)/'4. Billing Determinants'!$I$41*$D20, VLOOKUP(P$4,'4. Billing Determinants'!$B$19:$O$41,3,0)/'4. Billing Determinants'!$D$41*$D20))))),0) -> 0 | Q20: =IFERROR(IF(Q$4="",0,IF($E20="kWh",VLOOKUP(Q$4,'4. Billing Determinants'!$B$19:$O$41,4,0)/'4. Billing Determinants'!$E$41*$D20,IF($E20="kW",VLOOKUP(Q$4,'4. Billing Determinants'!$B$19:$O$41,5,0)/'4. Billing Determinants'!$F$41*$D20,IF($E20="Non-RPP kWh",VLOOKUP(Q$4,'4. Billing Determinants'!$B$19:$O$41,6,0)/'4. Billing Determinants'!$G$41*$D20,IF($E20="Distribution Rev.",VLOOKUP(Q$4,'4. Billing Determinants'!$B$19:$O$41,8,0)/'4. Billing Determinants'!$I$41*$D20, VLOOKUP(Q$4,'4. Billing Determinants'!$B$19:$O$41,3,0)/'4. Billing Determinants'!$D$41*$D20))))),0) -> 0 | R20: =IFERROR(IF(R$4="",0,IF($E20="kWh",VLOOKUP(R$4,'4. Billing Determinants'!$B$19:$O$41,4,0)/'4. Billing Determinants'!$E$41*$D20,IF($E20="kW",VLOOKUP(R$4,'4. Billing Determinants'!$B$19:$O$41,5,0)/'4. Billing Determinants'!$F$41*$D20,IF($E20="Non-RPP kWh",VLOOKUP(R$4,'4. Billing Determinants'!$B$19:$O$41,6,0)/'4. Billing Determinants'!$G$41*$D20,IF($E20="Distribution Rev.",VLOOKUP(R$4,'4. Billing Determinants'!$B$19:$O$41,8,0)/'4. Billing Determinants'!$I$41*$D20, VLOOKUP(R$4,'4. Billing Determinants'!$B$19:$O$41,3,0)/'4. Billing Determinants'!$D$41*$D20))))),0) -> 0 | S20: =IFERROR(IF(S$4="",0,IF($E20="kWh",VLOOKUP(S$4,'4. Billing Determinants'!$B$19:$O$41,4,0)/'4. Billing Determinants'!$E$41*$D20,IF($E20="kW",VLOOKUP(S$4,'4. Billing Determinants'!$B$19:$O$41,5,0)/'4. Billing Determinants'!$F$41*$D20,IF($E20="Non-RPP kWh",VLOOKUP(S$4,'4. Billing Determinants'!$B$19:$O$41,6,0)/'4. Billing Determinants'!$G$41*$D20,IF($E20="Distribution Rev.",VLOOKUP(S$4,'4. Billing Determinants'!$B$19:$O$41,8,0)/'4. Billing Determinants'!$I$41*$D20, VLOOKUP(S$4,'4. Billing Determinants'!$B$19:$O$41,3,0)/'4. Billing Determinants'!$D$41*$D20))))),0) -> 0 | T20: =IFERROR(IF(T$4="",0,IF($E20="kWh",VLOOKUP(T$4,'4. Billing Determinants'!$B$19:$O$41,4,0)/'4. Billing Determinants'!$E$41*$D20,IF($E20="kW",VLOOKUP(T$4,'4. Billing Determinants'!$B$19:$O$41,5,0)/'4. Billing Determinants'!$F$41*$D20,IF($E20="Non-RPP kWh",VLOOKUP(T$4,'4. Billing Determinants'!$B$19:$O$41,6,0)/'4. Billing Determinants'!$G$41*$D20,IF($E20="Distribution Rev.",VLOOKUP(T$4,'4. Billing Determinants'!$B$19:$O$41,8,0)/'4. Billing Determinants'!$I$41*$D20, VLOOKUP(T$4,'4. Billing Determinants'!$B$19:$O$41,3,0)/'4. Billing Determinants'!$D$41*$D20))))),0) -> 0 | U20: =IFERROR(IF(U$4="",0,IF($E20="kWh",VLOOKUP(U$4,'4. Billing Determinants'!$B$19:$O$41,4,0)/'4. Billing Determinants'!$E$41*$D20,IF($E20="kW",VLOOKUP(U$4,'4. Billing Determinants'!$B$19:$O$41,5,0)/'4. Billing Determinants'!$F$41*$D20,IF($E20="Non-RPP kWh",VLOOKUP(U$4,'4. Billing Determinants'!$B$19:$O$41,6,0)/'4. Billing Determinants'!$G$41*$D20,IF($E20="Distribution Rev.",VLOOKUP(U$4,'4. Billing Determinants'!$B$19:$O$41,8,0)/'4. Billing Determinants'!$I$41*$D20, VLOOKUP(U$4,'4. Billing Determinants'!$B$19:$O$41,3,0)/'4. Billing Determinants'!$D$41*$D20))))),0) -> 0 | V20: =IFERROR(IF(V$4="",0,IF($E20="kWh",VLOOKUP(V$4,'4. Billing Determinants'!$B$19:$O$41,4,0)/'4. Billing Determinants'!$E$41*$D20,IF($E20="kW",VLOOKUP(V$4,'4. Billing Determinants'!$B$19:$O$41,5,0)/'4. Billing Determinants'!$F$41*$D20,IF($E20="Non-RPP kWh",VLOOKUP(V$4,'4. Billing Determinants'!$B$19:$O$41,6,0)/'4. Billing Determinants'!$G$41*$D20,IF($E20="Distribution Rev.",VLOOKUP(V$4,'4. Billing Determinants'!$B$19:$O$41,8,0)/'4. Billing Determinants'!$I$41*$D20, VLOOKUP(V$4,'4. Billing Determinants'!$B$19:$O$41,3,0)/'4. Billing Determinants'!$D$41*$D20))))),0) -> 0 | W20: =IFERROR(IF(W$4="",0,IF($E20="kWh",VLOOKUP(W$4,'4. Billing Determinants'!$B$19:$O$41,4,0)/'4. Billing Determinants'!$E$41*$D20,IF($E20="kW",VLOOKUP(W$4,'4. Billing Determinants'!$B$19:$O$41,5,0)/'4. Billing Determinants'!$F$41*$D20,IF($E20="Non-RPP kWh",VLOOKUP(W$4,'4. Billing Determinants'!$B$19:$O$41,6,0)/'4. Billing Determinants'!$G$41*$D20,IF($E20="Distribution Rev.",VLOOKUP(W$4,'4. Billing Determinants'!$B$19:$O$41,8,0)/'4. Billing Determinants'!$I$41*$D20, VLOOKUP(W$4,'4. Billing Determinants'!$B$19:$O$41,3,0)/'4. Billing Determinants'!$D$41*$D20))))),0) -> 0 | X20: =IFERROR(IF(X$4="",0,IF($E20="kWh",VLOOKUP(X$4,'4. Billing Determinants'!$B$19:$O$41,4,0)/'4. Billing Determinants'!$E$41*$D20,IF($E20="kW",VLOOKUP(X$4,'4. Billing Determinants'!$B$19:$O$41,5,0)/'4. Billing Determinants'!$F$41*$D20,IF($E20="Non-RPP kWh",VLOOKUP(X$4,'4. Billing Determinants'!$B$19:$O$41,6,0)/'4. Billing Determinants'!$G$41*$D20,IF($E20="Distribution Rev.",VLOOKUP(X$4,'4. Billing Determinants'!$B$19:$O$41,8,0)/'4. Billing Determinants'!$I$41*$D20, VLOOKUP(X$4,'4. Billing Determinants'!$B$19:$O$41,3,0)/'4. Billing Determinants'!$D$41*$D20))))),0) -> 0 | Y20: =IFERROR(IF(Y$4="",0,IF($E20="kWh",VLOOKUP(Y$4,'4. Billing Determinants'!$B$19:$O$41,4,0)/'4. Billing Determinants'!$E$41*$D20,IF($E20="kW",VLOOKUP(Y$4,'4. Billing Determinants'!$B$19:$O$41,5,0)/'4. Billing Determinants'!$F$41*$D20,IF($E20="Non-RPP kWh",VLOOKUP(Y$4,'4. Billing Determinants'!$B$19:$O$41,6,0)/'4. Billing Determinants'!$G$41*$D20,IF($E20="Distribution Rev.",VLOOKUP(Y$4,'4. Billing Determinants'!$B$19:$O$41,8,0)/'4. Billing Determinants'!$I$41*$D20, VLOOKUP(Y$4,'4. Billing Determinants'!$B$19:$O$41,3,0)/'4. Billing Determinants'!$D$41*$D20))))),0) -> 0
B21: Other Regulatory Assets - Sub-Account - Incremental Capital Charges | C21: 1508 | D21: ='2. 2014 Continuity Schedule'!CP44 -> 2301.012314 | E21: Distribution Rev. | F21: =IFERROR(IF(F$4="",0,IF($E21="kWh",VLOOKUP(F$4,'4. Billing Determinants'!$B$19:$O$41,4,0)/'4. Billing Determinants'!$E$41*$D21,IF($E21="kW",VLOOKUP(F$4,'4. Billing Determinants'!$B$19:$O$41,5,0)/'4. Billing Determinants'!$F$41*$D21,IF($E21="Non-RPP kWh",VLOOKUP(F$4,'4. Billing Determinants'!$B$19:$O$41,6,0)/'4. Billing Determinants'!$G$41*$D21,IF($E21="Distribution Rev.",VLOOKUP(F$4,'4. Billing Determinants'!$B$19:$O$41,8,0)/'4. Billing Determinants'!$I$41*$D21, VLOOKUP(F$4,'4. Billing Determinants'!$B$19:$O$41,3,0)/'4. Billing Determinants'!$D$41*$D21))))),0) -> 1292.235098 | G21: =IFERROR(IF(G$4="",0,IF($E21="kWh",VLOOKUP(G$4,'4. Billing Determinants'!$B$19:$O$41,4,0)/'4. Billing Determinants'!$E$41*$D21,IF($E21="kW",VLOOKUP(G$4,'4. Billing Determinants'!$B$19:$O$41,5,0)/'4. Billing Determinants'!$F$41*$D21,IF($E21="Non-RPP kWh",VLOOKUP(G$4,'4. Billing Determinants'!$B$19:$O$41,6,0)/'4. Billing Determinants'!$G$41*$D21,IF($E21="Distribution Rev.",VLOOKUP(G$4,'4. Billing Determinants'!$B$19:$O$41,8,0)/'4. Billing Determinants'!$I$41*$D21, VLOOKUP(G$4,'4. Billing Determinants'!$B$19:$O$41,3,0)/'4. Billing Determinants'!$D$41*$D21))))),0) -> 0 | H21: =IFERROR(IF(H$4="",0,IF($E21="kWh",VLOOKUP(H$4,'4. Billing Determinants'!$B$19:$O$41,4,0)/'4. Billing Determinants'!$E$41*$D21,IF($E21="kW",VLOOKUP(H$4,'4. Billing Determinants'!$B$19:$O$41,5,0)/'4. Billing Determinants'!$F$41*$D21,IF($E21="Non-RPP kWh",VLOOKUP(H$4,'4. Billing Determinants'!$B$19:$O$41,6,0)/'4. Billing Determinants'!$G$41*$D21,IF($E21="Distribution Rev.",VLOOKUP(H$4,'4. Billing Determinants'!$B$19:$O$41,8,0)/'4. Billing Determinants'!$I$41*$D21, VLOOKUP(H$4,'4. Billing Determinants'!$B$19:$O$41,3,0)/'4. Billing Determinants'!$D$41*$D21))))),0) -> 378.8349405 | I21: =IFERROR(IF(I$4="",0,IF($E21="kWh",VLOOKUP(I$4,'4. Billing Determinants'!$B$19:$O$41,4,0)/'4. Billing Determinants'!$E$41*$D21,IF($E21="kW",VLOOKUP(I$4,'4. Billing Determinants'!$B$19:$O$41,5,0)/'4. Billing Determinants'!$F$41*$D21,IF($E21="Non-RPP kWh",VLOOKUP(I$4,'4. Billing Determinants'!$B$19:$O$41,6,0)/'4. Billing Determinants'!$G$41*$D21,IF($E21="Distribution Rev.",VLOOKUP(I$4,'4. Billing Determinants'!$B$19:$O$41,8,0)/'4. Billing Determinants'!$I$41*$D21, VLOOKUP(I$4,'4. Billing Determinants'!$B$19:$O$41,3,0)/'4. Billing Determinants'!$D$41*$D21))))),0) -> 562.2990607 | J21: =IFERROR(IF(J$4="",0,IF($E21="kWh",VLOOKUP(J$4,'4. Billing Determinants'!$B$19:$O$41,4,0)/'4. Billing Determinants'!$E$41*$D21,IF($E21="kW",VLOOKUP(J$4,'4. Billing Determinants'!$B$19:$O$41,5,0)/'4. Billing Determinants'!$F$41*$D21,IF($E21="Non-RPP kWh",VLOOKUP(J$4,'4. Billing Determinants'!$B$19:$O$41,6,0)/'4. Billing Determinants'!$G$41*$D21,IF($E21="Distribution Rev.",VLOOKUP(J$4,'4. Billing Determinants'!$B$19:$O$41,8,0)/'4. Billing Determinants'!$I$41*$D21, VLOOKUP(J$4,'4. Billing Determinants'!$B$19:$O$41,3,0)/'4. Billing Determinants'!$D$41*$D21))))),0) -> 32.81269384 | K21: =IFERROR(IF(K$4="",0,IF($E21="kWh",VLOOKUP(K$4,'4. Billing Determinants'!$B$19:$O$41,4,0)/'4. Billing Determinants'!$E$41*$D21,IF($E21="kW",VLOOKUP(K$4,'4. Billing Determinants'!$B$19:$O$41,5,0)/'4. Billing Determinants'!$F$41*$D21,IF($E21="Non-RPP kWh",VLOOKUP(K$4,'4. Billing Determinants'!$B$19:$O$41,6,0)/'4. Billing Determinants'!$G$41*$D21,IF($E21="Distribution Rev.",VLOOKUP(K$4,'4. Billing Determinants'!$B$19:$O$41,8,0)/'4. Billing Determinants'!$I$41*$D21, VLOOKUP(K$4,'4. Billing Determinants'!$B$19:$O$41,3,0)/'4. Billing Determinants'!$D$41*$D21))))),0) -> 5.977325434 | L21: =IFERROR(IF(L$4="",0,IF($E21="kWh",VLOOKUP(L$4,'4. Billing Determinants'!$B$19:$O$41,4,0)/'4. Billing Determinants'!$E$41*$D21,IF($E21="kW",VLOOKUP(L$4,'4. Billing Determinants'!$B$19:$O$41,5,0)/'4. Billing Determinants'!$F$41*$D21,IF($E21="Non-RPP kWh",VLOOKUP(L$4,'4. Billing Determinants'!$B$19:$O$41,6,0)/'4. Billing Determinants'!$G$41*$D21,IF($E21="Distribution Rev.",VLOOKUP(L$4,'4. Billing Determinants'!$B$19:$O$41,8,0)/'4. Billing Determinants'!$I$41*$D21, VLOOKUP(L$4,'4. Billing Determinants'!$B$19:$O$41,3,0)/'4. Billing Determinants'!$D$41*$D21))))),0) -> 1.101126232 | M21: =IFERROR(IF(M$4="",0,IF($E21="kWh",VLOOKUP(M$4,'4. Billing Determinants'!$B$19:$O$41,4,0)/'4. Billing Determinants'!$E$41*$D21,IF($E21="kW",VLOOKUP(M$4,'4. Billing Determinants'!$B$19:$O$41,5,0)/'4. Billing Determinants'!$F$41*$D21,IF($E21="Non-RPP kWh",VLOOKUP(M$4,'4. Billing Determinants'!$B$19:$O$41,6,0)/'4. Billing Determinants'!$G$41*$D21,IF($E21="Distribution Rev.",VLOOKUP(M$4,'4. Billing Determinants'!$B$19:$O$41,8,0)/'4. Billing Determinants'!$I$41*$D21, VLOOKUP(M$4,'4. Billing Determinants'!$B$19:$O$41,3,0)/'4. Billing Determinants'!$D$41*$D21))))),0) -> 27.75206956 | N21: =IFERROR(IF(N$4="",0,IF($E21="kWh",VLOOKUP(N$4,'4. Billing Determinants'!$B$19:$O$41,4,0)/'4. Billing Determinants'!$E$41*$D21,IF($E21="kW",VLOOKUP(N$4,'4. Billing Determinants'!$B$19:$O$41,5,0)/'4. Billing Determinants'!$F$41*$D21,IF($E21="Non-RPP kWh",VLOOKUP(N$4,'4. Billing Determinants'!$B$19:$O$41,6,0)/'4. Billing Determinants'!$G$41*$D21,IF($E21="Distribution Rev.",VLOOKUP(N$4,'4. Billing Determinants'!$B$19:$O$41,8,0)/'4. Billing Determinants'!$I$41*$D21, VLOOKUP(N$4,'4. Billing Determinants'!$B$19:$O$41,3,0)/'4. Billing Determinants'!$D$41*$D21))))),0) -> 0 | O21: =IFERROR(IF(O$4="",0,IF($E21="kWh",VLOOKUP(O$4,'4. Billing Determinants'!$B$19:$O$41,4,0)/'4. Billing Determinants'!$E$41*$D21,IF($E21="kW",VLOOKUP(O$4,'4. Billing Determinants'!$B$19:$O$41,5,0)/'4. Billing Determinants'!$F$41*$D21,IF($E21="Non-RPP kWh",VLOOKUP(O$4,'4. Billing Determinants'!$B$19:$O$41,6,0)/'4. Billing Determinants'!$G$41*$D21,IF($E21="Distribution Rev.",VLOOKUP(O$4,'4. Billing Determinants'!$B$19:$O$41,8,0)/'4. Billing Determinants'!$I$41*$D21, VLOOKUP(O$4,'4. Billing Determinants'!$B$19:$O$41,3,0)/'4. Billing Determinants'!$D$41*$D21))))),0) -> 0 | P21: =IFERROR(IF(P$4="",0,IF($E21="kWh",VLOOKUP(P$4,'4. Billing Determinants'!$B$19:$O$41,4,0)/'4. Billing Determinants'!$E$41*$D21,IF($E21="kW",VLOOKUP(P$4,'4. Billing Determinants'!$B$19:$O$41,5,0)/'4. Billing Determinants'!$F$41*$D21,IF($E21="Non-RPP kWh",VLOOKUP(P$4,'4. Billing Determinants'!$B$19:$O$41,6,0)/'4. Billing Determinants'!$G$41*$D21,IF($E21="Distribution Rev.",VLOOKUP(P$4,'4. Billing Determinants'!$B$19:$O$41,8,0)/'4. Billing Determinants'!$I$41*$D21, VLOOKUP(P$4,'4. Billing Determinants'!$B$19:$O$41,3,0)/'4. Billing Determinants'!$D$41*$D21))))),0) -> 0 | Q21: =IFERROR(IF(Q$4="",0,IF($E21="kWh",VLOOKUP(Q$4,'4. Billing Determinants'!$B$19:$O$41,4,0)/'4. Billing Determinants'!$E$41*$D21,IF($E21="kW",VLOOKUP(Q$4,'4. Billing Determinants'!$B$19:$O$41,5,0)/'4. Billing Determinants'!$F$41*$D21,IF($E21="Non-RPP kWh",VLOOKUP(Q$4,'4. Billing Determinants'!$B$19:$O$41,6,0)/'4. Billing Determinants'!$G$41*$D21,IF($E21="Distribution Rev.",VLOOKUP(Q$4,'4. Billing Determinants'!$B$19:$O$41,8,0)/'4. Billing Determinants'!$I$41*$D21, VLOOKUP(Q$4,'4. Billing Determinants'!$B$19:$O$41,3,0)/'4. Billing Determinants'!$D$41*$D21))))),0) -> 0 | R21: =IFERROR(IF(R$4="",0,IF($E21="kWh",VLOOKUP(R$4,'4. Billing Determinants'!$B$19:$O$41,4,0)/'4. Billing Determinants'!$E$41*$D21,IF($E21="kW",VLOOKUP(R$4,'4. Billing Determinants'!$B$19:$O$41,5,0)/'4. Billing Determinants'!$F$41*$D21,IF($E21="Non-RPP kWh",VLOOKUP(R$4,'4. Billing Determinants'!$B$19:$O$41,6,0)/'4. Billing Determinants'!$G$41*$D21,IF($E21="Distribution Rev.",VLOOKUP(R$4,'4. Billing Determinants'!$B$19:$O$41,8,0)/'4. Billing Determinants'!$I$41*$D21, VLOOKUP(R$4,'4. Billing Determinants'!$B$19:$O$41,3,0)/'4. Billing Determinants'!$D$41*$D21))))),0) -> 0 | S21: =IFERROR(IF(S$4="",0,IF($E21="kWh",VLOOKUP(S$4,'4. Billing Determinants'!$B$19:$O$41,4,0)/'4. Billing Determinants'!$E$41*$D21,IF($E21="kW",VLOOKUP(S$4,'4. Billing Determinants'!$B$19:$O$41,5,0)/'4. Billing Determinants'!$F$41*$D21,IF($E21="Non-RPP kWh",VLOOKUP(S$4,'4. Billing Determinants'!$B$19:$O$41,6,0)/'4. Billing Determinants'!$G$41*$D21,IF($E21="Distribution Rev.",VLOOKUP(S$4,'4. Billing Determinants'!$B$19:$O$41,8,0)/'4. Billing Determinants'!$I$41*$D21, VLOOKUP(S$4,'4. Billing Determinants'!$B$19:$O$41,3,0)/'4. Billing Determinants'!$D$41*$D21))))),0) -> 0 | T21: =IFERROR(IF(T$4="",0,IF($E21="kWh",VLOOKUP(T$4,'4. Billing Determinants'!$B$19:$O$41,4,0)/'4. Billing Determinants'!$E$41*$D21,IF($E21="kW",VLOOKUP(T$4,'4. Billing Determinants'!$B$19:$O$41,5,0)/'4. Billing Determinants'!$F$41*$D21,IF($E21="Non-RPP kWh",VLOOKUP(T$4,'4. Billing Determinants'!$B$19:$O$41,6,0)/'4. Billing Determinants'!$G$41*$D21,IF($E21="Distribution Rev.",VLOOKUP(T$4,'4. Billing Determinants'!$B$19:$O$41,8,0)/'4. Billing Determinants'!$I$41*$D21, VLOOKUP(T$4,'4. Billing Determinants'!$B$19:$O$41,3,0)/'4. Billing Determinants'!$D$41*$D21))))),0) -> 0 | U21: =IFERROR(IF(U$4="",0,IF($E21="kWh",VLOOKUP(U$4,'4. Billing Determinants'!$B$19:$O$41,4,0)/'4. Billing Determinants'!$E$41*$D21,IF($E21="kW",VLOOKUP(U$4,'4. Billing Determinants'!$B$19:$O$41,5,0)/'4. Billing Determinants'!$F$41*$D21,IF($E21="Non-RPP kWh",VLOOKUP(U$4,'4. Billing Determinants'!$B$19:$O$41,6,0)/'4. Billing Determinants'!$G$41*$D21,IF($E21="Distribution Rev.",VLOOKUP(U$4,'4. Billing Determinants'!$B$19:$O$41,8,0)/'4. Billing Determinants'!$I$41*$D21, VLOOKUP(U$4,'4. Billing Determinants'!$B$19:$O$41,3,0)/'4. Billing Determinants'!$D$41*$D21))))),0) -> 0 | V21: =IFERROR(IF(V$4="",0,IF($E21="kWh",VLOOKUP(V$4,'4. Billing Determinants'!$B$19:$O$41,4,0)/'4. Billing Determinants'!$E$41*$D21,IF($E21="kW",VLOOKUP(V$4,'4. Billing Determinants'!$B$19:$O$41,5,0)/'4. Billing Determinants'!$F$41*$D21,IF($E21="Non-RPP kWh",VLOOKUP(V$4,'4. Billing Determinants'!$B$19:$O$41,6,0)/'4. Billing Determinants'!$G$41*$D21,IF($E21="Distribution Rev.",VLOOKUP(V$4,'4. Billing Determinants'!$B$19:$O$41,8,0)/'4. Billing Determinants'!$I$41*$D21, VLOOKUP(V$4,'4. Billing Determinants'!$B$19:$O$41,3,0)/'4. Billing Determinants'!$D$41*$D21))))),0) -> 0 | W21: =IFERROR(IF(W$4="",0,IF($E21="kWh",VLOOKUP(W$4,'4. Billing Determinants'!$B$19:$O$41,4,0)/'4. Billing Determinants'!$E$41*$D21,IF($E21="kW",VLOOKUP(W$4,'4. Billing Determinants'!$B$19:$O$41,5,0)/'4. Billing Determinants'!$F$41*$D21,IF($E21="Non-RPP kWh",VLOOKUP(W$4,'4. Billing Determinants'!$B$19:$O$41,6,0)/'4. Billing Determinants'!$G$41*$D21,IF($E21="Distribution Rev.",VLOOKUP(W$4,'4. Billing Determinants'!$B$19:$O$41,8,0)/'4. Billing Determinants'!$I$41*$D21, VLOOKUP(W$4,'4. Billing Determinants'!$B$19:$O$41,3,0)/'4. Billing Determinants'!$D$41*$D21))))),0) -> 0 | X21: =IFERROR(IF(X$4="",0,IF($E21="kWh",VLOOKUP(X$4,'4. Billing Determinants'!$B$19:$O$41,4,0)/'4. Billing Determinants'!$E$41*$D21,IF($E21="kW",VLOOKUP(X$4,'4. Billing Determinants'!$B$19:$O$41,5,0)/'4. Billing Determinants'!$F$41*$D21,IF($E21="Non-RPP kWh",VLOOKUP(X$4,'4. Billing Determinants'!$B$19:$O$41,6,0)/'4. Billing Determinants'!$G$41*$D21,IF($E21="Distribution Rev.",VLOOKUP(X$4,'4. Billing Determinants'!$B$19:$O$41,8,0)/'4. Billing Determinants'!$I$41*$D21, VLOOKUP(X$4,'4. Billing Determinants'!$B$19:$O$41,3,0)/'4. Billing Determinants'!$D$41*$D21))))),0) -> 0 | Y21: =IFERROR(IF(Y$4="",0,IF($E21="kWh",VLOOKUP(Y$4,'4. Billing Determinants'!$B$19:$O$41,4,0)/'4. Billing Determinants'!$E$41*$D21,IF($E21="kW",VLOOKUP(Y$4,'4. Billing Determinants'!$B$19:$O$41,5,0)/'4. Billing Determinants'!$F$41*$D21,IF($E21="Non-RPP kWh",VLOOKUP(Y$4,'4. Billing Determinants'!$B$19:$O$41,6,0)/'4. Billing Determinants'!$G$41*$D21,IF($E21="Distribution Rev.",VLOOKUP(Y$4,'4. Billing Determinants'!$B$19:$O$41,8,0)/'4. Billing Determinants'!$I$41*$D21, VLOOKUP(Y$4,'4. Billing Determinants'!$B$19:$O$41,3,0)/'4. Billing Determinants'!$D$41*$D21))))),0) -> 0
B22: Other Regulatory Assets - Sub-Account - Financial Assistance Payment and Recovery Variance - Ontario Clean Energy Benefit Act | C22: 1508 | D22: ='2. 2014 Continuity Schedule'!CP45 -> 0 | F22: =IFERROR(IF(F$4="",0,IF($E22="kWh",VLOOKUP(F$4,'4. Billing Determinants'!$B$19:$O$41,4,0)/'4. Billing Determinants'!$E$41*$D22,IF($E22="kW",VLOOKUP(F$4,'4. Billing Determinants'!$B$19:$O$41,5,0)/'4. Billing Determinants'!$F$41*$D22,IF($E22="Non-RPP kWh",VLOOKUP(F$4,'4. Billing Determinants'!$B$19:$O$41,6,0)/'4. Billing Determinants'!$G$41*$D22,IF($E22="Distribution Rev.",VLOOKUP(F$4,'4. Billing Determinants'!$B$19:$O$41,8,0)/'4. Billing Determinants'!$I$41*$D22, VLOOKUP(F$4,'4. Billing Determinants'!$B$19:$O$41,3,0)/'4. Billing Determinants'!$D$41*$D22))))),0) -> 0 | G22: =IFERROR(IF(G$4="",0,IF($E22="kWh",VLOOKUP(G$4,'4. Billing Determinants'!$B$19:$O$41,4,0)/'4. Billing Determinants'!$E$41*$D22,IF($E22="kW",VLOOKUP(G$4,'4. Billing Determinants'!$B$19:$O$41,5,0)/'4. Billing Determinants'!$F$41*$D22,IF($E22="Non-RPP kWh",VLOOKUP(G$4,'4. Billing Determinants'!$B$19:$O$41,6,0)/'4. Billing Determinants'!$G$41*$D22,IF($E22="Distribution Rev.",VLOOKUP(G$4,'4. Billing Determinants'!$B$19:$O$41,8,0)/'4. Billing Determinants'!$I$41*$D22, VLOOKUP(G$4,'4. Billing Determinants'!$B$19:$O$41,3,0)/'4. Billing Determinants'!$D$41*$D22))))),0) -> 0 | H22: =IFERROR(IF(H$4="",0,IF($E22="kWh",VLOOKUP(H$4,'4. Billing Determinants'!$B$19:$O$41,4,0)/'4. Billing Determinants'!$E$41*$D22,IF($E22="kW",VLOOKUP(H$4,'4. Billing Determinants'!$B$19:$O$41,5,0)/'4. Billing Determinants'!$F$41*$D22,IF($E22="Non-RPP kWh",VLOOKUP(H$4,'4. Billing Determinants'!$B$19:$O$41,6,0)/'4. Billing Determinants'!$G$41*$D22,IF($E22="Distribution Rev.",VLOOKUP(H$4,'4. Billing Determinants'!$B$19:$O$41,8,0)/'4. Billing Determinants'!$I$41*$D22, VLOOKUP(H$4,'4. Billing Determinants'!$B$19:$O$41,3,0)/'4. Billing Determinants'!$D$41*$D22))))),0) -> 0 | I22: =IFERROR(IF(I$4="",0,IF($E22="kWh",VLOOKUP(I$4,'4. Billing Determinants'!$B$19:$O$41,4,0)/'4. Billing Determinants'!$E$41*$D22,IF($E22="kW",VLOOKUP(I$4,'4. Billing Determinants'!$B$19:$O$41,5,0)/'4. Billing Determinants'!$F$41*$D22,IF($E22="Non-RPP kWh",VLOOKUP(I$4,'4. Billing Determinants'!$B$19:$O$41,6,0)/'4. Billing Determinants'!$G$41*$D22,IF($E22="Distribution Rev.",VLOOKUP(I$4,'4. Billing Determinants'!$B$19:$O$41,8,0)/'4. Billing Determinants'!$I$41*$D22, VLOOKUP(I$4,'4. Billing Determinants'!$B$19:$O$41,3,0)/'4. Billing Determinants'!$D$41*$D22))))),0) -> 0 | J22: =IFERROR(IF(J$4="",0,IF($E22="kWh",VLOOKUP(J$4,'4. Billing Determinants'!$B$19:$O$41,4,0)/'4. Billing Determinants'!$E$41*$D22,IF($E22="kW",VLOOKUP(J$4,'4. Billing Determinants'!$B$19:$O$41,5,0)/'4. Billing Determinants'!$F$41*$D22,IF($E22="Non-RPP kWh",VLOOKUP(J$4,'4. Billing Determinants'!$B$19:$O$41,6,0)/'4. Billing Determinants'!$G$41*$D22,IF($E22="Distribution Rev.",VLOOKUP(J$4,'4. Billing Determinants'!$B$19:$O$41,8,0)/'4. Billing Determinants'!$I$41*$D22, VLOOKUP(J$4,'4. Billing Determinants'!$B$19:$O$41,3,0)/'4. Billing Determinants'!$D$41*$D22))))),0) -> 0 | K22: =IFERROR(IF(K$4="",0,IF($E22="kWh",VLOOKUP(K$4,'4. Billing Determinants'!$B$19:$O$41,4,0)/'4. Billing Determinants'!$E$41*$D22,IF($E22="kW",VLOOKUP(K$4,'4. Billing Determinants'!$B$19:$O$41,5,0)/'4. Billing Determinants'!$F$41*$D22,IF($E22="Non-RPP kWh",VLOOKUP(K$4,'4. Billing Determinants'!$B$19:$O$41,6,0)/'4. Billing Determinants'!$G$41*$D22,IF($E22="Distribution Rev.",VLOOKUP(K$4,'4. Billing Determinants'!$B$19:$O$41,8,0)/'4. Billing Determinants'!$I$41*$D22, VLOOKUP(K$4,'4. Billing Determinants'!$B$19:$O$41,3,0)/'4. Billing Determinants'!$D$41*$D22))))),0) -> 0 | L22: =IFERROR(IF(L$4="",0,IF($E22="kWh",VLOOKUP(L$4,'4. Billing Determinants'!$B$19:$O$41,4,0)/'4. Billing Determinants'!$E$41*$D22,IF($E22="kW",VLOOKUP(L$4,'4. Billing Determinants'!$B$19:$O$41,5,0)/'4. Billing Determinants'!$F$41*$D22,IF($E22="Non-RPP kWh",VLOOKUP(L$4,'4. Billing Determinants'!$B$19:$O$41,6,0)/'4. Billing Determinants'!$G$41*$D22,IF($E22="Distribution Rev.",VLOOKUP(L$4,'4. Billing Determinants'!$B$19:$O$41,8,0)/'4. Billing Determinants'!$I$41*$D22, VLOOKUP(L$4,'4. Billing Determinants'!$B$19:$O$41,3,0)/'4. Billing Determinants'!$D$41*$D22))))),0) -> 0 | M22: =IFERROR(IF(M$4="",0,IF($E22="kWh",VLOOKUP(M$4,'4. Billing Determinants'!$B$19:$O$41,4,0)/'4. Billing Determinants'!$E$41*$D22,IF($E22="kW",VLOOKUP(M$4,'4. Billing Determinants'!$B$19:$O$41,5,0)/'4. Billing Determinants'!$F$41*$D22,IF($E22="Non-RPP kWh",VLOOKUP(M$4,'4. Billing Determinants'!$B$19:$O$41,6,0)/'4. Billing Determinants'!$G$41*$D22,IF($E22="Distribution Rev.",VLOOKUP(M$4,'4. Billing Determinants'!$B$19:$O$41,8,0)/'4. Billing Determinants'!$I$41*$D22, VLOOKUP(M$4,'4. Billing Determinants'!$B$19:$O$41,3,0)/'4. Billing Determinants'!$D$41*$D22))))),0) -> 0 | N22: =IFERROR(IF(N$4="",0,IF($E22="kWh",VLOOKUP(N$4,'4. Billing Determinants'!$B$19:$O$41,4,0)/'4. Billing Determinants'!$E$41*$D22,IF($E22="kW",VLOOKUP(N$4,'4. Billing Determinants'!$B$19:$O$41,5,0)/'4. Billing Determinants'!$F$41*$D22,IF($E22="Non-RPP kWh",VLOOKUP(N$4,'4. Billing Determinants'!$B$19:$O$41,6,0)/'4. Billing Determinants'!$G$41*$D22,IF($E22="Distribution Rev.",VLOOKUP(N$4,'4. Billing Determinants'!$B$19:$O$41,8,0)/'4. Billing Determinants'!$I$41*$D22, VLOOKUP(N$4,'4. Billing Determinants'!$B$19:$O$41,3,0)/'4. Billing Determinants'!$D$41*$D22))))),0) -> 0 | O22: =IFERROR(IF(O$4="",0,IF($E22="kWh",VLOOKUP(O$4,'4. Billing Determinants'!$B$19:$O$41,4,0)/'4. Billing Determinants'!$E$41*$D22,IF($E22="kW",VLOOKUP(O$4,'4. Billing Determinants'!$B$19:$O$41,5,0)/'4. Billing Determinants'!$F$41*$D22,IF($E22="Non-RPP kWh",VLOOKUP(O$4,'4. Billing Determinants'!$B$19:$O$41,6,0)/'4. Billing Determinants'!$G$41*$D22,IF($E22="Distribution Rev.",VLOOKUP(O$4,'4. Billing Determinants'!$B$19:$O$41,8,0)/'4. Billing Determinants'!$I$41*$D22, VLOOKUP(O$4,'4. Billing Determinants'!$B$19:$O$41,3,0)/'4. Billing Determinants'!$D$41*$D22))))),0) -> 0 | P22: =IFERROR(IF(P$4="",0,IF($E22="kWh",VLOOKUP(P$4,'4. Billing Determinants'!$B$19:$O$41,4,0)/'4. Billing Determinants'!$E$41*$D22,IF($E22="kW",VLOOKUP(P$4,'4. Billing Determinants'!$B$19:$O$41,5,0)/'4. Billing Determinants'!$F$41*$D22,IF($E22="Non-RPP kWh",VLOOKUP(P$4,'4. Billing Determinants'!$B$19:$O$41,6,0)/'4. Billing Determinants'!$G$41*$D22,IF($E22="Distribution Rev.",VLOOKUP(P$4,'4. Billing Determinants'!$B$19:$O$41,8,0)/'4. Billing Determinants'!$I$41*$D22, VLOOKUP(P$4,'4. Billing Determinants'!$B$19:$O$41,3,0)/'4. Billing Determinants'!$D$41*$D22))))),0) -> 0 | Q22: =IFERROR(IF(Q$4="",0,IF($E22="kWh",VLOOKUP(Q$4,'4. Billing Determinants'!$B$19:$O$41,4,0)/'4. Billing Determinants'!$E$41*$D22,IF($E22="kW",VLOOKUP(Q$4,'4. Billing Determinants'!$B$19:$O$41,5,0)/'4. Billing Determinants'!$F$41*$D22,IF($E22="Non-RPP kWh",VLOOKUP(Q$4,'4. Billing Determinants'!$B$19:$O$41,6,0)/'4. Billing Determinants'!$G$41*$D22,IF($E22="Distribution Rev.",VLOOKUP(Q$4,'4. Billing Determinants'!$B$19:$O$41,8,0)/'4. Billing Determinants'!$I$41*$D22, VLOOKUP(Q$4,'4. Billing Determinants'!$B$19:$O$41,3,0)/'4. Billing Determinants'!$D$41*$D22))))),0) -> 0 | R22: =IFERROR(IF(R$4="",0,IF($E22="kWh",VLOOKUP(R$4,'4. Billing Determinants'!$B$19:$O$41,4,0)/'4. Billing Determinants'!$E$41*$D22,IF($E22="kW",VLOOKUP(R$4,'4. Billing Determinants'!$B$19:$O$41,5,0)/'4. Billing Determinants'!$F$41*$D22,IF($E22="Non-RPP kWh",VLOOKUP(R$4,'4. Billing Determinants'!$B$19:$O$41,6,0)/'4. Billing Determinants'!$G$41*$D22,IF($E22="Distribution Rev.",VLOOKUP(R$4,'4. Billing Determinants'!$B$19:$O$41,8,0)/'4. Billing Determinants'!$I$41*$D22, VLOOKUP(R$4,'4. Billing Determinants'!$B$19:$O$41,3,0)/'4. Billing Determinants'!$D$41*$D22))))),0) -> 0 | S22: =IFERROR(IF(S$4="",0,IF($E22="kWh",VLOOKUP(S$4,'4. Billing Determinants'!$B$19:$O$41,4,0)/'4. Billing Determinants'!$E$41*$D22,IF($E22="kW",VLOOKUP(S$4,'4. Billing Determinants'!$B$19:$O$41,5,0)/'4. Billing Determinants'!$F$41*$D22,IF($E22="Non-RPP kWh",VLOOKUP(S$4,'4. Billing Determinants'!$B$19:$O$41,6,0)/'4. Billing Determinants'!$G$41*$D22,IF($E22="Distribution Rev.",VLOOKUP(S$4,'4. Billing Determinants'!$B$19:$O$41,8,0)/'4. Billing Determinants'!$I$41*$D22, VLOOKUP(S$4,'4. Billing Determinants'!$B$19:$O$41,3,0)/'4. Billing Determinants'!$D$41*$D22))))),0) -> 0 | T22: =IFERROR(IF(T$4="",0,IF($E22="kWh",VLOOKUP(T$4,'4. Billing Determinants'!$B$19:$O$41,4,0)/'4. Billing Determinants'!$E$41*$D22,IF($E22="kW",VLOOKUP(T$4,'4. Billing Determinants'!$B$19:$O$41,5,0)/'4. Billing Determinants'!$F$41*$D22,IF($E22="Non-RPP kWh",VLOOKUP(T$4,'4. Billing Determinants'!$B$19:$O$41,6,0)/'4. Billing Determinants'!$G$41*$D22,IF($E22="Distribution Rev.",VLOOKUP(T$4,'4. Billing Determinants'!$B$19:$O$41,8,0)/'4. Billing Determinants'!$I$41*$D22, VLOOKUP(T$4,'4. Billing Determinants'!$B$19:$O$41,3,0)/'4. Billing Determinants'!$D$41*$D22))))),0) -> 0 | U22: =IFERROR(IF(U$4="",0,IF($E22="kWh",VLOOKUP(U$4,'4. Billing Determinants'!$B$19:$O$41,4,0)/'4. Billing Determinants'!$E$41*$D22,IF($E22="kW",VLOOKUP(U$4,'4. Billing Determinants'!$B$19:$O$41,5,0)/'4. Billing Determinants'!$F$41*$D22,IF($E22="Non-RPP kWh",VLOOKUP(U$4,'4. Billing Determinants'!$B$19:$O$41,6,0)/'4. Billing Determinants'!$G$41*$D22,IF($E22="Distribution Rev.",VLOOKUP(U$4,'4. Billing Determinants'!$B$19:$O$41,8,0)/'4. Billing Determinants'!$I$41*$D22, VLOOKUP(U$4,'4. Billing Determinants'!$B$19:$O$41,3,0)/'4. Billing Determinants'!$D$41*$D22))))),0) -> 0 | V22: =IFERROR(IF(V$4="",0,IF($E22="kWh",VLOOKUP(V$4,'4. Billing Determinants'!$B$19:$O$41,4,0)/'4. Billing Determinants'!$E$41*$D22,IF($E22="kW",VLOOKUP(V$4,'4. Billing Determinants'!$B$19:$O$41,5,0)/'4. Billing Determinants'!$F$41*$D22,IF($E22="Non-RPP kWh",VLOOKUP(V$4,'4. Billing Determinants'!$B$19:$O$41,6,0)/'4. Billing Determinants'!$G$41*$D22,IF($E22="Distribution Rev.",VLOOKUP(V$4,'4. Billing Determinants'!$B$19:$O$41,8,0)/'4. Billing Determinants'!$I$41*$D22, VLOOKUP(V$4,'4. Billing Determinants'!$B$19:$O$41,3,0)/'4. Billing Determinants'!$D$41*$D22))))),0) -> 0 | W22: =IFERROR(IF(W$4="",0,IF($E22="kWh",VLOOKUP(W$4,'4. Billing Determinants'!$B$19:$O$41,4,0)/'4. Billing Determinants'!$E$41*$D22,IF($E22="kW",VLOOKUP(W$4,'4. Billing Determinants'!$B$19:$O$41,5,0)/'4. Billing Determinants'!$F$41*$D22,IF($E22="Non-RPP kWh",VLOOKUP(W$4,'4. Billing Determinants'!$B$19:$O$41,6,0)/'4. Billing Determinants'!$G$41*$D22,IF($E22="Distribution Rev.",VLOOKUP(W$4,'4. Billing Determinants'!$B$19:$O$41,8,0)/'4. Billing Determinants'!$I$41*$D22, VLOOKUP(W$4,'4. Billing Determinants'!$B$19:$O$41,3,0)/'4. Billing Determinants'!$D$41*$D22))))),0) -> 0 | X22: =IFERROR(IF(X$4="",0,IF($E22="kWh",VLOOKUP(X$4,'4. Billing Determinants'!$B$19:$O$41,4,0)/'4. Billing Determinants'!$E$41*$D22,IF($E22="kW",VLOOKUP(X$4,'4. Billing Determinants'!$B$19:$O$41,5,0)/'4. Billing Determinants'!$F$41*$D22,IF($E22="Non-RPP kWh",VLOOKUP(X$4,'4. Billing Determinants'!$B$19:$O$41,6,0)/'4. Billing Determinants'!$G$41*$D22,IF($E22="Distribution Rev.",VLOOKUP(X$4,'4. Billing Determinants'!$B$19:$O$41,8,0)/'4. Billing Determinants'!$I$41*$D22, VLOOKUP(X$4,'4. Billing Determinants'!$B$19:$O$41,3,0)/'4. Billing Determinants'!$D$41*$D22))))),0) -> 0 | Y22: =IFERROR(IF(Y$4="",0,IF($E22="kWh",VLOOKUP(Y$4,'4. Billing Determinants'!$B$19:$O$41,4,0)/'4. Billing Determinants'!$E$41*$D22,IF($E22="kW",VLOOKUP(Y$4,'4. Billing Determinants'!$B$19:$O$41,5,0)/'4. Billing Determinants'!$F$41*$D22,IF($E22="Non-RPP kWh",VLOOKUP(Y$4,'4. Billing Determinants'!$B$19:$O$41,6,0)/'4. Billing Determinants'!$G$41*$D22,IF($E22="Distribution Rev.",VLOOKUP(Y$4,'4. Billing Determinants'!$B$19:$O$41,8,0)/'4. Billing Determinants'!$I$41*$D22, VLOOKUP(Y$4,'4. Billing Determinants'!$B$19:$O$41,3,0)/'4. Billing Determinants'!$D$41*$D22))))),0) -> 0
B23: Other Regulatory Assets - Sub-Account - Financial Assistance Payment and Recovery Carrying Charges | C23: 1508 | D23: ='2. 2014 Continuity Schedule'!CP46 -> 0 | F23: =IFERROR(IF(F$4="",0,IF($E23="kWh",VLOOKUP(F$4,'4. Billing Determinants'!$B$19:$O$41,4,0)/'4. Billing Determinants'!$E$41*$D23,IF($E23="kW",VLOOKUP(F$4,'4. Billing Determinants'!$B$19:$O$41,5,0)/'4. Billing Determinants'!$F$41*$D23,IF($E23="Non-RPP kWh",VLOOKUP(F$4,'4. Billing Determinants'!$B$19:$O$41,6,0)/'4. Billing Determinants'!$G$41*$D23,IF($E23="Distribution Rev.",VLOOKUP(F$4,'4. Billing Determinants'!$B$19:$O$41,8,0)/'4. Billing Determinants'!$I$41*$D23, VLOOKUP(F$4,'4. Billing Determinants'!$B$19:$O$41,3,0)/'4. Billing Determinants'!$D$41*$D23))))),0) -> 0 | G23: =IFERROR(IF(G$4="",0,IF($E23="kWh",VLOOKUP(G$4,'4. Billing Determinants'!$B$19:$O$41,4,0)/'4. Billing Determinants'!$E$41*$D23,IF($E23="kW",VLOOKUP(G$4,'4. Billing Determinants'!$B$19:$O$41,5,0)/'4. Billing Determinants'!$F$41*$D23,IF($E23="Non-RPP kWh",VLOOKUP(G$4,'4. Billing Determinants'!$B$19:$O$41,6,0)/'4. Billing Determinants'!$G$41*$D23,IF($E23="Distribution Rev.",VLOOKUP(G$4,'4. Billing Determinants'!$B$19:$O$41,8,0)/'4. Billing Determinants'!$I$41*$D23, VLOOKUP(G$4,'4. Billing Determinants'!$B$19:$O$41,3,0)/'4. Billing Determinants'!$D$41*$D23))))),0) -> 0 | H23: =IFERROR(IF(H$4="",0,IF($E23="kWh",VLOOKUP(H$4,'4. Billing Determinants'!$B$19:$O$41,4,0)/'4. Billing Determinants'!$E$41*$D23,IF($E23="kW",VLOOKUP(H$4,'4. Billing Determinants'!$B$19:$O$41,5,0)/'4. Billing Determinants'!$F$41*$D23,IF($E23="Non-RPP kWh",VLOOKUP(H$4,'4. Billing Determinants'!$B$19:$O$41,6,0)/'4. Billing Determinants'!$G$41*$D23,IF($E23="Distribution Rev.",VLOOKUP(H$4,'4. Billing Determinants'!$B$19:$O$41,8,0)/'4. Billing Determinants'!$I$41*$D23, VLOOKUP(H$4,'4. Billing Determinants'!$B$19:$O$41,3,0)/'4. Billing Determinants'!$D$41*$D23))))),0) -> 0 | I23: =IFERROR(IF(I$4="",0,IF($E23="kWh",VLOOKUP(I$4,'4. Billing Determinants'!$B$19:$O$41,4,0)/'4. Billing Determinants'!$E$41*$D23,IF($E23="kW",VLOOKUP(I$4,'4. Billing Determinants'!$B$19:$O$41,5,0)/'4. Billing Determinants'!$F$41*$D23,IF($E23="Non-RPP kWh",VLOOKUP(I$4,'4. Billing Determinants'!$B$19:$O$41,6,0)/'4. Billing Determinants'!$G$41*$D23,IF($E23="Distribution Rev.",VLOOKUP(I$4,'4. Billing Determinants'!$B$19:$O$41,8,0)/'4. Billing Determinants'!$I$41*$D23, VLOOKUP(I$4,'4. Billing Determinants'!$B$19:$O$41,3,0)/'4. Billing Determinants'!$D$41*$D23))))),0) -> 0 | J23: =IFERROR(IF(J$4="",0,IF($E23="kWh",VLOOKUP(J$4,'4. Billing Determinants'!$B$19:$O$41,4,0)/'4. Billing Determinants'!$E$41*$D23,IF($E23="kW",VLOOKUP(J$4,'4. Billing Determinants'!$B$19:$O$41,5,0)/'4. Billing Determinants'!$F$41*$D23,IF($E23="Non-RPP kWh",VLOOKUP(J$4,'4. Billing Determinants'!$B$19:$O$41,6,0)/'4. Billing Determinants'!$G$41*$D23,IF($E23="Distribution Rev.",VLOOKUP(J$4,'4. Billing Determinants'!$B$19:$O$41,8,0)/'4. Billing Determinants'!$I$41*$D23, VLOOKUP(J$4,'4. Billing Determinants'!$B$19:$O$41,3,0)/'4. Billing Determinants'!$D$41*$D23))))),0) -> 0 | K23: =IFERROR(IF(K$4="",0,IF($E23="kWh",VLOOKUP(K$4,'4. Billing Determinants'!$B$19:$O$41,4,0)/'4. Billing Determinants'!$E$41*$D23,IF($E23="kW",VLOOKUP(K$4,'4. Billing Determinants'!$B$19:$O$41,5,0)/'4. Billing Determinants'!$F$41*$D23,IF($E23="Non-RPP kWh",VLOOKUP(K$4,'4. Billing Determinants'!$B$19:$O$41,6,0)/'4. Billing Determinants'!$G$41*$D23,IF($E23="Distribution Rev.",VLOOKUP(K$4,'4. Billing Determinants'!$B$19:$O$41,8,0)/'4. Billing Determinants'!$I$41*$D23, VLOOKUP(K$4,'4. Billing Determinants'!$B$19:$O$41,3,0)/'4. Billing Determinants'!$D$41*$D23))))),0) -> 0 | L23: =IFERROR(IF(L$4="",0,IF($E23="kWh",VLOOKUP(L$4,'4. Billing Determinants'!$B$19:$O$41,4,0)/'4. Billing Determinants'!$E$41*$D23,IF($E23="kW",VLOOKUP(L$4,'4. Billing Determinants'!$B$19:$O$41,5,0)/'4. Billing Determinants'!$F$41*$D23,IF($E23="Non-RPP kWh",VLOOKUP(L$4,'4. Billing Determinants'!$B$19:$O$41,6,0)/'4. Billing Determinants'!$G$41*$D23,IF($E23="Distribution Rev.",VLOOKUP(L$4,'4. Billing Determinants'!$B$19:$O$41,8,0)/'4. Billing Determinants'!$I$41*$D23, VLOOKUP(L$4,'4. Billing Determinants'!$B$19:$O$41,3,0)/'4. Billing Determinants'!$D$41*$D23))))),0) -> 0 | M23: =IFERROR(IF(M$4="",0,IF($E23="kWh",VLOOKUP(M$4,'4. Billing Determinants'!$B$19:$O$41,4,0)/'4. Billing Determinants'!$E$41*$D23,IF($E23="kW",VLOOKUP(M$4,'4. Billing Determinants'!$B$19:$O$41,5,0)/'4. Billing Determinants'!$F$41*$D23,IF($E23="Non-RPP kWh",VLOOKUP(M$4,'4. Billing Determinants'!$B$19:$O$41,6,0)/'4. Billing Determinants'!$G$41*$D23,IF($E23="Distribution Rev.",VLOOKUP(M$4,'4. Billing Determinants'!$B$19:$O$41,8,0)/'4. Billing Determinants'!$I$41*$D23, VLOOKUP(M$4,'4. Billing Determinants'!$B$19:$O$41,3,0)/'4. Billing Determinants'!$D$41*$D23))))),0) -> 0 | N23: =IFERROR(IF(N$4="",0,IF($E23="kWh",VLOOKUP(N$4,'4. Billing Determinants'!$B$19:$O$41,4,0)/'4. Billing Determinants'!$E$41*$D23,IF($E23="kW",VLOOKUP(N$4,'4. Billing Determinants'!$B$19:$O$41,5,0)/'4. Billing Determinants'!$F$41*$D23,IF($E23="Non-RPP kWh",VLOOKUP(N$4,'4. Billing Determinants'!$B$19:$O$41,6,0)/'4. Billing Determinants'!$G$41*$D23,IF($E23="Distribution Rev.",VLOOKUP(N$4,'4. Billing Determinants'!$B$19:$O$41,8,0)/'4. Billing Determinants'!$I$41*$D23, VLOOKUP(N$4,'4. Billing Determinants'!$B$19:$O$41,3,0)/'4. Billing Determinants'!$D$41*$D23))))),0) -> 0 | O23: =IFERROR(IF(O$4="",0,IF($E23="kWh",VLOOKUP(O$4,'4. Billing Determinants'!$B$19:$O$41,4,0)/'4. Billing Determinants'!$E$41*$D23,IF($E23="kW",VLOOKUP(O$4,'4. Billing Determinants'!$B$19:$O$41,5,0)/'4. Billing Determinants'!$F$41*$D23,IF($E23="Non-RPP kWh",VLOOKUP(O$4,'4. Billing Determinants'!$B$19:$O$41,6,0)/'4. Billing Determinants'!$G$41*$D23,IF($E23="Distribution Rev.",VLOOKUP(O$4,'4. Billing Determinants'!$B$19:$O$41,8,0)/'4. Billing Determinants'!$I$41*$D23, VLOOKUP(O$4,'4. Billing Determinants'!$B$19:$O$41,3,0)/'4. Billing Determinants'!$D$41*$D23))))),0) -> 0 | P23: =IFERROR(IF(P$4="",0,IF($E23="kWh",VLOOKUP(P$4,'4. Billing Determinants'!$B$19:$O$41,4,0)/'4. Billing Determinants'!$E$41*$D23,IF($E23="kW",VLOOKUP(P$4,'4. Billing Determinants'!$B$19:$O$41,5,0)/'4. Billing Determinants'!$F$41*$D23,IF($E23="Non-RPP kWh",VLOOKUP(P$4,'4. Billing Determinants'!$B$19:$O$41,6,0)/'4. Billing Determinants'!$G$41*$D23,IF($E23="Distribution Rev.",VLOOKUP(P$4,'4. Billing Determinants'!$B$19:$O$41,8,0)/'4. Billing Determinants'!$I$41*$D23, VLOOKUP(P$4,'4. Billing Determinants'!$B$19:$O$41,3,0)/'4. Billing Determinants'!$D$41*$D23))))),0) -> 0 | Q23: =IFERROR(IF(Q$4="",0,IF($E23="kWh",VLOOKUP(Q$4,'4. Billing Determinants'!$B$19:$O$41,4,0)/'4. Billing Determinants'!$E$41*$D23,IF($E23="kW",VLOOKUP(Q$4,'4. Billing Determinants'!$B$19:$O$41,5,0)/'4. Billing Determinants'!$F$41*$D23,IF($E23="Non-RPP kWh",VLOOKUP(Q$4,'4. Billing Determinants'!$B$19:$O$41,6,0)/'4. Billing Determinants'!$G$41*$D23,IF($E23="Distribution Rev.",VLOOKUP(Q$4,'4. Billing Determinants'!$B$19:$O$41,8,0)/'4. Billing Determinants'!$I$41*$D23, VLOOKUP(Q$4,'4. Billing Determinants'!$B$19:$O$41,3,0)/'4. Billing Determinants'!$D$41*$D23))))),0) -> 0 | R23: =IFERROR(IF(R$4="",0,IF($E23="kWh",VLOOKUP(R$4,'4. Billing Determinants'!$B$19:$O$41,4,0)/'4. Billing Determinants'!$E$41*$D23,IF($E23="kW",VLOOKUP(R$4,'4. Billing Determinants'!$B$19:$O$41,5,0)/'4. Billing Determinants'!$F$41*$D23,IF($E23="Non-RPP kWh",VLOOKUP(R$4,'4. Billing Determinants'!$B$19:$O$41,6,0)/'4. Billing Determinants'!$G$41*$D23,IF($E23="Distribution Rev.",VLOOKUP(R$4,'4. Billing Determinants'!$B$19:$O$41,8,0)/'4. Billing Determinants'!$I$41*$D23, VLOOKUP(R$4,'4. Billing Determinants'!$B$19:$O$41,3,0)/'4. Billing Determinants'!$D$41*$D23))))),0) -> 0 | S23: =IFERROR(IF(S$4="",0,IF($E23="kWh",VLOOKUP(S$4,'4. Billing Determinants'!$B$19:$O$41,4,0)/'4. Billing Determinants'!$E$41*$D23,IF($E23="kW",VLOOKUP(S$4,'4. Billing Determinants'!$B$19:$O$41,5,0)/'4. Billing Determinants'!$F$41*$D23,IF($E23="Non-RPP kWh",VLOOKUP(S$4,'4. Billing Determinants'!$B$19:$O$41,6,0)/'4. Billing Determinants'!$G$41*$D23,IF($E23="Distribution Rev.",VLOOKUP(S$4,'4. Billing Determinants'!$B$19:$O$41,8,0)/'4. Billing Determinants'!$I$41*$D23, VLOOKUP(S$4,'4. Billing Determinants'!$B$19:$O$41,3,0)/'4. Billing Determinants'!$D$41*$D23))))),0) -> 0 | T23: =IFERROR(IF(T$4="",0,IF($E23="kWh",VLOOKUP(T$4,'4. Billing Determinants'!$B$19:$O$41,4,0)/'4. Billing Determinants'!$E$41*$D23,IF($E23="kW",VLOOKUP(T$4,'4. Billing Determinants'!$B$19:$O$41,5,0)/'4. Billing Determinants'!$F$41*$D23,IF($E23="Non-RPP kWh",VLOOKUP(T$4,'4. Billing Determinants'!$B$19:$O$41,6,0)/'4. Billing Determinants'!$G$41*$D23,IF($E23="Distribution Rev.",VLOOKUP(T$4,'4. Billing Determinants'!$B$19:$O$41,8,0)/'4. Billing Determinants'!$I$41*$D23, VLOOKUP(T$4,'4. Billing Determinants'!$B$19:$O$41,3,0)/'4. Billing Determinants'!$D$41*$D23))))),0) -> 0 | U23: =IFERROR(IF(U$4="",0,IF($E23="kWh",VLOOKUP(U$4,'4. Billing Determinants'!$B$19:$O$41,4,0)/'4. Billing Determinants'!$E$41*$D23,IF($E23="kW",VLOOKUP(U$4,'4. Billing Determinants'!$B$19:$O$41,5,0)/'4. Billing Determinants'!$F$41*$D23,IF($E23="Non-RPP kWh",VLOOKUP(U$4,'4. Billing Determinants'!$B$19:$O$41,6,0)/'4. Billing Determinants'!$G$41*$D23,IF($E23="Distribution Rev.",VLOOKUP(U$4,'4. Billing Determinants'!$B$19:$O$41,8,0)/'4. Billing Determinants'!$I$41*$D23, VLOOKUP(U$4,'4. Billing Determinants'!$B$19:$O$41,3,0)/'4. Billing Determinants'!$D$41*$D23))))),0) -> 0 | V23: =IFERROR(IF(V$4="",0,IF($E23="kWh",VLOOKUP(V$4,'4. Billing Determinants'!$B$19:$O$41,4,0)/'4. Billing Determinants'!$E$41*$D23,IF($E23="kW",VLOOKUP(V$4,'4. Billing Determinants'!$B$19:$O$41,5,0)/'4. Billing Determinants'!$F$41*$D23,IF($E23="Non-RPP kWh",VLOOKUP(V$4,'4. Billing Determinants'!$B$19:$O$41,6,0)/'4. Billing Determinants'!$G$41*$D23,IF($E23="Distribution Rev.",VLOOKUP(V$4,'4. Billing Determinants'!$B$19:$O$41,8,0)/'4. Billing Determinants'!$I$41*$D23, VLOOKUP(V$4,'4. Billing Determinants'!$B$19:$O$41,3,0)/'4. Billing Determinants'!$D$41*$D23))))),0) -> 0 | W23: =IFERROR(IF(W$4="",0,IF($E23="kWh",VLOOKUP(W$4,'4. Billing Determinants'!$B$19:$O$41,4,0)/'4. Billing Determinants'!$E$41*$D23,IF($E23="kW",VLOOKUP(W$4,'4. Billing Determinants'!$B$19:$O$41,5,0)/'4. Billing Determinants'!$F$41*$D23,IF($E23="Non-RPP kWh",VLOOKUP(W$4,'4. Billing Determinants'!$B$19:$O$41,6,0)/'4. Billing Determinants'!$G$41*$D23,IF($E23="Distribution Rev.",VLOOKUP(W$4,'4. Billing Determinants'!$B$19:$O$41,8,0)/'4. Billing Determinants'!$I$41*$D23, VLOOKUP(W$4,'4. Billing Determinants'!$B$19:$O$41,3,0)/'4. Billing Determinants'!$D$41*$D23))))),0) -> 0 | X23: =IFERROR(IF(X$4="",0,IF($E23="kWh",VLOOKUP(X$4,'4. Billing Determinants'!$B$19:$O$41,4,0)/'4. Billing Determinants'!$E$41*$D23,IF($E23="kW",VLOOKUP(X$4,'4. Billing Determinants'!$B$19:$O$41,5,0)/'4. Billing Determinants'!$F$41*$D23,IF($E23="Non-RPP kWh",VLOOKUP(X$4,'4. Billing Determinants'!$B$19:$O$41,6,0)/'4. Billing Determinants'!$G$41*$D23,IF($E23="Distribution Rev.",VLOOKUP(X$4,'4. Billing Determinants'!$B$19:$O$41,8,0)/'4. Billing Determinants'!$I$41*$D23, VLOOKUP(X$4,'4. Billing Determinants'!$B$19:$O$41,3,0)/'4. Billing Determinants'!$D$41*$D23))))),0) -> 0 | Y23: =IFERROR(IF(Y$4="",0,IF($E23="kWh",VLOOKUP(Y$4,'4. Billing Determinants'!$B$19:$O$41,4,0)/'4. Billing Determinants'!$E$41*$D23,IF($E23="kW",VLOOKUP(Y$4,'4. Billing Determinants'!$B$19:$O$41,5,0)/'4. Billing Determinants'!$F$41*$D23,IF($E23="Non-RPP kWh",VLOOKUP(Y$4,'4. Billing Determinants'!$B$19:$O$41,6,0)/'4. Billing Determinants'!$G$41*$D23,IF($E23="Distribution Rev.",VLOOKUP(Y$4,'4. Billing Determinants'!$B$19:$O$41,8,0)/'4. Billing Determinants'!$I$41*$D23, VLOOKUP(Y$4,'4. Billing Determinants'!$B$19:$O$41,3,0)/'4. Billing Determinants'!$D$41*$D23))))),0) -> 0
B24: Other Regulatory Assets - Sub-Account - Other | C24: 1508 | D24: ='2. 2014 Continuity Schedule'!CP47 -> 0.4 | F24: =IFERROR(IF(F$4="",0,IF($E24="kWh",VLOOKUP(F$4,'4. Billing Determinants'!$B$19:$O$41,4,0)/'4. Billing Determinants'!$E$41*$D24,IF($E24="kW",VLOOKUP(F$4,'4. Billing Determinants'!$B$19:$O$41,5,0)/'4. Billing Determinants'!$F$41*$D24,IF($E24="Non-RPP kWh",VLOOKUP(F$4,'4. Billing Determinants'!$B$19:$O$41,6,0)/'4. Billing Determinants'!$G$41*$D24,IF($E24="Distribution Rev.",VLOOKUP(F$4,'4. Billing Determinants'!$B$19:$O$41,8,0)/'4. Billing Determinants'!$I$41*$D24, VLOOKUP(F$4,'4. Billing Determinants'!$B$19:$O$41,3,0)/'4. Billing Determinants'!$D$41*$D24))))),0) -> 0.354518043 | G24: =IFERROR(IF(G$4="",0,IF($E24="kWh",VLOOKUP(G$4,'4. Billing Determinants'!$B$19:$O$41,4,0)/'4. Billing Determinants'!$E$41*$D24,IF($E24="kW",VLOOKUP(G$4,'4. Billing Determinants'!$B$19:$O$41,5,0)/'4. Billing Determinants'!$F$41*$D24,IF($E24="Non-RPP kWh",VLOOKUP(G$4,'4. Billing Determinants'!$B$19:$O$41,6,0)/'4. Billing Determinants'!$G$41*$D24,IF($E24="Distribution Rev.",VLOOKUP(G$4,'4. Billing Determinants'!$B$19:$O$41,8,0)/'4. Billing Determinants'!$I$41*$D24, VLOOKUP(G$4,'4. Billing Determinants'!$B$19:$O$41,3,0)/'4. Billing Determinants'!$D$41*$D24))))),0) -> 0 | H24: =IFERROR(IF(H$4="",0,IF($E24="kWh",VLOOKUP(H$4,'4. Billing Determinants'!$B$19:$O$41,4,0)/'4. Billing Determinants'!$E$41*$D24,IF($E24="kW",VLOOKUP(H$4,'4. Billing Determinants'!$B$19:$O$41,5,0)/'4. Billing Determinants'!$F$41*$D24,IF($E24="Non-RPP kWh",VLOOKUP(H$4,'4. Billing Determinants'!$B$19:$O$41,6,0)/'4. Billing Determinants'!$G$41*$D24,IF($E24="Distribution Rev.",VLOOKUP(H$4,'4. Billing Determinants'!$B$19:$O$41,8,0)/'4. Billing Determinants'!$I$41*$D24, VLOOKUP(H$4,'4. Billing Determinants'!$B$19:$O$41,3,0)/'4. Billing Determinants'!$D$41*$D24))))),0) -> 0.03947086859 | I24: =IFERROR(IF(I$4="",0,IF($E24="kWh",VLOOKUP(I$4,'4. Billing Determinants'!$B$19:$O$41,4,0)/'4. Billing Determinants'!$E$41*$D24,IF($E24="kW",VLOOKUP(I$4,'4. Billing Determinants'!$B$19:$O$41,5,0)/'4. Billing Determinants'!$F$41*$D24,IF($E24="Non-RPP kWh",VLOOKUP(I$4,'4. Billing Determinants'!$B$19:$O$41,6,0)/'4. Billing Determinants'!$G$41*$D24,IF($E24="Distribution Rev.",VLOOKUP(I$4,'4. Billing Determinants'!$B$19:$O$41,8,0)/'4. Billing Determinants'!$I$41*$D24, VLOOKUP(I$4,'4. Billing Determinants'!$B$19:$O$41,3,0)/'4. Billing Determinants'!$D$41*$D24))))),0) -> 0.004415912849 | J24: =IFERROR(IF(J$4="",0,IF($E24="kWh",VLOOKUP(J$4,'4. Billing Determinants'!$B$19:$O$41,4,0)/'4. Billing Determinants'!$E$41*$D24,IF($E24="kW",VLOOKUP(J$4,'4. Billing Determinants'!$B$19:$O$41,5,0)/'4. Billing Determinants'!$F$41*$D24,IF($E24="Non-RPP kWh",VLOOKUP(J$4,'4. Billing Determinants'!$B$19:$O$41,6,0)/'4. Billing Determinants'!$G$41*$D24,IF($E24="Distribution Rev.",VLOOKUP(J$4,'4. Billing Determinants'!$B$19:$O$41,8,0)/'4. Billing Determinants'!$I$41*$D24, VLOOKUP(J$4,'4. Billing Determinants'!$B$19:$O$41,3,0)/'4. Billing Determinants'!$D$41*$D24))))),0) -> 1.945336057e-05 | K24: =IFERROR(IF(K$4="",0,IF($E24="kWh",VLOOKUP(K$4,'4. Billing Determinants'!$B$19:$O$41,4,0)/'4. Billing Determinants'!$E$41*$D24,IF($E24="kW",VLOOKUP(K$4,'4. Billing Determinants'!$B$19:$O$41,5,0)/'4. Billing Determinants'!$F$41*$D24,IF($E24="Non-RPP kWh",VLOOKUP(K$4,'4. Billing Determinants'!$B$19:$O$41,6,0)/'4. Billing Determinants'!$G$41*$D24,IF($E24="Distribution Rev.",VLOOKUP(K$4,'4. Billing Determinants'!$B$19:$O$41,8,0)/'4. Billing Determinants'!$I$41*$D24, VLOOKUP(K$4,'4. Billing Determinants'!$B$19:$O$41,3,0)/'4. Billing Determinants'!$D$41*$D24))))),0) -> 0.0004668806536 | L24: =IFERROR(IF(L$4="",0,IF($E24="kWh",VLOOKUP(L$4,'4. Billing Determinants'!$B$19:$O$41,4,0)/'4. Billing Determinants'!$E$41*$D24,IF($E24="kW",VLOOKUP(L$4,'4. Billing Determinants'!$B$19:$O$41,5,0)/'4. Billing Determinants'!$F$41*$D24,IF($E24="Non-RPP kWh",VLOOKUP(L$4,'4. Billing Determinants'!$B$19:$O$41,6,0)/'4. Billing Determinants'!$G$41*$D24,IF($E24="Distribution Rev.",VLOOKUP(L$4,'4. Billing Determinants'!$B$19:$O$41,8,0)/'4. Billing Determinants'!$I$41*$D24, VLOOKUP(L$4,'4. Billing Determinants'!$B$19:$O$41,3,0)/'4. Billing Determinants'!$D$41*$D24))))),0) -> 0.0007975877833 | M24: =IFERROR(IF(M$4="",0,IF($E24="kWh",VLOOKUP(M$4,'4. Billing Determinants'!$B$19:$O$41,4,0)/'4. Billing Determinants'!$E$41*$D24,IF($E24="kW",VLOOKUP(M$4,'4. Billing Determinants'!$B$19:$O$41,5,0)/'4. Billing Determinants'!$F$41*$D24,IF($E24="Non-RPP kWh",VLOOKUP(M$4,'4. Billing Determinants'!$B$19:$O$41,6,0)/'4. Billing Determinants'!$G$41*$D24,IF($E24="Distribution Rev.",VLOOKUP(M$4,'4. Billing Determinants'!$B$19:$O$41,8,0)/'4. Billing Determinants'!$I$41*$D24, VLOOKUP(M$4,'4. Billing Determinants'!$B$19:$O$41,3,0)/'4. Billing Determinants'!$D$41*$D24))))),0) -> 0.0003112537691 | N24: =IFERROR(IF(N$4="",0,IF($E24="kWh",VLOOKUP(N$4,'4. Billing Determinants'!$B$19:$O$41,4,0)/'4. Billing Determinants'!$E$41*$D24,IF($E24="kW",VLOOKUP(N$4,'4. Billing Determinants'!$B$19:$O$41,5,0)/'4. Billing Determinants'!$F$41*$D24,IF($E24="Non-RPP kWh",VLOOKUP(N$4,'4. Billing Determinants'!$B$19:$O$41,6,0)/'4. Billing Determinants'!$G$41*$D24,IF($E24="Distribution Rev.",VLOOKUP(N$4,'4. Billing Determinants'!$B$19:$O$41,8,0)/'4. Billing Determinants'!$I$41*$D24, VLOOKUP(N$4,'4. Billing Determinants'!$B$19:$O$41,3,0)/'4. Billing Determinants'!$D$41*$D24))))),0) -> 0 | O24: =IFERROR(IF(O$4="",0,IF($E24="kWh",VLOOKUP(O$4,'4. Billing Determinants'!$B$19:$O$41,4,0)/'4. Billing Determinants'!$E$41*$D24,IF($E24="kW",VLOOKUP(O$4,'4. Billing Determinants'!$B$19:$O$41,5,0)/'4. Billing Determinants'!$F$41*$D24,IF($E24="Non-RPP kWh",VLOOKUP(O$4,'4. Billing Determinants'!$B$19:$O$41,6,0)/'4. Billing Determinants'!$G$41*$D24,IF($E24="Distribution Rev.",VLOOKUP(O$4,'4. Billing Determinants'!$B$19:$O$41,8,0)/'4. Billing Determinants'!$I$41*$D24, VLOOKUP(O$4,'4. Billing Determinants'!$B$19:$O$41,3,0)/'4. Billing Determinants'!$D$41*$D24))))),0) -> 0 | P24: =IFERROR(IF(P$4="",0,IF($E24="kWh",VLOOKUP(P$4,'4. Billing Determinants'!$B$19:$O$41,4,0)/'4. Billing Determinants'!$E$41*$D24,IF($E24="kW",VLOOKUP(P$4,'4. Billing Determinants'!$B$19:$O$41,5,0)/'4. Billing Determinants'!$F$41*$D24,IF($E24="Non-RPP kWh",VLOOKUP(P$4,'4. Billing Determinants'!$B$19:$O$41,6,0)/'4. Billing Determinants'!$G$41*$D24,IF($E24="Distribution Rev.",VLOOKUP(P$4,'4. Billing Determinants'!$B$19:$O$41,8,0)/'4. Billing Determinants'!$I$41*$D24, VLOOKUP(P$4,'4. Billing Determinants'!$B$19:$O$41,3,0)/'4. Billing Determinants'!$D$41*$D24))))),0) -> 0 | Q24: =IFERROR(IF(Q$4="",0,IF($E24="kWh",VLOOKUP(Q$4,'4. Billing Determinants'!$B$19:$O$41,4,0)/'4. Billing Determinants'!$E$41*$D24,IF($E24="kW",VLOOKUP(Q$4,'4. Billing Determinants'!$B$19:$O$41,5,0)/'4. Billing Determinants'!$F$41*$D24,IF($E24="Non-RPP kWh",VLOOKUP(Q$4,'4. Billing Determinants'!$B$19:$O$41,6,0)/'4. Billing Determinants'!$G$41*$D24,IF($E24="Distribution Rev.",VLOOKUP(Q$4,'4. Billing Determinants'!$B$19:$O$41,8,0)/'4. Billing Determinants'!$I$41*$D24, VLOOKUP(Q$4,'4. Billing Determinants'!$B$19:$O$41,3,0)/'4. Billing Determinants'!$D$41*$D24))))),0) -> 0 | R24: =IFERROR(IF(R$4="",0,IF($E24="kWh",VLOOKUP(R$4,'4. Billing Determinants'!$B$19:$O$41,4,0)/'4. Billing Determinants'!$E$41*$D24,IF($E24="kW",VLOOKUP(R$4,'4. Billing Determinants'!$B$19:$O$41,5,0)/'4. Billing Determinants'!$F$41*$D24,IF($E24="Non-RPP kWh",VLOOKUP(R$4,'4. Billing Determinants'!$B$19:$O$41,6,0)/'4. Billing Determinants'!$G$41*$D24,IF($E24="Distribution Rev.",VLOOKUP(R$4,'4. Billing Determinants'!$B$19:$O$41,8,0)/'4. Billing Determinants'!$I$41*$D24, VLOOKUP(R$4,'4. Billing Determinants'!$B$19:$O$41,3,0)/'4. Billing Determinants'!$D$41*$D24))))),0) -> 0 | S24: =IFERROR(IF(S$4="",0,IF($E24="kWh",VLOOKUP(S$4,'4. Billing Determinants'!$B$19:$O$41,4,0)/'4. Billing Determinants'!$E$41*$D24,IF($E24="kW",VLOOKUP(S$4,'4. Billing Determinants'!$B$19:$O$41,5,0)/'4. Billing Determinants'!$F$41*$D24,IF($E24="Non-RPP kWh",VLOOKUP(S$4,'4. Billing Determinants'!$B$19:$O$41,6,0)/'4. Billing Determinants'!$G$41*$D24,IF($E24="Distribution Rev.",VLOOKUP(S$4,'4. Billing Determinants'!$B$19:$O$41,8,0)/'4. Billing Determinants'!$I$41*$D24, VLOOKUP(S$4,'4. Billing Determinants'!$B$19:$O$41,3,0)/'4. Billing Determinants'!$D$41*$D24))))),0) -> 0 | T24: =IFERROR(IF(T$4="",0,IF($E24="kWh",VLOOKUP(T$4,'4. Billing Determinants'!$B$19:$O$41,4,0)/'4. Billing Determinants'!$E$41*$D24,IF($E24="kW",VLOOKUP(T$4,'4. Billing Determinants'!$B$19:$O$41,5,0)/'4. Billing Determinants'!$F$41*$D24,IF($E24="Non-RPP kWh",VLOOKUP(T$4,'4. Billing Determinants'!$B$19:$O$41,6,0)/'4. Billing Determinants'!$G$41*$D24,IF($E24="Distribution Rev.",VLOOKUP(T$4,'4. Billing Determinants'!$B$19:$O$41,8,0)/'4. Billing Determinants'!$I$41*$D24, VLOOKUP(T$4,'4. Billing Determinants'!$B$19:$O$41,3,0)/'4. Billing Determinants'!$D$41*$D24))))),0) -> 0 | U24: =IFERROR(IF(U$4="",0,IF($E24="kWh",VLOOKUP(U$4,'4. Billing Determinants'!$B$19:$O$41,4,0)/'4. Billing Determinants'!$E$41*$D24,IF($E24="kW",VLOOKUP(U$4,'4. Billing Determinants'!$B$19:$O$41,5,0)/'4. Billing Determinants'!$F$41*$D24,IF($E24="Non-RPP kWh",VLOOKUP(U$4,'4. Billing Determinants'!$B$19:$O$41,6,0)/'4. Billing Determinants'!$G$41*$D24,IF($E24="Distribution Rev.",VLOOKUP(U$4,'4. Billing Determinants'!$B$19:$O$41,8,0)/'4. Billing Determinants'!$I$41*$D24, VLOOKUP(U$4,'4. Billing Determinants'!$B$19:$O$41,3,0)/'4. Billing Determinants'!$D$41*$D24))))),0) -> 0 | V24: =IFERROR(IF(V$4="",0,IF($E24="kWh",VLOOKUP(V$4,'4. Billing Determinants'!$B$19:$O$41,4,0)/'4. Billing Determinants'!$E$41*$D24,IF($E24="kW",VLOOKUP(V$4,'4. Billing Determinants'!$B$19:$O$41,5,0)/'4. Billing Determinants'!$F$41*$D24,IF($E24="Non-RPP kWh",VLOOKUP(V$4,'4. Billing Determinants'!$B$19:$O$41,6,0)/'4. Billing Determinants'!$G$41*$D24,IF($E24="Distribution Rev.",VLOOKUP(V$4,'4. Billing Determinants'!$B$19:$O$41,8,0)/'4. Billing Determinants'!$I$41*$D24, VLOOKUP(V$4,'4. Billing Determinants'!$B$19:$O$41,3,0)/'4. Billing Determinants'!$D$41*$D24))))),0) -> 0 | W24: =IFERROR(IF(W$4="",0,IF($E24="kWh",VLOOKUP(W$4,'4. Billing Determinants'!$B$19:$O$41,4,0)/'4. Billing Determinants'!$E$41*$D24,IF($E24="kW",VLOOKUP(W$4,'4. Billing Determinants'!$B$19:$O$41,5,0)/'4. Billing Determinants'!$F$41*$D24,IF($E24="Non-RPP kWh",VLOOKUP(W$4,'4. Billing Determinants'!$B$19:$O$41,6,0)/'4. Billing Determinants'!$G$41*$D24,IF($E24="Distribution Rev.",VLOOKUP(W$4,'4. Billing Determinants'!$B$19:$O$41,8,0)/'4. Billing Determinants'!$I$41*$D24, VLOOKUP(W$4,'4. Billing Determinants'!$B$19:$O$41,3,0)/'4. Billing Determinants'!$D$41*$D24))))),0) -> 0 | X24: =IFERROR(IF(X$4="",0,IF($E24="kWh",VLOOKUP(X$4,'4. Billing Determinants'!$B$19:$O$41,4,0)/'4. Billing Determinants'!$E$41*$D24,IF($E24="kW",VLOOKUP(X$4,'4. Billing Determinants'!$B$19:$O$41,5,0)/'4. Billing Determinants'!$F$41*$D24,IF($E24="Non-RPP kWh",VLOOKUP(X$4,'4. Billing Determinants'!$B$19:$O$41,6,0)/'4. Billing Determinants'!$G$41*$D24,IF($E24="Distribution Rev.",VLOOKUP(X$4,'4. Billing Determinants'!$B$19:$O$41,8,0)/'4. Billing Determinants'!$I$41*$D24, VLOOKUP(X$4,'4. Billing Determinants'!$B$19:$O$41,3,0)/'4. Billing Determinants'!$D$41*$D24))))),0) -> 0 | Y24: =IFERROR(IF(Y$4="",0,IF($E24="kWh",VLOOKUP(Y$4,'4. Billing Determinants'!$B$19:$O$41,4,0)/'4. Billing Determinants'!$E$41*$D24,IF($E24="kW",VLOOKUP(Y$4,'4. Billing Determinants'!$B$19:$O$41,5,0)/'4. Billing Determinants'!$F$41*$D24,IF($E24="Non-RPP kWh",VLOOKUP(Y$4,'4. Billing Determinants'!$B$19:$O$41,6,0)/'4. Billing Determinants'!$G$41*$D24,IF($E24="Distribution Rev.",VLOOKUP(Y$4,'4. Billing Determinants'!$B$19:$O$41,8,0)/'4. Billing Determinants'!$I$41*$D24, VLOOKUP(Y$4,'4. Billing Determinants'!$B$19:$O$41,3,0)/'4. Billing Determinants'!$D$41*$D24))))),0) -> 0
B25: Retail Cost Variance Account - Retail | C25: 1518 | D25: ='2. 2014 Continuity Schedule'!CP48 -> -54179.6702 | E25: # of Customers | F25: =IFERROR(IF(F$4="",0,IF($E25="kWh",VLOOKUP(F$4,'4. Billing Determinants'!$B$19:$O$41,4,0)/'4. Billing Determinants'!$E$41*$D25,IF($E25="kW",VLOOKUP(F$4,'4. Billing Determinants'!$B$19:$O$41,5,0)/'4. Billing Determinants'!$F$41*$D25,IF($E25="Non-RPP kWh",VLOOKUP(F$4,'4. Billing Determinants'!$B$19:$O$41,6,0)/'4. Billing Determinants'!$G$41*$D25,IF($E25="Distribution Rev.",VLOOKUP(F$4,'4. Billing Determinants'!$B$19:$O$41,8,0)/'4. Billing Determinants'!$I$41*$D25, VLOOKUP(F$4,'4. Billing Determinants'!$B$19:$O$41,3,0)/'4. Billing Determinants'!$D$41*$D25))))),0) -> -48019.17662 | G25: =IFERROR(IF(G$4="",0,IF($E25="kWh",VLOOKUP(G$4,'4. Billing Determinants'!$B$19:$O$41,4,0)/'4. Billing Determinants'!$E$41*$D25,IF($E25="kW",VLOOKUP(G$4,'4. Billing Determinants'!$B$19:$O$41,5,0)/'4. Billing Determinants'!$F$41*$D25,IF($E25="Non-RPP kWh",VLOOKUP(G$4,'4. Billing Determinants'!$B$19:$O$41,6,0)/'4. Billing Determinants'!$G$41*$D25,IF($E25="Distribution Rev.",VLOOKUP(G$4,'4. Billing Determinants'!$B$19:$O$41,8,0)/'4. Billing Determinants'!$I$41*$D25, VLOOKUP(G$4,'4. Billing Determinants'!$B$19:$O$41,3,0)/'4. Billing Determinants'!$D$41*$D25))))),0) -> 0 | H25: =IFERROR(IF(H$4="",0,IF($E25="kWh",VLOOKUP(H$4,'4. Billing Determinants'!$B$19:$O$41,4,0)/'4. Billing Determinants'!$E$41*$D25,IF($E25="kW",VLOOKUP(H$4,'4. Billing Determinants'!$B$19:$O$41,5,0)/'4. Billing Determinants'!$F$41*$D25,IF($E25="Non-RPP kWh",VLOOKUP(H$4,'4. Billing Determinants'!$B$19:$O$41,6,0)/'4. Billing Determinants'!$G$41*$D25,IF($E25="Distribution Rev.",VLOOKUP(H$4,'4. Billing Determinants'!$B$19:$O$41,8,0)/'4. Billing Determinants'!$I$41*$D25, VLOOKUP(H$4,'4. Billing Determinants'!$B$19:$O$41,3,0)/'4. Billing Determinants'!$D$41*$D25))))),0) -> -5346.296607 | I25: =IFERROR(IF(I$4="",0,IF($E25="kWh",VLOOKUP(I$4,'4. Billing Determinants'!$B$19:$O$41,4,0)/'4. Billing Determinants'!$E$41*$D25,IF($E25="kW",VLOOKUP(I$4,'4. Billing Determinants'!$B$19:$O$41,5,0)/'4. Billing Determinants'!$F$41*$D25,IF($E25="Non-RPP kWh",VLOOKUP(I$4,'4. Billing Determinants'!$B$19:$O$41,6,0)/'4. Billing Determinants'!$G$41*$D25,IF($E25="Distribution Rev.",VLOOKUP(I$4,'4. Billing Determinants'!$B$19:$O$41,8,0)/'4. Billing Determinants'!$I$41*$D25, VLOOKUP(I$4,'4. Billing Determinants'!$B$19:$O$41,3,0)/'4. Billing Determinants'!$D$41*$D25))))),0) -> -598.1317545 | J25: =IFERROR(IF(J$4="",0,IF($E25="kWh",VLOOKUP(J$4,'4. Billing Determinants'!$B$19:$O$41,4,0)/'4. Billing Determinants'!$E$41*$D25,IF($E25="kW",VLOOKUP(J$4,'4. Billing Determinants'!$B$19:$O$41,5,0)/'4. Billing Determinants'!$F$41*$D25,IF($E25="Non-RPP kWh",VLOOKUP(J$4,'4. Billing Determinants'!$B$19:$O$41,6,0)/'4. Billing Determinants'!$G$41*$D25,IF($E25="Distribution Rev.",VLOOKUP(J$4,'4. Billing Determinants'!$B$19:$O$41,8,0)/'4. Billing Determinants'!$I$41*$D25, VLOOKUP(J$4,'4. Billing Determinants'!$B$19:$O$41,3,0)/'4. Billing Determinants'!$D$41*$D25))))),0) -> -2.63494165 | K25: =IFERROR(IF(K$4="",0,IF($E25="kWh",VLOOKUP(K$4,'4. Billing Determinants'!$B$19:$O$41,4,0)/'4. Billing Determinants'!$E$41*$D25,IF($E25="kW",VLOOKUP(K$4,'4. Billing Determinants'!$B$19:$O$41,5,0)/'4. Billing Determinants'!$F$41*$D25,IF($E25="Non-RPP kWh",VLOOKUP(K$4,'4. Billing Determinants'!$B$19:$O$41,6,0)/'4. Billing Determinants'!$G$41*$D25,IF($E25="Distribution Rev.",VLOOKUP(K$4,'4. Billing Determinants'!$B$19:$O$41,8,0)/'4. Billing Determinants'!$I$41*$D25, VLOOKUP(K$4,'4. Billing Determinants'!$B$19:$O$41,3,0)/'4. Billing Determinants'!$D$41*$D25))))),0) -> -63.23859959 | L25: =IFERROR(IF(L$4="",0,IF($E25="kWh",VLOOKUP(L$4,'4. Billing Determinants'!$B$19:$O$41,4,0)/'4. Billing Determinants'!$E$41*$D25,IF($E25="kW",VLOOKUP(L$4,'4. Billing Determinants'!$B$19:$O$41,5,0)/'4. Billing Determinants'!$F$41*$D25,IF($E25="Non-RPP kWh",VLOOKUP(L$4,'4. Billing Determinants'!$B$19:$O$41,6,0)/'4. Billing Determinants'!$G$41*$D25,IF($E25="Distribution Rev.",VLOOKUP(L$4,'4. Billing Determinants'!$B$19:$O$41,8,0)/'4. Billing Determinants'!$I$41*$D25, VLOOKUP(L$4,'4. Billing Determinants'!$B$19:$O$41,3,0)/'4. Billing Determinants'!$D$41*$D25))))),0) -> -108.0326076 | M25: =IFERROR(IF(M$4="",0,IF($E25="kWh",VLOOKUP(M$4,'4. Billing Determinants'!$B$19:$O$41,4,0)/'4. Billing Determinants'!$E$41*$D25,IF($E25="kW",VLOOKUP(M$4,'4. Billing Determinants'!$B$19:$O$41,5,0)/'4. Billing Determinants'!$F$41*$D25,IF($E25="Non-RPP kWh",VLOOKUP(M$4,'4. Billing Determinants'!$B$19:$O$41,6,0)/'4. Billing Determinants'!$G$41*$D25,IF($E25="Distribution Rev.",VLOOKUP(M$4,'4. Billing Determinants'!$B$19:$O$41,8,0)/'4. Billing Determinants'!$I$41*$D25, VLOOKUP(M$4,'4. Billing Determinants'!$B$19:$O$41,3,0)/'4. Billing Determinants'!$D$41*$D25))))),0) -> -42.15906639 | N25: =IFERROR(IF(N$4="",0,IF($E25="kWh",VLOOKUP(N$4,'4. Billing Determinants'!$B$19:$O$41,4,0)/'4. Billing Determinants'!$E$41*$D25,IF($E25="kW",VLOOKUP(N$4,'4. Billing Determinants'!$B$19:$O$41,5,0)/'4. Billing Determinants'!$F$41*$D25,IF($E25="Non-RPP kWh",VLOOKUP(N$4,'4. Billing Determinants'!$B$19:$O$41,6,0)/'4. Billing Determinants'!$G$41*$D25,IF($E25="Distribution Rev.",VLOOKUP(N$4,'4. Billing Determinants'!$B$19:$O$41,8,0)/'4. Billing Determinants'!$I$41*$D25, VLOOKUP(N$4,'4. Billing Determinants'!$B$19:$O$41,3,0)/'4. Billing Determinants'!$D$41*$D25))))),0) -> 0 | O25: =IFERROR(IF(O$4="",0,IF($E25="kWh",VLOOKUP(O$4,'4. Billing Determinants'!$B$19:$O$41,4,0)/'4. Billing Determinants'!$E$41*$D25,IF($E25="kW",VLOOKUP(O$4,'4. Billing Determinants'!$B$19:$O$41,5,0)/'4. Billing Determinants'!$F$41*$D25,IF($E25="Non-RPP kWh",VLOOKUP(O$4,'4. Billing Determinants'!$B$19:$O$41,6,0)/'4. Billing Determinants'!$G$41*$D25,IF($E25="Distribution Rev.",VLOOKUP(O$4,'4. Billing Determinants'!$B$19:$O$41,8,0)/'4. Billing Determinants'!$I$41*$D25, VLOOKUP(O$4,'4. Billing Determinants'!$B$19:$O$41,3,0)/'4. Billing Determinants'!$D$41*$D25))))),0) -> 0 | P25: =IFERROR(IF(P$4="",0,IF($E25="kWh",VLOOKUP(P$4,'4. Billing Determinants'!$B$19:$O$41,4,0)/'4. Billing Determinants'!$E$41*$D25,IF($E25="kW",VLOOKUP(P$4,'4. Billing Determinants'!$B$19:$O$41,5,0)/'4. Billing Determinants'!$F$41*$D25,IF($E25="Non-RPP kWh",VLOOKUP(P$4,'4. Billing Determinants'!$B$19:$O$41,6,0)/'4. Billing Determinants'!$G$41*$D25,IF($E25="Distribution Rev.",VLOOKUP(P$4,'4. Billing Determinants'!$B$19:$O$41,8,0)/'4. Billing Determinants'!$I$41*$D25, VLOOKUP(P$4,'4. Billing Determinants'!$B$19:$O$41,3,0)/'4. Billing Determinants'!$D$41*$D25))))),0) -> 0 | Q25: =IFERROR(IF(Q$4="",0,IF($E25="kWh",VLOOKUP(Q$4,'4. Billing Determinants'!$B$19:$O$41,4,0)/'4. Billing Determinants'!$E$41*$D25,IF($E25="kW",VLOOKUP(Q$4,'4. Billing Determinants'!$B$19:$O$41,5,0)/'4. Billing Determinants'!$F$41*$D25,IF($E25="Non-RPP kWh",VLOOKUP(Q$4,'4. Billing Determinants'!$B$19:$O$41,6,0)/'4. Billing Determinants'!$G$41*$D25,IF($E25="Distribution Rev.",VLOOKUP(Q$4,'4. Billing Determinants'!$B$19:$O$41,8,0)/'4. Billing Determinants'!$I$41*$D25, VLOOKUP(Q$4,'4. Billing Determinants'!$B$19:$O$41,3,0)/'4. Billing Determinants'!$D$41*$D25))))),0) -> 0 | R25: =IFERROR(IF(R$4="",0,IF($E25="kWh",VLOOKUP(R$4,'4. Billing Determinants'!$B$19:$O$41,4,0)/'4. Billing Determinants'!$E$41*$D25,IF($E25="kW",VLOOKUP(R$4,'4. Billing Determinants'!$B$19:$O$41,5,0)/'4. Billing Determinants'!$F$41*$D25,IF($E25="Non-RPP kWh",VLOOKUP(R$4,'4. Billing Determinants'!$B$19:$O$41,6,0)/'4. Billing Determinants'!$G$41*$D25,IF($E25="Distribution Rev.",VLOOKUP(R$4,'4. Billing Determinants'!$B$19:$O$41,8,0)/'4. Billing Determinants'!$I$41*$D25, VLOOKUP(R$4,'4. Billing Determinants'!$B$19:$O$41,3,0)/'4. Billing Determinants'!$D$41*$D25))))),0) -> 0 | S25: =IFERROR(IF(S$4="",0,IF($E25="kWh",VLOOKUP(S$4,'4. Billing Determinants'!$B$19:$O$41,4,0)/'4. Billing Determinants'!$E$41*$D25,IF($E25="kW",VLOOKUP(S$4,'4. Billing Determinants'!$B$19:$O$41,5,0)/'4. Billing Determinants'!$F$41*$D25,IF($E25="Non-RPP kWh",VLOOKUP(S$4,'4. Billing Determinants'!$B$19:$O$41,6,0)/'4. Billing Determinants'!$G$41*$D25,IF($E25="Distribution Rev.",VLOOKUP(S$4,'4. Billing Determinants'!$B$19:$O$41,8,0)/'4. Billing Determinants'!$I$41*$D25, VLOOKUP(S$4,'4. Billing Determinants'!$B$19:$O$41,3,0)/'4. Billing Determinants'!$D$41*$D25))))),0) -> 0 | T25: =IFERROR(IF(T$4="",0,IF($E25="kWh",VLOOKUP(T$4,'4. Billing Determinants'!$B$19:$O$41,4,0)/'4. Billing Determinants'!$E$41*$D25,IF($E25="kW",VLOOKUP(T$4,'4. Billing Determinants'!$B$19:$O$41,5,0)/'4. Billing Determinants'!$F$41*$D25,IF($E25="Non-RPP kWh",VLOOKUP(T$4,'4. Billing Determinants'!$B$19:$O$41,6,0)/'4. Billing Determinants'!$G$41*$D25,IF($E25="Distribution Rev.",VLOOKUP(T$4,'4. Billing Determinants'!$B$19:$O$41,8,0)/'4. Billing Determinants'!$I$41*$D25, VLOOKUP(T$4,'4. Billing Determinants'!$B$19:$O$41,3,0)/'4. Billing Determinants'!$D$41*$D25))))),0) -> 0 | U25: =IFERROR(IF(U$4="",0,IF($E25="kWh",VLOOKUP(U$4,'4. Billing Determinants'!$B$19:$O$41,4,0)/'4. Billing Determinants'!$E$41*$D25,IF($E25="kW",VLOOKUP(U$4,'4. Billing Determinants'!$B$19:$O$41,5,0)/'4. Billing Determinants'!$F$41*$D25,IF($E25="Non-RPP kWh",VLOOKUP(U$4,'4. Billing Determinants'!$B$19:$O$41,6,0)/'4. Billing Determinants'!$G$41*$D25,IF($E25="Distribution Rev.",VLOOKUP(U$4,'4. Billing Determinants'!$B$19:$O$41,8,0)/'4. Billing Determinants'!$I$41*$D25, VLOOKUP(U$4,'4. Billing Determinants'!$B$19:$O$41,3,0)/'4. Billing Determinants'!$D$41*$D25))))),0) -> 0 | V25: =IFERROR(IF(V$4="",0,IF($E25="kWh",VLOOKUP(V$4,'4. Billing Determinants'!$B$19:$O$41,4,0)/'4. Billing Determinants'!$E$41*$D25,IF($E25="kW",VLOOKUP(V$4,'4. Billing Determinants'!$B$19:$O$41,5,0)/'4. Billing Determinants'!$F$41*$D25,IF($E25="Non-RPP kWh",VLOOKUP(V$4,'4. Billing Determinants'!$B$19:$O$41,6,0)/'4. Billing Determinants'!$G$41*$D25,IF($E25="Distribution Rev.",VLOOKUP(V$4,'4. Billing Determinants'!$B$19:$O$41,8,0)/'4. Billing Determinants'!$I$41*$D25, VLOOKUP(V$4,'4. Billing Determinants'!$B$19:$O$41,3,0)/'4. Billing Determinants'!$D$41*$D25))))),0) -> 0 | W25: =IFERROR(IF(W$4="",0,IF($E25="kWh",VLOOKUP(W$4,'4. Billing Determinants'!$B$19:$O$41,4,0)/'4. Billing Determinants'!$E$41*$D25,IF($E25="kW",VLOOKUP(W$4,'4. Billing Determinants'!$B$19:$O$41,5,0)/'4. Billing Determinants'!$F$41*$D25,IF($E25="Non-RPP kWh",VLOOKUP(W$4,'4. Billing Determinants'!$B$19:$O$41,6,0)/'4. Billing Determinants'!$G$41*$D25,IF($E25="Distribution Rev.",VLOOKUP(W$4,'4. Billing Determinants'!$B$19:$O$41,8,0)/'4. Billing Determinants'!$I$41*$D25, VLOOKUP(W$4,'4. Billing Determinants'!$B$19:$O$41,3,0)/'4. Billing Determinants'!$D$41*$D25))))),0) -> 0 | X25: =IFERROR(IF(X$4="",0,IF($E25="kWh",VLOOKUP(X$4,'4. Billing Determinants'!$B$19:$O$41,4,0)/'4. Billing Determinants'!$E$41*$D25,IF($E25="kW",VLOOKUP(X$4,'4. Billing Determinants'!$B$19:$O$41,5,0)/'4. Billing Determinants'!$F$41*$D25,IF($E25="Non-RPP kWh",VLOOKUP(X$4,'4. Billing Determinants'!$B$19:$O$41,6,0)/'4. Billing Determinants'!$G$41*$D25,IF($E25="Distribution Rev.",VLOOKUP(X$4,'4. Billing Determinants'!$B$19:$O$41,8,0)/'4. Billing Determinants'!$I$41*$D25, VLOOKUP(X$4,'4. Billing Determinants'!$B$19:$O$41,3,0)/'4. Billing Determinants'!$D$41*$D25))))),0) -> 0 | Y25: =IFERROR(IF(Y$4="",0,IF($E25="kWh",VLOOKUP(Y$4,'4. Billing Determinants'!$B$19:$O$41,4,0)/'4. Billing Determinants'!$E$41*$D25,IF($E25="kW",VLOOKUP(Y$4,'4. Billing Determinants'!$B$19:$O$41,5,0)/'4. Billing Determinants'!$F$41*$D25,IF($E25="Non-RPP kWh",VLOOKUP(Y$4,'4. Billing Determinants'!$B$19:$O$41,6,0)/'4. Billing Determinants'!$G$41*$D25,IF($E25="Distribution Rev.",VLOOKUP(Y$4,'4. Billing Determinants'!$B$19:$O$41,8,0)/'4. Billing Determinants'!$I$41*$D25, VLOOKUP(Y$4,'4. Billing Determinants'!$B$19:$O$41,3,0)/'4. Billing Determinants'!$D$41*$D25))))),0) -> 0
B26: Misc. Deferred Debits | C26: 1525 | D26: ='2. 2014 Continuity Schedule'!CP49 -> 3725 | E26: Distribution Rev. | F26: =IFERROR(IF(F$4="",0,IF($E26="kWh",VLOOKUP(F$4,'4. Billing Determinants'!$B$19:$O$41,4,0)/'4. Billing Determinants'!$E$41*$D26,IF($E26="kW",VLOOKUP(F$4,'4. Billing Determinants'!$B$19:$O$41,5,0)/'4. Billing Determinants'!$F$41*$D26,IF($E26="Non-RPP kWh",VLOOKUP(F$4,'4. Billing Determinants'!$B$19:$O$41,6,0)/'4. Billing Determinants'!$G$41*$D26,IF($E26="Distribution Rev.",VLOOKUP(F$4,'4. Billing Determinants'!$B$19:$O$41,8,0)/'4. Billing Determinants'!$I$41*$D26, VLOOKUP(F$4,'4. Billing Determinants'!$B$19:$O$41,3,0)/'4. Billing Determinants'!$D$41*$D26))))),0) -> 2091.938279 | G26: =IFERROR(IF(G$4="",0,IF($E26="kWh",VLOOKUP(G$4,'4. Billing Determinants'!$B$19:$O$41,4,0)/'4. Billing Determinants'!$E$41*$D26,IF($E26="kW",VLOOKUP(G$4,'4. Billing Determinants'!$B$19:$O$41,5,0)/'4. Billing Determinants'!$F$41*$D26,IF($E26="Non-RPP kWh",VLOOKUP(G$4,'4. Billing Determinants'!$B$19:$O$41,6,0)/'4. Billing Determinants'!$G$41*$D26,IF($E26="Distribution Rev.",VLOOKUP(G$4,'4. Billing Determinants'!$B$19:$O$41,8,0)/'4. Billing Determinants'!$I$41*$D26, VLOOKUP(G$4,'4. Billing Determinants'!$B$19:$O$41,3,0)/'4. Billing Determinants'!$D$41*$D26))))),0) -> 0 | H26: =IFERROR(IF(H$4="",0,IF($E26="kWh",VLOOKUP(H$4,'4. Billing Determinants'!$B$19:$O$41,4,0)/'4. Billing Determinants'!$E$41*$D26,IF($E26="kW",VLOOKUP(H$4,'4. Billing Determinants'!$B$19:$O$41,5,0)/'4. Billing Determinants'!$F$41*$D26,IF($E26="Non-RPP kWh",VLOOKUP(H$4,'4. Billing Determinants'!$B$19:$O$41,6,0)/'4. Billing Determinants'!$G$41*$D26,IF($E26="Distribution Rev.",VLOOKUP(H$4,'4. Billing Determinants'!$B$19:$O$41,8,0)/'4. Billing Determinants'!$I$41*$D26, VLOOKUP(H$4,'4. Billing Determinants'!$B$19:$O$41,3,0)/'4. Billing Determinants'!$D$41*$D26))))),0) -> 613.2779668 | I26: =IFERROR(IF(I$4="",0,IF($E26="kWh",VLOOKUP(I$4,'4. Billing Determinants'!$B$19:$O$41,4,0)/'4. Billing Determinants'!$E$41*$D26,IF($E26="kW",VLOOKUP(I$4,'4. Billing Determinants'!$B$19:$O$41,5,0)/'4. Billing Determinants'!$F$41*$D26,IF($E26="Non-RPP kWh",VLOOKUP(I$4,'4. Billing Determinants'!$B$19:$O$41,6,0)/'4. Billing Determinants'!$G$41*$D26,IF($E26="Distribution Rev.",VLOOKUP(I$4,'4. Billing Determinants'!$B$19:$O$41,8,0)/'4. Billing Determinants'!$I$41*$D26, VLOOKUP(I$4,'4. Billing Determinants'!$B$19:$O$41,3,0)/'4. Billing Determinants'!$D$41*$D26))))),0) -> 910.2793532 | J26: =IFERROR(IF(J$4="",0,IF($E26="kWh",VLOOKUP(J$4,'4. Billing Determinants'!$B$19:$O$41,4,0)/'4. Billing Determinants'!$E$41*$D26,IF($E26="kW",VLOOKUP(J$4,'4. Billing Determinants'!$B$19:$O$41,5,0)/'4. Billing Determinants'!$F$41*$D26,IF($E26="Non-RPP kWh",VLOOKUP(J$4,'4. Billing Determinants'!$B$19:$O$41,6,0)/'4. Billing Determinants'!$G$41*$D26,IF($E26="Distribution Rev.",VLOOKUP(J$4,'4. Billing Determinants'!$B$19:$O$41,8,0)/'4. Billing Determinants'!$I$41*$D26, VLOOKUP(J$4,'4. Billing Determinants'!$B$19:$O$41,3,0)/'4. Billing Determinants'!$D$41*$D26))))),0) -> 53.11891806 | K26: =IFERROR(IF(K$4="",0,IF($E26="kWh",VLOOKUP(K$4,'4. Billing Determinants'!$B$19:$O$41,4,0)/'4. Billing Determinants'!$E$41*$D26,IF($E26="kW",VLOOKUP(K$4,'4. Billing Determinants'!$B$19:$O$41,5,0)/'4. Billing Determinants'!$F$41*$D26,IF($E26="Non-RPP kWh",VLOOKUP(K$4,'4. Billing Determinants'!$B$19:$O$41,6,0)/'4. Billing Determinants'!$G$41*$D26,IF($E26="Distribution Rev.",VLOOKUP(K$4,'4. Billing Determinants'!$B$19:$O$41,8,0)/'4. Billing Determinants'!$I$41*$D26, VLOOKUP(K$4,'4. Billing Determinants'!$B$19:$O$41,3,0)/'4. Billing Determinants'!$D$41*$D26))))),0) -> 9.676409425 | L26: =IFERROR(IF(L$4="",0,IF($E26="kWh",VLOOKUP(L$4,'4. Billing Determinants'!$B$19:$O$41,4,0)/'4. Billing Determinants'!$E$41*$D26,IF($E26="kW",VLOOKUP(L$4,'4. Billing Determinants'!$B$19:$O$41,5,0)/'4. Billing Determinants'!$F$41*$D26,IF($E26="Non-RPP kWh",VLOOKUP(L$4,'4. Billing Determinants'!$B$19:$O$41,6,0)/'4. Billing Determinants'!$G$41*$D26,IF($E26="Distribution Rev.",VLOOKUP(L$4,'4. Billing Determinants'!$B$19:$O$41,8,0)/'4. Billing Determinants'!$I$41*$D26, VLOOKUP(L$4,'4. Billing Determinants'!$B$19:$O$41,3,0)/'4. Billing Determinants'!$D$41*$D26))))),0) -> 1.782561176 | M26: =IFERROR(IF(M$4="",0,IF($E26="kWh",VLOOKUP(M$4,'4. Billing Determinants'!$B$19:$O$41,4,0)/'4. Billing Determinants'!$E$41*$D26,IF($E26="kW",VLOOKUP(M$4,'4. Billing Determinants'!$B$19:$O$41,5,0)/'4. Billing Determinants'!$F$41*$D26,IF($E26="Non-RPP kWh",VLOOKUP(M$4,'4. Billing Determinants'!$B$19:$O$41,6,0)/'4. Billing Determinants'!$G$41*$D26,IF($E26="Distribution Rev.",VLOOKUP(M$4,'4. Billing Determinants'!$B$19:$O$41,8,0)/'4. Billing Determinants'!$I$41*$D26, VLOOKUP(M$4,'4. Billing Determinants'!$B$19:$O$41,3,0)/'4. Billing Determinants'!$D$41*$D26))))),0) -> 44.92651277 | N26: =IFERROR(IF(N$4="",0,IF($E26="kWh",VLOOKUP(N$4,'4. Billing Determinants'!$B$19:$O$41,4,0)/'4. Billing Determinants'!$E$41*$D26,IF($E26="kW",VLOOKUP(N$4,'4. Billing Determinants'!$B$19:$O$41,5,0)/'4. Billing Determinants'!$F$41*$D26,IF($E26="Non-RPP kWh",VLOOKUP(N$4,'4. Billing Determinants'!$B$19:$O$41,6,0)/'4. Billing Determinants'!$G$41*$D26,IF($E26="Distribution Rev.",VLOOKUP(N$4,'4. Billing Determinants'!$B$19:$O$41,8,0)/'4. Billing Determinants'!$I$41*$D26, VLOOKUP(N$4,'4. Billing Determinants'!$B$19:$O$41,3,0)/'4. Billing Determinants'!$D$41*$D26))))),0) -> 0 | O26: =IFERROR(IF(O$4="",0,IF($E26="kWh",VLOOKUP(O$4,'4. Billing Determinants'!$B$19:$O$41,4,0)/'4. Billing Determinants'!$E$41*$D26,IF($E26="kW",VLOOKUP(O$4,'4. Billing Determinants'!$B$19:$O$41,5,0)/'4. Billing Determinants'!$F$41*$D26,IF($E26="Non-RPP kWh",VLOOKUP(O$4,'4. Billing Determinants'!$B$19:$O$41,6,0)/'4. Billing Determinants'!$G$41*$D26,IF($E26="Distribution Rev.",VLOOKUP(O$4,'4. Billing Determinants'!$B$19:$O$41,8,0)/'4. Billing Determinants'!$I$41*$D26, VLOOKUP(O$4,'4. Billing Determinants'!$B$19:$O$41,3,0)/'4. Billing Determinants'!$D$41*$D26))))),0) -> 0 | P26: =IFERROR(IF(P$4="",0,IF($E26="kWh",VLOOKUP(P$4,'4. Billing Determinants'!$B$19:$O$41,4,0)/'4. Billing Determinants'!$E$41*$D26,IF($E26="kW",VLOOKUP(P$4,'4. Billing Determinants'!$B$19:$O$41,5,0)/'4. Billing Determinants'!$F$41*$D26,IF($E26="Non-RPP kWh",VLOOKUP(P$4,'4. Billing Determinants'!$B$19:$O$41,6,0)/'4. Billing Determinants'!$G$41*$D26,IF($E26="Distribution Rev.",VLOOKUP(P$4,'4. Billing Determinants'!$B$19:$O$41,8,0)/'4. Billing Determinants'!$I$41*$D26, VLOOKUP(P$4,'4. Billing Determinants'!$B$19:$O$41,3,0)/'4. Billing Determinants'!$D$41*$D26))))),0) -> 0 | Q26: =IFERROR(IF(Q$4="",0,IF($E26="kWh",VLOOKUP(Q$4,'4. Billing Determinants'!$B$19:$O$41,4,0)/'4. Billing Determinants'!$E$41*$D26,IF($E26="kW",VLOOKUP(Q$4,'4. Billing Determinants'!$B$19:$O$41,5,0)/'4. Billing Determinants'!$F$41*$D26,IF($E26="Non-RPP kWh",VLOOKUP(Q$4,'4. Billing Determinants'!$B$19:$O$41,6,0)/'4. Billing Determinants'!$G$41*$D26,IF($E26="Distribution Rev.",VLOOKUP(Q$4,'4. Billing Determinants'!$B$19:$O$41,8,0)/'4. Billing Determinants'!$I$41*$D26, VLOOKUP(Q$4,'4. Billing Determinants'!$B$19:$O$41,3,0)/'4. Billing Determinants'!$D$41*$D26))))),0) -> 0 | R26: =IFERROR(IF(R$4="",0,IF($E26="kWh",VLOOKUP(R$4,'4. Billing Determinants'!$B$19:$O$41,4,0)/'4. Billing Determinants'!$E$41*$D26,IF($E26="kW",VLOOKUP(R$4,'4. Billing Determinants'!$B$19:$O$41,5,0)/'4. Billing Determinants'!$F$41*$D26,IF($E26="Non-RPP kWh",VLOOKUP(R$4,'4. Billing Determinants'!$B$19:$O$41,6,0)/'4. Billing Determinants'!$G$41*$D26,IF($E26="Distribution Rev.",VLOOKUP(R$4,'4. Billing Determinants'!$B$19:$O$41,8,0)/'4. Billing Determinants'!$I$41*$D26, VLOOKUP(R$4,'4. Billing Determinants'!$B$19:$O$41,3,0)/'4. Billing Determinants'!$D$41*$D26))))),0) -> 0 | S26: =IFERROR(IF(S$4="",0,IF($E26="kWh",VLOOKUP(S$4,'4. Billing Determinants'!$B$19:$O$41,4,0)/'4. Billing Determinants'!$E$41*$D26,IF($E26="kW",VLOOKUP(S$4,'4. Billing Determinants'!$B$19:$O$41,5,0)/'4. Billing Determinants'!$F$41*$D26,IF($E26="Non-RPP kWh",VLOOKUP(S$4,'4. Billing Determinants'!$B$19:$O$41,6,0)/'4. Billing Determinants'!$G$41*$D26,IF($E26="Distribution Rev.",VLOOKUP(S$4,'4. Billing Determinants'!$B$19:$O$41,8,0)/'4. Billing Determinants'!$I$41*$D26, VLOOKUP(S$4,'4. Billing Determinants'!$B$19:$O$41,3,0)/'4. Billing Determinants'!$D$41*$D26))))),0) -> 0 | T26: =IFERROR(IF(T$4="",0,IF($E26="kWh",VLOOKUP(T$4,'4. Billing Determinants'!$B$19:$O$41,4,0)/'4. Billing Determinants'!$E$41*$D26,IF($E26="kW",VLOOKUP(T$4,'4. Billing Determinants'!$B$19:$O$41,5,0)/'4. Billing Determinants'!$F$41*$D26,IF($E26="Non-RPP kWh",VLOOKUP(T$4,'4. Billing Determinants'!$B$19:$O$41,6,0)/'4. Billing Determinants'!$G$41*$D26,IF($E26="Distribution Rev.",VLOOKUP(T$4,'4. Billing Determinants'!$B$19:$O$41,8,0)/'4. Billing Determinants'!$I$41*$D26, VLOOKUP(T$4,'4. Billing Determinants'!$B$19:$O$41,3,0)/'4. Billing Determinants'!$D$41*$D26))))),0) -> 0 | U26: =IFERROR(IF(U$4="",0,IF($E26="kWh",VLOOKUP(U$4,'4. Billing Determinants'!$B$19:$O$41,4,0)/'4. Billing Determinants'!$E$41*$D26,IF($E26="kW",VLOOKUP(U$4,'4. Billing Determinants'!$B$19:$O$41,5,0)/'4. Billing Determinants'!$F$41*$D26,IF($E26="Non-RPP kWh",VLOOKUP(U$4,'4. Billing Determinants'!$B$19:$O$41,6,0)/'4. Billing Determinants'!$G$41*$D26,IF($E26="Distribution Rev.",VLOOKUP(U$4,'4. Billing Determinants'!$B$19:$O$41,8,0)/'4. Billing Determinants'!$I$41*$D26, VLOOKUP(U$4,'4. Billing Determinants'!$B$19:$O$41,3,0)/'4. Billing Determinants'!$D$41*$D26))))),0) -> 0 | V26: =IFERROR(IF(V$4="",0,IF($E26="kWh",VLOOKUP(V$4,'4. Billing Determinants'!$B$19:$O$41,4,0)/'4. Billing Determinants'!$E$41*$D26,IF($E26="kW",VLOOKUP(V$4,'4. Billing Determinants'!$B$19:$O$41,5,0)/'4. Billing Determinants'!$F$41*$D26,IF($E26="Non-RPP kWh",VLOOKUP(V$4,'4. Billing Determinants'!$B$19:$O$41,6,0)/'4. Billing Determinants'!$G$41*$D26,IF($E26="Distribution Rev.",VLOOKUP(V$4,'4. Billing Determinants'!$B$19:$O$41,8,0)/'4. Billing Determinants'!$I$41*$D26, VLOOKUP(V$4,'4. Billing Determinants'!$B$19:$O$41,3,0)/'4. Billing Determinants'!$D$41*$D26))))),0) -> 0 | W26: =IFERROR(IF(W$4="",0,IF($E26="kWh",VLOOKUP(W$4,'4. Billing Determinants'!$B$19:$O$41,4,0)/'4. Billing Determinants'!$E$41*$D26,IF($E26="kW",VLOOKUP(W$4,'4. Billing Determinants'!$B$19:$O$41,5,0)/'4. Billing Determinants'!$F$41*$D26,IF($E26="Non-RPP kWh",VLOOKUP(W$4,'4. Billing Determinants'!$B$19:$O$41,6,0)/'4. Billing Determinants'!$G$41*$D26,IF($E26="Distribution Rev.",VLOOKUP(W$4,'4. Billing Determinants'!$B$19:$O$41,8,0)/'4. Billing Determinants'!$I$41*$D26, VLOOKUP(W$4,'4. Billing Determinants'!$B$19:$O$41,3,0)/'4. Billing Determinants'!$D$41*$D26))))),0) -> 0 | X26: =IFERROR(IF(X$4="",0,IF($E26="kWh",VLOOKUP(X$4,'4. Billing Determinants'!$B$19:$O$41,4,0)/'4. Billing Determinants'!$E$41*$D26,IF($E26="kW",VLOOKUP(X$4,'4. Billing Determinants'!$B$19:$O$41,5,0)/'4. Billing Determinants'!$F$41*$D26,IF($E26="Non-RPP kWh",VLOOKUP(X$4,'4. Billing Determinants'!$B$19:$O$41,6,0)/'4. Billing Determinants'!$G$41*$D26,IF($E26="Distribution Rev.",VLOOKUP(X$4,'4. Billing Determinants'!$B$19:$O$41,8,0)/'4. Billing Determinants'!$I$41*$D26, VLOOKUP(X$4,'4. Billing Determinants'!$B$19:$O$41,3,0)/'4. Billing Determinants'!$D$41*$D26))))),0) -> 0 | Y26: =IFERROR(IF(Y$4="",0,IF($E26="kWh",VLOOKUP(Y$4,'4. Billing Determinants'!$B$19:$O$41,4,0)/'4. Billing Determinants'!$E$41*$D26,IF($E26="kW",VLOOKUP(Y$4,'4. Billing Determinants'!$B$19:$O$41,5,0)/'4. Billing Determinants'!$F$41*$D26,IF($E26="Non-RPP kWh",VLOOKUP(Y$4,'4. Billing Determinants'!$B$19:$O$41,6,0)/'4. Billing Determinants'!$G$41*$D26,IF($E26="Distribution Rev.",VLOOKUP(Y$4,'4. Billing Determinants'!$B$19:$O$41,8,0)/'4. Billing Determinants'!$I$41*$D26, VLOOKUP(Y$4,'4. Billing Determinants'!$B$19:$O$41,3,0)/'4. Billing Determinants'!$D$41*$D26))))),0) -> 0
B27: Renewable Generation Connection Capital Deferral Account | C27: 1531 | D27: ='2. 2014 Continuity Schedule'!CP50 -> 0 | F27: =IFERROR(IF(F$4="",0,IF($E27="kWh",VLOOKUP(F$4,'4. Billing Determinants'!$B$19:$O$41,4,0)/'4. Billing Determinants'!$E$41*$D27,IF($E27="kW",VLOOKUP(F$4,'4. Billing Determinants'!$B$19:$O$41,5,0)/'4. Billing Determinants'!$F$41*$D27,IF($E27="Non-RPP kWh",VLOOKUP(F$4,'4. Billing Determinants'!$B$19:$O$41,6,0)/'4. Billing Determinants'!$G$41*$D27,IF($E27="Distribution Rev.",VLOOKUP(F$4,'4. Billing Determinants'!$B$19:$O$41,8,0)/'4. Billing Determinants'!$I$41*$D27, VLOOKUP(F$4,'4. Billing Determinants'!$B$19:$O$41,3,0)/'4. Billing Determinants'!$D$41*$D27))))),0) -> 0 | G27: =IFERROR(IF(G$4="",0,IF($E27="kWh",VLOOKUP(G$4,'4. Billing Determinants'!$B$19:$O$41,4,0)/'4. Billing Determinants'!$E$41*$D27,IF($E27="kW",VLOOKUP(G$4,'4. Billing Determinants'!$B$19:$O$41,5,0)/'4. Billing Determinants'!$F$41*$D27,IF($E27="Non-RPP kWh",VLOOKUP(G$4,'4. Billing Determinants'!$B$19:$O$41,6,0)/'4. Billing Determinants'!$G$41*$D27,IF($E27="Distribution Rev.",VLOOKUP(G$4,'4. Billing Determinants'!$B$19:$O$41,8,0)/'4. Billing Determinants'!$I$41*$D27, VLOOKUP(G$4,'4. Billing Determinants'!$B$19:$O$41,3,0)/'4. Billing Determinants'!$D$41*$D27))))),0) -> 0 | H27: =IFERROR(IF(H$4="",0,IF($E27="kWh",VLOOKUP(H$4,'4. Billing Determinants'!$B$19:$O$41,4,0)/'4. Billing Determinants'!$E$41*$D27,IF($E27="kW",VLOOKUP(H$4,'4. Billing Determinants'!$B$19:$O$41,5,0)/'4. Billing Determinants'!$F$41*$D27,IF($E27="Non-RPP kWh",VLOOKUP(H$4,'4. Billing Determinants'!$B$19:$O$41,6,0)/'4. Billing Determinants'!$G$41*$D27,IF($E27="Distribution Rev.",VLOOKUP(H$4,'4. Billing Determinants'!$B$19:$O$41,8,0)/'4. Billing Determinants'!$I$41*$D27, VLOOKUP(H$4,'4. Billing Determinants'!$B$19:$O$41,3,0)/'4. Billing Determinants'!$D$41*$D27))))),0) -> 0 | I27: =IFERROR(IF(I$4="",0,IF($E27="kWh",VLOOKUP(I$4,'4. Billing Determinants'!$B$19:$O$41,4,0)/'4. Billing Determinants'!$E$41*$D27,IF($E27="kW",VLOOKUP(I$4,'4. Billing Determinants'!$B$19:$O$41,5,0)/'4. Billing Determinants'!$F$41*$D27,IF($E27="Non-RPP kWh",VLOOKUP(I$4,'4. Billing Determinants'!$B$19:$O$41,6,0)/'4. Billing Determinants'!$G$41*$D27,IF($E27="Distribution Rev.",VLOOKUP(I$4,'4. Billing Determinants'!$B$19:$O$41,8,0)/'4. Billing Determinants'!$I$41*$D27, VLOOKUP(I$4,'4. Billing Determinants'!$B$19:$O$41,3,0)/'4. Billing Determinants'!$D$41*$D27))))),0) -> 0 | J27: =IFERROR(IF(J$4="",0,IF($E27="kWh",VLOOKUP(J$4,'4. Billing Determinants'!$B$19:$O$41,4,0)/'4. Billing Determinants'!$E$41*$D27,IF($E27="kW",VLOOKUP(J$4,'4. Billing Determinants'!$B$19:$O$41,5,0)/'4. Billing Determinants'!$F$41*$D27,IF($E27="Non-RPP kWh",VLOOKUP(J$4,'4. Billing Determinants'!$B$19:$O$41,6,0)/'4. Billing Determinants'!$G$41*$D27,IF($E27="Distribution Rev.",VLOOKUP(J$4,'4. Billing Determinants'!$B$19:$O$41,8,0)/'4. Billing Determinants'!$I$41*$D27, VLOOKUP(J$4,'4. Billing Determinants'!$B$19:$O$41,3,0)/'4. Billing Determinants'!$D$41*$D27))))),0) -> 0 | K27: =IFERROR(IF(K$4="",0,IF($E27="kWh",VLOOKUP(K$4,'4. Billing Determinants'!$B$19:$O$41,4,0)/'4. Billing Determinants'!$E$41*$D27,IF($E27="kW",VLOOKUP(K$4,'4. Billing Determinants'!$B$19:$O$41,5,0)/'4. Billing Determinants'!$F$41*$D27,IF($E27="Non-RPP kWh",VLOOKUP(K$4,'4. Billing Determinants'!$B$19:$O$41,6,0)/'4. Billing Determinants'!$G$41*$D27,IF($E27="Distribution Rev.",VLOOKUP(K$4,'4. Billing Determinants'!$B$19:$O$41,8,0)/'4. Billing Determinants'!$I$41*$D27, VLOOKUP(K$4,'4. Billing Determinants'!$B$19:$O$41,3,0)/'4. Billing Determinants'!$D$41*$D27))))),0) -> 0 | L27: =IFERROR(IF(L$4="",0,IF($E27="kWh",VLOOKUP(L$4,'4. Billing Determinants'!$B$19:$O$41,4,0)/'4. Billing Determinants'!$E$41*$D27,IF($E27="kW",VLOOKUP(L$4,'4. Billing Determinants'!$B$19:$O$41,5,0)/'4. Billing Determinants'!$F$41*$D27,IF($E27="Non-RPP kWh",VLOOKUP(L$4,'4. Billing Determinants'!$B$19:$O$41,6,0)/'4. Billing Determinants'!$G$41*$D27,IF($E27="Distribution Rev.",VLOOKUP(L$4,'4. Billing Determinants'!$B$19:$O$41,8,0)/'4. Billing Determinants'!$I$41*$D27, VLOOKUP(L$4,'4. Billing Determinants'!$B$19:$O$41,3,0)/'4. Billing Determinants'!$D$41*$D27))))),0) -> 0 | M27: =IFERROR(IF(M$4="",0,IF($E27="kWh",VLOOKUP(M$4,'4. Billing Determinants'!$B$19:$O$41,4,0)/'4. Billing Determinants'!$E$41*$D27,IF($E27="kW",VLOOKUP(M$4,'4. Billing Determinants'!$B$19:$O$41,5,0)/'4. Billing Determinants'!$F$41*$D27,IF($E27="Non-RPP kWh",VLOOKUP(M$4,'4. Billing Determinants'!$B$19:$O$41,6,0)/'4. Billing Determinants'!$G$41*$D27,IF($E27="Distribution Rev.",VLOOKUP(M$4,'4. Billing Determinants'!$B$19:$O$41,8,0)/'4. Billing Determinants'!$I$41*$D27, VLOOKUP(M$4,'4. Billing Determinants'!$B$19:$O$41,3,0)/'4. Billing Determinants'!$D$41*$D27))))),0) -> 0 | N27: =IFERROR(IF(N$4="",0,IF($E27="kWh",VLOOKUP(N$4,'4. Billing Determinants'!$B$19:$O$41,4,0)/'4. Billing Determinants'!$E$41*$D27,IF($E27="kW",VLOOKUP(N$4,'4. Billing Determinants'!$B$19:$O$41,5,0)/'4. Billing Determinants'!$F$41*$D27,IF($E27="Non-RPP kWh",VLOOKUP(N$4,'4. Billing Determinants'!$B$19:$O$41,6,0)/'4. Billing Determinants'!$G$41*$D27,IF($E27="Distribution Rev.",VLOOKUP(N$4,'4. Billing Determinants'!$B$19:$O$41,8,0)/'4. Billing Determinants'!$I$41*$D27, VLOOKUP(N$4,'4. Billing Determinants'!$B$19:$O$41,3,0)/'4. Billing Determinants'!$D$41*$D27))))),0) -> 0 | O27: =IFERROR(IF(O$4="",0,IF($E27="kWh",VLOOKUP(O$4,'4. Billing Determinants'!$B$19:$O$41,4,0)/'4. Billing Determinants'!$E$41*$D27,IF($E27="kW",VLOOKUP(O$4,'4. Billing Determinants'!$B$19:$O$41,5,0)/'4. Billing Determinants'!$F$41*$D27,IF($E27="Non-RPP kWh",VLOOKUP(O$4,'4. Billing Determinants'!$B$19:$O$41,6,0)/'4. Billing Determinants'!$G$41*$D27,IF($E27="Distribution Rev.",VLOOKUP(O$4,'4. Billing Determinants'!$B$19:$O$41,8,0)/'4. Billing Determinants'!$I$41*$D27, VLOOKUP(O$4,'4. Billing Determinants'!$B$19:$O$41,3,0)/'4. Billing Determinants'!$D$41*$D27))))),0) -> 0 | P27: =IFERROR(IF(P$4="",0,IF($E27="kWh",VLOOKUP(P$4,'4. Billing Determinants'!$B$19:$O$41,4,0)/'4. Billing Determinants'!$E$41*$D27,IF($E27="kW",VLOOKUP(P$4,'4. Billing Determinants'!$B$19:$O$41,5,0)/'4. Billing Determinants'!$F$41*$D27,IF($E27="Non-RPP kWh",VLOOKUP(P$4,'4. Billing Determinants'!$B$19:$O$41,6,0)/'4. Billing Determinants'!$G$41*$D27,IF($E27="Distribution Rev.",VLOOKUP(P$4,'4. Billing Determinants'!$B$19:$O$41,8,0)/'4. Billing Determinants'!$I$41*$D27, VLOOKUP(P$4,'4. Billing Determinants'!$B$19:$O$41,3,0)/'4. Billing Determinants'!$D$41*$D27))))),0) -> 0 | Q27: =IFERROR(IF(Q$4="",0,IF($E27="kWh",VLOOKUP(Q$4,'4. Billing Determinants'!$B$19:$O$41,4,0)/'4. Billing Determinants'!$E$41*$D27,IF($E27="kW",VLOOKUP(Q$4,'4. Billing Determinants'!$B$19:$O$41,5,0)/'4. Billing Determinants'!$F$41*$D27,IF($E27="Non-RPP kWh",VLOOKUP(Q$4,'4. Billing Determinants'!$B$19:$O$41,6,0)/'4. Billing Determinants'!$G$41*$D27,IF($E27="Distribution Rev.",VLOOKUP(Q$4,'4. Billing Determinants'!$B$19:$O$41,8,0)/'4. Billing Determinants'!$I$41*$D27, VLOOKUP(Q$4,'4. Billing Determinants'!$B$19:$O$41,3,0)/'4. Billing Determinants'!$D$41*$D27))))),0) -> 0 | R27: =IFERROR(IF(R$4="",0,IF($E27="kWh",VLOOKUP(R$4,'4. Billing Determinants'!$B$19:$O$41,4,0)/'4. Billing Determinants'!$E$41*$D27,IF($E27="kW",VLOOKUP(R$4,'4. Billing Determinants'!$B$19:$O$41,5,0)/'4. Billing Determinants'!$F$41*$D27,IF($E27="Non-RPP kWh",VLOOKUP(R$4,'4. Billing Determinants'!$B$19:$O$41,6,0)/'4. Billing Determinants'!$G$41*$D27,IF($E27="Distribution Rev.",VLOOKUP(R$4,'4. Billing Determinants'!$B$19:$O$41,8,0)/'4. Billing Determinants'!$I$41*$D27, VLOOKUP(R$4,'4. Billing Determinants'!$B$19:$O$41,3,0)/'4. Billing Determinants'!$D$41*$D27))))),0) -> 0 | S27: =IFERROR(IF(S$4="",0,IF($E27="kWh",VLOOKUP(S$4,'4. Billing Determinants'!$B$19:$O$41,4,0)/'4. Billing Determinants'!$E$41*$D27,IF($E27="kW",VLOOKUP(S$4,'4. Billing Determinants'!$B$19:$O$41,5,0)/'4. Billing Determinants'!$F$41*$D27,IF($E27="Non-RPP kWh",VLOOKUP(S$4,'4. Billing Determinants'!$B$19:$O$41,6,0)/'4. Billing Determinants'!$G$41*$D27,IF($E27="Distribution Rev.",VLOOKUP(S$4,'4. Billing Determinants'!$B$19:$O$41,8,0)/'4. Billing Determinants'!$I$41*$D27, VLOOKUP(S$4,'4. Billing Determinants'!$B$19:$O$41,3,0)/'4. Billing Determinants'!$D$41*$D27))))),0) -> 0 | T27: =IFERROR(IF(T$4="",0,IF($E27="kWh",VLOOKUP(T$4,'4. Billing Determinants'!$B$19:$O$41,4,0)/'4. Billing Determinants'!$E$41*$D27,IF($E27="kW",VLOOKUP(T$4,'4. Billing Determinants'!$B$19:$O$41,5,0)/'4. Billing Determinants'!$F$41*$D27,IF($E27="Non-RPP kWh",VLOOKUP(T$4,'4. Billing Determinants'!$B$19:$O$41,6,0)/'4. Billing Determinants'!$G$41*$D27,IF($E27="Distribution Rev.",VLOOKUP(T$4,'4. Billing Determinants'!$B$19:$O$41,8,0)/'4. Billing Determinants'!$I$41*$D27, VLOOKUP(T$4,'4. Billing Determinants'!$B$19:$O$41,3,0)/'4. Billing Determinants'!$D$41*$D27))))),0) -> 0 | U27: =IFERROR(IF(U$4="",0,IF($E27="kWh",VLOOKUP(U$4,'4. Billing Determinants'!$B$19:$O$41,4,0)/'4. Billing Determinants'!$E$41*$D27,IF($E27="kW",VLOOKUP(U$4,'4. Billing Determinants'!$B$19:$O$41,5,0)/'4. Billing Determinants'!$F$41*$D27,IF($E27="Non-RPP kWh",VLOOKUP(U$4,'4. Billing Determinants'!$B$19:$O$41,6,0)/'4. Billing Determinants'!$G$41*$D27,IF($E27="Distribution Rev.",VLOOKUP(U$4,'4. Billing Determinants'!$B$19:$O$41,8,0)/'4. Billing Determinants'!$I$41*$D27, VLOOKUP(U$4,'4. Billing Determinants'!$B$19:$O$41,3,0)/'4. Billing Determinants'!$D$41*$D27))))),0) -> 0 | V27: =IFERROR(IF(V$4="",0,IF($E27="kWh",VLOOKUP(V$4,'4. Billing Determinants'!$B$19:$O$41,4,0)/'4. Billing Determinants'!$E$41*$D27,IF($E27="kW",VLOOKUP(V$4,'4. Billing Determinants'!$B$19:$O$41,5,0)/'4. Billing Determinants'!$F$41*$D27,IF($E27="Non-RPP kWh",VLOOKUP(V$4,'4. Billing Determinants'!$B$19:$O$41,6,0)/'4. Billing Determinants'!$G$41*$D27,IF($E27="Distribution Rev.",VLOOKUP(V$4,'4. Billing Determinants'!$B$19:$O$41,8,0)/'4. Billing Determinants'!$I$41*$D27, VLOOKUP(V$4,'4. Billing Determinants'!$B$19:$O$41,3,0)/'4. Billing Determinants'!$D$41*$D27))))),0) -> 0 | W27: =IFERROR(IF(W$4="",0,IF($E27="kWh",VLOOKUP(W$4,'4. Billing Determinants'!$B$19:$O$41,4,0)/'4. Billing Determinants'!$E$41*$D27,IF($E27="kW",VLOOKUP(W$4,'4. Billing Determinants'!$B$19:$O$41,5,0)/'4. Billing Determinants'!$F$41*$D27,IF($E27="Non-RPP kWh",VLOOKUP(W$4,'4. Billing Determinants'!$B$19:$O$41,6,0)/'4. Billing Determinants'!$G$41*$D27,IF($E27="Distribution Rev.",VLOOKUP(W$4,'4. Billing Determinants'!$B$19:$O$41,8,0)/'4. Billing Determinants'!$I$41*$D27, VLOOKUP(W$4,'4. Billing Determinants'!$B$19:$O$41,3,0)/'4. Billing Determinants'!$D$41*$D27))))),0) -> 0 | X27: =IFERROR(IF(X$4="",0,IF($E27="kWh",VLOOKUP(X$4,'4. Billing Determinants'!$B$19:$O$41,4,0)/'4. Billing Determinants'!$E$41*$D27,IF($E27="kW",VLOOKUP(X$4,'4. Billing Determinants'!$B$19:$O$41,5,0)/'4. Billing Determinants'!$F$41*$D27,IF($E27="Non-RPP kWh",VLOOKUP(X$4,'4. Billing Determinants'!$B$19:$O$41,6,0)/'4. Billing Determinants'!$G$41*$D27,IF($E27="Distribution Rev.",VLOOKUP(X$4,'4. Billing Determinants'!$B$19:$O$41,8,0)/'4. Billing Determinants'!$I$41*$D27, VLOOKUP(X$4,'4. Billing Determinants'!$B$19:$O$41,3,0)/'4. Billing Determinants'!$D$41*$D27))))),0) -> 0 | Y27: =IFERROR(IF(Y$4="",0,IF($E27="kWh",VLOOKUP(Y$4,'4. Billing Determinants'!$B$19:$O$41,4,0)/'4. Billing Determinants'!$E$41*$D27,IF($E27="kW",VLOOKUP(Y$4,'4. Billing Determinants'!$B$19:$O$41,5,0)/'4. Billing Determinants'!$F$41*$D27,IF($E27="Non-RPP kWh",VLOOKUP(Y$4,'4. Billing Determinants'!$B$19:$O$41,6,0)/'4. Billing Determinants'!$G$41*$D27,IF($E27="Distribution Rev.",VLOOKUP(Y$4,'4. Billing Determinants'!$B$19:$O$41,8,0)/'4. Billing Determinants'!$I$41*$D27, VLOOKUP(Y$4,'4. Billing Determinants'!$B$19:$O$41,3,0)/'4. Billing Determinants'!$D$41*$D27))))),0) -> 0
